{"text_format":"1","workbook":"xlsx","n_sheets":18,"sheets":["ProjectInformation","PrintSheets","DE100_0A","DE100_1D","DE100_4A","DE100_28","DE105_4","DE112_6","100_0A","100_1D","100_4A","100_28","105_4","112_6","PrintSheetTemplate","Note1","BridgeBlock","Index"],"not_rendered":{"charts":0,"images":12,"macros":1,"external_links":0,"defined_names":8,"comments":0,"pivot_tables":0},"unopened":[],"bounds":{"document_bytes":16777216,"sheet_cells":100000,"rows_first":2000,"rows_last":500,"rows_between":2000,"halvings":0,"cell_chars":16384,"cell_head_chars":4096},"cells_cut":0,"cells_raw":0,"read":"whole","date_system":"1900"}

{"sheet":"ProjectInformation","index":0,"n_rows":11,"n_cols":2,"rows_kept":11,"cut":false,"hidden":false,"merged":[[0,0,0,1],[1,0,1,1],[9,0,9,1],[3,0,4,0]]}
["CPN DATA"]
["INFORMATION ADDED BY DESIGNER"]
["Section Engineer","Flattery"]
["Design Team","Bell"]
[]
["County","BENTON"]
["Project Number","NHSX-030-6(230)--3H-06"]
["English or Metric","ENGLISH"]
["Revised"]
["Bridge Block"]
["File No.",31043]

{"sheet":"PrintSheets","index":1,"n_rows":190,"n_cols":179,"rows_kept":190,"cut":false,"hidden":false,"merged":[[93,171,93,178],[94,1,94,178],[93,101,93,106],[93,107,93,118],[93,119,93,148],[93,149,93,158],[93,159,93,164],[93,165,93,170],[93,1,93,7],[93,8,93,14],[93,15,93,21],[93,22,93,30],[93,31,93,64],[93,65,93,100],[188,1,188,7],[188,8,188,14],[188,15,188,21],[188,22,188,30],[188,31,188,64],[188,65,188,100],[188,101,188,106],[188,107,188,118],[188,119,188,148],[188,149,188,158],[188,159,188,164],[188,165,188,170],[188,171,188,178],[189,1,189,178],[74,135,75,177],[76,149,76,177],[77,149,77,177],[78,149,78,177],[79,149,79,177],[80,149,81,171],[80,172,81,177],[82,149,82,153],[82,172,82,174],[83,149,84,177],[85,149,85,158],[86,149,86,166],[86,167,86,168],[88,136,88,153],[88,154,88,176],[89,136,89,176],[90,136,90,176]]}
[" "]
[]
[]
[]
[]
[]
[]
[]
[]
[]
[]
[]
[]
[]
[]
[]
[]
[]
[]
[]
[]
[]
[]
[]
[]
[]
[]
[]
[]
[]
[]
[]
[]
[]
[]
[]
[]
[]
[]
[]
[]
[]
[]
[]
[]
[]
[]
[]
[]
[]
[]
[]
[]
[]
[]
[]
[]
[]
[]
[]
[]
[]
[]
[]
[]
[]
[]
[]
[]
[]
[]
[]
[]
[null,null,null,null,null,null,null,null,null,null,null,null,null,null,null,null,null,null,null,null,null,null,null,null,null,null,null,null,null,null,null,null,null,null,null,null,null,null,null,null,null,null,null,null,null,null,null,null,null,null,null,null,null,null,null,null,null,null,null,null,null,null,null,null,null,null,null,null,null,null,null,null,null,null,null,null,null,null,null,null,null,null,null,null,null,null,null,null,null,null,null,null,null,null,null,null,null,null,null,null,null,null,null,null,null,null,null,null,null,null,null,null,null,null,null,null,null,null,null,null,null,null,null,null,null,null,null,null,null,null,null,null,null,null,null,"","","","","","","","","","","","","","","","","","","","","","","","","","","","","","","","","","","","","","","","","","",""]
[null,null,null,null,null,null,null,null,null,null,null,null,null,null,null,null,null,null,null,null,null,null,null,null,null,null,null,null,null,null,null,null,null,null,null,null,null,null,null,null,null,null,null,null,null,null,null,null,null,null,null,null,null,null,null,null,null,null,null,null,null,null,null,null,null,null,null,null,null,null,null,null,null,null,null,null,null,null,null,null,null,null,null,null,null,null,null,null,null,null,null,null,null,null,null,null,null,null,null,null,null,null,null,null,null,null,null,null,null,null,null,null,null,null,null,null,null,null,null,null,null,null,null,null,null,null,null,null,null,null,null,null,null,null,null,"ROADWAY DESIGN"]
[]
[null,null,null,null,null,null,null,null,null,null,null,null,null,null,null,null,null,null,null,null,null,null,null,null,null,null,null,null,null,null,null,null,null,null,null,null,null,null,null,null,null,null,null,null,null,null,null,null,null,null,null,null,null,null,null,null,null,null,null,null,null,null,null,null,null,null,null,null,null,null,null,null,null,null,null,null,null,null,null,null,null,null,null,null,null,null,null,null,null,null,null,null,null,null,null,null,null,null,null,null,null,null,null,null,null,null,null,null,null,null,null,null,null,null,null,null,null,null,null,null,null,null,null,null,null,null,null,null,null,null,null,null,null,null,null,null,null,null,null,null,null,null,null,null,null,null,null,null,null,"I hereby certify that this engineering document was prepared"]
[null,null,null,null,null,null,null,null,null,null,null,null,null,null,null,null,null,null,null,null,null,null,null,null,null,null,null,null,null,null,null,null,null,null,null,null,null,null,null,null,null,null,null,null,null,null,null,null,null,null,null,null,null,null,null,null,null,null,null,null,null,null,null,null,null,null,null,null,null,null,null,null,null,null,null,null,null,null,null,null,null,null,null,null,null,null,null,null,null,null,null,null,null,null,null,null,null,null,null,null,null,null,null,null,null,null,null,null,null,null,null,null,null,null,null,null,null,null,null,null,null,null,null,null,null,null,null,null,null,null,null,null,null,null,null,null,null,null,null,null,null,null,null,null,null,null,null,null,null,"by me or under my direct personal supervision and that I"]
[null,null,null,null,null,null,null,null,null,null,null,null,null,null,null,null,null,null,null,null,null,null,null,null,null,null,null,null,null,null,null,null,null,null,null,null,null,null,null,null,null,null,null,null,null,null,null,null,null,null,null,null,null,null,null,null,null,null,null,null,null,null,null,null,null,null,null,null,null,null,null,null,null,null,null,null,null,null,null,null,null,null,null,null,null,null,null,null,null,null,null,null,null,null,null,null,null,null,null,null,null,null,null,null,null,null,null,null,null,null,null,null,null,null,null,null,null,null,null,null,null,null,null,null,null,null,null,null,null,null,null,null,null,null,null,null,null,null,null,null,null,null,null,null,null,null,null,null,null,"am a duly licensed Professional Engineer under the laws of"]
[null,null,null,null,null,null,null,null,null,null,null,null,null,null,null,null,null,null,null,null,null,null,null,null,null,null,null,null,null,null,null,null,null,null,null,null,null,null,null,null,null,null,null,null,null,null,null,null,null,null,null,null,null,null,null,null,null,null,null,null,null,null,null,null,null,null,null,null,null,null,null,null,null,null,null,null,null,null,null,null,null,null,null,null,null,null,null,null,null,null,null,null,null,null,null,null,null,null,null,null,null,null,null,null,null,null,null,null,null,null,null,null,null,null,null,null,null,null,null,null,null,null,null,null,null,null,null,null,null,null,null,null,null,null,null,null,null,null,null,null,null,null,null,null,null,null,null,null,null,"the State of Iowa."]
[null,null,null,null,null,null,null,null,null,null,null,null,null,null,null,null,null,null,null,null,null,null,null,null,null,null,null,null,null,null,null,null,null,null,null,null,null,null,null,null,null,null,null,null,null,null,null,null,null,null,null,null,null,null,null,null,null,null,null,null,null,null,null,null,null,null,null,null,null,null,null,null,null,null,null,null,null,null,null,null,null,null,null,null,null,null,null,null,null,null,null,null,null,null,null,null,null,null,null,null,null,null,null,null,null,null,null,null,null,null,null,null,null,null,null,null,null,null,null,null,null,null,null,null,null,null,null,null,null,null,null,null,null,null,null,null,null,null,null,null,null,null,null,null,null,null,null,null,null,null,null,null,null,null,null,null,null,null,null,null,null,null,null,null,null,null,null,null,null,null,null,null,"2018-02-21"]
[]
[null,null,null,null,null,null,null,null,null,null,null,null,null,null,null,null,null,null,null,null,null,null,null,null,null,null,null,null,null,null,null,null,null,null,null,null,null,null,null,null,null,null,null,null,null,null,null,null,null,null,null,null,null,null,null,null,null,null,null,null,null,null,null,null,null,null,null,null,null,null,null,null,null,null,null,null,null,null,null,null,null,null,null,null,null,null,null,null,null,null,null,null,null,null,null,null,null,null,null,null,null,null,null,null,null,null,null,null,null,null,null,null,null,null,null,null,null,null,null,null,null,null,null,null,null,null,null,null,null,null,null,null,null,null,null,null,null,null,null,null,null,null,null,null,null,null,null,null,null,"Signature",null,null,null,null,null,null,null,null,null,null,null,null,null,null,null,null,null,null,null,null,null,null,"Date"]
[null,null,null,null,null,null,null,null,null,null,null,null,null,null,null,null,null,null,null,null,null,null,null,null,null,null,null,null,null,null,null,null,null,null,null,null,null,null,null,null,null,null,null,null,null,null,null,null,null,null,null,null,null,null,null,null,null,null,null,null,null,null,null,null,null,null,null,null,null,null,null,null,null,null,null,null,null,null,null,null,null,null,null,null,null,null,null,null,null,null,null,null,null,null,null,null,null,null,null,null,null,null,null,null,null,null,null,null,null,null,null,null,null,null,null,null,null,null,null,null,null,null,null,null,null,null,null,null,null,null,null,null,null,null,null,null,null,null,null,null,null,null,null,null,null,null,null,null,null,"Kelly C. Bell"]
[]
[null,null,null,null,null,null,null,null,null,null,null,null,null,null,null,null,null,null,null,null,null,null,null,null,null,null,null,null,null,null,null,null,null,null,null,null,null,null,null,null,null,null,null,null,null,null,null,null,null,null,null,null,null,null,null,null,null,null,null,null,null,null,null,null,null,null,null,null,null,null,null,null,null,null,null,null,null,null,null,null,null,null,null,null,null,null,null,null,null,null,null,null,null,null,null,null,null,null,null,null,null,null,null,null,null,null,null,null,null,null,null,null,null,null,null,null,null,null,null,null,null,null,null,null,null,null,null,null,null,null,null,null,null,null,null,null,null,null,null,null,null,null,null,null,null,null,null,null,null,"Printed or Typed Name"]
[null,null,null,null,null,null,null,null,null,null,null,null,null,null,null,null,null,null,null,null,null,null,null,null,null,null,null,null,null,null,null,null,null,null,null,null,null,null,null,null,null,null,null,null,null,null,null,null,null,null,null,null,null,null,null,null,null,null,null,null,null,null,null,null,null,null,null,null,null,null,null,null,null,null,null,null,null,null,null,null,null,null,null,null,null,null,null,null,null,null,null,null,null,null,null,null,null,null,null,null,null,null,null,null,null,null,null,null,null,null,null,null,null,null,null,null,null,null,null,null,null,null,null,null,null,null,null,null,null,null,null,null,null,null,null,null,null,null,null,null,null,null,null,null,null,null,null,null,null,"My license renewal date is December 31, 20",null,null,null,null,null,null,null,null,null,null,null,null,null,null,null,null,null,19]
[]
[null,null,null,null,null,null,null,null,null,null,null,null,null,null,null,null,null,null,null,null,null,null,null,null,null,null,null,null,null,null,null,null,null,null,null,null,null,null,null,null,null,null,null,null,null,null,null,null,null,null,null,null,null,null,null,null,null,null,null,null,null,null,null,null,null,null,null,null,null,null,null,null,null,null,null,null,null,null,null,null,null,null,null,null,null,null,null,null,null,null,null,null,null,null,null,null,null,null,null,null,null,null,null,null,null,null,null,null,null,null,null,null,null,null,null,null,null,null,null,null,null,null,null,null,null,null,null,null,null,null,null,null,null,null,null,null,"Pages or sheets covered by this seal:",null,null,null,null,null,null,null,null,null,null,null,null,null,null,null,null,null,"C.1 - C.2"]
[]
[]
[]
[null,"","","","","","","","","","","","","","","","","","","","","","","","","","","","","","","","","","","","","","","","","","","","","","","","","","","","","","","","","","","","","","","","","","","","","","","","","","","","","","","","","","","","","","","","","","","","","","","","","","","","","","","","","","","","","","","","","","","","","","","","","","","","","","","","","","","","","","","","","","","","","","","","","","","","","","","",null,"","","","","","","","","","","","","","","","","","","","","","","","","",""]
[null,"FILE NO.",null,null,null,null,null,null,{"$f":"IF(ProjectInformation!$B$11<>\"\",ProjectInformation!$B$11,\"\")","v":31043},null,null,null,null,null,null,{"$f":"UPPER(ProjectInformation!B8)","v":"ENGLISH"},null,null,null,null,null,null,"DESIGN TEAM",null,null,null,null,null,null,null,null,{"$f":"IF(AND(ProjectInformation!$B$3<>\"\",ProjectInformation!$B$4<>\"\",ProjectInformation!$B$5<>\"\"),ProjectInformation!$B$3&\"\\\"&ProjectInformation!$B$4&\"\\\"&ProjectInformation!$B$5,IF(AND(ProjectInformation!$B$3<>\"\",ProjectInformation!$B$4<>\"\"),ProjectInformation!$B$3&\"\\\"&ProjectInformation!$B$4,IF(ProjectInformation!$B$3<>\"\",ProjectInformation!$B$3,\"\")))","v":"Flattery\\Bell"},null,null,null,null,null,null,null,null,null,null,null,null,null,null,null,null,null,null,null,null,null,null,null,null,null,null,null,null,null,null,null,null,null,{"$f":"IF(ProjectInformation!$B$6<>\"\",ProjectInformation!$B$6,\"\")","v":"BENTON"},null,null,null,null,null,null,null,null,null,null,null,null,null,null,null,null,null,null,null,null,null,null,null,null,null,null,null,null,null,null,null,null,null,null,null,"COUNTY",null,null,null,null,null,"PROJECT NUMBER",null,null,null,null,null,null,null,null,null,null,null,{"$f":"IF(ProjectInformation!$B$7<>\"\",ProjectInformation!$B$7,\"\")","v":"NHSX-030-6(230)--3H-06"},null,null,null,null,null,null,null,null,null,null,null,null,null,null,null,null,null,null,null,null,null,null,null,null,null,null,null,null,null,"SHEET NUMBER",null,null,null,null,null,null,null,null,null,"C.1",null,null,null,null,null,{"$f":"IF(FP94<>\"\",\"REVISED\",\"\")","v":""},null,null,null,null,null,{"$f":"IF(ProjectInformation!$B$9<>\"\",ProjectInformation!$B$9,\"\")","v":""}]
["","2/21/2018     7:43:55 AM     kbell     c:\\pw_work\\pwmain\\kbell\\d0797675\\06030230C01.xlsm"]
[" "]
[]
[]
[]
[]
[]
[]
[]
[]
[]
[]
[]
[]
[]
[]
[]
[]
[]
[]
[]
[]
[]
[]
[]
[]
[]
[]
[]
[]
[]
[]
[]
[]
[]
[]
[]
[]
[]
[]
[]
[]
[]
[]
[]
[]
[]
[]
[]
[]
[]
[]
[]
[]
[]
[]
[]
[]
[]
[]
[]
[]
[]
[]
[]
[]
[]
[]
[]
[]
[]
[]
[]
[]
[]
[]
[]
[]
[]
[]
[]
[]
[]
[]
[]
[]
[]
[]
[]
[]
[]
[]
[]
[null,"","","","","","","","","","","","","","","","","","","","","","","","","","","","","","","","","","","","","","","","","","","","","","","","","","","","","","","","","","","","","","","","","","","","","","","","","","","","","","","","","","","","","","","","","","","","","","","","","","","","","","","","","","","","","","","","","","","","","","","","","","","","","","","","","","","","","","","","","","","","","","","","","","","","","","","",null,"","","","","","","","","","","","","","","","","","","","","","","","","",""]
[null,"FILE NO.",null,null,null,null,null,null,{"$f":"IF(ProjectInformation!$B$11<>\"\",ProjectInformation!$B$11,\"\")","v":31043},null,null,null,null,null,null,{"$f":"UPPER(ProjectInformation!B8)","v":"ENGLISH"},null,null,null,null,null,null,"DESIGN TEAM",null,null,null,null,null,null,null,null,{"$f":"IF(AND(ProjectInformation!$B$3<>\"\",ProjectInformation!$B$4<>\"\",ProjectInformation!$B$5<>\"\"),ProjectInformation!$B$3&\"\\\"&ProjectInformation!$B$4&\"\\\"&ProjectInformation!$B$5,IF(AND(ProjectInformation!$B$3<>\"\",ProjectInformation!$B$4<>\"\"),ProjectInformation!$B$3&\"\\\"&ProjectInformation!$B$4,IF(ProjectInformation!$B$3<>\"\",ProjectInformation!$B$3,\"\")))","v":"Flattery\\Bell"},null,null,null,null,null,null,null,null,null,null,null,null,null,null,null,null,null,null,null,null,null,null,null,null,null,null,null,null,null,null,null,null,null,{"$f":"IF(ProjectInformation!$B$6<>\"\",ProjectInformation!$B$6,\"\")","v":"BENTON"},null,null,null,null,null,null,null,null,null,null,null,null,null,null,null,null,null,null,null,null,null,null,null,null,null,null,null,null,null,null,null,null,null,null,null,"COUNTY",null,null,null,null,null,"PROJECT NUMBER",null,null,null,null,null,null,null,null,null,null,null,{"$f":"IF(ProjectInformation!$B$7<>\"\",ProjectInformation!$B$7,\"\")","v":"NHSX-030-6(230)--3H-06"},null,null,null,null,null,null,null,null,null,null,null,null,null,null,null,null,null,null,null,null,null,null,null,null,null,null,null,null,null,"SHEET NUMBER",null,null,null,null,null,null,null,null,null,{"$f":"IF($FD$94<>\"\",\"C.\"& MID(OFFSET($FD$189,-95,0),3,LEN(OFFSET($FD$189,-95,0))-2)+1,\"\")","v":"C.2"},null,null,null,null,null,{"$f":"IF(FP189<>\"\",\"REVISED\",\"\")","v":""},null,null,null,null,null,{"$f":"IF(ProjectInformation!$B$9<>\"\",ProjectInformation!$B$9,\"\")","v":""}]
["","2/21/2018     7:43:55 AM     kbell     c:\\pw_work\\pwmain\\kbell\\d0797675\\06030230C01.xlsm"]

{"sheet":"DE100_0A","index":2,"n_rows":23,"n_cols":15,"rows_kept":23,"cut":false,"hidden":false,"merged":[[20,11,21,11],[20,12,21,12],[20,13,21,13],[14,2,17,7],[14,9,14,14],[15,9,15,14],[16,9,19,14],[18,2,18,7],[19,2,20,2],[19,3,20,3],[19,4,20,4],[19,5,20,5],[19,6,20,6],[20,14,21,14],[19,7,20,7],[20,9,21,9],[20,10,21,10]]}
["TabTitle",{"$f":"C15","v":"ESTIMATED ROADWAY QUANTITIES\n(1 DIVISION PROJECT)"}]
["Number of Tab Columns",6]
["DE Starter Row Number",22]
["TabSheet Starter Row Number",9]
["TabSheet Header Row Count",8]
["Top Header Cell","J15"]
["Bottom Header Cell","O22"]
["DESheet Row Count",2]
["Fixed Empty Rows",0]
["Usable Empty Rows",10]
["Total Rows Placed",12,"xlCenter","xlCenter","xlLeft(1)","xlLeft(1)","xlRight(1)","xlRight(1)",null,{"$f":"C11","v":"xlCenter"},{"$f":"D11","v":"xlCenter"},"xlLeft(1)","xlLeft(1)","xlRight(1)","xlRight(1)"]
["Total Rows Needed",{"$f":"SUM(B8:B10)","v":12},"General","General","General","General","General","General",null,{"$f":"C12","v":"General"},"General","General","General","General","General"]
["Last Tab DE Starter Row",22,{"$f":"CELL(\"width\",C13)","v":12},16,83,11,16,16,null,{"$f":"CELL(\"width\",J13)","v":0},0,0,0,0,0]
["Last Tab Tabsheet Starter Row",9,"A","B","C","D","E","F",null,{"$f":"LOWER(C14)","v":"a"},"b","c","d","e","f"]
["Last Copy Starter Row",1,"ESTIMATED ROADWAY QUANTITIES\n(1 DIVISION PROJECT)",null,null,null,null,null,null,"100-0A"]
["Tab Loop Number",2,null,null,null,null,null,null,null,{"$f":"B17","v":"1997-10-28"}]
["Revision Date","1997-10-28",null,null,null,null,null,null,null,{"$f":"C15","v":"ESTIMATED ROADWAY QUANTITIES\n(1 DIVISION PROJECT)"}]
["Tabulation Width",2]
["Horizontal Grid Lines","Yes",{"$f":"\"This Data Entry Sheet fills Tab \"&J15&\" effective \"&TEXT(B17,\"mm-dd-yy\")","v":"This Data Entry Sheet fills Tab 100-0A effective 10-28-97"}]
[null,null,"Item No.","Item Code","Item","Unit","Total","As Built Qty."]
[null,null,null,null,null,null,null,null,null,{"$f":"C20","v":"Item No."},"Item Code","Item","Unit","Total","As Built Qty."]
[null,null,"1","2301-0690203","BRIDGE APPROACH, BR-203   ","SY","519.5  "]
[null,null,"2","2412-0000100","LONGITUDINAL GROOVING IN CONCRETE   ","SY","1,790.6  "]

{"sheet":"DE100_1D","index":3,"n_rows":19,"n_cols":5,"rows_kept":19,"cut":false,"hidden":false,"merged":[[14,2,15,2],[16,4,17,4]]}
["TabTitle",{"$f":"C15","v":"PROJECT DESCRIPTION"}]
["Number of Tab Columns",1]
["DE Starter Row Number",18]
["TabSheet Starter Row Number",5]
["TabSheet Header Row Count",4]
["Top Header Cell","E15"]
["Bottom Header Cell","E18"]
["DESheet Row Count",2]
["Fixed Empty Rows",0]
["Usable Empty Rows",4]
["Total Rows Placed",6,"xlLeft(1)",null,{"$f":"C11","v":"xlLeft(1)"}]
["Total Rows Needed",{"$f":"SUM(B8:B10)","v":6},"General",null,{"$f":"C12","v":"General"}]
["Last Tab DE Starter Row",18,{"$f":"CELL(\"width\",C13)","v":159},null,{"$f":"CELL(\"width\",E13)","v":0}]
["Last Tab Tabsheet Starter Row",5,"A",null,"a"]
["Last Copy Starter Row",1,"PROJECT DESCRIPTION",null,"100-1D"]
["Tab Loop Number",2,null,null,{"$f":"B17","v":"2005-10-18"}]
["Revision Date","2005-10-18",{"$f":"\"This Data Entry Sheet fills Tab \"&E15&\" effective \"&TEXT(B17,\"mm-dd-yy\")","v":"This Data Entry Sheet fills Tab 100-1D effective 10-18-05"},null,{"$f":"C15","v":"PROJECT DESCRIPTION"}]
["Tabulation Width",2]
["Horizontal Grid Lines","No","This project involves the bridge approach pavement for the new interchange U.S. Highway 218 bridge over U.S. Highway 30."]

{"sheet":"DE100_4A","index":4,"n_rows":25,"n_cols":9,"rows_kept":25,"cut":false,"hidden":false,"merged":[[18,8,19,8],[14,2,15,4],[14,6,14,8],[15,6,15,8],[16,2,16,4],[16,6,17,8],[17,2,18,2],[17,3,18,3],[17,4,18,4],[18,6,19,6],[18,7,19,7]]}
["TabTitle",{"$f":"C15","v":"ESTIMATE REFERENCE INFORMATION"}]
["Number of Tab Columns",3]
["DE Starter Row Number",20]
["TabSheet Starter Row Number",7]
["TabSheet Header Row Count",6]
["Top Header Cell","G15"]
["Bottom Header Cell","I20"]
["DESheet Row Count",6]
["Fixed Empty Rows",0]
["Usable Empty Rows",10]
["Total Rows Placed",16,"xlCenter","xlCenter","xlLeft(1)",null,{"$f":"C11","v":"xlCenter"},"xlCenter","xlLeft(1)"]
["Total Rows Needed",{"$f":"SUM(B8:B10)","v":16},"General","General","General",null,"General","General","General"]
["Last Tab DE Starter Row",20,{"$f":"CELL(\"width\",C13)","v":12},{"$f":"CELL(\"width\",D13)","v":16},{"$f":"CELL(\"width\",E13)","v":129},null,{"$f":"CELL(\"width\",G13)","v":0},{"$f":"CELL(\"width\",H13)","v":0},{"$f":"CELL(\"width\",I13)","v":0}]
["Last Tab Tabsheet Starter Row",7,"A","B","C",null,{"$f":"LOWER(C14)","v":"a"},{"$f":"LOWER(D14)","v":"b"},{"$f":"LOWER(E14)","v":"c"}]
["Last Copy Starter Row",1,"ESTIMATE REFERENCE INFORMATION",null,null,null,"100-4A"]
["Tab Loop Number",2,null,null,null,null,{"$f":"B17","v":"2002-10-29"}]
["Revision Date","2002-10-29",{"$f":"\"This Data Entry Sheet fills Tab \"&G15&\" effective \"&TEXT(B17,\"mm-dd-yy\")","v":"This Data Entry Sheet fills Tab 100-4A effective 10-29-02"},null,null,null,{"$f":"C15","v":"ESTIMATE REFERENCE INFORMATION"}]
["Tabulation Width",2,"Item No.","Item Code","Description"]
["Horizontal Grid Lines","Yes",null,null,null,null,{"$f":"C18","v":"Item No."},{"$f":"D18","v":"Item Code"},{"$f":"E18","v":"Description"}]
[null,null,1,"2301-0690203","BRIDGE APPROACH, BR-203    "]
[null,null,null,null,"See Tab. 112-6"]
[null,null,"-","-","-"]
[null,null,2,"2412-0000100","LONGITUDINAL GROOVING IN CONCRETE    "]
[null,null,null,null,"See Tab. 100-28"]
[null,null,"-","-","-"]

{"sheet":"DE100_28","index":5,"n_rows":6000,"n_cols":16,"rows_kept":6000,"cut":false,"hidden":false,"merged":[[18,7,20,7],[18,9,20,9],[18,10,19,10],[18,11,20,11],[14,9,14,11],[15,2,16,7],[15,9,15,11],[16,9,17,11],[17,2,17,7],[18,2,20,2],[18,3,19,3],[18,4,19,4],[18,5,19,5],[18,6,19,6]]}
["TabTitle",{"$f":"C16","v":"LONGITUDINAL GROOVING"}]
["Number of Tab Columns",3,null,null,null,null,null,null,null,null,null,null,null,null,"Possible Contract Items"]
["DE Starter Row Number",22,null,null,null,null,null,null,null,null,null,null,null,"2412-0000100","LONGITUDINAL GROOVING IN CONCRETE",{"$f":"G15","v":3581.18}]
["TabSheet Starter Row Number",8]
["TabSheet Header Row Count",7]
["Top Header Cell","J15"]
["Bottom Header Cell","L21"]
["DESheet Row Count",5]
["Fixed Empty Rows",0]
["Usable Empty Rows",10]
["Total Rows Placed",15,"xlRight(1)",null,null,null,"xlRight(1)","xlLeft(1)",null,{"$f":"C11","v":"xlRight(1)"},{"$f":"G11","v":"xlRight(1)"},{"$f":"H11","v":"xlLeft(1)"}]
["Total Rows Needed",{"$f":"SUM(B8:B10)","v":15},"#+00.00",null,null,null,"0.0","General",null,{"$f":"C12","v":"#+00.00"},{"$f":"G12","v":"0.0"},{"$f":"H12","v":"General"}]
["Last Tab DE Starter Row",22,{"$f":"CELL(\"width\",C13)","v":16},null,null,null,{"$f":"CELL(\"width\",G13)","v":12},{"$f":"CELL(\"width\",H13)","v":47},null,{"$f":"CELL(\"width\",J13)","v":0},{"$f":"CELL(\"width\",K13)","v":0},{"$f":"CELL(\"width\",L13)","v":0}]
["Last Tab Tabsheet Starter Row",8,"A",null,null,null,"B","C",null,{"$f":"LOWER(C14)","v":"a"},{"$f":"LOWER(G14)","v":"b"},{"$f":"LOWER(H14)","v":"c"}]
["Last Copy Starter Row",1,null,null,null,"Totals:",{"$f":"SUBTOTAL(9,G22:G6000)","v":3581.18},null,null,"100-28"]
["Tab Loop Number",2,"LONGITUDINAL GROOVING",null,null,null,null,null,null,{"$f":"B17","v":"2010-10-19"}]
["Revision Date","2010-10-19",null,null,null,null,null,null,null,{"$f":"C16","v":"LONGITUDINAL GROOVING"}]
["Tabulation Width",1,{"$f":"\"This Data Entry Sheet fills Tab \"&J15&\" effective \"&TEXT(B17,\"mm-dd-yy\")","v":"This Data Entry Sheet fills Tab 100-28 effective 10-19-10"}]
["Horizontal Grid Lines","Yes","Location","Length","Width","Area","Total","Remarks",null,{"$f":"C19","v":"Location"},{"$f":"G19","v":"Total"},{"$f":"H19","v":"Remarks"}]
[]
[null,null,null,"FT","FT","SF","SY",null,null,null,{"$f":"G21","v":"SY"}]
[null,null,"US 218",null,null,{"$f":"IF(D22<>\"\",D22*E22,\"\")","v":""},263.26,"South Approach"]
[null,null,null,null,null,"",1271.1099999999999,"Bridge (need to confirm with OBS)"]
[null,null,null,null,null,"",256.22000000000003,"North Approach"]
[null,null,null,null,null,"",{"$f":"IF(F25<>\"\",F25/9,\"\")","v":""}]
[null,null,"TOTAL",null,null,"",{"$f":"SUM(G22:G25)","v":1790.59}]
[null,null,null,null,null,"",""]
[null,null,null,null,null,"",""]
[null,null,null,null,null,"",""]
[null,null,null,null,null,"",""]
[null,null,null,null,null,"",""]
[null,null,null,null,null,"",""]
[null,null,null,null,null,"",""]
[null,null,null,null,null,"",""]
[null,null,null,null,null,"",""]
[null,null,null,null,null,"",""]
[null,null,null,null,null,"",""]
[null,null,null,null,null,"",""]
[null,null,null,null,null,"",""]
[null,null,null,null,null,"",""]
[null,null,null,null,null,"",""]
[null,null,null,null,null,"",""]
[null,null,null,null,null,"",""]
[null,null,null,null,null,"",""]
[null,null,null,null,null,"",""]
[null,null,null,null,null,"",""]
[null,null,null,null,null,"",""]
[null,null,null,null,null,"",""]
[null,null,null,null,null,"",""]
[null,null,null,null,null,"",""]
[null,null,null,null,null,"",""]
[null,null,null,null,null,"",""]
[null,null,null,null,null,"",""]
[null,null,null,null,null,"",""]
[null,null,null,null,null,"",""]
[null,null,null,null,null,"",""]
[null,null,null,null,null,"",""]
[null,null,null,null,null,"",""]
[null,null,null,null,null,"",""]
[null,null,null,null,null,"",""]
[null,null,null,null,null,"",""]
[null,null,null,null,null,"",""]
[null,null,null,null,null,"",""]
[null,null,null,null,null,"",""]
[null,null,null,null,null,"",""]
[null,null,null,null,null,"",""]
[null,null,null,null,null,"",""]
[null,null,null,null,null,"",""]
[null,null,null,null,null,"",""]
[null,null,null,null,null,"",""]
[null,null,null,null,null,"",""]
[null,null,null,null,null,"",""]
[null,null,null,null,null,"",""]
[null,null,null,null,null,"",""]
[null,null,null,null,null,"",""]
[null,null,null,null,null,"",""]
[null,null,null,null,null,"",""]
[null,null,null,null,null,"",""]
[null,null,null,null,null,"",""]
[null,null,null,null,null,"",""]
[null,null,null,null,null,"",""]
[null,null,null,null,null,"",""]
[null,null,null,null,null,"",""]
[null,null,null,null,null,"",""]
[null,null,null,null,null,"",""]
[null,null,null,null,null,{"$f":"IF(D86<>\"\",D86*E86,\"\")","v":""},{"$f":"IF(F86<>\"\",F86/9,\"\")","v":""}]
[null,null,null,null,null,"",""]
[null,null,null,null,null,"",""]
[null,null,null,null,null,"",""]
[null,null,null,null,null,"",""]
[null,null,null,null,null,"",""]
[null,null,null,null,null,"",""]
[null,null,null,null,null,"",""]
[null,null,null,null,null,"",""]
[null,null,null,null,null,"",""]
[null,null,null,null,null,"",""]
[null,null,null,null,null,"",""]
[null,null,null,null,null,"",""]
[null,null,null,null,null,"",""]
[null,null,null,null,null,"",""]
[null,null,null,null,null,"",""]
[null,null,null,null,null,"",""]
[null,null,null,null,null,"",""]
[null,null,null,null,null,"",""]
[null,null,null,null,null,"",""]
[null,null,null,null,null,"",""]
[null,null,null,null,null,"",""]
[null,null,null,null,null,"",""]
[null,null,null,null,null,"",""]
[null,null,null,null,null,"",""]
[null,null,null,null,null,"",""]
[null,null,null,null,null,"",""]
[null,null,null,null,null,"",""]
[null,null,null,null,null,"",""]
[null,null,null,null,null,"",""]
[null,null,null,null,null,"",""]
[null,null,null,null,null,"",""]
[null,null,null,null,null,"",""]
[null,null,null,null,null,"",""]
[null,null,null,null,null,"",""]
[null,null,null,null,null,"",""]
[null,null,null,null,null,"",""]
[null,null,null,null,null,"",""]
[null,null,null,null,null,"",""]
[null,null,null,null,null,"",""]
[null,null,null,null,null,"",""]
[null,null,null,null,null,"",""]
[null,null,null,null,null,"",""]
[null,null,null,null,null,"",""]
[null,null,null,null,null,"",""]
[null,null,null,null,null,"",""]
[null,null,null,null,null,"",""]
[null,null,null,null,null,"",""]
[null,null,null,null,null,"",""]
[null,null,null,null,null,"",""]
[null,null,null,null,null,"",""]
[null,null,null,null,null,"",""]
[null,null,null,null,null,"",""]
[null,null,null,null,null,"",""]
[null,null,null,null,null,"",""]
[null,null,null,null,null,"",""]
[null,null,null,null,null,"",""]
[null,null,null,null,null,"",""]
[null,null,null,null,null,"",""]
[null,null,null,null,null,"",""]
[null,null,null,null,null,"",""]
[null,null,null,null,null,"",""]
[null,null,null,null,null,"",""]
[null,null,null,null,null,"",""]
[null,null,null,null,null,{"$f":"IF(D150<>\"\",D150*E150,\"\")","v":""},{"$f":"IF(F150<>\"\",F150/9,\"\")","v":""}]
[null,null,null,null,null,"",""]
[null,null,null,null,null,"",""]
[null,null,null,null,null,"",""]
[null,null,null,null,null,"",""]
[null,null,null,null,null,"",""]
[null,null,null,null,null,"",""]
[null,null,null,null,null,"",""]
[null,null,null,null,null,"",""]
[null,null,null,null,null,"",""]
[null,null,null,null,null,"",""]
[null,null,null,null,null,"",""]
[null,null,null,null,null,"",""]
[null,null,null,null,null,"",""]
[null,null,null,null,null,"",""]
[null,null,null,null,null,"",""]
[null,null,null,null,null,"",""]
[null,null,null,null,null,"",""]
[null,null,null,null,null,"",""]
[null,null,null,null,null,"",""]
[null,null,null,null,null,"",""]
[null,null,null,null,null,"",""]
[null,null,null,null,null,"",""]
[null,null,null,null,null,"",""]
[null,null,null,null,null,"",""]
[null,null,null,null,null,"",""]
[null,null,null,null,null,"",""]
[null,null,null,null,null,"",""]
[null,null,null,null,null,"",""]
[null,null,null,null,null,"",""]
[null,null,null,null,null,"",""]
[null,null,null,null,null,"",""]
[null,null,null,null,null,"",""]
[null,null,null,null,null,"",""]
[null,null,null,null,null,"",""]
[null,null,null,null,null,"",""]
[null,null,null,null,null,"",""]
[null,null,null,null,null,"",""]
[null,null,null,null,null,"",""]
[null,null,null,null,null,"",""]
[null,null,null,null,null,"",""]
[null,null,null,null,null,"",""]
[null,null,null,null,null,"",""]
[null,null,null,null,null,"",""]
[null,null,null,null,null,"",""]
[null,null,null,null,null,"",""]
[null,null,null,null,null,"",""]
[null,null,null,null,null,"",""]
[null,null,null,null,null,"",""]
[null,null,null,null,null,"",""]
[null,null,null,null,null,"",""]
[null,null,null,null,null,"",""]
[null,null,null,null,null,"",""]
[null,null,null,null,null,"",""]
[null,null,null,null,null,"",""]
[null,null,null,null,null,"",""]
[null,null,null,null,null,"",""]
[null,null,null,null,null,"",""]
[null,null,null,null,null,"",""]
[null,null,null,null,null,"",""]
[null,null,null,null,null,"",""]
[null,null,null,null,null,"",""]
[null,null,null,null,null,"",""]
[null,null,null,null,null,"",""]
[null,null,null,null,null,{"$f":"IF(D214<>\"\",D214*E214,\"\")","v":""},{"$f":"IF(F214<>\"\",F214/9,\"\")","v":""}]
[null,null,null,null,null,"",""]
[null,null,null,null,null,"",""]
[null,null,null,null,null,"",""]
[null,null,null,null,null,"",""]
[null,null,null,null,null,"",""]
[null,null,null,null,null,"",""]
[null,null,null,null,null,"",""]
[null,null,null,null,null,"",""]
[null,null,null,null,null,"",""]
[null,null,null,null,null,"",""]
[null,null,null,null,null,"",""]
[null,null,null,null,null,"",""]
[null,null,null,null,null,"",""]
[null,null,null,null,null,"",""]
[null,null,null,null,null,"",""]
[null,null,null,null,null,"",""]
[null,null,null,null,null,"",""]
[null,null,null,null,null,"",""]
[null,null,null,null,null,"",""]
[null,null,null,null,null,"",""]
[null,null,null,null,null,"",""]
[null,null,null,null,null,"",""]
[null,null,null,null,null,"",""]
[null,null,null,null,null,"",""]
[null,null,null,null,null,"",""]
[null,null,null,null,null,"",""]
[null,null,null,null,null,"",""]
[null,null,null,null,null,"",""]
[null,null,null,null,null,"",""]
[null,null,null,null,null,"",""]
[null,null,null,null,null,"",""]
[null,null,null,null,null,"",""]
[null,null,null,null,null,"",""]
[null,null,null,null,null,"",""]
[null,null,null,null,null,"",""]
[null,null,null,null,null,"",""]
[null,null,null,null,null,"",""]
[null,null,null,null,null,"",""]
[null,null,null,null,null,"",""]
[null,null,null,null,null,"",""]
[null,null,null,null,null,"",""]
[null,null,null,null,null,"",""]
[null,null,null,null,null,"",""]
[null,null,null,null,null,"",""]
[null,null,null,null,null,"",""]
[null,null,null,null,null,"",""]
[null,null,null,null,null,"",""]
[null,null,null,null,null,"",""]
[null,null,null,null,null,"",""]
[null,null,null,null,null,"",""]
[null,null,null,null,null,"",""]
[null,null,null,null,null,"",""]
[null,null,null,null,null,"",""]
[null,null,null,null,null,"",""]
[null,null,null,null,null,"",""]
[null,null,null,null,null,"",""]
[null,null,null,null,null,"",""]
[null,null,null,null,null,"",""]
[null,null,null,null,null,"",""]
[null,null,null,null,null,"",""]
[null,null,null,null,null,"",""]
[null,null,null,null,null,"",""]
[null,null,null,null,null,"",""]
[null,null,null,null,null,{"$f":"IF(D278<>\"\",D278*E278,\"\")","v":""},{"$f":"IF(F278<>\"\",F278/9,\"\")","v":""}]
[null,null,null,null,null,"",""]
[null,null,null,null,null,"",""]
[null,null,null,null,null,"",""]
[null,null,null,null,null,"",""]
[null,null,null,null,null,"",""]
[null,null,null,null,null,"",""]
[null,null,null,null,null,"",""]
[null,null,null,null,null,"",""]
[null,null,null,null,null,"",""]
[null,null,null,null,null,"",""]
[null,null,null,null,null,"",""]
[null,null,null,null,null,"",""]
[null,null,null,null,null,"",""]
[null,null,null,null,null,"",""]
[null,null,null,null,null,"",""]
[null,null,null,null,null,"",""]
[null,null,null,null,null,"",""]
[null,null,null,null,null,"",""]
[null,null,null,null,null,"",""]
[null,null,null,null,null,"",""]
[null,null,null,null,null,"",""]
[null,null,null,null,null,"",""]
[null,null,null,null,null,"",""]
[null,null,null,null,null,"",""]
[null,null,null,null,null,"",""]
[null,null,null,null,null,"",""]
[null,null,null,null,null,"",""]
[null,null,null,null,null,"",""]
[null,null,null,null,null,"",""]
[null,null,null,null,null,"",""]
[null,null,null,null,null,"",""]
[null,null,null,null,null,"",""]
[null,null,null,null,null,"",""]
[null,null,null,null,null,"",""]
[null,null,null,null,null,"",""]
[null,null,null,null,null,"",""]
[null,null,null,null,null,"",""]
[null,null,null,null,null,"",""]
[null,null,null,null,null,"",""]
[null,null,null,null,null,"",""]
[null,null,null,null,null,"",""]
[null,null,null,null,null,"",""]
[null,null,null,null,null,"",""]
[null,null,null,null,null,"",""]
[null,null,null,null,null,"",""]
[null,null,null,null,null,"",""]
[null,null,null,null,null,"",""]
[null,null,null,null,null,"",""]
[null,null,null,null,null,"",""]
[null,null,null,null,null,"",""]
[null,null,null,null,null,"",""]
[null,null,null,null,null,"",""]
[null,null,null,null,null,"",""]
[null,null,null,null,null,"",""]
[null,null,null,null,null,"",""]
[null,null,null,null,null,"",""]
[null,null,null,null,null,"",""]
[null,null,null,null,null,"",""]
[null,null,null,null,null,"",""]
[null,null,null,null,null,"",""]
[null,null,null,null,null,"",""]
[null,null,null,null,null,"",""]
[null,null,null,null,null,"",""]
[null,null,null,null,null,{"$f":"IF(D342<>\"\",D342*E342,\"\")","v":""},{"$f":"IF(F342<>\"\",F342/9,\"\")","v":""}]
[null,null,null,null,null,"",""]
[null,null,null,null,null,"",""]
[null,null,null,null,null,"",""]
[null,null,null,null,null,"",""]
[null,null,null,null,null,"",""]
[null,null,null,null,null,"",""]
[null,null,null,null,null,"",""]
[null,null,null,null,null,"",""]
[null,null,null,null,null,"",""]
[null,null,null,null,null,"",""]
[null,null,null,null,null,"",""]
[null,null,null,null,null,"",""]
[null,null,null,null,null,"",""]
[null,null,null,null,null,"",""]
[null,null,null,null,null,"",""]
[null,null,null,null,null,"",""]
[null,null,null,null,null,"",""]
[null,null,null,null,null,"",""]
[null,null,null,null,null,"",""]
[null,null,null,null,null,"",""]
[null,null,null,null,null,"",""]
[null,null,null,null,null,"",""]
[null,null,null,null,null,"",""]
[null,null,null,null,null,"",""]
[null,null,null,null,null,"",""]
[null,null,null,null,null,"",""]
[null,null,null,null,null,"",""]
[null,null,null,null,null,"",""]
[null,null,null,null,null,"",""]
[null,null,null,null,null,"",""]
[null,null,null,null,null,"",""]
[null,null,null,null,null,"",""]
[null,null,null,null,null,"",""]
[null,null,null,null,null,"",""]
[null,null,null,null,null,"",""]
[null,null,null,null,null,"",""]
[null,null,null,null,null,"",""]
[null,null,null,null,null,"",""]
[null,null,null,null,null,"",""]
[null,null,null,null,null,"",""]
[null,null,null,null,null,"",""]
[null,null,null,null,null,"",""]
[null,null,null,null,null,"",""]
[null,null,null,null,null,"",""]
[null,null,null,null,null,"",""]
[null,null,null,null,null,"",""]
[null,null,null,null,null,"",""]
[null,null,null,null,null,"",""]
[null,null,null,null,null,"",""]
[null,null,null,null,null,"",""]
[null,null,null,null,null,"",""]
[null,null,null,null,null,"",""]
[null,null,null,null,null,"",""]
[null,null,null,null,null,"",""]
[null,null,null,null,null,"",""]
[null,null,null,null,null,"",""]
[null,null,null,null,null,"",""]
[null,null,null,null,null,"",""]
[null,null,null,null,null,"",""]
[null,null,null,null,null,"",""]
[null,null,null,null,null,"",""]
[null,null,null,null,null,"",""]
[null,null,null,null,null,"",""]
[null,null,null,null,null,{"$f":"IF(D406<>\"\",D406*E406,\"\")","v":""},{"$f":"IF(F406<>\"\",F406/9,\"\")","v":""}]
[null,null,null,null,null,"",""]
[null,null,null,null,null,"",""]
[null,null,null,null,null,"",""]
[null,null,null,null,null,"",""]
[null,null,null,null,null,"",""]
[null,null,null,null,null,"",""]
[null,null,null,null,null,"",""]
[null,null,null,null,null,"",""]
[null,null,null,null,null,"",""]
[null,null,null,null,null,"",""]
[null,null,null,null,null,"",""]
[null,null,null,null,null,"",""]
[null,null,null,null,null,"",""]
[null,null,null,null,null,"",""]
[null,null,null,null,null,"",""]
[null,null,null,null,null,"",""]
[null,null,null,null,null,"",""]
[null,null,null,null,null,"",""]
[null,null,null,null,null,"",""]
[null,null,null,null,null,"",""]
[null,null,null,null,null,"",""]
[null,null,null,null,null,"",""]
[null,null,null,null,null,"",""]
[null,null,null,null,null,"",""]
[null,null,null,null,null,"",""]
[null,null,null,null,null,"",""]
[null,null,null,null,null,"",""]
[null,null,null,null,null,"",""]
[null,null,null,null,null,"",""]
[null,null,null,null,null,"",""]
[null,null,null,null,null,"",""]
[null,null,null,null,null,"",""]
[null,null,null,null,null,"",""]
[null,null,null,null,null,"",""]
[null,null,null,null,null,"",""]
[null,null,null,null,null,"",""]
[null,null,null,null,null,"",""]
[null,null,null,null,null,"",""]
[null,null,null,null,null,"",""]
[null,null,null,null,null,"",""]
[null,null,null,null,null,"",""]
[null,null,null,null,null,"",""]
[null,null,null,null,null,"",""]
[null,null,null,null,null,"",""]
[null,null,null,null,null,"",""]
[null,null,null,null,null,"",""]
[null,null,null,null,null,"",""]
[null,null,null,null,null,"",""]
[null,null,null,null,null,"",""]
[null,null,null,null,null,"",""]
[null,null,null,null,null,"",""]
[null,null,null,null,null,"",""]
[null,null,null,null,null,"",""]
[null,null,null,null,null,"",""]
[null,null,null,null,null,"",""]
[null,null,null,null,null,"",""]
[null,null,null,null,null,"",""]
[null,null,null,null,null,"",""]
[null,null,null,null,null,"",""]
[null,null,null,null,null,"",""]
[null,null,null,null,null,"",""]
[null,null,null,null,null,"",""]
[null,null,null,null,null,"",""]
[null,null,null,null,null,{"$f":"IF(D470<>\"\",D470*E470,\"\")","v":""},{"$f":"IF(F470<>\"\",F470/9,\"\")","v":""}]
[null,null,null,null,null,"",""]
[null,null,null,null,null,"",""]
[null,null,null,null,null,"",""]
[null,null,null,null,null,"",""]
[null,null,null,null,null,"",""]
[null,null,null,null,null,"",""]
[null,null,null,null,null,"",""]
[null,null,null,null,null,"",""]
[null,null,null,null,null,"",""]
[null,null,null,null,null,"",""]
[null,null,null,null,null,"",""]
[null,null,null,null,null,"",""]
[null,null,null,null,null,"",""]
[null,null,null,null,null,"",""]
[null,null,null,null,null,"",""]
[null,null,null,null,null,"",""]
[null,null,null,null,null,"",""]
[null,null,null,null,null,"",""]
[null,null,null,null,null,"",""]
[null,null,null,null,null,"",""]
[null,null,null,null,null,"",""]
[null,null,null,null,null,"",""]
[null,null,null,null,null,"",""]
[null,null,null,null,null,"",""]
[null,null,null,null,null,"",""]
[null,null,null,null,null,"",""]
[null,null,null,null,null,"",""]
[null,null,null,null,null,"",""]
[null,null,null,null,null,"",""]
[null,null,null,null,null,"",""]
[null,null,null,null,null,"",""]
[null,null,null,null,null,"",""]
[null,null,null,null,null,"",""]
[null,null,null,null,null,"",""]
[null,null,null,null,null,"",""]
[null,null,null,null,null,"",""]
[null,null,null,null,null,"",""]
[null,null,null,null,null,"",""]
[null,null,null,null,null,"",""]
[null,null,null,null,null,"",""]
[null,null,null,null,null,"",""]
[null,null,null,null,null,"",""]
[null,null,null,null,null,"",""]
[null,null,null,null,null,"",""]
[null,null,null,null,null,"",""]
[null,null,null,null,null,"",""]
[null,null,null,null,null,"",""]
[null,null,null,null,null,"",""]
[null,null,null,null,null,"",""]
[null,null,null,null,null,"",""]
[null,null,null,null,null,"",""]
[null,null,null,null,null,"",""]
[null,null,null,null,null,"",""]
[null,null,null,null,null,"",""]
[null,null,null,null,null,"",""]
[null,null,null,null,null,"",""]
[null,null,null,null,null,"",""]
[null,null,null,null,null,"",""]
[null,null,null,null,null,"",""]
[null,null,null,null,null,"",""]
[null,null,null,null,null,"",""]
[null,null,null,null,null,"",""]
[null,null,null,null,null,"",""]
[null,null,null,null,null,{"$f":"IF(D534<>\"\",D534*E534,\"\")","v":""},{"$f":"IF(F534<>\"\",F534/9,\"\")","v":""}]
[null,null,null,null,null,"",""]
[null,null,null,null,null,"",""]
[null,null,null,null,null,"",""]
[null,null,null,null,null,"",""]
[null,null,null,null,null,"",""]
[null,null,null,null,null,"",""]
[null,null,null,null,null,"",""]
[null,null,null,null,null,"",""]
[null,null,null,null,null,"",""]
[null,null,null,null,null,"",""]
[null,null,null,null,null,"",""]
[null,null,null,null,null,"",""]
[null,null,null,null,null,"",""]
[null,null,null,null,null,"",""]
[null,null,null,null,null,"",""]
[null,null,null,null,null,"",""]
[null,null,null,null,null,"",""]
[null,null,null,null,null,"",""]
[null,null,null,null,null,"",""]
[null,null,null,null,null,"",""]
[null,null,null,null,null,"",""]
[null,null,null,null,null,"",""]
[null,null,null,null,null,"",""]
[null,null,null,null,null,"",""]
[null,null,null,null,null,"",""]
[null,null,null,null,null,"",""]
[null,null,null,null,null,"",""]
[null,null,null,null,null,"",""]
[null,null,null,null,null,"",""]
[null,null,null,null,null,"",""]
[null,null,null,null,null,"",""]
[null,null,null,null,null,"",""]
[null,null,null,null,null,"",""]
[null,null,null,null,null,"",""]
[null,null,null,null,null,"",""]
[null,null,null,null,null,"",""]
[null,null,null,null,null,"",""]
[null,null,null,null,null,"",""]
[null,null,null,null,null,"",""]
[null,null,null,null,null,"",""]
[null,null,null,null,null,"",""]
[null,null,null,null,null,"",""]
[null,null,null,null,null,"",""]
[null,null,null,null,null,"",""]
[null,null,null,null,null,"",""]
[null,null,null,null,null,"",""]
[null,null,null,null,null,"",""]
[null,null,null,null,null,"",""]
[null,null,null,null,null,"",""]
[null,null,null,null,null,"",""]
[null,null,null,null,null,"",""]
[null,null,null,null,null,"",""]
[null,null,null,null,null,"",""]
[null,null,null,null,null,"",""]
[null,null,null,null,null,"",""]
[null,null,null,null,null,"",""]
[null,null,null,null,null,"",""]
[null,null,null,null,null,"",""]
[null,null,null,null,null,"",""]
[null,null,null,null,null,"",""]
[null,null,null,null,null,"",""]
[null,null,null,null,null,"",""]
[null,null,null,null,null,"",""]
[null,null,null,null,null,{"$f":"IF(D598<>\"\",D598*E598,\"\")","v":""},{"$f":"IF(F598<>\"\",F598/9,\"\")","v":""}]
[null,null,null,null,null,"",""]
[null,null,null,null,null,"",""]
[null,null,null,null,null,"",""]
[null,null,null,null,null,"",""]
[null,null,null,null,null,"",""]
[null,null,null,null,null,"",""]
[null,null,null,null,null,"",""]
[null,null,null,null,null,"",""]
[null,null,null,null,null,"",""]
[null,null,null,null,null,"",""]
[null,null,null,null,null,"",""]
[null,null,null,null,null,"",""]
[null,null,null,null,null,"",""]
[null,null,null,null,null,"",""]
[null,null,null,null,null,"",""]
[null,null,null,null,null,"",""]
[null,null,null,null,null,"",""]
[null,null,null,null,null,"",""]
[null,null,null,null,null,"",""]
[null,null,null,null,null,"",""]
[null,null,null,null,null,"",""]
[null,null,null,null,null,"",""]
[null,null,null,null,null,"",""]
[null,null,null,null,null,"",""]
[null,null,null,null,null,"",""]
[null,null,null,null,null,"",""]
[null,null,null,null,null,"",""]
[null,null,null,null,null,"",""]
[null,null,null,null,null,"",""]
[null,null,null,null,null,"",""]
[null,null,null,null,null,"",""]
[null,null,null,null,null,"",""]
[null,null,null,null,null,"",""]
[null,null,null,null,null,"",""]
[null,null,null,null,null,"",""]
[null,null,null,null,null,"",""]
[null,null,null,null,null,"",""]
[null,null,null,null,null,"",""]
[null,null,null,null,null,"",""]
[null,null,null,null,null,"",""]
[null,null,null,null,null,"",""]
[null,null,null,null,null,"",""]
[null,null,null,null,null,"",""]
[null,null,null,null,null,"",""]
[null,null,null,null,null,"",""]
[null,null,null,null,null,"",""]
[null,null,null,null,null,"",""]
[null,null,null,null,null,"",""]
[null,null,null,null,null,"",""]
[null,null,null,null,null,"",""]
[null,null,null,null,null,"",""]
[null,null,null,null,null,"",""]
[null,null,null,null,null,"",""]
[null,null,null,null,null,"",""]
[null,null,null,null,null,"",""]
[null,null,null,null,null,"",""]
[null,null,null,null,null,"",""]
[null,null,null,null,null,"",""]
[null,null,null,null,null,"",""]
[null,null,null,null,null,"",""]
[null,null,null,null,null,"",""]
[null,null,null,null,null,"",""]
[null,null,null,null,null,"",""]
[null,null,null,null,null,{"$f":"IF(D662<>\"\",D662*E662,\"\")","v":""},{"$f":"IF(F662<>\"\",F662/9,\"\")","v":""}]
[null,null,null,null,null,"",""]
[null,null,null,null,null,"",""]
[null,null,null,null,null,"",""]
[null,null,null,null,null,"",""]
[null,null,null,null,null,"",""]
[null,null,null,null,null,"",""]
[null,null,null,null,null,"",""]
[null,null,null,null,null,"",""]
[null,null,null,null,null,"",""]
[null,null,null,null,null,"",""]
[null,null,null,null,null,"",""]
[null,null,null,null,null,"",""]
[null,null,null,null,null,"",""]
[null,null,null,null,null,"",""]
[null,null,null,null,null,"",""]
[null,null,null,null,null,"",""]
[null,null,null,null,null,"",""]
[null,null,null,null,null,"",""]
[null,null,null,null,null,"",""]
[null,null,null,null,null,"",""]
[null,null,null,null,null,"",""]
[null,null,null,null,null,"",""]
[null,null,null,null,null,"",""]
[null,null,null,null,null,"",""]
[null,null,null,null,null,"",""]
[null,null,null,null,null,"",""]
[null,null,null,null,null,"",""]
[null,null,null,null,null,"",""]
[null,null,null,null,null,"",""]
[null,null,null,null,null,"",""]
[null,null,null,null,null,"",""]
[null,null,null,null,null,"",""]
[null,null,null,null,null,"",""]
[null,null,null,null,null,"",""]
[null,null,null,null,null,"",""]
[null,null,null,null,null,"",""]
[null,null,null,null,null,"",""]
[null,null,null,null,null,"",""]
[null,null,null,null,null,"",""]
[null,null,null,null,null,"",""]
[null,null,null,null,null,"",""]
[null,null,null,null,null,"",""]
[null,null,null,null,null,"",""]
[null,null,null,null,null,"",""]
[null,null,null,null,null,"",""]
[null,null,null,null,null,"",""]
[null,null,null,null,null,"",""]
[null,null,null,null,null,"",""]
[null,null,null,null,null,"",""]
[null,null,null,null,null,"",""]
[null,null,null,null,null,"",""]
[null,null,null,null,null,"",""]
[null,null,null,null,null,"",""]
[null,null,null,null,null,"",""]
[null,null,null,null,null,"",""]
[null,null,null,null,null,"",""]
[null,null,null,null,null,"",""]
[null,null,null,null,null,"",""]
[null,null,null,null,null,"",""]
[null,null,null,null,null,"",""]
[null,null,null,null,null,"",""]
[null,null,null,null,null,"",""]
[null,null,null,null,null,"",""]
[null,null,null,null,null,{"$f":"IF(D726<>\"\",D726*E726,\"\")","v":""},{"$f":"IF(F726<>\"\",F726/9,\"\")","v":""}]
[null,null,null,null,null,"",""]
[null,null,null,null,null,"",""]
[null,null,null,null,null,"",""]
[null,null,null,null,null,"",""]
[null,null,null,null,null,"",""]
[null,null,null,null,null,"",""]
[null,null,null,null,null,"",""]
[null,null,null,null,null,"",""]
[null,null,null,null,null,"",""]
[null,null,null,null,null,"",""]
[null,null,null,null,null,"",""]
[null,null,null,null,null,"",""]
[null,null,null,null,null,"",""]
[null,null,null,null,null,"",""]
[null,null,null,null,null,"",""]
[null,null,null,null,null,"",""]
[null,null,null,null,null,"",""]
[null,null,null,null,null,"",""]
[null,null,null,null,null,"",""]
[null,null,null,null,null,"",""]
[null,null,null,null,null,"",""]
[null,null,null,null,null,"",""]
[null,null,null,null,null,"",""]
[null,null,null,null,null,"",""]
[null,null,null,null,null,"",""]
[null,null,null,null,null,"",""]
[null,null,null,null,null,"",""]
[null,null,null,null,null,"",""]
[null,null,null,null,null,"",""]
[null,null,null,null,null,"",""]
[null,null,null,null,null,"",""]
[null,null,null,null,null,"",""]
[null,null,null,null,null,"",""]
[null,null,null,null,null,"",""]
[null,null,null,null,null,"",""]
[null,null,null,null,null,"",""]
[null,null,null,null,null,"",""]
[null,null,null,null,null,"",""]
[null,null,null,null,null,"",""]
[null,null,null,null,null,"",""]
[null,null,null,null,null,"",""]
[null,null,null,null,null,"",""]
[null,null,null,null,null,"",""]
[null,null,null,null,null,"",""]
[null,null,null,null,null,"",""]
[null,null,null,null,null,"",""]
[null,null,null,null,null,"",""]
[null,null,null,null,null,"",""]
[null,null,null,null,null,"",""]
[null,null,null,null,null,"",""]
[null,null,null,null,null,"",""]
[null,null,null,null,null,"",""]
[null,null,null,null,null,"",""]
[null,null,null,null,null,"",""]
[null,null,null,null,null,"",""]
[null,null,null,null,null,"",""]
[null,null,null,null,null,"",""]
[null,null,null,null,null,"",""]
[null,null,null,null,null,"",""]
[null,null,null,null,null,"",""]
[null,null,null,null,null,"",""]
[null,null,null,null,null,"",""]
[null,null,null,null,null,"",""]
[null,null,null,null,null,{"$f":"IF(D790<>\"\",D790*E790,\"\")","v":""},{"$f":"IF(F790<>\"\",F790/9,\"\")","v":""}]
[null,null,null,null,null,"",""]
[null,null,null,null,null,"",""]
[null,null,null,null,null,"",""]
[null,null,null,null,null,"",""]
[null,null,null,null,null,"",""]
[null,null,null,null,null,"",""]
[null,null,null,null,null,"",""]
[null,null,null,null,null,"",""]
[null,null,null,null,null,"",""]
[null,null,null,null,null,"",""]
[null,null,null,null,null,"",""]
[null,null,null,null,null,"",""]
[null,null,null,null,null,"",""]
[null,null,null,null,null,"",""]
[null,null,null,null,null,"",""]
[null,null,null,null,null,"",""]
[null,null,null,null,null,"",""]
[null,null,null,null,null,"",""]
[null,null,null,null,null,"",""]
[null,null,null,null,null,"",""]
[null,null,null,null,null,"",""]
[null,null,null,null,null,"",""]
[null,null,null,null,null,"",""]
[null,null,null,null,null,"",""]
[null,null,null,null,null,"",""]
[null,null,null,null,null,"",""]
[null,null,null,null,null,"",""]
[null,null,null,null,null,"",""]
[null,null,null,null,null,"",""]
[null,null,null,null,null,"",""]
[null,null,null,null,null,"",""]
[null,null,null,null,null,"",""]
[null,null,null,null,null,"",""]
[null,null,null,null,null,"",""]
[null,null,null,null,null,"",""]
[null,null,null,null,null,"",""]
[null,null,null,null,null,"",""]
[null,null,null,null,null,"",""]
[null,null,null,null,null,"",""]
[null,null,null,null,null,"",""]
[null,null,null,null,null,"",""]
[null,null,null,null,null,"",""]
[null,null,null,null,null,"",""]
[null,null,null,null,null,"",""]
[null,null,null,null,null,"",""]
[null,null,null,null,null,"",""]
[null,null,null,null,null,"",""]
[null,null,null,null,null,"",""]
[null,null,null,null,null,"",""]
[null,null,null,null,null,"",""]
[null,null,null,null,null,"",""]
[null,null,null,null,null,"",""]
[null,null,null,null,null,"",""]
[null,null,null,null,null,"",""]
[null,null,null,null,null,"",""]
[null,null,null,null,null,"",""]
[null,null,null,null,null,"",""]
[null,null,null,null,null,"",""]
[null,null,null,null,null,"",""]
[null,null,null,null,null,"",""]
[null,null,null,null,null,"",""]
[null,null,null,null,null,"",""]
[null,null,null,null,null,"",""]
[null,null,null,null,null,{"$f":"IF(D854<>\"\",D854*E854,\"\")","v":""},{"$f":"IF(F854<>\"\",F854/9,\"\")","v":""}]
[null,null,null,null,null,"",""]
[null,null,null,null,null,"",""]
[null,null,null,null,null,"",""]
[null,null,null,null,null,"",""]
[null,null,null,null,null,"",""]
[null,null,null,null,null,"",""]
[null,null,null,null,null,"",""]
[null,null,null,null,null,"",""]
[null,null,null,null,null,"",""]
[null,null,null,null,null,"",""]
[null,null,null,null,null,"",""]
[null,null,null,null,null,"",""]
[null,null,null,null,null,"",""]
[null,null,null,null,null,"",""]
[null,null,null,null,null,"",""]
[null,null,null,null,null,"",""]
[null,null,null,null,null,"",""]
[null,null,null,null,null,"",""]
[null,null,null,null,null,"",""]
[null,null,null,null,null,"",""]
[null,null,null,null,null,"",""]
[null,null,null,null,null,"",""]
[null,null,null,null,null,"",""]
[null,null,null,null,null,"",""]
[null,null,null,null,null,"",""]
[null,null,null,null,null,"",""]
[null,null,null,null,null,"",""]
[null,null,null,null,null,"",""]
[null,null,null,null,null,"",""]
[null,null,null,null,null,"",""]
[null,null,null,null,null,"",""]
[null,null,null,null,null,"",""]
[null,null,null,null,null,"",""]
[null,null,null,null,null,"",""]
[null,null,null,null,null,"",""]
[null,null,null,null,null,"",""]
[null,null,null,null,null,"",""]
[null,null,null,null,null,"",""]
[null,null,null,null,null,"",""]
[null,null,null,null,null,"",""]
[null,null,null,null,null,"",""]
[null,null,null,null,null,"",""]
[null,null,null,null,null,"",""]
[null,null,null,null,null,"",""]
[null,null,null,null,null,"",""]
[null,null,null,null,null,"",""]
[null,null,null,null,null,"",""]
[null,null,null,null,null,"",""]
[null,null,null,null,null,"",""]
[null,null,null,null,null,"",""]
[null,null,null,null,null,"",""]
[null,null,null,null,null,"",""]
[null,null,null,null,null,"",""]
[null,null,null,null,null,"",""]
[null,null,null,null,null,"",""]
[null,null,null,null,null,"",""]
[null,null,null,null,null,"",""]
[null,null,null,null,null,"",""]
[null,null,null,null,null,"",""]
[null,null,null,null,null,"",""]
[null,null,null,null,null,"",""]
[null,null,null,null,null,"",""]
[null,null,null,null,null,"",""]
[null,null,null,null,null,{"$f":"IF(D918<>\"\",D918*E918,\"\")","v":""},{"$f":"IF(F918<>\"\",F918/9,\"\")","v":""}]
[null,null,null,null,null,"",""]
[null,null,null,null,null,"",""]
[null,null,null,null,null,"",""]
[null,null,null,null,null,"",""]
[null,null,null,null,null,"",""]
[null,null,null,null,null,"",""]
[null,null,null,null,null,"",""]
[null,null,null,null,null,"",""]
[null,null,null,null,null,"",""]
[null,null,null,null,null,"",""]
[null,null,null,null,null,"",""]
[null,null,null,null,null,"",""]
[null,null,null,null,null,"",""]
[null,null,null,null,null,"",""]
[null,null,null,null,null,"",""]
[null,null,null,null,null,"",""]
[null,null,null,null,null,"",""]
[null,null,null,null,null,"",""]
[null,null,null,null,null,"",""]
[null,null,null,null,null,"",""]
[null,null,null,null,null,"",""]
[null,null,null,null,null,"",""]
[null,null,null,null,null,"",""]
[null,null,null,null,null,"",""]
[null,null,null,null,null,"",""]
[null,null,null,null,null,"",""]
[null,null,null,null,null,"",""]
[null,null,null,null,null,"",""]
[null,null,null,null,null,"",""]
[null,null,null,null,null,"",""]
[null,null,null,null,null,"",""]
[null,null,null,null,null,"",""]
[null,null,null,null,null,"",""]
[null,null,null,null,null,"",""]
[null,null,null,null,null,"",""]
[null,null,null,null,null,"",""]
[null,null,null,null,null,"",""]
[null,null,null,null,null,"",""]
[null,null,null,null,null,"",""]
[null,null,null,null,null,"",""]
[null,null,null,null,null,"",""]
[null,null,null,null,null,"",""]
[null,null,null,null,null,"",""]
[null,null,null,null,null,"",""]
[null,null,null,null,null,"",""]
[null,null,null,null,null,"",""]
[null,null,null,null,null,"",""]
[null,null,null,null,null,"",""]
[null,null,null,null,null,"",""]
[null,null,null,null,null,"",""]
[null,null,null,null,null,"",""]
[null,null,null,null,null,"",""]
[null,null,null,null,null,"",""]
[null,null,null,null,null,"",""]
[null,null,null,null,null,"",""]
[null,null,null,null,null,"",""]
[null,null,null,null,null,"",""]
[null,null,null,null,null,"",""]
[null,null,null,null,null,"",""]
[null,null,null,null,null,"",""]
[null,null,null,null,null,"",""]
[null,null,null,null,null,"",""]
[null,null,null,null,null,"",""]
[null,null,null,null,null,{"$f":"IF(D982<>\"\",D982*E982,\"\")","v":""},{"$f":"IF(F982<>\"\",F982/9,\"\")","v":""}]
[null,null,null,null,null,"",""]
[null,null,null,null,null,"",""]
[null,null,null,null,null,"",""]
[null,null,null,null,null,"",""]
[null,null,null,null,null,"",""]
[null,null,null,null,null,"",""]
[null,null,null,null,null,"",""]
[null,null,null,null,null,"",""]
[null,null,null,null,null,"",""]
[null,null,null,null,null,"",""]
[null,null,null,null,null,"",""]
[null,null,null,null,null,"",""]
[null,null,null,null,null,"",""]
[null,null,null,null,null,"",""]
[null,null,null,null,null,"",""]
[null,null,null,null,null,"",""]
[null,null,null,null,null,"",""]
[null,null,null,null,null,"",""]
[null,null,null,null,null,"",""]
[null,null,null,null,null,"",""]
[null,null,null,null,null,"",""]
[null,null,null,null,null,"",""]
[null,null,null,null,null,"",""]
[null,null,null,null,null,"",""]
[null,null,null,null,null,"",""]
[null,null,null,null,null,"",""]
[null,null,null,null,null,"",""]
[null,null,null,null,null,"",""]
[null,null,null,null,null,"",""]
[null,null,null,null,null,"",""]
[null,null,null,null,null,"",""]
[null,null,null,null,null,"",""]
[null,null,null,null,null,"",""]
[null,null,null,null,null,"",""]
[null,null,null,null,null,"",""]
[null,null,null,null,null,"",""]
[null,null,null,null,null,"",""]
[null,null,null,null,null,"",""]
[null,null,null,null,null,"",""]
[null,null,null,null,null,"",""]
[null,null,null,null,null,"",""]
[null,null,null,null,null,"",""]
[null,null,null,null,null,"",""]
[null,null,null,null,null,"",""]
[null,null,null,null,null,"",""]
[null,null,null,null,null,"",""]
[null,null,null,null,null,"",""]
[null,null,null,null,null,"",""]
[null,null,null,null,null,"",""]
[null,null,null,null,null,"",""]
[null,null,null,null,null,"",""]
[null,null,null,null,null,"",""]
[null,null,null,null,null,"",""]
[null,null,null,null,null,"",""]
[null,null,null,null,null,"",""]
[null,null,null,null,null,"",""]
[null,null,null,null,null,"",""]
[null,null,null,null,null,"",""]
[null,null,null,null,null,"",""]
[null,null,null,null,null,"",""]
[null,null,null,null,null,"",""]
[null,null,null,null,null,"",""]
[null,null,null,null,null,"",""]
[null,null,null,null,null,{"$f":"IF(D1046<>\"\",D1046*E1046,\"\")","v":""},{"$f":"IF(F1046<>\"\",F1046/9,\"\")","v":""}]
[null,null,null,null,null,"",""]
[null,null,null,null,null,"",""]
[null,null,null,null,null,"",""]
[null,null,null,null,null,"",""]
[null,null,null,null,null,"",""]
[null,null,null,null,null,"",""]
[null,null,null,null,null,"",""]
[null,null,null,null,null,"",""]
[null,null,null,null,null,"",""]
[null,null,null,null,null,"",""]
[null,null,null,null,null,"",""]
[null,null,null,null,null,"",""]
[null,null,null,null,null,"",""]
[null,null,null,null,null,"",""]
[null,null,null,null,null,"",""]
[null,null,null,null,null,"",""]
[null,null,null,null,null,"",""]
[null,null,null,null,null,"",""]
[null,null,null,null,null,"",""]
[null,null,null,null,null,"",""]
[null,null,null,null,null,"",""]
[null,null,null,null,null,"",""]
[null,null,null,null,null,"",""]
[null,null,null,null,null,"",""]
[null,null,null,null,null,"",""]
[null,null,null,null,null,"",""]
[null,null,null,null,null,"",""]
[null,null,null,null,null,"",""]
[null,null,null,null,null,"",""]
[null,null,null,null,null,"",""]
[null,null,null,null,null,"",""]
[null,null,null,null,null,"",""]
[null,null,null,null,null,"",""]
[null,null,null,null,null,"",""]
[null,null,null,null,null,"",""]
[null,null,null,null,null,"",""]
[null,null,null,null,null,"",""]
[null,null,null,null,null,"",""]
[null,null,null,null,null,"",""]
[null,null,null,null,null,"",""]
[null,null,null,null,null,"",""]
[null,null,null,null,null,"",""]
[null,null,null,null,null,"",""]
[null,null,null,null,null,"",""]
[null,null,null,null,null,"",""]
[null,null,null,null,null,"",""]
[null,null,null,null,null,"",""]
[null,null,null,null,null,"",""]
[null,null,null,null,null,"",""]
[null,null,null,null,null,"",""]
[null,null,null,null,null,"",""]
[null,null,null,null,null,"",""]
[null,null,null,null,null,"",""]
[null,null,null,null,null,"",""]
[null,null,null,null,null,"",""]
[null,null,null,null,null,"",""]
[null,null,null,null,null,"",""]
[null,null,null,null,null,"",""]
[null,null,null,null,null,"",""]
[null,null,null,null,null,"",""]
[null,null,null,null,null,"",""]
[null,null,null,null,null,"",""]
[null,null,null,null,null,"",""]
[null,null,null,null,null,{"$f":"IF(D1110<>\"\",D1110*E1110,\"\")","v":""},{"$f":"IF(F1110<>\"\",F1110/9,\"\")","v":""}]
[null,null,null,null,null,"",""]
[null,null,null,null,null,"",""]
[null,null,null,null,null,"",""]
[null,null,null,null,null,"",""]
[null,null,null,null,null,"",""]
[null,null,null,null,null,"",""]
[null,null,null,null,null,"",""]
[null,null,null,null,null,"",""]
[null,null,null,null,null,"",""]
[null,null,null,null,null,"",""]
[null,null,null,null,null,"",""]
[null,null,null,null,null,"",""]
[null,null,null,null,null,"",""]
[null,null,null,null,null,"",""]
[null,null,null,null,null,"",""]
[null,null,null,null,null,"",""]
[null,null,null,null,null,"",""]
[null,null,null,null,null,"",""]
[null,null,null,null,null,"",""]
[null,null,null,null,null,"",""]
[null,null,null,null,null,"",""]
[null,null,null,null,null,"",""]
[null,null,null,null,null,"",""]
[null,null,null,null,null,"",""]
[null,null,null,null,null,"",""]
[null,null,null,null,null,"",""]
[null,null,null,null,null,"",""]
[null,null,null,null,null,"",""]
[null,null,null,null,null,"",""]
[null,null,null,null,null,"",""]
[null,null,null,null,null,"",""]
[null,null,null,null,null,"",""]
[null,null,null,null,null,"",""]
[null,null,null,null,null,"",""]
[null,null,null,null,null,"",""]
[null,null,null,null,null,"",""]
[null,null,null,null,null,"",""]
[null,null,null,null,null,"",""]
[null,null,null,null,null,"",""]
[null,null,null,null,null,"",""]
[null,null,null,null,null,"",""]
[null,null,null,null,null,"",""]
[null,null,null,null,null,"",""]
[null,null,null,null,null,"",""]
[null,null,null,null,null,"",""]
[null,null,null,null,null,"",""]
[null,null,null,null,null,"",""]
[null,null,null,null,null,"",""]
[null,null,null,null,null,"",""]
[null,null,null,null,null,"",""]
[null,null,null,null,null,"",""]
[null,null,null,null,null,"",""]
[null,null,null,null,null,"",""]
[null,null,null,null,null,"",""]
[null,null,null,null,null,"",""]
[null,null,null,null,null,"",""]
[null,null,null,null,null,"",""]
[null,null,null,null,null,"",""]
[null,null,null,null,null,"",""]
[null,null,null,null,null,"",""]
[null,null,null,null,null,"",""]
[null,null,null,null,null,"",""]
[null,null,null,null,null,"",""]
[null,null,null,null,null,{"$f":"IF(D1174<>\"\",D1174*E1174,\"\")","v":""},{"$f":"IF(F1174<>\"\",F1174/9,\"\")","v":""}]
[null,null,null,null,null,"",""]
[null,null,null,null,null,"",""]
[null,null,null,null,null,"",""]
[null,null,null,null,null,"",""]
[null,null,null,null,null,"",""]
[null,null,null,null,null,"",""]
[null,null,null,null,null,"",""]
[null,null,null,null,null,"",""]
[null,null,null,null,null,"",""]
[null,null,null,null,null,"",""]
[null,null,null,null,null,"",""]
[null,null,null,null,null,"",""]
[null,null,null,null,null,"",""]
[null,null,null,null,null,"",""]
[null,null,null,null,null,"",""]
[null,null,null,null,null,"",""]
[null,null,null,null,null,"",""]
[null,null,null,null,null,"",""]
[null,null,null,null,null,"",""]
[null,null,null,null,null,"",""]
[null,null,null,null,null,"",""]
[null,null,null,null,null,"",""]
[null,null,null,null,null,"",""]
[null,null,null,null,null,"",""]
[null,null,null,null,null,"",""]
[null,null,null,null,null,"",""]
[null,null,null,null,null,"",""]
[null,null,null,null,null,"",""]
[null,null,null,null,null,"",""]
[null,null,null,null,null,"",""]
[null,null,null,null,null,"",""]
[null,null,null,null,null,"",""]
[null,null,null,null,null,"",""]
[null,null,null,null,null,"",""]
[null,null,null,null,null,"",""]
[null,null,null,null,null,"",""]
[null,null,null,null,null,"",""]
[null,null,null,null,null,"",""]
[null,null,null,null,null,"",""]
[null,null,null,null,null,"",""]
[null,null,null,null,null,"",""]
[null,null,null,null,null,"",""]
[null,null,null,null,null,"",""]
[null,null,null,null,null,"",""]
[null,null,null,null,null,"",""]
[null,null,null,null,null,"",""]
[null,null,null,null,null,"",""]
[null,null,null,null,null,"",""]
[null,null,null,null,null,"",""]
[null,null,null,null,null,"",""]
[null,null,null,null,null,"",""]
[null,null,null,null,null,"",""]
[null,null,null,null,null,"",""]
[null,null,null,null,null,"",""]
[null,null,null,null,null,"",""]
[null,null,null,null,null,"",""]
[null,null,null,null,null,"",""]
[null,null,null,null,null,"",""]
[null,null,null,null,null,"",""]
[null,null,null,null,null,"",""]
[null,null,null,null,null,"",""]
[null,null,null,null,null,"",""]
[null,null,null,null,null,"",""]
[null,null,null,null,null,{"$f":"IF(D1238<>\"\",D1238*E1238,\"\")","v":""},{"$f":"IF(F1238<>\"\",F1238/9,\"\")","v":""}]
[null,null,null,null,null,"",""]
[null,null,null,null,null,"",""]
[null,null,null,null,null,"",""]
[null,null,null,null,null,"",""]
[null,null,null,null,null,"",""]
[null,null,null,null,null,"",""]
[null,null,null,null,null,"",""]
[null,null,null,null,null,"",""]
[null,null,null,null,null,"",""]
[null,null,null,null,null,"",""]
[null,null,null,null,null,"",""]
[null,null,null,null,null,"",""]
[null,null,null,null,null,"",""]
[null,null,null,null,null,"",""]
[null,null,null,null,null,"",""]
[null,null,null,null,null,"",""]
[null,null,null,null,null,"",""]
[null,null,null,null,null,"",""]
[null,null,null,null,null,"",""]
[null,null,null,null,null,"",""]
[null,null,null,null,null,"",""]
[null,null,null,null,null,"",""]
[null,null,null,null,null,"",""]
[null,null,null,null,null,"",""]
[null,null,null,null,null,"",""]
[null,null,null,null,null,"",""]
[null,null,null,null,null,"",""]
[null,null,null,null,null,"",""]
[null,null,null,null,null,"",""]
[null,null,null,null,null,"",""]
[null,null,null,null,null,"",""]
[null,null,null,null,null,"",""]
[null,null,null,null,null,"",""]
[null,null,null,null,null,"",""]
[null,null,null,null,null,"",""]
[null,null,null,null,null,"",""]
[null,null,null,null,null,"",""]
[null,null,null,null,null,"",""]
[null,null,null,null,null,"",""]
[null,null,null,null,null,"",""]
[null,null,null,null,null,"",""]
[null,null,null,null,null,"",""]
[null,null,null,null,null,"",""]
[null,null,null,null,null,"",""]
[null,null,null,null,null,"",""]
[null,null,null,null,null,"",""]
[null,null,null,null,null,"",""]
[null,null,null,null,null,"",""]
[null,null,null,null,null,"",""]
[null,null,null,null,null,"",""]
[null,null,null,null,null,"",""]
[null,null,null,null,null,"",""]
[null,null,null,null,null,"",""]
[null,null,null,null,null,"",""]
[null,null,null,null,null,"",""]
[null,null,null,null,null,"",""]
[null,null,null,null,null,"",""]
[null,null,null,null,null,"",""]
[null,null,null,null,null,"",""]
[null,null,null,null,null,"",""]
[null,null,null,null,null,"",""]
[null,null,null,null,null,"",""]
[null,null,null,null,null,"",""]
[null,null,null,null,null,{"$f":"IF(D1302<>\"\",D1302*E1302,\"\")","v":""},{"$f":"IF(F1302<>\"\",F1302/9,\"\")","v":""}]
[null,null,null,null,null,"",""]
[null,null,null,null,null,"",""]
[null,null,null,null,null,"",""]
[null,null,null,null,null,"",""]
[null,null,null,null,null,"",""]
[null,null,null,null,null,"",""]
[null,null,null,null,null,"",""]
[null,null,null,null,null,"",""]
[null,null,null,null,null,"",""]
[null,null,null,null,null,"",""]
[null,null,null,null,null,"",""]
[null,null,null,null,null,"",""]
[null,null,null,null,null,"",""]
[null,null,null,null,null,"",""]
[null,null,null,null,null,"",""]
[null,null,null,null,null,"",""]
[null,null,null,null,null,"",""]
[null,null,null,null,null,"",""]
[null,null,null,null,null,"",""]
[null,null,null,null,null,"",""]
[null,null,null,null,null,"",""]
[null,null,null,null,null,"",""]
[null,null,null,null,null,"",""]
[null,null,null,null,null,"",""]
[null,null,null,null,null,"",""]
[null,null,null,null,null,"",""]
[null,null,null,null,null,"",""]
[null,null,null,null,null,"",""]
[null,null,null,null,null,"",""]
[null,null,null,null,null,"",""]
[null,null,null,null,null,"",""]
[null,null,null,null,null,"",""]
[null,null,null,null,null,"",""]
[null,null,null,null,null,"",""]
[null,null,null,null,null,"",""]
[null,null,null,null,null,"",""]
[null,null,null,null,null,"",""]
[null,null,null,null,null,"",""]
[null,null,null,null,null,"",""]
[null,null,null,null,null,"",""]
[null,null,null,null,null,"",""]
[null,null,null,null,null,"",""]
[null,null,null,null,null,"",""]
[null,null,null,null,null,"",""]
[null,null,null,null,null,"",""]
[null,null,null,null,null,"",""]
[null,null,null,null,null,"",""]
[null,null,null,null,null,"",""]
[null,null,null,null,null,"",""]
[null,null,null,null,null,"",""]
[null,null,null,null,null,"",""]
[null,null,null,null,null,"",""]
[null,null,null,null,null,"",""]
[null,null,null,null,null,"",""]
[null,null,null,null,null,"",""]
[null,null,null,null,null,"",""]
[null,null,null,null,null,"",""]
[null,null,null,null,null,"",""]
[null,null,null,null,null,"",""]
[null,null,null,null,null,"",""]
[null,null,null,null,null,"",""]
[null,null,null,null,null,"",""]
[null,null,null,null,null,"",""]
[null,null,null,null,null,{"$f":"IF(D1366<>\"\",D1366*E1366,\"\")","v":""},{"$f":"IF(F1366<>\"\",F1366/9,\"\")","v":""}]
[null,null,null,null,null,"",""]
[null,null,null,null,null,"",""]
[null,null,null,null,null,"",""]
[null,null,null,null,null,"",""]
[null,null,null,null,null,"",""]
[null,null,null,null,null,"",""]
[null,null,null,null,null,"",""]
[null,null,null,null,null,"",""]
[null,null,null,null,null,"",""]
[null,null,null,null,null,"",""]
[null,null,null,null,null,"",""]
[null,null,null,null,null,"",""]
[null,null,null,null,null,"",""]
[null,null,null,null,null,"",""]
[null,null,null,null,null,"",""]
[null,null,null,null,null,"",""]
[null,null,null,null,null,"",""]
[null,null,null,null,null,"",""]
[null,null,null,null,null,"",""]
[null,null,null,null,null,"",""]
[null,null,null,null,null,"",""]
[null,null,null,null,null,"",""]
[null,null,null,null,null,"",""]
[null,null,null,null,null,"",""]
[null,null,null,null,null,"",""]
[null,null,null,null,null,"",""]
[null,null,null,null,null,"",""]
[null,null,null,null,null,"",""]
[null,null,null,null,null,"",""]
[null,null,null,null,null,"",""]
[null,null,null,null,null,"",""]
[null,null,null,null,null,"",""]
[null,null,null,null,null,"",""]
[null,null,null,null,null,"",""]
[null,null,null,null,null,"",""]
[null,null,null,null,null,"",""]
[null,null,null,null,null,"",""]
[null,null,null,null,null,"",""]
[null,null,null,null,null,"",""]
[null,null,null,null,null,"",""]
[null,null,null,null,null,"",""]
[null,null,null,null,null,"",""]
[null,null,null,null,null,"",""]
[null,null,null,null,null,"",""]
[null,null,null,null,null,"",""]
[null,null,null,null,null,"",""]
[null,null,null,null,null,"",""]
[null,null,null,null,null,"",""]
[null,null,null,null,null,"",""]
[null,null,null,null,null,"",""]
[null,null,null,null,null,"",""]
[null,null,null,null,null,"",""]
[null,null,null,null,null,"",""]
[null,null,null,null,null,"",""]
[null,null,null,null,null,"",""]
[null,null,null,null,null,"",""]
[null,null,null,null,null,"",""]
[null,null,null,null,null,"",""]
[null,null,null,null,null,"",""]
[null,null,null,null,null,"",""]
[null,null,null,null,null,"",""]
[null,null,null,null,null,"",""]
[null,null,null,null,null,"",""]
[null,null,null,null,null,{"$f":"IF(D1430<>\"\",D1430*E1430,\"\")","v":""},{"$f":"IF(F1430<>\"\",F1430/9,\"\")","v":""}]
[null,null,null,null,null,"",""]
[null,null,null,null,null,"",""]
[null,null,null,null,null,"",""]
[null,null,null,null,null,"",""]
[null,null,null,null,null,"",""]
[null,null,null,null,null,"",""]
[null,null,null,null,null,"",""]
[null,null,null,null,null,"",""]
[null,null,null,null,null,"",""]
[null,null,null,null,null,"",""]
[null,null,null,null,null,"",""]
[null,null,null,null,null,"",""]
[null,null,null,null,null,"",""]
[null,null,null,null,null,"",""]
[null,null,null,null,null,"",""]
[null,null,null,null,null,"",""]
[null,null,null,null,null,"",""]
[null,null,null,null,null,"",""]
[null,null,null,null,null,"",""]
[null,null,null,null,null,"",""]
[null,null,null,null,null,"",""]
[null,null,null,null,null,"",""]
[null,null,null,null,null,"",""]
[null,null,null,null,null,"",""]
[null,null,null,null,null,"",""]
[null,null,null,null,null,"",""]
[null,null,null,null,null,"",""]
[null,null,null,null,null,"",""]
[null,null,null,null,null,"",""]
[null,null,null,null,null,"",""]
[null,null,null,null,null,"",""]
[null,null,null,null,null,"",""]
[null,null,null,null,null,"",""]
[null,null,null,null,null,"",""]
[null,null,null,null,null,"",""]
[null,null,null,null,null,"",""]
[null,null,null,null,null,"",""]
[null,null,null,null,null,"",""]
[null,null,null,null,null,"",""]
[null,null,null,null,null,"",""]
[null,null,null,null,null,"",""]
[null,null,null,null,null,"",""]
[null,null,null,null,null,"",""]
[null,null,null,null,null,"",""]
[null,null,null,null,null,"",""]
[null,null,null,null,null,"",""]
[null,null,null,null,null,"",""]
[null,null,null,null,null,"",""]
[null,null,null,null,null,"",""]
[null,null,null,null,null,"",""]
[null,null,null,null,null,"",""]
[null,null,null,null,null,"",""]
[null,null,null,null,null,"",""]
[null,null,null,null,null,"",""]
[null,null,null,null,null,"",""]
[null,null,null,null,null,"",""]
[null,null,null,null,null,"",""]
[null,null,null,null,null,"",""]
[null,null,null,null,null,"",""]
[null,null,null,null,null,"",""]
[null,null,null,null,null,"",""]
[null,null,null,null,null,"",""]
[null,null,null,null,null,"",""]
[null,null,null,null,null,{"$f":"IF(D1494<>\"\",D1494*E1494,\"\")","v":""},{"$f":"IF(F1494<>\"\",F1494/9,\"\")","v":""}]
[null,null,null,null,null,"",""]
[null,null,null,null,null,"",""]
[null,null,null,null,null,"",""]
[null,null,null,null,null,"",""]
[null,null,null,null,null,"",""]
[null,null,null,null,null,"",""]
[null,null,null,null,null,"",""]
[null,null,null,null,null,"",""]
[null,null,null,null,null,"",""]
[null,null,null,null,null,"",""]
[null,null,null,null,null,"",""]
[null,null,null,null,null,"",""]
[null,null,null,null,null,"",""]
[null,null,null,null,null,"",""]
[null,null,null,null,null,"",""]
[null,null,null,null,null,"",""]
[null,null,null,null,null,"",""]
[null,null,null,null,null,"",""]
[null,null,null,null,null,"",""]
[null,null,null,null,null,"",""]
[null,null,null,null,null,"",""]
[null,null,null,null,null,"",""]
[null,null,null,null,null,"",""]
[null,null,null,null,null,"",""]
[null,null,null,null,null,"",""]
[null,null,null,null,null,"",""]
[null,null,null,null,null,"",""]
[null,null,null,null,null,"",""]
[null,null,null,null,null,"",""]
[null,null,null,null,null,"",""]
[null,null,null,null,null,"",""]
[null,null,null,null,null,"",""]
[null,null,null,null,null,"",""]
[null,null,null,null,null,"",""]
[null,null,null,null,null,"",""]
[null,null,null,null,null,"",""]
[null,null,null,null,null,"",""]
[null,null,null,null,null,"",""]
[null,null,null,null,null,"",""]
[null,null,null,null,null,"",""]
[null,null,null,null,null,"",""]
[null,null,null,null,null,"",""]
[null,null,null,null,null,"",""]
[null,null,null,null,null,"",""]
[null,null,null,null,null,"",""]
[null,null,null,null,null,"",""]
[null,null,null,null,null,"",""]
[null,null,null,null,null,"",""]
[null,null,null,null,null,"",""]
[null,null,null,null,null,"",""]
[null,null,null,null,null,"",""]
[null,null,null,null,null,"",""]
[null,null,null,null,null,"",""]
[null,null,null,null,null,"",""]
[null,null,null,null,null,"",""]
[null,null,null,null,null,"",""]
[null,null,null,null,null,"",""]
[null,null,null,null,null,"",""]
[null,null,null,null,null,"",""]
[null,null,null,null,null,"",""]
[null,null,null,null,null,"",""]
[null,null,null,null,null,"",""]
[null,null,null,null,null,"",""]
[null,null,null,null,null,{"$f":"IF(D1558<>\"\",D1558*E1558,\"\")","v":""},{"$f":"IF(F1558<>\"\",F1558/9,\"\")","v":""}]
[null,null,null,null,null,"",""]
[null,null,null,null,null,"",""]
[null,null,null,null,null,"",""]
[null,null,null,null,null,"",""]
[null,null,null,null,null,"",""]
[null,null,null,null,null,"",""]
[null,null,null,null,null,"",""]
[null,null,null,null,null,"",""]
[null,null,null,null,null,"",""]
[null,null,null,null,null,"",""]
[null,null,null,null,null,"",""]
[null,null,null,null,null,"",""]
[null,null,null,null,null,"",""]
[null,null,null,null,null,"",""]
[null,null,null,null,null,"",""]
[null,null,null,null,null,"",""]
[null,null,null,null,null,"",""]
[null,null,null,null,null,"",""]
[null,null,null,null,null,"",""]
[null,null,null,null,null,"",""]
[null,null,null,null,null,"",""]
[null,null,null,null,null,"",""]
[null,null,null,null,null,"",""]
[null,null,null,null,null,"",""]
[null,null,null,null,null,"",""]
[null,null,null,null,null,"",""]
[null,null,null,null,null,"",""]
[null,null,null,null,null,"",""]
[null,null,null,null,null,"",""]
[null,null,null,null,null,"",""]
[null,null,null,null,null,"",""]
[null,null,null,null,null,"",""]
[null,null,null,null,null,"",""]
[null,null,null,null,null,"",""]
[null,null,null,null,null,"",""]
[null,null,null,null,null,"",""]
[null,null,null,null,null,"",""]
[null,null,null,null,null,"",""]
[null,null,null,null,null,"",""]
[null,null,null,null,null,"",""]
[null,null,null,null,null,"",""]
[null,null,null,null,null,"",""]
[null,null,null,null,null,"",""]
[null,null,null,null,null,"",""]
[null,null,null,null,null,"",""]
[null,null,null,null,null,"",""]
[null,null,null,null,null,"",""]
[null,null,null,null,null,"",""]
[null,null,null,null,null,"",""]
[null,null,null,null,null,"",""]
[null,null,null,null,null,"",""]
[null,null,null,null,null,"",""]
[null,null,null,null,null,"",""]
[null,null,null,null,null,"",""]
[null,null,null,null,null,"",""]
[null,null,null,null,null,"",""]
[null,null,null,null,null,"",""]
[null,null,null,null,null,"",""]
[null,null,null,null,null,"",""]
[null,null,null,null,null,"",""]
[null,null,null,null,null,"",""]
[null,null,null,null,null,"",""]
[null,null,null,null,null,"",""]
[null,null,null,null,null,{"$f":"IF(D1622<>\"\",D1622*E1622,\"\")","v":""},{"$f":"IF(F1622<>\"\",F1622/9,\"\")","v":""}]
[null,null,null,null,null,"",""]
[null,null,null,null,null,"",""]
[null,null,null,null,null,"",""]
[null,null,null,null,null,"",""]
[null,null,null,null,null,"",""]
[null,null,null,null,null,"",""]
[null,null,null,null,null,"",""]
[null,null,null,null,null,"",""]
[null,null,null,null,null,"",""]
[null,null,null,null,null,"",""]
[null,null,null,null,null,"",""]
[null,null,null,null,null,"",""]
[null,null,null,null,null,"",""]
[null,null,null,null,null,"",""]
[null,null,null,null,null,"",""]
[null,null,null,null,null,"",""]
[null,null,null,null,null,"",""]
[null,null,null,null,null,"",""]
[null,null,null,null,null,"",""]
[null,null,null,null,null,"",""]
[null,null,null,null,null,"",""]
[null,null,null,null,null,"",""]
[null,null,null,null,null,"",""]
[null,null,null,null,null,"",""]
[null,null,null,null,null,"",""]
[null,null,null,null,null,"",""]
[null,null,null,null,null,"",""]
[null,null,null,null,null,"",""]
[null,null,null,null,null,"",""]
[null,null,null,null,null,"",""]
[null,null,null,null,null,"",""]
[null,null,null,null,null,"",""]
[null,null,null,null,null,"",""]
[null,null,null,null,null,"",""]
[null,null,null,null,null,"",""]
[null,null,null,null,null,"",""]
[null,null,null,null,null,"",""]
[null,null,null,null,null,"",""]
[null,null,null,null,null,"",""]
[null,null,null,null,null,"",""]
[null,null,null,null,null,"",""]
[null,null,null,null,null,"",""]
[null,null,null,null,null,"",""]
[null,null,null,null,null,"",""]
[null,null,null,null,null,"",""]
[null,null,null,null,null,"",""]
[null,null,null,null,null,"",""]
[null,null,null,null,null,"",""]
[null,null,null,null,null,"",""]
[null,null,null,null,null,"",""]
[null,null,null,null,null,"",""]
[null,null,null,null,null,"",""]
[null,null,null,null,null,"",""]
[null,null,null,null,null,"",""]
[null,null,null,null,null,"",""]
[null,null,null,null,null,"",""]
[null,null,null,null,null,"",""]
[null,null,null,null,null,"",""]
[null,null,null,null,null,"",""]
[null,null,null,null,null,"",""]
[null,null,null,null,null,"",""]
[null,null,null,null,null,"",""]
[null,null,null,null,null,"",""]
[null,null,null,null,null,{"$f":"IF(D1686<>\"\",D1686*E1686,\"\")","v":""},{"$f":"IF(F1686<>\"\",F1686/9,\"\")","v":""}]
[null,null,null,null,null,"",""]
[null,null,null,null,null,"",""]
[null,null,null,null,null,"",""]
[null,null,null,null,null,"",""]
[null,null,null,null,null,"",""]
[null,null,null,null,null,"",""]
[null,null,null,null,null,"",""]
[null,null,null,null,null,"",""]
[null,null,null,null,null,"",""]
[null,null,null,null,null,"",""]
[null,null,null,null,null,"",""]
[null,null,null,null,null,"",""]
[null,null,null,null,null,"",""]
[null,null,null,null,null,"",""]
[null,null,null,null,null,"",""]
[null,null,null,null,null,"",""]
[null,null,null,null,null,"",""]
[null,null,null,null,null,"",""]
[null,null,null,null,null,"",""]
[null,null,null,null,null,"",""]
[null,null,null,null,null,"",""]
[null,null,null,null,null,"",""]
[null,null,null,null,null,"",""]
[null,null,null,null,null,"",""]
[null,null,null,null,null,"",""]
[null,null,null,null,null,"",""]
[null,null,null,null,null,"",""]
[null,null,null,null,null,"",""]
[null,null,null,null,null,"",""]
[null,null,null,null,null,"",""]
[null,null,null,null,null,"",""]
[null,null,null,null,null,"",""]
[null,null,null,null,null,"",""]
[null,null,null,null,null,"",""]
[null,null,null,null,null,"",""]
[null,null,null,null,null,"",""]
[null,null,null,null,null,"",""]
[null,null,null,null,null,"",""]
[null,null,null,null,null,"",""]
[null,null,null,null,null,"",""]
[null,null,null,null,null,"",""]
[null,null,null,null,null,"",""]
[null,null,null,null,null,"",""]
[null,null,null,null,null,"",""]
[null,null,null,null,null,"",""]
[null,null,null,null,null,"",""]
[null,null,null,null,null,"",""]
[null,null,null,null,null,"",""]
[null,null,null,null,null,"",""]
[null,null,null,null,null,"",""]
[null,null,null,null,null,"",""]
[null,null,null,null,null,"",""]
[null,null,null,null,null,"",""]
[null,null,null,null,null,"",""]
[null,null,null,null,null,"",""]
[null,null,null,null,null,"",""]
[null,null,null,null,null,"",""]
[null,null,null,null,null,"",""]
[null,null,null,null,null,"",""]
[null,null,null,null,null,"",""]
[null,null,null,null,null,"",""]
[null,null,null,null,null,"",""]
[null,null,null,null,null,"",""]
[null,null,null,null,null,{"$f":"IF(D1750<>\"\",D1750*E1750,\"\")","v":""},{"$f":"IF(F1750<>\"\",F1750/9,\"\")","v":""}]
[null,null,null,null,null,"",""]
[null,null,null,null,null,"",""]
[null,null,null,null,null,"",""]
[null,null,null,null,null,"",""]
[null,null,null,null,null,"",""]
[null,null,null,null,null,"",""]
[null,null,null,null,null,"",""]
[null,null,null,null,null,"",""]
[null,null,null,null,null,"",""]
[null,null,null,null,null,"",""]
[null,null,null,null,null,"",""]
[null,null,null,null,null,"",""]
[null,null,null,null,null,"",""]
[null,null,null,null,null,"",""]
[null,null,null,null,null,"",""]
[null,null,null,null,null,"",""]
[null,null,null,null,null,"",""]
[null,null,null,null,null,"",""]
[null,null,null,null,null,"",""]
[null,null,null,null,null,"",""]
[null,null,null,null,null,"",""]
[null,null,null,null,null,"",""]
[null,null,null,null,null,"",""]
[null,null,null,null,null,"",""]
[null,null,null,null,null,"",""]
[null,null,null,null,null,"",""]
[null,null,null,null,null,"",""]
[null,null,null,null,null,"",""]
[null,null,null,null,null,"",""]
[null,null,null,null,null,"",""]
[null,null,null,null,null,"",""]
[null,null,null,null,null,"",""]
[null,null,null,null,null,"",""]
[null,null,null,null,null,"",""]
[null,null,null,null,null,"",""]
[null,null,null,null,null,"",""]
[null,null,null,null,null,"",""]
[null,null,null,null,null,"",""]
[null,null,null,null,null,"",""]
[null,null,null,null,null,"",""]
[null,null,null,null,null,"",""]
[null,null,null,null,null,"",""]
[null,null,null,null,null,"",""]
[null,null,null,null,null,"",""]
[null,null,null,null,null,"",""]
[null,null,null,null,null,"",""]
[null,null,null,null,null,"",""]
[null,null,null,null,null,"",""]
[null,null,null,null,null,"",""]
[null,null,null,null,null,"",""]
[null,null,null,null,null,"",""]
[null,null,null,null,null,"",""]
[null,null,null,null,null,"",""]
[null,null,null,null,null,"",""]
[null,null,null,null,null,"",""]
[null,null,null,null,null,"",""]
[null,null,null,null,null,"",""]
[null,null,null,null,null,"",""]
[null,null,null,null,null,"",""]
[null,null,null,null,null,"",""]
[null,null,null,null,null,"",""]
[null,null,null,null,null,"",""]
[null,null,null,null,null,"",""]
[null,null,null,null,null,{"$f":"IF(D1814<>\"\",D1814*E1814,\"\")","v":""},{"$f":"IF(F1814<>\"\",F1814/9,\"\")","v":""}]
[null,null,null,null,null,"",""]
[null,null,null,null,null,"",""]
[null,null,null,null,null,"",""]
[null,null,null,null,null,"",""]
[null,null,null,null,null,"",""]
[null,null,null,null,null,"",""]
[null,null,null,null,null,"",""]
[null,null,null,null,null,"",""]
[null,null,null,null,null,"",""]
[null,null,null,null,null,"",""]
[null,null,null,null,null,"",""]
[null,null,null,null,null,"",""]
[null,null,null,null,null,"",""]
[null,null,null,null,null,"",""]
[null,null,null,null,null,"",""]
[null,null,null,null,null,"",""]
[null,null,null,null,null,"",""]
[null,null,null,null,null,"",""]
[null,null,null,null,null,"",""]
[null,null,null,null,null,"",""]
[null,null,null,null,null,"",""]
[null,null,null,null,null,"",""]
[null,null,null,null,null,"",""]
[null,null,null,null,null,"",""]
[null,null,null,null,null,"",""]
[null,null,null,null,null,"",""]
[null,null,null,null,null,"",""]
[null,null,null,null,null,"",""]
[null,null,null,null,null,"",""]
[null,null,null,null,null,"",""]
[null,null,null,null,null,"",""]
[null,null,null,null,null,"",""]
[null,null,null,null,null,"",""]
[null,null,null,null,null,"",""]
[null,null,null,null,null,"",""]
[null,null,null,null,null,"",""]
[null,null,null,null,null,"",""]
[null,null,null,null,null,"",""]
[null,null,null,null,null,"",""]
[null,null,null,null,null,"",""]
[null,null,null,null,null,"",""]
[null,null,null,null,null,"",""]
[null,null,null,null,null,"",""]
[null,null,null,null,null,"",""]
[null,null,null,null,null,"",""]
[null,null,null,null,null,"",""]
[null,null,null,null,null,"",""]
[null,null,null,null,null,"",""]
[null,null,null,null,null,"",""]
[null,null,null,null,null,"",""]
[null,null,null,null,null,"",""]
[null,null,null,null,null,"",""]
[null,null,null,null,null,"",""]
[null,null,null,null,null,"",""]
[null,null,null,null,null,"",""]
[null,null,null,null,null,"",""]
[null,null,null,null,null,"",""]
[null,null,null,null,null,"",""]
[null,null,null,null,null,"",""]
[null,null,null,null,null,"",""]
[null,null,null,null,null,"",""]
[null,null,null,null,null,"",""]
[null,null,null,null,null,"",""]
[null,null,null,null,null,{"$f":"IF(D1878<>\"\",D1878*E1878,\"\")","v":""},{"$f":"IF(F1878<>\"\",F1878/9,\"\")","v":""}]
[null,null,null,null,null,"",""]
[null,null,null,null,null,"",""]
[null,null,null,null,null,"",""]
[null,null,null,null,null,"",""]
[null,null,null,null,null,"",""]
[null,null,null,null,null,"",""]
[null,null,null,null,null,"",""]
[null,null,null,null,null,"",""]
[null,null,null,null,null,"",""]
[null,null,null,null,null,"",""]
[null,null,null,null,null,"",""]
[null,null,null,null,null,"",""]
[null,null,null,null,null,"",""]
[null,null,null,null,null,"",""]
[null,null,null,null,null,"",""]
[null,null,null,null,null,"",""]
[null,null,null,null,null,"",""]
[null,null,null,null,null,"",""]
[null,null,null,null,null,"",""]
[null,null,null,null,null,"",""]
[null,null,null,null,null,"",""]
[null,null,null,null,null,"",""]
[null,null,null,null,null,"",""]
[null,null,null,null,null,"",""]
[null,null,null,null,null,"",""]
[null,null,null,null,null,"",""]
[null,null,null,null,null,"",""]
[null,null,null,null,null,"",""]
[null,null,null,null,null,"",""]
[null,null,null,null,null,"",""]
[null,null,null,null,null,"",""]
[null,null,null,null,null,"",""]
[null,null,null,null,null,"",""]
[null,null,null,null,null,"",""]
[null,null,null,null,null,"",""]
[null,null,null,null,null,"",""]
[null,null,null,null,null,"",""]
[null,null,null,null,null,"",""]
[null,null,null,null,null,"",""]
[null,null,null,null,null,"",""]
[null,null,null,null,null,"",""]
[null,null,null,null,null,"",""]
[null,null,null,null,null,"",""]
[null,null,null,null,null,"",""]
[null,null,null,null,null,"",""]
[null,null,null,null,null,"",""]
[null,null,null,null,null,"",""]
[null,null,null,null,null,"",""]
[null,null,null,null,null,"",""]
[null,null,null,null,null,"",""]
[null,null,null,null,null,"",""]
[null,null,null,null,null,"",""]
[null,null,null,null,null,"",""]
[null,null,null,null,null,"",""]
[null,null,null,null,null,"",""]
[null,null,null,null,null,"",""]
[null,null,null,null,null,"",""]
[null,null,null,null,null,"",""]
[null,null,null,null,null,"",""]
[null,null,null,null,null,"",""]
[null,null,null,null,null,"",""]
[null,null,null,null,null,"",""]
[null,null,null,null,null,"",""]
[null,null,null,null,null,{"$f":"IF(D1942<>\"\",D1942*E1942,\"\")","v":""},{"$f":"IF(F1942<>\"\",F1942/9,\"\")","v":""}]
[null,null,null,null,null,"",""]
[null,null,null,null,null,"",""]
[null,null,null,null,null,"",""]
[null,null,null,null,null,"",""]
[null,null,null,null,null,"",""]
[null,null,null,null,null,"",""]
[null,null,null,null,null,"",""]
[null,null,null,null,null,"",""]
[null,null,null,null,null,"",""]
[null,null,null,null,null,"",""]
[null,null,null,null,null,"",""]
[null,null,null,null,null,"",""]
[null,null,null,null,null,"",""]
[null,null,null,null,null,"",""]
[null,null,null,null,null,"",""]
[null,null,null,null,null,"",""]
[null,null,null,null,null,"",""]
[null,null,null,null,null,"",""]
[null,null,null,null,null,"",""]
[null,null,null,null,null,"",""]
[null,null,null,null,null,"",""]
[null,null,null,null,null,"",""]
[null,null,null,null,null,"",""]
[null,null,null,null,null,"",""]
[null,null,null,null,null,"",""]
[null,null,null,null,null,"",""]
[null,null,null,null,null,"",""]
[null,null,null,null,null,"",""]
[null,null,null,null,null,"",""]
[null,null,null,null,null,"",""]
[null,null,null,null,null,"",""]
[null,null,null,null,null,"",""]
[null,null,null,null,null,"",""]
[null,null,null,null,null,"",""]
[null,null,null,null,null,"",""]
[null,null,null,null,null,"",""]
[null,null,null,null,null,"",""]
[null,null,null,null,null,"",""]
[null,null,null,null,null,"",""]
[null,null,null,null,null,"",""]
[null,null,null,null,null,"",""]
[null,null,null,null,null,"",""]
[null,null,null,null,null,"",""]
[null,null,null,null,null,"",""]
[null,null,null,null,null,"",""]
[null,null,null,null,null,"",""]
[null,null,null,null,null,"",""]
[null,null,null,null,null,"",""]
[null,null,null,null,null,"",""]
[null,null,null,null,null,"",""]
[null,null,null,null,null,"",""]
[null,null,null,null,null,"",""]
[null,null,null,null,null,"",""]
[null,null,null,null,null,"",""]
[null,null,null,null,null,"",""]
[null,null,null,null,null,"",""]
[null,null,null,null,null,"",""]
[null,null,null,null,null,"",""]
[null,null,null,null,null,"",""]
[null,null,null,null,null,"",""]
[null,null,null,null,null,"",""]
[null,null,null,null,null,"",""]
[null,null,null,null,null,"",""]
[null,null,null,null,null,{"$f":"IF(D2006<>\"\",D2006*E2006,\"\")","v":""},{"$f":"IF(F2006<>\"\",F2006/9,\"\")","v":""}]
[null,null,null,null,null,"",""]
[null,null,null,null,null,"",""]
[null,null,null,null,null,"",""]
[null,null,null,null,null,"",""]
[null,null,null,null,null,"",""]
[null,null,null,null,null,"",""]
[null,null,null,null,null,"",""]
[null,null,null,null,null,"",""]
[null,null,null,null,null,"",""]
[null,null,null,null,null,"",""]
[null,null,null,null,null,"",""]
[null,null,null,null,null,"",""]
[null,null,null,null,null,"",""]
[null,null,null,null,null,"",""]
[null,null,null,null,null,"",""]
[null,null,null,null,null,"",""]
[null,null,null,null,null,"",""]
[null,null,null,null,null,"",""]
[null,null,null,null,null,"",""]
[null,null,null,null,null,"",""]
[null,null,null,null,null,"",""]
[null,null,null,null,null,"",""]
[null,null,null,null,null,"",""]
[null,null,null,null,null,"",""]
[null,null,null,null,null,"",""]
[null,null,null,null,null,"",""]
[null,null,null,null,null,"",""]
[null,null,null,null,null,"",""]
[null,null,null,null,null,"",""]
[null,null,null,null,null,"",""]
[null,null,null,null,null,"",""]
[null,null,null,null,null,"",""]
[null,null,null,null,null,"",""]
[null,null,null,null,null,"",""]
[null,null,null,null,null,"",""]
[null,null,null,null,null,"",""]
[null,null,null,null,null,"",""]
[null,null,null,null,null,"",""]
[null,null,null,null,null,"",""]
[null,null,null,null,null,"",""]
[null,null,null,null,null,"",""]
[null,null,null,null,null,"",""]
[null,null,null,null,null,"",""]
[null,null,null,null,null,"",""]
[null,null,null,null,null,"",""]
[null,null,null,null,null,"",""]
[null,null,null,null,null,"",""]
[null,null,null,null,null,"",""]
[null,null,null,null,null,"",""]
[null,null,null,null,null,"",""]
[null,null,null,null,null,"",""]
[null,null,null,null,null,"",""]
[null,null,null,null,null,"",""]
[null,null,null,null,null,"",""]
[null,null,null,null,null,"",""]
[null,null,null,null,null,"",""]
[null,null,null,null,null,"",""]
[null,null,null,null,null,"",""]
[null,null,null,null,null,"",""]
[null,null,null,null,null,"",""]
[null,null,null,null,null,"",""]
[null,null,null,null,null,"",""]
[null,null,null,null,null,"",""]
[null,null,null,null,null,{"$f":"IF(D2070<>\"\",D2070*E2070,\"\")","v":""},{"$f":"IF(F2070<>\"\",F2070/9,\"\")","v":""}]
[null,null,null,null,null,"",""]
[null,null,null,null,null,"",""]
[null,null,null,null,null,"",""]
[null,null,null,null,null,"",""]
[null,null,null,null,null,"",""]
[null,null,null,null,null,"",""]
[null,null,null,null,null,"",""]
[null,null,null,null,null,"",""]
[null,null,null,null,null,"",""]
[null,null,null,null,null,"",""]
[null,null,null,null,null,"",""]
[null,null,null,null,null,"",""]
[null,null,null,null,null,"",""]
[null,null,null,null,null,"",""]
[null,null,null,null,null,"",""]
[null,null,null,null,null,"",""]
[null,null,null,null,null,"",""]
[null,null,null,null,null,"",""]
[null,null,null,null,null,"",""]
[null,null,null,null,null,"",""]
[null,null,null,null,null,"",""]
[null,null,null,null,null,"",""]
[null,null,null,null,null,"",""]
[null,null,null,null,null,"",""]
[null,null,null,null,null,"",""]
[null,null,null,null,null,"",""]
[null,null,null,null,null,"",""]
[null,null,null,null,null,"",""]
[null,null,null,null,null,"",""]
[null,null,null,null,null,"",""]
[null,null,null,null,null,"",""]
[null,null,null,null,null,"",""]
[null,null,null,null,null,"",""]
[null,null,null,null,null,"",""]
[null,null,null,null,null,"",""]
[null,null,null,null,null,"",""]
[null,null,null,null,null,"",""]
[null,null,null,null,null,"",""]
[null,null,null,null,null,"",""]
[null,null,null,null,null,"",""]
[null,null,null,null,null,"",""]
[null,null,null,null,null,"",""]
[null,null,null,null,null,"",""]
[null,null,null,null,null,"",""]
[null,null,null,null,null,"",""]
[null,null,null,null,null,"",""]
[null,null,null,null,null,"",""]
[null,null,null,null,null,"",""]
[null,null,null,null,null,"",""]
[null,null,null,null,null,"",""]
[null,null,null,null,null,"",""]
[null,null,null,null,null,"",""]
[null,null,null,null,null,"",""]
[null,null,null,null,null,"",""]
[null,null,null,null,null,"",""]
[null,null,null,null,null,"",""]
[null,null,null,null,null,"",""]
[null,null,null,null,null,"",""]
[null,null,null,null,null,"",""]
[null,null,null,null,null,"",""]
[null,null,null,null,null,"",""]
[null,null,null,null,null,"",""]
[null,null,null,null,null,"",""]
[null,null,null,null,null,{"$f":"IF(D2134<>\"\",D2134*E2134,\"\")","v":""},{"$f":"IF(F2134<>\"\",F2134/9,\"\")","v":""}]
[null,null,null,null,null,"",""]
[null,null,null,null,null,"",""]
[null,null,null,null,null,"",""]
[null,null,null,null,null,"",""]
[null,null,null,null,null,"",""]
[null,null,null,null,null,"",""]
[null,null,null,null,null,"",""]
[null,null,null,null,null,"",""]
[null,null,null,null,null,"",""]
[null,null,null,null,null,"",""]
[null,null,null,null,null,"",""]
[null,null,null,null,null,"",""]
[null,null,null,null,null,"",""]
[null,null,null,null,null,"",""]
[null,null,null,null,null,"",""]
[null,null,null,null,null,"",""]
[null,null,null,null,null,"",""]
[null,null,null,null,null,"",""]
[null,null,null,null,null,"",""]
[null,null,null,null,null,"",""]
[null,null,null,null,null,"",""]
[null,null,null,null,null,"",""]
[null,null,null,null,null,"",""]
[null,null,null,null,null,"",""]
[null,null,null,null,null,"",""]
[null,null,null,null,null,"",""]
[null,null,null,null,null,"",""]
[null,null,null,null,null,"",""]
[null,null,null,null,null,"",""]
[null,null,null,null,null,"",""]
[null,null,null,null,null,"",""]
[null,null,null,null,null,"",""]
[null,null,null,null,null,"",""]
[null,null,null,null,null,"",""]
[null,null,null,null,null,"",""]
[null,null,null,null,null,"",""]
[null,null,null,null,null,"",""]
[null,null,null,null,null,"",""]
[null,null,null,null,null,"",""]
[null,null,null,null,null,"",""]
[null,null,null,null,null,"",""]
[null,null,null,null,null,"",""]
[null,null,null,null,null,"",""]
[null,null,null,null,null,"",""]
[null,null,null,null,null,"",""]
[null,null,null,null,null,"",""]
[null,null,null,null,null,"",""]
[null,null,null,null,null,"",""]
[null,null,null,null,null,"",""]
[null,null,null,null,null,"",""]
[null,null,null,null,null,"",""]
[null,null,null,null,null,"",""]
[null,null,null,null,null,"",""]
[null,null,null,null,null,"",""]
[null,null,null,null,null,"",""]
[null,null,null,null,null,"",""]
[null,null,null,null,null,"",""]
[null,null,null,null,null,"",""]
[null,null,null,null,null,"",""]
[null,null,null,null,null,"",""]
[null,null,null,null,null,"",""]
[null,null,null,null,null,"",""]
[null,null,null,null,null,"",""]
[null,null,null,null,null,{"$f":"IF(D2198<>\"\",D2198*E2198,\"\")","v":""},{"$f":"IF(F2198<>\"\",F2198/9,\"\")","v":""}]
[null,null,null,null,null,"",""]
[null,null,null,null,null,"",""]
[null,null,null,null,null,"",""]
[null,null,null,null,null,"",""]
[null,null,null,null,null,"",""]
[null,null,null,null,null,"",""]
[null,null,null,null,null,"",""]
[null,null,null,null,null,"",""]
[null,null,null,null,null,"",""]
[null,null,null,null,null,"",""]
[null,null,null,null,null,"",""]
[null,null,null,null,null,"",""]
[null,null,null,null,null,"",""]
[null,null,null,null,null,"",""]
[null,null,null,null,null,"",""]
[null,null,null,null,null,"",""]
[null,null,null,null,null,"",""]
[null,null,null,null,null,"",""]
[null,null,null,null,null,"",""]
[null,null,null,null,null,"",""]
[null,null,null,null,null,"",""]
[null,null,null,null,null,"",""]
[null,null,null,null,null,"",""]
[null,null,null,null,null,"",""]
[null,null,null,null,null,"",""]
[null,null,null,null,null,"",""]
[null,null,null,null,null,"",""]
[null,null,null,null,null,"",""]
[null,null,null,null,null,"",""]
[null,null,null,null,null,"",""]
[null,null,null,null,null,"",""]
[null,null,null,null,null,"",""]
[null,null,null,null,null,"",""]
[null,null,null,null,null,"",""]
[null,null,null,null,null,"",""]
[null,null,null,null,null,"",""]
[null,null,null,null,null,"",""]
[null,null,null,null,null,"",""]
[null,null,null,null,null,"",""]
[null,null,null,null,null,"",""]
[null,null,null,null,null,"",""]
[null,null,null,null,null,"",""]
[null,null,null,null,null,"",""]
[null,null,null,null,null,"",""]
[null,null,null,null,null,"",""]
[null,null,null,null,null,"",""]
[null,null,null,null,null,"",""]
[null,null,null,null,null,"",""]
[null,null,null,null,null,"",""]
[null,null,null,null,null,"",""]
[null,null,null,null,null,"",""]
[null,null,null,null,null,"",""]
[null,null,null,null,null,"",""]
[null,null,null,null,null,"",""]
[null,null,null,null,null,"",""]
[null,null,null,null,null,"",""]
[null,null,null,null,null,"",""]
[null,null,null,null,null,"",""]
[null,null,null,null,null,"",""]
[null,null,null,null,null,"",""]
[null,null,null,null,null,"",""]
[null,null,null,null,null,"",""]
[null,null,null,null,null,"",""]
[null,null,null,null,null,{"$f":"IF(D2262<>\"\",D2262*E2262,\"\")","v":""},{"$f":"IF(F2262<>\"\",F2262/9,\"\")","v":""}]
[null,null,null,null,null,"",""]
[null,null,null,null,null,"",""]
[null,null,null,null,null,"",""]
[null,null,null,null,null,"",""]
[null,null,null,null,null,"",""]
[null,null,null,null,null,"",""]
[null,null,null,null,null,"",""]
[null,null,null,null,null,"",""]
[null,null,null,null,null,"",""]
[null,null,null,null,null,"",""]
[null,null,null,null,null,"",""]
[null,null,null,null,null,"",""]
[null,null,null,null,null,"",""]
[null,null,null,null,null,"",""]
[null,null,null,null,null,"",""]
[null,null,null,null,null,"",""]
[null,null,null,null,null,"",""]
[null,null,null,null,null,"",""]
[null,null,null,null,null,"",""]
[null,null,null,null,null,"",""]
[null,null,null,null,null,"",""]
[null,null,null,null,null,"",""]
[null,null,null,null,null,"",""]
[null,null,null,null,null,"",""]
[null,null,null,null,null,"",""]
[null,null,null,null,null,"",""]
[null,null,null,null,null,"",""]
[null,null,null,null,null,"",""]
[null,null,null,null,null,"",""]
[null,null,null,null,null,"",""]
[null,null,null,null,null,"",""]
[null,null,null,null,null,"",""]
[null,null,null,null,null,"",""]
[null,null,null,null,null,"",""]
[null,null,null,null,null,"",""]
[null,null,null,null,null,"",""]
[null,null,null,null,null,"",""]
[null,null,null,null,null,"",""]
[null,null,null,null,null,"",""]
[null,null,null,null,null,"",""]
[null,null,null,null,null,"",""]
[null,null,null,null,null,"",""]
[null,null,null,null,null,"",""]
[null,null,null,null,null,"",""]
[null,null,null,null,null,"",""]
[null,null,null,null,null,"",""]
[null,null,null,null,null,"",""]
[null,null,null,null,null,"",""]
[null,null,null,null,null,"",""]
[null,null,null,null,null,"",""]
[null,null,null,null,null,"",""]
[null,null,null,null,null,"",""]
[null,null,null,null,null,"",""]
[null,null,null,null,null,"",""]
[null,null,null,null,null,"",""]
[null,null,null,null,null,"",""]
[null,null,null,null,null,"",""]
[null,null,null,null,null,"",""]
[null,null,null,null,null,"",""]
[null,null,null,null,null,"",""]
[null,null,null,null,null,"",""]
[null,null,null,null,null,"",""]
[null,null,null,null,null,"",""]
[null,null,null,null,null,{"$f":"IF(D2326<>\"\",D2326*E2326,\"\")","v":""},{"$f":"IF(F2326<>\"\",F2326/9,\"\")","v":""}]
[null,null,null,null,null,"",""]
[null,null,null,null,null,"",""]
[null,null,null,null,null,"",""]
[null,null,null,null,null,"",""]
[null,null,null,null,null,"",""]
[null,null,null,null,null,"",""]
[null,null,null,null,null,"",""]
[null,null,null,null,null,"",""]
[null,null,null,null,null,"",""]
[null,null,null,null,null,"",""]
[null,null,null,null,null,"",""]
[null,null,null,null,null,"",""]
[null,null,null,null,null,"",""]
[null,null,null,null,null,"",""]
[null,null,null,null,null,"",""]
[null,null,null,null,null,"",""]
[null,null,null,null,null,"",""]
[null,null,null,null,null,"",""]
[null,null,null,null,null,"",""]
[null,null,null,null,null,"",""]
[null,null,null,null,null,"",""]
[null,null,null,null,null,"",""]
[null,null,null,null,null,"",""]
[null,null,null,null,null,"",""]
[null,null,null,null,null,"",""]
[null,null,null,null,null,"",""]
[null,null,null,null,null,"",""]
[null,null,null,null,null,"",""]
[null,null,null,null,null,"",""]
[null,null,null,null,null,"",""]
[null,null,null,null,null,"",""]
[null,null,null,null,null,"",""]
[null,null,null,null,null,"",""]
[null,null,null,null,null,"",""]
[null,null,null,null,null,"",""]
[null,null,null,null,null,"",""]
[null,null,null,null,null,"",""]
[null,null,null,null,null,"",""]
[null,null,null,null,null,"",""]
[null,null,null,null,null,"",""]
[null,null,null,null,null,"",""]
[null,null,null,null,null,"",""]
[null,null,null,null,null,"",""]
[null,null,null,null,null,"",""]
[null,null,null,null,null,"",""]
[null,null,null,null,null,"",""]
[null,null,null,null,null,"",""]
[null,null,null,null,null,"",""]
[null,null,null,null,null,"",""]
[null,null,null,null,null,"",""]
[null,null,null,null,null,"",""]
[null,null,null,null,null,"",""]
[null,null,null,null,null,"",""]
[null,null,null,null,null,"",""]
[null,null,null,null,null,"",""]
[null,null,null,null,null,"",""]
[null,null,null,null,null,"",""]
[null,null,null,null,null,"",""]
[null,null,null,null,null,"",""]
[null,null,null,null,null,"",""]
[null,null,null,null,null,"",""]
[null,null,null,null,null,"",""]
[null,null,null,null,null,"",""]
[null,null,null,null,null,{"$f":"IF(D2390<>\"\",D2390*E2390,\"\")","v":""},{"$f":"IF(F2390<>\"\",F2390/9,\"\")","v":""}]
[null,null,null,null,null,"",""]
[null,null,null,null,null,"",""]
[null,null,null,null,null,"",""]
[null,null,null,null,null,"",""]
[null,null,null,null,null,"",""]
[null,null,null,null,null,"",""]
[null,null,null,null,null,"",""]
[null,null,null,null,null,"",""]
[null,null,null,null,null,"",""]
[null,null,null,null,null,"",""]
[null,null,null,null,null,"",""]
[null,null,null,null,null,"",""]
[null,null,null,null,null,"",""]
[null,null,null,null,null,"",""]
[null,null,null,null,null,"",""]
[null,null,null,null,null,"",""]
[null,null,null,null,null,"",""]
[null,null,null,null,null,"",""]
[null,null,null,null,null,"",""]
[null,null,null,null,null,"",""]
[null,null,null,null,null,"",""]
[null,null,null,null,null,"",""]
[null,null,null,null,null,"",""]
[null,null,null,null,null,"",""]
[null,null,null,null,null,"",""]
[null,null,null,null,null,"",""]
[null,null,null,null,null,"",""]
[null,null,null,null,null,"",""]
[null,null,null,null,null,"",""]
[null,null,null,null,null,"",""]
[null,null,null,null,null,"",""]
[null,null,null,null,null,"",""]
[null,null,null,null,null,"",""]
[null,null,null,null,null,"",""]
[null,null,null,null,null,"",""]
[null,null,null,null,null,"",""]
[null,null,null,null,null,"",""]
[null,null,null,null,null,"",""]
[null,null,null,null,null,"",""]
[null,null,null,null,null,"",""]
[null,null,null,null,null,"",""]
[null,null,null,null,null,"",""]
[null,null,null,null,null,"",""]
[null,null,null,null,null,"",""]
[null,null,null,null,null,"",""]
[null,null,null,null,null,"",""]
[null,null,null,null,null,"",""]
[null,null,null,null,null,"",""]
[null,null,null,null,null,"",""]
[null,null,null,null,null,"",""]
[null,null,null,null,null,"",""]
[null,null,null,null,null,"",""]
[null,null,null,null,null,"",""]
[null,null,null,null,null,"",""]
[null,null,null,null,null,"",""]
[null,null,null,null,null,"",""]
[null,null,null,null,null,"",""]
[null,null,null,null,null,"",""]
[null,null,null,null,null,"",""]
[null,null,null,null,null,"",""]
[null,null,null,null,null,"",""]
[null,null,null,null,null,"",""]
[null,null,null,null,null,"",""]
[null,null,null,null,null,{"$f":"IF(D2454<>\"\",D2454*E2454,\"\")","v":""},{"$f":"IF(F2454<>\"\",F2454/9,\"\")","v":""}]
[null,null,null,null,null,"",""]
[null,null,null,null,null,"",""]
[null,null,null,null,null,"",""]
[null,null,null,null,null,"",""]
[null,null,null,null,null,"",""]
[null,null,null,null,null,"",""]
[null,null,null,null,null,"",""]
[null,null,null,null,null,"",""]
[null,null,null,null,null,"",""]
[null,null,null,null,null,"",""]
[null,null,null,null,null,"",""]
[null,null,null,null,null,"",""]
[null,null,null,null,null,"",""]
[null,null,null,null,null,"",""]
[null,null,null,null,null,"",""]
[null,null,null,null,null,"",""]
[null,null,null,null,null,"",""]
[null,null,null,null,null,"",""]
[null,null,null,null,null,"",""]
[null,null,null,null,null,"",""]
[null,null,null,null,null,"",""]
[null,null,null,null,null,"",""]
[null,null,null,null,null,"",""]
[null,null,null,null,null,"",""]
[null,null,null,null,null,"",""]
[null,null,null,null,null,"",""]
[null,null,null,null,null,"",""]
[null,null,null,null,null,"",""]
[null,null,null,null,null,"",""]
[null,null,null,null,null,"",""]
[null,null,null,null,null,"",""]
[null,null,null,null,null,"",""]
[null,null,null,null,null,"",""]
[null,null,null,null,null,"",""]
[null,null,null,null,null,"",""]
[null,null,null,null,null,"",""]
[null,null,null,null,null,"",""]
[null,null,null,null,null,"",""]
[null,null,null,null,null,"",""]
[null,null,null,null,null,"",""]
[null,null,null,null,null,"",""]
[null,null,null,null,null,"",""]
[null,null,null,null,null,"",""]
[null,null,null,null,null,"",""]
[null,null,null,null,null,"",""]
[null,null,null,null,null,"",""]
[null,null,null,null,null,"",""]
[null,null,null,null,null,"",""]
[null,null,null,null,null,"",""]
[null,null,null,null,null,"",""]
[null,null,null,null,null,"",""]
[null,null,null,null,null,"",""]
[null,null,null,null,null,"",""]
[null,null,null,null,null,"",""]
[null,null,null,null,null,"",""]
[null,null,null,null,null,"",""]
[null,null,null,null,null,"",""]
[null,null,null,null,null,"",""]
[null,null,null,null,null,"",""]
[null,null,null,null,null,"",""]
[null,null,null,null,null,"",""]
[null,null,null,null,null,"",""]
[null,null,null,null,null,"",""]
[null,null,null,null,null,{"$f":"IF(D2518<>\"\",D2518*E2518,\"\")","v":""},{"$f":"IF(F2518<>\"\",F2518/9,\"\")","v":""}]
[null,null,null,null,null,"",""]
[null,null,null,null,null,"",""]
[null,null,null,null,null,"",""]
[null,null,null,null,null,"",""]
[null,null,null,null,null,"",""]
[null,null,null,null,null,"",""]
[null,null,null,null,null,"",""]
[null,null,null,null,null,"",""]
[null,null,null,null,null,"",""]
[null,null,null,null,null,"",""]
[null,null,null,null,null,"",""]
[null,null,null,null,null,"",""]
[null,null,null,null,null,"",""]
[null,null,null,null,null,"",""]
[null,null,null,null,null,"",""]
[null,null,null,null,null,"",""]
[null,null,null,null,null,"",""]
[null,null,null,null,null,"",""]
[null,null,null,null,null,"",""]
[null,null,null,null,null,"",""]
[null,null,null,null,null,"",""]
[null,null,null,null,null,"",""]
[null,null,null,null,null,"",""]
[null,null,null,null,null,"",""]
[null,null,null,null,null,"",""]
[null,null,null,null,null,"",""]
[null,null,null,null,null,"",""]
[null,null,null,null,null,"",""]
[null,null,null,null,null,"",""]
[null,null,null,null,null,"",""]
[null,null,null,null,null,"",""]
[null,null,null,null,null,"",""]
[null,null,null,null,null,"",""]
[null,null,null,null,null,"",""]
[null,null,null,null,null,"",""]
[null,null,null,null,null,"",""]
[null,null,null,null,null,"",""]
[null,null,null,null,null,"",""]
[null,null,null,null,null,"",""]
[null,null,null,null,null,"",""]
[null,null,null,null,null,"",""]
[null,null,null,null,null,"",""]
[null,null,null,null,null,"",""]
[null,null,null,null,null,"",""]
[null,null,null,null,null,"",""]
[null,null,null,null,null,"",""]
[null,null,null,null,null,"",""]
[null,null,null,null,null,"",""]
[null,null,null,null,null,"",""]
[null,null,null,null,null,"",""]
[null,null,null,null,null,"",""]
[null,null,null,null,null,"",""]
[null,null,null,null,null,"",""]
[null,null,null,null,null,"",""]
[null,null,null,null,null,"",""]
[null,null,null,null,null,"",""]
[null,null,null,null,null,"",""]
[null,null,null,null,null,"",""]
[null,null,null,null,null,"",""]
[null,null,null,null,null,"",""]
[null,null,null,null,null,"",""]
[null,null,null,null,null,"",""]
[null,null,null,null,null,"",""]
[null,null,null,null,null,{"$f":"IF(D2582<>\"\",D2582*E2582,\"\")","v":""},{"$f":"IF(F2582<>\"\",F2582/9,\"\")","v":""}]
[null,null,null,null,null,"",""]
[null,null,null,null,null,"",""]
[null,null,null,null,null,"",""]
[null,null,null,null,null,"",""]
[null,null,null,null,null,"",""]
[null,null,null,null,null,"",""]
[null,null,null,null,null,"",""]
[null,null,null,null,null,"",""]
[null,null,null,null,null,"",""]
[null,null,null,null,null,"",""]
[null,null,null,null,null,"",""]
[null,null,null,null,null,"",""]
[null,null,null,null,null,"",""]
[null,null,null,null,null,"",""]
[null,null,null,null,null,"",""]
[null,null,null,null,null,"",""]
[null,null,null,null,null,"",""]
[null,null,null,null,null,"",""]
[null,null,null,null,null,"",""]
[null,null,null,null,null,"",""]
[null,null,null,null,null,"",""]
[null,null,null,null,null,"",""]
[null,null,null,null,null,"",""]
[null,null,null,null,null,"",""]
[null,null,null,null,null,"",""]
[null,null,null,null,null,"",""]
[null,null,null,null,null,"",""]
[null,null,null,null,null,"",""]
[null,null,null,null,null,"",""]
[null,null,null,null,null,"",""]
[null,null,null,null,null,"",""]
[null,null,null,null,null,"",""]
[null,null,null,null,null,"",""]
[null,null,null,null,null,"",""]
[null,null,null,null,null,"",""]
[null,null,null,null,null,"",""]
[null,null,null,null,null,"",""]
[null,null,null,null,null,"",""]
[null,null,null,null,null,"",""]
[null,null,null,null,null,"",""]
[null,null,null,null,null,"",""]
[null,null,null,null,null,"",""]
[null,null,null,null,null,"",""]
[null,null,null,null,null,"",""]
[null,null,null,null,null,"",""]
[null,null,null,null,null,"",""]
[null,null,null,null,null,"",""]
[null,null,null,null,null,"",""]
[null,null,null,null,null,"",""]
[null,null,null,null,null,"",""]
[null,null,null,null,null,"",""]
[null,null,null,null,null,"",""]
[null,null,null,null,null,"",""]
[null,null,null,null,null,"",""]
[null,null,null,null,null,"",""]
[null,null,null,null,null,"",""]
[null,null,null,null,null,"",""]
[null,null,null,null,null,"",""]
[null,null,null,null,null,"",""]
[null,null,null,null,null,"",""]
[null,null,null,null,null,"",""]
[null,null,null,null,null,"",""]
[null,null,null,null,null,"",""]
[null,null,null,null,null,{"$f":"IF(D2646<>\"\",D2646*E2646,\"\")","v":""},{"$f":"IF(F2646<>\"\",F2646/9,\"\")","v":""}]
[null,null,null,null,null,"",""]
[null,null,null,null,null,"",""]
[null,null,null,null,null,"",""]
[null,null,null,null,null,"",""]
[null,null,null,null,null,"",""]
[null,null,null,null,null,"",""]
[null,null,null,null,null,"",""]
[null,null,null,null,null,"",""]
[null,null,null,null,null,"",""]
[null,null,null,null,null,"",""]
[null,null,null,null,null,"",""]
[null,null,null,null,null,"",""]
[null,null,null,null,null,"",""]
[null,null,null,null,null,"",""]
[null,null,null,null,null,"",""]
[null,null,null,null,null,"",""]
[null,null,null,null,null,"",""]
[null,null,null,null,null,"",""]
[null,null,null,null,null,"",""]
[null,null,null,null,null,"",""]
[null,null,null,null,null,"",""]
[null,null,null,null,null,"",""]
[null,null,null,null,null,"",""]
[null,null,null,null,null,"",""]
[null,null,null,null,null,"",""]
[null,null,null,null,null,"",""]
[null,null,null,null,null,"",""]
[null,null,null,null,null,"",""]
[null,null,null,null,null,"",""]
[null,null,null,null,null,"",""]
[null,null,null,null,null,"",""]
[null,null,null,null,null,"",""]
[null,null,null,null,null,"",""]
[null,null,null,null,null,"",""]
[null,null,null,null,null,"",""]
[null,null,null,null,null,"",""]
[null,null,null,null,null,"",""]
[null,null,null,null,null,"",""]
[null,null,null,null,null,"",""]
[null,null,null,null,null,"",""]
[null,null,null,null,null,"",""]
[null,null,null,null,null,"",""]
[null,null,null,null,null,"",""]
[null,null,null,null,null,"",""]
[null,null,null,null,null,"",""]
[null,null,null,null,null,"",""]
[null,null,null,null,null,"",""]
[null,null,null,null,null,"",""]
[null,null,null,null,null,"",""]
[null,null,null,null,null,"",""]
[null,null,null,null,null,"",""]
[null,null,null,null,null,"",""]
[null,null,null,null,null,"",""]
[null,null,null,null,null,"",""]
[null,null,null,null,null,"",""]
[null,null,null,null,null,"",""]
[null,null,null,null,null,"",""]
[null,null,null,null,null,"",""]
[null,null,null,null,null,"",""]
[null,null,null,null,null,"",""]
[null,null,null,null,null,"",""]
[null,null,null,null,null,"",""]
[null,null,null,null,null,"",""]
[null,null,null,null,null,{"$f":"IF(D2710<>\"\",D2710*E2710,\"\")","v":""},{"$f":"IF(F2710<>\"\",F2710/9,\"\")","v":""}]
[null,null,null,null,null,"",""]
[null,null,null,null,null,"",""]
[null,null,null,null,null,"",""]
[null,null,null,null,null,"",""]
[null,null,null,null,null,"",""]
[null,null,null,null,null,"",""]
[null,null,null,null,null,"",""]
[null,null,null,null,null,"",""]
[null,null,null,null,null,"",""]
[null,null,null,null,null,"",""]
[null,null,null,null,null,"",""]
[null,null,null,null,null,"",""]
[null,null,null,null,null,"",""]
[null,null,null,null,null,"",""]
[null,null,null,null,null,"",""]
[null,null,null,null,null,"",""]
[null,null,null,null,null,"",""]
[null,null,null,null,null,"",""]
[null,null,null,null,null,"",""]
[null,null,null,null,null,"",""]
[null,null,null,null,null,"",""]
[null,null,null,null,null,"",""]
[null,null,null,null,null,"",""]
[null,null,null,null,null,"",""]
[null,null,null,null,null,"",""]
[null,null,null,null,null,"",""]
[null,null,null,null,null,"",""]
[null,null,null,null,null,"",""]
[null,null,null,null,null,"",""]
[null,null,null,null,null,"",""]
[null,null,null,null,null,"",""]
[null,null,null,null,null,"",""]
[null,null,null,null,null,"",""]
[null,null,null,null,null,"",""]
[null,null,null,null,null,"",""]
[null,null,null,null,null,"",""]
[null,null,null,null,null,"",""]
[null,null,null,null,null,"",""]
[null,null,null,null,null,"",""]
[null,null,null,null,null,"",""]
[null,null,null,null,null,"",""]
[null,null,null,null,null,"",""]
[null,null,null,null,null,"",""]
[null,null,null,null,null,"",""]
[null,null,null,null,null,"",""]
[null,null,null,null,null,"",""]
[null,null,null,null,null,"",""]
[null,null,null,null,null,"",""]
[null,null,null,null,null,"",""]
[null,null,null,null,null,"",""]
[null,null,null,null,null,"",""]
[null,null,null,null,null,"",""]
[null,null,null,null,null,"",""]
[null,null,null,null,null,"",""]
[null,null,null,null,null,"",""]
[null,null,null,null,null,"",""]
[null,null,null,null,null,"",""]
[null,null,null,null,null,"",""]
[null,null,null,null,null,"",""]
[null,null,null,null,null,"",""]
[null,null,null,null,null,"",""]
[null,null,null,null,null,"",""]
[null,null,null,null,null,"",""]
[null,null,null,null,null,{"$f":"IF(D2774<>\"\",D2774*E2774,\"\")","v":""},{"$f":"IF(F2774<>\"\",F2774/9,\"\")","v":""}]
[null,null,null,null,null,"",""]
[null,null,null,null,null,"",""]
[null,null,null,null,null,"",""]
[null,null,null,null,null,"",""]
[null,null,null,null,null,"",""]
[null,null,null,null,null,"",""]
[null,null,null,null,null,"",""]
[null,null,null,null,null,"",""]
[null,null,null,null,null,"",""]
[null,null,null,null,null,"",""]
[null,null,null,null,null,"",""]
[null,null,null,null,null,"",""]
[null,null,null,null,null,"",""]
[null,null,null,null,null,"",""]
[null,null,null,null,null,"",""]
[null,null,null,null,null,"",""]
[null,null,null,null,null,"",""]
[null,null,null,null,null,"",""]
[null,null,null,null,null,"",""]
[null,null,null,null,null,"",""]
[null,null,null,null,null,"",""]
[null,null,null,null,null,"",""]
[null,null,null,null,null,"",""]
[null,null,null,null,null,"",""]
[null,null,null,null,null,"",""]
[null,null,null,null,null,"",""]
[null,null,null,null,null,"",""]
[null,null,null,null,null,"",""]
[null,null,null,null,null,"",""]
[null,null,null,null,null,"",""]
[null,null,null,null,null,"",""]
[null,null,null,null,null,"",""]
[null,null,null,null,null,"",""]
[null,null,null,null,null,"",""]
[null,null,null,null,null,"",""]
[null,null,null,null,null,"",""]
[null,null,null,null,null,"",""]
[null,null,null,null,null,"",""]
[null,null,null,null,null,"",""]
[null,null,null,null,null,"",""]
[null,null,null,null,null,"",""]
[null,null,null,null,null,"",""]
[null,null,null,null,null,"",""]
[null,null,null,null,null,"",""]
[null,null,null,null,null,"",""]
[null,null,null,null,null,"",""]
[null,null,null,null,null,"",""]
[null,null,null,null,null,"",""]
[null,null,null,null,null,"",""]
[null,null,null,null,null,"",""]
[null,null,null,null,null,"",""]
[null,null,null,null,null,"",""]
[null,null,null,null,null,"",""]
[null,null,null,null,null,"",""]
[null,null,null,null,null,"",""]
[null,null,null,null,null,"",""]
[null,null,null,null,null,"",""]
[null,null,null,null,null,"",""]
[null,null,null,null,null,"",""]
[null,null,null,null,null,"",""]
[null,null,null,null,null,"",""]
[null,null,null,null,null,"",""]
[null,null,null,null,null,"",""]
[null,null,null,null,null,{"$f":"IF(D2838<>\"\",D2838*E2838,\"\")","v":""},{"$f":"IF(F2838<>\"\",F2838/9,\"\")","v":""}]
[null,null,null,null,null,"",""]
[null,null,null,null,null,"",""]
[null,null,null,null,null,"",""]
[null,null,null,null,null,"",""]
[null,null,null,null,null,"",""]
[null,null,null,null,null,"",""]
[null,null,null,null,null,"",""]
[null,null,null,null,null,"",""]
[null,null,null,null,null,"",""]
[null,null,null,null,null,"",""]
[null,null,null,null,null,"",""]
[null,null,null,null,null,"",""]
[null,null,null,null,null,"",""]
[null,null,null,null,null,"",""]
[null,null,null,null,null,"",""]
[null,null,null,null,null,"",""]
[null,null,null,null,null,"",""]
[null,null,null,null,null,"",""]
[null,null,null,null,null,"",""]
[null,null,null,null,null,"",""]
[null,null,null,null,null,"",""]
[null,null,null,null,null,"",""]
[null,null,null,null,null,"",""]
[null,null,null,null,null,"",""]
[null,null,null,null,null,"",""]
[null,null,null,null,null,"",""]
[null,null,null,null,null,"",""]
[null,null,null,null,null,"",""]
[null,null,null,null,null,"",""]
[null,null,null,null,null,"",""]
[null,null,null,null,null,"",""]
[null,null,null,null,null,"",""]
[null,null,null,null,null,"",""]
[null,null,null,null,null,"",""]
[null,null,null,null,null,"",""]
[null,null,null,null,null,"",""]
[null,null,null,null,null,"",""]
[null,null,null,null,null,"",""]
[null,null,null,null,null,"",""]
[null,null,null,null,null,"",""]
[null,null,null,null,null,"",""]
[null,null,null,null,null,"",""]
[null,null,null,null,null,"",""]
[null,null,null,null,null,"",""]
[null,null,null,null,null,"",""]
[null,null,null,null,null,"",""]
[null,null,null,null,null,"",""]
[null,null,null,null,null,"",""]
[null,null,null,null,null,"",""]
[null,null,null,null,null,"",""]
[null,null,null,null,null,"",""]
[null,null,null,null,null,"",""]
[null,null,null,null,null,"",""]
[null,null,null,null,null,"",""]
[null,null,null,null,null,"",""]
[null,null,null,null,null,"",""]
[null,null,null,null,null,"",""]
[null,null,null,null,null,"",""]
[null,null,null,null,null,"",""]
[null,null,null,null,null,"",""]
[null,null,null,null,null,"",""]
[null,null,null,null,null,"",""]
[null,null,null,null,null,"",""]
[null,null,null,null,null,{"$f":"IF(D2902<>\"\",D2902*E2902,\"\")","v":""},{"$f":"IF(F2902<>\"\",F2902/9,\"\")","v":""}]
[null,null,null,null,null,"",""]
[null,null,null,null,null,"",""]
[null,null,null,null,null,"",""]
[null,null,null,null,null,"",""]
[null,null,null,null,null,"",""]
[null,null,null,null,null,"",""]
[null,null,null,null,null,"",""]
[null,null,null,null,null,"",""]
[null,null,null,null,null,"",""]
[null,null,null,null,null,"",""]
[null,null,null,null,null,"",""]
[null,null,null,null,null,"",""]
[null,null,null,null,null,"",""]
[null,null,null,null,null,"",""]
[null,null,null,null,null,"",""]
[null,null,null,null,null,"",""]
[null,null,null,null,null,"",""]
[null,null,null,null,null,"",""]
[null,null,null,null,null,"",""]
[null,null,null,null,null,"",""]
[null,null,null,null,null,"",""]
[null,null,null,null,null,"",""]
[null,null,null,null,null,"",""]
[null,null,null,null,null,"",""]
[null,null,null,null,null,"",""]
[null,null,null,null,null,"",""]
[null,null,null,null,null,"",""]
[null,null,null,null,null,"",""]
[null,null,null,null,null,"",""]
[null,null,null,null,null,"",""]
[null,null,null,null,null,"",""]
[null,null,null,null,null,"",""]
[null,null,null,null,null,"",""]
[null,null,null,null,null,"",""]
[null,null,null,null,null,"",""]
[null,null,null,null,null,"",""]
[null,null,null,null,null,"",""]
[null,null,null,null,null,"",""]
[null,null,null,null,null,"",""]
[null,null,null,null,null,"",""]
[null,null,null,null,null,"",""]
[null,null,null,null,null,"",""]
[null,null,null,null,null,"",""]
[null,null,null,null,null,"",""]
[null,null,null,null,null,"",""]
[null,null,null,null,null,"",""]
[null,null,null,null,null,"",""]
[null,null,null,null,null,"",""]
[null,null,null,null,null,"",""]
[null,null,null,null,null,"",""]
[null,null,null,null,null,"",""]
[null,null,null,null,null,"",""]
[null,null,null,null,null,"",""]
[null,null,null,null,null,"",""]
[null,null,null,null,null,"",""]
[null,null,null,null,null,"",""]
[null,null,null,null,null,"",""]
[null,null,null,null,null,"",""]
[null,null,null,null,null,"",""]
[null,null,null,null,null,"",""]
[null,null,null,null,null,"",""]
[null,null,null,null,null,"",""]
[null,null,null,null,null,"",""]
[null,null,null,null,null,{"$f":"IF(D2966<>\"\",D2966*E2966,\"\")","v":""},{"$f":"IF(F2966<>\"\",F2966/9,\"\")","v":""}]
[null,null,null,null,null,"",""]
[null,null,null,null,null,"",""]
[null,null,null,null,null,"",""]
[null,null,null,null,null,"",""]
[null,null,null,null,null,"",""]
[null,null,null,null,null,"",""]
[null,null,null,null,null,"",""]
[null,null,null,null,null,"",""]
[null,null,null,null,null,"",""]
[null,null,null,null,null,"",""]
[null,null,null,null,null,"",""]
[null,null,null,null,null,"",""]
[null,null,null,null,null,"",""]
[null,null,null,null,null,"",""]
[null,null,null,null,null,"",""]
[null,null,null,null,null,"",""]
[null,null,null,null,null,"",""]
[null,null,null,null,null,"",""]
[null,null,null,null,null,"",""]
[null,null,null,null,null,"",""]
[null,null,null,null,null,"",""]
[null,null,null,null,null,"",""]
[null,null,null,null,null,"",""]
[null,null,null,null,null,"",""]
[null,null,null,null,null,"",""]
[null,null,null,null,null,"",""]
[null,null,null,null,null,"",""]
[null,null,null,null,null,"",""]
[null,null,null,null,null,"",""]
[null,null,null,null,null,"",""]
[null,null,null,null,null,"",""]
[null,null,null,null,null,"",""]
[null,null,null,null,null,"",""]
[null,null,null,null,null,"",""]
[null,null,null,null,null,"",""]
[null,null,null,null,null,"",""]
[null,null,null,null,null,"",""]
[null,null,null,null,null,"",""]
[null,null,null,null,null,"",""]
[null,null,null,null,null,"",""]
[null,null,null,null,null,"",""]
[null,null,null,null,null,"",""]
[null,null,null,null,null,"",""]
[null,null,null,null,null,"",""]
[null,null,null,null,null,"",""]
[null,null,null,null,null,"",""]
[null,null,null,null,null,"",""]
[null,null,null,null,null,"",""]
[null,null,null,null,null,"",""]
[null,null,null,null,null,"",""]
[null,null,null,null,null,"",""]
[null,null,null,null,null,"",""]
[null,null,null,null,null,"",""]
[null,null,null,null,null,"",""]
[null,null,null,null,null,"",""]
[null,null,null,null,null,"",""]
[null,null,null,null,null,"",""]
[null,null,null,null,null,"",""]
[null,null,null,null,null,"",""]
[null,null,null,null,null,"",""]
[null,null,null,null,null,"",""]
[null,null,null,null,null,"",""]
[null,null,null,null,null,"",""]
[null,null,null,null,null,{"$f":"IF(D3030<>\"\",D3030*E3030,\"\")","v":""},{"$f":"IF(F3030<>\"\",F3030/9,\"\")","v":""}]
[null,null,null,null,null,"",""]
[null,null,null,null,null,"",""]
[null,null,null,null,null,"",""]
[null,null,null,null,null,"",""]
[null,null,null,null,null,"",""]
[null,null,null,null,null,"",""]
[null,null,null,null,null,"",""]
[null,null,null,null,null,"",""]
[null,null,null,null,null,"",""]
[null,null,null,null,null,"",""]
[null,null,null,null,null,"",""]
[null,null,null,null,null,"",""]
[null,null,null,null,null,"",""]
[null,null,null,null,null,"",""]
[null,null,null,null,null,"",""]
[null,null,null,null,null,"",""]
[null,null,null,null,null,"",""]
[null,null,null,null,null,"",""]
[null,null,null,null,null,"",""]
[null,null,null,null,null,"",""]
[null,null,null,null,null,"",""]
[null,null,null,null,null,"",""]
[null,null,null,null,null,"",""]
[null,null,null,null,null,"",""]
[null,null,null,null,null,"",""]
[null,null,null,null,null,"",""]
[null,null,null,null,null,"",""]
[null,null,null,null,null,"",""]
[null,null,null,null,null,"",""]
[null,null,null,null,null,"",""]
[null,null,null,null,null,"",""]
[null,null,null,null,null,"",""]
[null,null,null,null,null,"",""]
[null,null,null,null,null,"",""]
[null,null,null,null,null,"",""]
[null,null,null,null,null,"",""]
[null,null,null,null,null,"",""]
[null,null,null,null,null,"",""]
[null,null,null,null,null,"",""]
[null,null,null,null,null,"",""]
[null,null,null,null,null,"",""]
[null,null,null,null,null,"",""]
[null,null,null,null,null,"",""]
[null,null,null,null,null,"",""]
[null,null,null,null,null,"",""]
[null,null,null,null,null,"",""]
[null,null,null,null,null,"",""]
[null,null,null,null,null,"",""]
[null,null,null,null,null,"",""]
[null,null,null,null,null,"",""]
[null,null,null,null,null,"",""]
[null,null,null,null,null,"",""]
[null,null,null,null,null,"",""]
[null,null,null,null,null,"",""]
[null,null,null,null,null,"",""]
[null,null,null,null,null,"",""]
[null,null,null,null,null,"",""]
[null,null,null,null,null,"",""]
[null,null,null,null,null,"",""]
[null,null,null,null,null,"",""]
[null,null,null,null,null,"",""]
[null,null,null,null,null,"",""]
[null,null,null,null,null,"",""]
[null,null,null,null,null,{"$f":"IF(D3094<>\"\",D3094*E3094,\"\")","v":""},{"$f":"IF(F3094<>\"\",F3094/9,\"\")","v":""}]
[null,null,null,null,null,"",""]
[null,null,null,null,null,"",""]
[null,null,null,null,null,"",""]
[null,null,null,null,null,"",""]
[null,null,null,null,null,"",""]
[null,null,null,null,null,"",""]
[null,null,null,null,null,"",""]
[null,null,null,null,null,"",""]
[null,null,null,null,null,"",""]
[null,null,null,null,null,"",""]
[null,null,null,null,null,"",""]
[null,null,null,null,null,"",""]
[null,null,null,null,null,"",""]
[null,null,null,null,null,"",""]
[null,null,null,null,null,"",""]
[null,null,null,null,null,"",""]
[null,null,null,null,null,"",""]
[null,null,null,null,null,"",""]
[null,null,null,null,null,"",""]
[null,null,null,null,null,"",""]
[null,null,null,null,null,"",""]
[null,null,null,null,null,"",""]
[null,null,null,null,null,"",""]
[null,null,null,null,null,"",""]
[null,null,null,null,null,"",""]
[null,null,null,null,null,"",""]
[null,null,null,null,null,"",""]
[null,null,null,null,null,"",""]
[null,null,null,null,null,"",""]
[null,null,null,null,null,"",""]
[null,null,null,null,null,"",""]
[null,null,null,null,null,"",""]
[null,null,null,null,null,"",""]
[null,null,null,null,null,"",""]
[null,null,null,null,null,"",""]
[null,null,null,null,null,"",""]
[null,null,null,null,null,"",""]
[null,null,null,null,null,"",""]
[null,null,null,null,null,"",""]
[null,null,null,null,null,"",""]
[null,null,null,null,null,"",""]
[null,null,null,null,null,"",""]
[null,null,null,null,null,"",""]
[null,null,null,null,null,"",""]
[null,null,null,null,null,"",""]
[null,null,null,null,null,"",""]
[null,null,null,null,null,"",""]
[null,null,null,null,null,"",""]
[null,null,null,null,null,"",""]
[null,null,null,null,null,"",""]
[null,null,null,null,null,"",""]
[null,null,null,null,null,"",""]
[null,null,null,null,null,"",""]
[null,null,null,null,null,"",""]
[null,null,null,null,null,"",""]
[null,null,null,null,null,"",""]
[null,null,null,null,null,"",""]
[null,null,null,null,null,"",""]
[null,null,null,null,null,"",""]
[null,null,null,null,null,"",""]
[null,null,null,null,null,"",""]
[null,null,null,null,null,"",""]
[null,null,null,null,null,"",""]
[null,null,null,null,null,{"$f":"IF(D3158<>\"\",D3158*E3158,\"\")","v":""},{"$f":"IF(F3158<>\"\",F3158/9,\"\")","v":""}]
[null,null,null,null,null,"",""]
[null,null,null,null,null,"",""]
[null,null,null,null,null,"",""]
[null,null,null,null,null,"",""]
[null,null,null,null,null,"",""]
[null,null,null,null,null,"",""]
[null,null,null,null,null,"",""]
[null,null,null,null,null,"",""]
[null,null,null,null,null,"",""]
[null,null,null,null,null,"",""]
[null,null,null,null,null,"",""]
[null,null,null,null,null,"",""]
[null,null,null,null,null,"",""]
[null,null,null,null,null,"",""]
[null,null,null,null,null,"",""]
[null,null,null,null,null,"",""]
[null,null,null,null,null,"",""]
[null,null,null,null,null,"",""]
[null,null,null,null,null,"",""]
[null,null,null,null,null,"",""]
[null,null,null,null,null,"",""]
[null,null,null,null,null,"",""]
[null,null,null,null,null,"",""]
[null,null,null,null,null,"",""]
[null,null,null,null,null,"",""]
[null,null,null,null,null,"",""]
[null,null,null,null,null,"",""]
[null,null,null,null,null,"",""]
[null,null,null,null,null,"",""]
[null,null,null,null,null,"",""]
[null,null,null,null,null,"",""]
[null,null,null,null,null,"",""]
[null,null,null,null,null,"",""]
[null,null,null,null,null,"",""]
[null,null,null,null,null,"",""]
[null,null,null,null,null,"",""]
[null,null,null,null,null,"",""]
[null,null,null,null,null,"",""]
[null,null,null,null,null,"",""]
[null,null,null,null,null,"",""]
[null,null,null,null,null,"",""]
[null,null,null,null,null,"",""]
[null,null,null,null,null,"",""]
[null,null,null,null,null,"",""]
[null,null,null,null,null,"",""]
[null,null,null,null,null,"",""]
[null,null,null,null,null,"",""]
[null,null,null,null,null,"",""]
[null,null,null,null,null,"",""]
[null,null,null,null,null,"",""]
[null,null,null,null,null,"",""]
[null,null,null,null,null,"",""]
[null,null,null,null,null,"",""]
[null,null,null,null,null,"",""]
[null,null,null,null,null,"",""]
[null,null,null,null,null,"",""]
[null,null,null,null,null,"",""]
[null,null,null,null,null,"",""]
[null,null,null,null,null,"",""]
[null,null,null,null,null,"",""]
[null,null,null,null,null,"",""]
[null,null,null,null,null,"",""]
[null,null,null,null,null,"",""]
[null,null,null,null,null,{"$f":"IF(D3222<>\"\",D3222*E3222,\"\")","v":""},{"$f":"IF(F3222<>\"\",F3222/9,\"\")","v":""}]
[null,null,null,null,null,"",""]
[null,null,null,null,null,"",""]
[null,null,null,null,null,"",""]
[null,null,null,null,null,"",""]
[null,null,null,null,null,"",""]
[null,null,null,null,null,"",""]
[null,null,null,null,null,"",""]
[null,null,null,null,null,"",""]
[null,null,null,null,null,"",""]
[null,null,null,null,null,"",""]
[null,null,null,null,null,"",""]
[null,null,null,null,null,"",""]
[null,null,null,null,null,"",""]
[null,null,null,null,null,"",""]
[null,null,null,null,null,"",""]
[null,null,null,null,null,"",""]
[null,null,null,null,null,"",""]
[null,null,null,null,null,"",""]
[null,null,null,null,null,"",""]
[null,null,null,null,null,"",""]
[null,null,null,null,null,"",""]
[null,null,null,null,null,"",""]
[null,null,null,null,null,"",""]
[null,null,null,null,null,"",""]
[null,null,null,null,null,"",""]
[null,null,null,null,null,"",""]
[null,null,null,null,null,"",""]
[null,null,null,null,null,"",""]
[null,null,null,null,null,"",""]
[null,null,null,null,null,"",""]
[null,null,null,null,null,"",""]
[null,null,null,null,null,"",""]
[null,null,null,null,null,"",""]
[null,null,null,null,null,"",""]
[null,null,null,null,null,"",""]
[null,null,null,null,null,"",""]
[null,null,null,null,null,"",""]
[null,null,null,null,null,"",""]
[null,null,null,null,null,"",""]
[null,null,null,null,null,"",""]
[null,null,null,null,null,"",""]
[null,null,null,null,null,"",""]
[null,null,null,null,null,"",""]
[null,null,null,null,null,"",""]
[null,null,null,null,null,"",""]
[null,null,null,null,null,"",""]
[null,null,null,null,null,"",""]
[null,null,null,null,null,"",""]
[null,null,null,null,null,"",""]
[null,null,null,null,null,"",""]
[null,null,null,null,null,"",""]
[null,null,null,null,null,"",""]
[null,null,null,null,null,"",""]
[null,null,null,null,null,"",""]
[null,null,null,null,null,"",""]
[null,null,null,null,null,"",""]
[null,null,null,null,null,"",""]
[null,null,null,null,null,"",""]
[null,null,null,null,null,"",""]
[null,null,null,null,null,"",""]
[null,null,null,null,null,"",""]
[null,null,null,null,null,"",""]
[null,null,null,null,null,"",""]
[null,null,null,null,null,{"$f":"IF(D3286<>\"\",D3286*E3286,\"\")","v":""},{"$f":"IF(F3286<>\"\",F3286/9,\"\")","v":""}]
[null,null,null,null,null,"",""]
[null,null,null,null,null,"",""]
[null,null,null,null,null,"",""]
[null,null,null,null,null,"",""]
[null,null,null,null,null,"",""]
[null,null,null,null,null,"",""]
[null,null,null,null,null,"",""]
[null,null,null,null,null,"",""]
[null,null,null,null,null,"",""]
[null,null,null,null,null,"",""]
[null,null,null,null,null,"",""]
[null,null,null,null,null,"",""]
[null,null,null,null,null,"",""]
[null,null,null,null,null,"",""]
[null,null,null,null,null,"",""]
[null,null,null,null,null,"",""]
[null,null,null,null,null,"",""]
[null,null,null,null,null,"",""]
[null,null,null,null,null,"",""]
[null,null,null,null,null,"",""]
[null,null,null,null,null,"",""]
[null,null,null,null,null,"",""]
[null,null,null,null,null,"",""]
[null,null,null,null,null,"",""]
[null,null,null,null,null,"",""]
[null,null,null,null,null,"",""]
[null,null,null,null,null,"",""]
[null,null,null,null,null,"",""]
[null,null,null,null,null,"",""]
[null,null,null,null,null,"",""]
[null,null,null,null,null,"",""]
[null,null,null,null,null,"",""]
[null,null,null,null,null,"",""]
[null,null,null,null,null,"",""]
[null,null,null,null,null,"",""]
[null,null,null,null,null,"",""]
[null,null,null,null,null,"",""]
[null,null,null,null,null,"",""]
[null,null,null,null,null,"",""]
[null,null,null,null,null,"",""]
[null,null,null,null,null,"",""]
[null,null,null,null,null,"",""]
[null,null,null,null,null,"",""]
[null,null,null,null,null,"",""]
[null,null,null,null,null,"",""]
[null,null,null,null,null,"",""]
[null,null,null,null,null,"",""]
[null,null,null,null,null,"",""]
[null,null,null,null,null,"",""]
[null,null,null,null,null,"",""]
[null,null,null,null,null,"",""]
[null,null,null,null,null,"",""]
[null,null,null,null,null,"",""]
[null,null,null,null,null,"",""]
[null,null,null,null,null,"",""]
[null,null,null,null,null,"",""]
[null,null,null,null,null,"",""]
[null,null,null,null,null,"",""]
[null,null,null,null,null,"",""]
[null,null,null,null,null,"",""]
[null,null,null,null,null,"",""]
[null,null,null,null,null,"",""]
[null,null,null,null,null,"",""]
[null,null,null,null,null,{"$f":"IF(D3350<>\"\",D3350*E3350,\"\")","v":""},{"$f":"IF(F3350<>\"\",F3350/9,\"\")","v":""}]
[null,null,null,null,null,"",""]
[null,null,null,null,null,"",""]
[null,null,null,null,null,"",""]
[null,null,null,null,null,"",""]
[null,null,null,null,null,"",""]
[null,null,null,null,null,"",""]
[null,null,null,null,null,"",""]
[null,null,null,null,null,"",""]
[null,null,null,null,null,"",""]
[null,null,null,null,null,"",""]
[null,null,null,null,null,"",""]
[null,null,null,null,null,"",""]
[null,null,null,null,null,"",""]
[null,null,null,null,null,"",""]
[null,null,null,null,null,"",""]
[null,null,null,null,null,"",""]
[null,null,null,null,null,"",""]
[null,null,null,null,null,"",""]
[null,null,null,null,null,"",""]
[null,null,null,null,null,"",""]
[null,null,null,null,null,"",""]
[null,null,null,null,null,"",""]
[null,null,null,null,null,"",""]
[null,null,null,null,null,"",""]
[null,null,null,null,null,"",""]
[null,null,null,null,null,"",""]
[null,null,null,null,null,"",""]
[null,null,null,null,null,"",""]
[null,null,null,null,null,"",""]
[null,null,null,null,null,"",""]
[null,null,null,null,null,"",""]
[null,null,null,null,null,"",""]
[null,null,null,null,null,"",""]
[null,null,null,null,null,"",""]
[null,null,null,null,null,"",""]
[null,null,null,null,null,"",""]
[null,null,null,null,null,"",""]
[null,null,null,null,null,"",""]
[null,null,null,null,null,"",""]
[null,null,null,null,null,"",""]
[null,null,null,null,null,"",""]
[null,null,null,null,null,"",""]
[null,null,null,null,null,"",""]
[null,null,null,null,null,"",""]
[null,null,null,null,null,"",""]
[null,null,null,null,null,"",""]
[null,null,null,null,null,"",""]
[null,null,null,null,null,"",""]
[null,null,null,null,null,"",""]
[null,null,null,null,null,"",""]
[null,null,null,null,null,"",""]
[null,null,null,null,null,"",""]
[null,null,null,null,null,"",""]
[null,null,null,null,null,"",""]
[null,null,null,null,null,"",""]
[null,null,null,null,null,"",""]
[null,null,null,null,null,"",""]
[null,null,null,null,null,"",""]
[null,null,null,null,null,"",""]
[null,null,null,null,null,"",""]
[null,null,null,null,null,"",""]
[null,null,null,null,null,"",""]
[null,null,null,null,null,"",""]
[null,null,null,null,null,{"$f":"IF(D3414<>\"\",D3414*E3414,\"\")","v":""},{"$f":"IF(F3414<>\"\",F3414/9,\"\")","v":""}]
[null,null,null,null,null,"",""]
[null,null,null,null,null,"",""]
[null,null,null,null,null,"",""]
[null,null,null,null,null,"",""]
[null,null,null,null,null,"",""]
[null,null,null,null,null,"",""]
[null,null,null,null,null,"",""]
[null,null,null,null,null,"",""]
[null,null,null,null,null,"",""]
[null,null,null,null,null,"",""]
[null,null,null,null,null,"",""]
[null,null,null,null,null,"",""]
[null,null,null,null,null,"",""]
[null,null,null,null,null,"",""]
[null,null,null,null,null,"",""]
[null,null,null,null,null,"",""]
[null,null,null,null,null,"",""]
[null,null,null,null,null,"",""]
[null,null,null,null,null,"",""]
[null,null,null,null,null,"",""]
[null,null,null,null,null,"",""]
[null,null,null,null,null,"",""]
[null,null,null,null,null,"",""]
[null,null,null,null,null,"",""]
[null,null,null,null,null,"",""]
[null,null,null,null,null,"",""]
[null,null,null,null,null,"",""]
[null,null,null,null,null,"",""]
[null,null,null,null,null,"",""]
[null,null,null,null,null,"",""]
[null,null,null,null,null,"",""]
[null,null,null,null,null,"",""]
[null,null,null,null,null,"",""]
[null,null,null,null,null,"",""]
[null,null,null,null,null,"",""]
[null,null,null,null,null,"",""]
[null,null,null,null,null,"",""]
[null,null,null,null,null,"",""]
[null,null,null,null,null,"",""]
[null,null,null,null,null,"",""]
[null,null,null,null,null,"",""]
[null,null,null,null,null,"",""]
[null,null,null,null,null,"",""]
[null,null,null,null,null,"",""]
[null,null,null,null,null,"",""]
[null,null,null,null,null,"",""]
[null,null,null,null,null,"",""]
[null,null,null,null,null,"",""]
[null,null,null,null,null,"",""]
[null,null,null,null,null,"",""]
[null,null,null,null,null,"",""]
[null,null,null,null,null,"",""]
[null,null,null,null,null,"",""]
[null,null,null,null,null,"",""]
[null,null,null,null,null,"",""]
[null,null,null,null,null,"",""]
[null,null,null,null,null,"",""]
[null,null,null,null,null,"",""]
[null,null,null,null,null,"",""]
[null,null,null,null,null,"",""]
[null,null,null,null,null,"",""]
[null,null,null,null,null,"",""]
[null,null,null,null,null,"",""]
[null,null,null,null,null,{"$f":"IF(D3478<>\"\",D3478*E3478,\"\")","v":""},{"$f":"IF(F3478<>\"\",F3478/9,\"\")","v":""}]
[null,null,null,null,null,"",""]
[null,null,null,null,null,"",""]
[null,null,null,null,null,"",""]
[null,null,null,null,null,"",""]
[null,null,null,null,null,"",""]
[null,null,null,null,null,"",""]
[null,null,null,null,null,"",""]
[null,null,null,null,null,"",""]
[null,null,null,null,null,"",""]
[null,null,null,null,null,"",""]
[null,null,null,null,null,"",""]
[null,null,null,null,null,"",""]
[null,null,null,null,null,"",""]
[null,null,null,null,null,"",""]
[null,null,null,null,null,"",""]
[null,null,null,null,null,"",""]
[null,null,null,null,null,"",""]
[null,null,null,null,null,"",""]
[null,null,null,null,null,"",""]
[null,null,null,null,null,"",""]
[null,null,null,null,null,"",""]
[null,null,null,null,null,"",""]
[null,null,null,null,null,"",""]
[null,null,null,null,null,"",""]
[null,null,null,null,null,"",""]
[null,null,null,null,null,"",""]
[null,null,null,null,null,"",""]
[null,null,null,null,null,"",""]
[null,null,null,null,null,"",""]
[null,null,null,null,null,"",""]
[null,null,null,null,null,"",""]
[null,null,null,null,null,"",""]
[null,null,null,null,null,"",""]
[null,null,null,null,null,"",""]
[null,null,null,null,null,"",""]
[null,null,null,null,null,"",""]
[null,null,null,null,null,"",""]
[null,null,null,null,null,"",""]
[null,null,null,null,null,"",""]
[null,null,null,null,null,"",""]
[null,null,null,null,null,"",""]
[null,null,null,null,null,"",""]
[null,null,null,null,null,"",""]
[null,null,null,null,null,"",""]
[null,null,null,null,null,"",""]
[null,null,null,null,null,"",""]
[null,null,null,null,null,"",""]
[null,null,null,null,null,"",""]
[null,null,null,null,null,"",""]
[null,null,null,null,null,"",""]
[null,null,null,null,null,"",""]
[null,null,null,null,null,"",""]
[null,null,null,null,null,"",""]
[null,null,null,null,null,"",""]
[null,null,null,null,null,"",""]
[null,null,null,null,null,"",""]
[null,null,null,null,null,"",""]
[null,null,null,null,null,"",""]
[null,null,null,null,null,"",""]
[null,null,null,null,null,"",""]
[null,null,null,null,null,"",""]
[null,null,null,null,null,"",""]
[null,null,null,null,null,"",""]
[null,null,null,null,null,{"$f":"IF(D3542<>\"\",D3542*E3542,\"\")","v":""},{"$f":"IF(F3542<>\"\",F3542/9,\"\")","v":""}]
[null,null,null,null,null,"",""]
[null,null,null,null,null,"",""]
[null,null,null,null,null,"",""]
[null,null,null,null,null,"",""]
[null,null,null,null,null,"",""]
[null,null,null,null,null,"",""]
[null,null,null,null,null,"",""]
[null,null,null,null,null,"",""]
[null,null,null,null,null,"",""]
[null,null,null,null,null,"",""]
[null,null,null,null,null,"",""]
[null,null,null,null,null,"",""]
[null,null,null,null,null,"",""]
[null,null,null,null,null,"",""]
[null,null,null,null,null,"",""]
[null,null,null,null,null,"",""]
[null,null,null,null,null,"",""]
[null,null,null,null,null,"",""]
[null,null,null,null,null,"",""]
[null,null,null,null,null,"",""]
[null,null,null,null,null,"",""]
[null,null,null,null,null,"",""]
[null,null,null,null,null,"",""]
[null,null,null,null,null,"",""]
[null,null,null,null,null,"",""]
[null,null,null,null,null,"",""]
[null,null,null,null,null,"",""]
[null,null,null,null,null,"",""]
[null,null,null,null,null,"",""]
[null,null,null,null,null,"",""]
[null,null,null,null,null,"",""]
[null,null,null,null,null,"",""]
[null,null,null,null,null,"",""]
[null,null,null,null,null,"",""]
[null,null,null,null,null,"",""]
[null,null,null,null,null,"",""]
[null,null,null,null,null,"",""]
[null,null,null,null,null,"",""]
[null,null,null,null,null,"",""]
[null,null,null,null,null,"",""]
[null,null,null,null,null,"",""]
[null,null,null,null,null,"",""]
[null,null,null,null,null,"",""]
[null,null,null,null,null,"",""]
[null,null,null,null,null,"",""]
[null,null,null,null,null,"",""]
[null,null,null,null,null,"",""]
[null,null,null,null,null,"",""]
[null,null,null,null,null,"",""]
[null,null,null,null,null,"",""]
[null,null,null,null,null,"",""]
[null,null,null,null,null,"",""]
[null,null,null,null,null,"",""]
[null,null,null,null,null,"",""]
[null,null,null,null,null,"",""]
[null,null,null,null,null,"",""]
[null,null,null,null,null,"",""]
[null,null,null,null,null,"",""]
[null,null,null,null,null,"",""]
[null,null,null,null,null,"",""]
[null,null,null,null,null,"",""]
[null,null,null,null,null,"",""]
[null,null,null,null,null,"",""]
[null,null,null,null,null,{"$f":"IF(D3606<>\"\",D3606*E3606,\"\")","v":""},{"$f":"IF(F3606<>\"\",F3606/9,\"\")","v":""}]
[null,null,null,null,null,"",""]
[null,null,null,null,null,"",""]
[null,null,null,null,null,"",""]
[null,null,null,null,null,"",""]
[null,null,null,null,null,"",""]
[null,null,null,null,null,"",""]
[null,null,null,null,null,"",""]
[null,null,null,null,null,"",""]
[null,null,null,null,null,"",""]
[null,null,null,null,null,"",""]
[null,null,null,null,null,"",""]
[null,null,null,null,null,"",""]
[null,null,null,null,null,"",""]
[null,null,null,null,null,"",""]
[null,null,null,null,null,"",""]
[null,null,null,null,null,"",""]
[null,null,null,null,null,"",""]
[null,null,null,null,null,"",""]
[null,null,null,null,null,"",""]
[null,null,null,null,null,"",""]
[null,null,null,null,null,"",""]
[null,null,null,null,null,"",""]
[null,null,null,null,null,"",""]
[null,null,null,null,null,"",""]
[null,null,null,null,null,"",""]
[null,null,null,null,null,"",""]
[null,null,null,null,null,"",""]
[null,null,null,null,null,"",""]
[null,null,null,null,null,"",""]
[null,null,null,null,null,"",""]
[null,null,null,null,null,"",""]
[null,null,null,null,null,"",""]
[null,null,null,null,null,"",""]
[null,null,null,null,null,"",""]
[null,null,null,null,null,"",""]
[null,null,null,null,null,"",""]
[null,null,null,null,null,"",""]
[null,null,null,null,null,"",""]
[null,null,null,null,null,"",""]
[null,null,null,null,null,"",""]
[null,null,null,null,null,"",""]
[null,null,null,null,null,"",""]
[null,null,null,null,null,"",""]
[null,null,null,null,null,"",""]
[null,null,null,null,null,"",""]
[null,null,null,null,null,"",""]
[null,null,null,null,null,"",""]
[null,null,null,null,null,"",""]
[null,null,null,null,null,"",""]
[null,null,null,null,null,"",""]
[null,null,null,null,null,"",""]
[null,null,null,null,null,"",""]
[null,null,null,null,null,"",""]
[null,null,null,null,null,"",""]
[null,null,null,null,null,"",""]
[null,null,null,null,null,"",""]
[null,null,null,null,null,"",""]
[null,null,null,null,null,"",""]
[null,null,null,null,null,"",""]
[null,null,null,null,null,"",""]
[null,null,null,null,null,"",""]
[null,null,null,null,null,"",""]
[null,null,null,null,null,"",""]
[null,null,null,null,null,{"$f":"IF(D3670<>\"\",D3670*E3670,\"\")","v":""},{"$f":"IF(F3670<>\"\",F3670/9,\"\")","v":""}]
[null,null,null,null,null,"",""]
[null,null,null,null,null,"",""]
[null,null,null,null,null,"",""]
[null,null,null,null,null,"",""]
[null,null,null,null,null,"",""]
[null,null,null,null,null,"",""]
[null,null,null,null,null,"",""]
[null,null,null,null,null,"",""]
[null,null,null,null,null,"",""]
[null,null,null,null,null,"",""]
[null,null,null,null,null,"",""]
[null,null,null,null,null,"",""]
[null,null,null,null,null,"",""]
[null,null,null,null,null,"",""]
[null,null,null,null,null,"",""]
[null,null,null,null,null,"",""]
[null,null,null,null,null,"",""]
[null,null,null,null,null,"",""]
[null,null,null,null,null,"",""]
[null,null,null,null,null,"",""]
[null,null,null,null,null,"",""]
[null,null,null,null,null,"",""]
[null,null,null,null,null,"",""]
[null,null,null,null,null,"",""]
[null,null,null,null,null,"",""]
[null,null,null,null,null,"",""]
[null,null,null,null,null,"",""]
[null,null,null,null,null,"",""]
[null,null,null,null,null,"",""]
[null,null,null,null,null,"",""]
[null,null,null,null,null,"",""]
[null,null,null,null,null,"",""]
[null,null,null,null,null,"",""]
[null,null,null,null,null,"",""]
[null,null,null,null,null,"",""]
[null,null,null,null,null,"",""]
[null,null,null,null,null,"",""]
[null,null,null,null,null,"",""]
[null,null,null,null,null,"",""]
[null,null,null,null,null,"",""]
[null,null,null,null,null,"",""]
[null,null,null,null,null,"",""]
[null,null,null,null,null,"",""]
[null,null,null,null,null,"",""]
[null,null,null,null,null,"",""]
[null,null,null,null,null,"",""]
[null,null,null,null,null,"",""]
[null,null,null,null,null,"",""]
[null,null,null,null,null,"",""]
[null,null,null,null,null,"",""]
[null,null,null,null,null,"",""]
[null,null,null,null,null,"",""]
[null,null,null,null,null,"",""]
[null,null,null,null,null,"",""]
[null,null,null,null,null,"",""]
[null,null,null,null,null,"",""]
[null,null,null,null,null,"",""]
[null,null,null,null,null,"",""]
[null,null,null,null,null,"",""]
[null,null,null,null,null,"",""]
[null,null,null,null,null,"",""]
[null,null,null,null,null,"",""]
[null,null,null,null,null,"",""]
[null,null,null,null,null,{"$f":"IF(D3734<>\"\",D3734*E3734,\"\")","v":""},{"$f":"IF(F3734<>\"\",F3734/9,\"\")","v":""}]
[null,null,null,null,null,"",""]
[null,null,null,null,null,"",""]
[null,null,null,null,null,"",""]
[null,null,null,null,null,"",""]
[null,null,null,null,null,"",""]
[null,null,null,null,null,"",""]
[null,null,null,null,null,"",""]
[null,null,null,null,null,"",""]
[null,null,null,null,null,"",""]
[null,null,null,null,null,"",""]
[null,null,null,null,null,"",""]
[null,null,null,null,null,"",""]
[null,null,null,null,null,"",""]
[null,null,null,null,null,"",""]
[null,null,null,null,null,"",""]
[null,null,null,null,null,"",""]
[null,null,null,null,null,"",""]
[null,null,null,null,null,"",""]
[null,null,null,null,null,"",""]
[null,null,null,null,null,"",""]
[null,null,null,null,null,"",""]
[null,null,null,null,null,"",""]
[null,null,null,null,null,"",""]
[null,null,null,null,null,"",""]
[null,null,null,null,null,"",""]
[null,null,null,null,null,"",""]
[null,null,null,null,null,"",""]
[null,null,null,null,null,"",""]
[null,null,null,null,null,"",""]
[null,null,null,null,null,"",""]
[null,null,null,null,null,"",""]
[null,null,null,null,null,"",""]
[null,null,null,null,null,"",""]
[null,null,null,null,null,"",""]
[null,null,null,null,null,"",""]
[null,null,null,null,null,"",""]
[null,null,null,null,null,"",""]
[null,null,null,null,null,"",""]
[null,null,null,null,null,"",""]
[null,null,null,null,null,"",""]
[null,null,null,null,null,"",""]
[null,null,null,null,null,"",""]
[null,null,null,null,null,"",""]
[null,null,null,null,null,"",""]
[null,null,null,null,null,"",""]
[null,null,null,null,null,"",""]
[null,null,null,null,null,"",""]
[null,null,null,null,null,"",""]
[null,null,null,null,null,"",""]
[null,null,null,null,null,"",""]
[null,null,null,null,null,"",""]
[null,null,null,null,null,"",""]
[null,null,null,null,null,"",""]
[null,null,null,null,null,"",""]
[null,null,null,null,null,"",""]
[null,null,null,null,null,"",""]
[null,null,null,null,null,"",""]
[null,null,null,null,null,"",""]
[null,null,null,null,null,"",""]
[null,null,null,null,null,"",""]
[null,null,null,null,null,"",""]
[null,null,null,null,null,"",""]
[null,null,null,null,null,"",""]
[null,null,null,null,null,{"$f":"IF(D3798<>\"\",D3798*E3798,\"\")","v":""},{"$f":"IF(F3798<>\"\",F3798/9,\"\")","v":""}]
[null,null,null,null,null,"",""]
[null,null,null,null,null,"",""]
[null,null,null,null,null,"",""]
[null,null,null,null,null,"",""]
[null,null,null,null,null,"",""]
[null,null,null,null,null,"",""]
[null,null,null,null,null,"",""]
[null,null,null,null,null,"",""]
[null,null,null,null,null,"",""]
[null,null,null,null,null,"",""]
[null,null,null,null,null,"",""]
[null,null,null,null,null,"",""]
[null,null,null,null,null,"",""]
[null,null,null,null,null,"",""]
[null,null,null,null,null,"",""]
[null,null,null,null,null,"",""]
[null,null,null,null,null,"",""]
[null,null,null,null,null,"",""]
[null,null,null,null,null,"",""]
[null,null,null,null,null,"",""]
[null,null,null,null,null,"",""]
[null,null,null,null,null,"",""]
[null,null,null,null,null,"",""]
[null,null,null,null,null,"",""]
[null,null,null,null,null,"",""]
[null,null,null,null,null,"",""]
[null,null,null,null,null,"",""]
[null,null,null,null,null,"",""]
[null,null,null,null,null,"",""]
[null,null,null,null,null,"",""]
[null,null,null,null,null,"",""]
[null,null,null,null,null,"",""]
[null,null,null,null,null,"",""]
[null,null,null,null,null,"",""]
[null,null,null,null,null,"",""]
[null,null,null,null,null,"",""]
[null,null,null,null,null,"",""]
[null,null,null,null,null,"",""]
[null,null,null,null,null,"",""]
[null,null,null,null,null,"",""]
[null,null,null,null,null,"",""]
[null,null,null,null,null,"",""]
[null,null,null,null,null,"",""]
[null,null,null,null,null,"",""]
[null,null,null,null,null,"",""]
[null,null,null,null,null,"",""]
[null,null,null,null,null,"",""]
[null,null,null,null,null,"",""]
[null,null,null,null,null,"",""]
[null,null,null,null,null,"",""]
[null,null,null,null,null,"",""]
[null,null,null,null,null,"",""]
[null,null,null,null,null,"",""]
[null,null,null,null,null,"",""]
[null,null,null,null,null,"",""]
[null,null,null,null,null,"",""]
[null,null,null,null,null,"",""]
[null,null,null,null,null,"",""]
[null,null,null,null,null,"",""]
[null,null,null,null,null,"",""]
[null,null,null,null,null,"",""]
[null,null,null,null,null,"",""]
[null,null,null,null,null,"",""]
[null,null,null,null,null,{"$f":"IF(D3862<>\"\",D3862*E3862,\"\")","v":""},{"$f":"IF(F3862<>\"\",F3862/9,\"\")","v":""}]
[null,null,null,null,null,"",""]
[null,null,null,null,null,"",""]
[null,null,null,null,null,"",""]
[null,null,null,null,null,"",""]
[null,null,null,null,null,"",""]
[null,null,null,null,null,"",""]
[null,null,null,null,null,"",""]
[null,null,null,null,null,"",""]
[null,null,null,null,null,"",""]
[null,null,null,null,null,"",""]
[null,null,null,null,null,"",""]
[null,null,null,null,null,"",""]
[null,null,null,null,null,"",""]
[null,null,null,null,null,"",""]
[null,null,null,null,null,"",""]
[null,null,null,null,null,"",""]
[null,null,null,null,null,"",""]
[null,null,null,null,null,"",""]
[null,null,null,null,null,"",""]
[null,null,null,null,null,"",""]
[null,null,null,null,null,"",""]
[null,null,null,null,null,"",""]
[null,null,null,null,null,"",""]
[null,null,null,null,null,"",""]
[null,null,null,null,null,"",""]
[null,null,null,null,null,"",""]
[null,null,null,null,null,"",""]
[null,null,null,null,null,"",""]
[null,null,null,null,null,"",""]
[null,null,null,null,null,"",""]
[null,null,null,null,null,"",""]
[null,null,null,null,null,"",""]
[null,null,null,null,null,"",""]
[null,null,null,null,null,"",""]
[null,null,null,null,null,"",""]
[null,null,null,null,null,"",""]
[null,null,null,null,null,"",""]
[null,null,null,null,null,"",""]
[null,null,null,null,null,"",""]
[null,null,null,null,null,"",""]
[null,null,null,null,null,"",""]
[null,null,null,null,null,"",""]
[null,null,null,null,null,"",""]
[null,null,null,null,null,"",""]
[null,null,null,null,null,"",""]
[null,null,null,null,null,"",""]
[null,null,null,null,null,"",""]
[null,null,null,null,null,"",""]
[null,null,null,null,null,"",""]
[null,null,null,null,null,"",""]
[null,null,null,null,null,"",""]
[null,null,null,null,null,"",""]
[null,null,null,null,null,"",""]
[null,null,null,null,null,"",""]
[null,null,null,null,null,"",""]
[null,null,null,null,null,"",""]
[null,null,null,null,null,"",""]
[null,null,null,null,null,"",""]
[null,null,null,null,null,"",""]
[null,null,null,null,null,"",""]
[null,null,null,null,null,"",""]
[null,null,null,null,null,"",""]
[null,null,null,null,null,"",""]
[null,null,null,null,null,{"$f":"IF(D3926<>\"\",D3926*E3926,\"\")","v":""},{"$f":"IF(F3926<>\"\",F3926/9,\"\")","v":""}]
[null,null,null,null,null,"",""]
[null,null,null,null,null,"",""]
[null,null,null,null,null,"",""]
[null,null,null,null,null,"",""]
[null,null,null,null,null,"",""]
[null,null,null,null,null,"",""]
[null,null,null,null,null,"",""]
[null,null,null,null,null,"",""]
[null,null,null,null,null,"",""]
[null,null,null,null,null,"",""]
[null,null,null,null,null,"",""]
[null,null,null,null,null,"",""]
[null,null,null,null,null,"",""]
[null,null,null,null,null,"",""]
[null,null,null,null,null,"",""]
[null,null,null,null,null,"",""]
[null,null,null,null,null,"",""]
[null,null,null,null,null,"",""]
[null,null,null,null,null,"",""]
[null,null,null,null,null,"",""]
[null,null,null,null,null,"",""]
[null,null,null,null,null,"",""]
[null,null,null,null,null,"",""]
[null,null,null,null,null,"",""]
[null,null,null,null,null,"",""]
[null,null,null,null,null,"",""]
[null,null,null,null,null,"",""]
[null,null,null,null,null,"",""]
[null,null,null,null,null,"",""]
[null,null,null,null,null,"",""]
[null,null,null,null,null,"",""]
[null,null,null,null,null,"",""]
[null,null,null,null,null,"",""]
[null,null,null,null,null,"",""]
[null,null,null,null,null,"",""]
[null,null,null,null,null,"",""]
[null,null,null,null,null,"",""]
[null,null,null,null,null,"",""]
[null,null,null,null,null,"",""]
[null,null,null,null,null,"",""]
[null,null,null,null,null,"",""]
[null,null,null,null,null,"",""]
[null,null,null,null,null,"",""]
[null,null,null,null,null,"",""]
[null,null,null,null,null,"",""]
[null,null,null,null,null,"",""]
[null,null,null,null,null,"",""]
[null,null,null,null,null,"",""]
[null,null,null,null,null,"",""]
[null,null,null,null,null,"",""]
[null,null,null,null,null,"",""]
[null,null,null,null,null,"",""]
[null,null,null,null,null,"",""]
[null,null,null,null,null,"",""]
[null,null,null,null,null,"",""]
[null,null,null,null,null,"",""]
[null,null,null,null,null,"",""]
[null,null,null,null,null,"",""]
[null,null,null,null,null,"",""]
[null,null,null,null,null,"",""]
[null,null,null,null,null,"",""]
[null,null,null,null,null,"",""]
[null,null,null,null,null,"",""]
[null,null,null,null,null,{"$f":"IF(D3990<>\"\",D3990*E3990,\"\")","v":""},{"$f":"IF(F3990<>\"\",F3990/9,\"\")","v":""}]
[null,null,null,null,null,"",""]
[null,null,null,null,null,"",""]
[null,null,null,null,null,"",""]
[null,null,null,null,null,"",""]
[null,null,null,null,null,"",""]
[null,null,null,null,null,"",""]
[null,null,null,null,null,"",""]
[null,null,null,null,null,"",""]
[null,null,null,null,null,"",""]
[null,null,null,null,null,"",""]
[null,null,null,null,null,"",""]
[null,null,null,null,null,"",""]
[null,null,null,null,null,"",""]
[null,null,null,null,null,"",""]
[null,null,null,null,null,"",""]
[null,null,null,null,null,"",""]
[null,null,null,null,null,"",""]
[null,null,null,null,null,"",""]
[null,null,null,null,null,"",""]
[null,null,null,null,null,"",""]
[null,null,null,null,null,"",""]
[null,null,null,null,null,"",""]
[null,null,null,null,null,"",""]
[null,null,null,null,null,"",""]
[null,null,null,null,null,"",""]
[null,null,null,null,null,"",""]
[null,null,null,null,null,"",""]
[null,null,null,null,null,"",""]
[null,null,null,null,null,"",""]
[null,null,null,null,null,"",""]
[null,null,null,null,null,"",""]
[null,null,null,null,null,"",""]
[null,null,null,null,null,"",""]
[null,null,null,null,null,"",""]
[null,null,null,null,null,"",""]
[null,null,null,null,null,"",""]
[null,null,null,null,null,"",""]
[null,null,null,null,null,"",""]
[null,null,null,null,null,"",""]
[null,null,null,null,null,"",""]
[null,null,null,null,null,"",""]
[null,null,null,null,null,"",""]
[null,null,null,null,null,"",""]
[null,null,null,null,null,"",""]
[null,null,null,null,null,"",""]
[null,null,null,null,null,"",""]
[null,null,null,null,null,"",""]
[null,null,null,null,null,"",""]
[null,null,null,null,null,"",""]
[null,null,null,null,null,"",""]
[null,null,null,null,null,"",""]
[null,null,null,null,null,"",""]
[null,null,null,null,null,"",""]
[null,null,null,null,null,"",""]
[null,null,null,null,null,"",""]
[null,null,null,null,null,"",""]
[null,null,null,null,null,"",""]
[null,null,null,null,null,"",""]
[null,null,null,null,null,"",""]
[null,null,null,null,null,"",""]
[null,null,null,null,null,"",""]
[null,null,null,null,null,"",""]
[null,null,null,null,null,"",""]
[null,null,null,null,null,{"$f":"IF(D4054<>\"\",D4054*E4054,\"\")","v":""},{"$f":"IF(F4054<>\"\",F4054/9,\"\")","v":""}]
[null,null,null,null,null,"",""]
[null,null,null,null,null,"",""]
[null,null,null,null,null,"",""]
[null,null,null,null,null,"",""]
[null,null,null,null,null,"",""]
[null,null,null,null,null,"",""]
[null,null,null,null,null,"",""]
[null,null,null,null,null,"",""]
[null,null,null,null,null,"",""]
[null,null,null,null,null,"",""]
[null,null,null,null,null,"",""]
[null,null,null,null,null,"",""]
[null,null,null,null,null,"",""]
[null,null,null,null,null,"",""]
[null,null,null,null,null,"",""]
[null,null,null,null,null,"",""]
[null,null,null,null,null,"",""]
[null,null,null,null,null,"",""]
[null,null,null,null,null,"",""]
[null,null,null,null,null,"",""]
[null,null,null,null,null,"",""]
[null,null,null,null,null,"",""]
[null,null,null,null,null,"",""]
[null,null,null,null,null,"",""]
[null,null,null,null,null,"",""]
[null,null,null,null,null,"",""]
[null,null,null,null,null,"",""]
[null,null,null,null,null,"",""]
[null,null,null,null,null,"",""]
[null,null,null,null,null,"",""]
[null,null,null,null,null,"",""]
[null,null,null,null,null,"",""]
[null,null,null,null,null,"",""]
[null,null,null,null,null,"",""]
[null,null,null,null,null,"",""]
[null,null,null,null,null,"",""]
[null,null,null,null,null,"",""]
[null,null,null,null,null,"",""]
[null,null,null,null,null,"",""]
[null,null,null,null,null,"",""]
[null,null,null,null,null,"",""]
[null,null,null,null,null,"",""]
[null,null,null,null,null,"",""]
[null,null,null,null,null,"",""]
[null,null,null,null,null,"",""]
[null,null,null,null,null,"",""]
[null,null,null,null,null,"",""]
[null,null,null,null,null,"",""]
[null,null,null,null,null,"",""]
[null,null,null,null,null,"",""]
[null,null,null,null,null,"",""]
[null,null,null,null,null,"",""]
[null,null,null,null,null,"",""]
[null,null,null,null,null,"",""]
[null,null,null,null,null,"",""]
[null,null,null,null,null,"",""]
[null,null,null,null,null,"",""]
[null,null,null,null,null,"",""]
[null,null,null,null,null,"",""]
[null,null,null,null,null,"",""]
[null,null,null,null,null,"",""]
[null,null,null,null,null,"",""]
[null,null,null,null,null,"",""]
[null,null,null,null,null,{"$f":"IF(D4118<>\"\",D4118*E4118,\"\")","v":""},{"$f":"IF(F4118<>\"\",F4118/9,\"\")","v":""}]
[null,null,null,null,null,"",""]
[null,null,null,null,null,"",""]
[null,null,null,null,null,"",""]
[null,null,null,null,null,"",""]
[null,null,null,null,null,"",""]
[null,null,null,null,null,"",""]
[null,null,null,null,null,"",""]
[null,null,null,null,null,"",""]
[null,null,null,null,null,"",""]
[null,null,null,null,null,"",""]
[null,null,null,null,null,"",""]
[null,null,null,null,null,"",""]
[null,null,null,null,null,"",""]
[null,null,null,null,null,"",""]
[null,null,null,null,null,"",""]
[null,null,null,null,null,"",""]
[null,null,null,null,null,"",""]
[null,null,null,null,null,"",""]
[null,null,null,null,null,"",""]
[null,null,null,null,null,"",""]
[null,null,null,null,null,"",""]
[null,null,null,null,null,"",""]
[null,null,null,null,null,"",""]
[null,null,null,null,null,"",""]
[null,null,null,null,null,"",""]
[null,null,null,null,null,"",""]
[null,null,null,null,null,"",""]
[null,null,null,null,null,"",""]
[null,null,null,null,null,"",""]
[null,null,null,null,null,"",""]
[null,null,null,null,null,"",""]
[null,null,null,null,null,"",""]
[null,null,null,null,null,"",""]
[null,null,null,null,null,"",""]
[null,null,null,null,null,"",""]
[null,null,null,null,null,"",""]
[null,null,null,null,null,"",""]
[null,null,null,null,null,"",""]
[null,null,null,null,null,"",""]
[null,null,null,null,null,"",""]
[null,null,null,null,null,"",""]
[null,null,null,null,null,"",""]
[null,null,null,null,null,"",""]
[null,null,null,null,null,"",""]
[null,null,null,null,null,"",""]
[null,null,null,null,null,"",""]
[null,null,null,null,null,"",""]
[null,null,null,null,null,"",""]
[null,null,null,null,null,"",""]
[null,null,null,null,null,"",""]
[null,null,null,null,null,"",""]
[null,null,null,null,null,"",""]
[null,null,null,null,null,"",""]
[null,null,null,null,null,"",""]
[null,null,null,null,null,"",""]
[null,null,null,null,null,"",""]
[null,null,null,null,null,"",""]
[null,null,null,null,null,"",""]
[null,null,null,null,null,"",""]
[null,null,null,null,null,"",""]
[null,null,null,null,null,"",""]
[null,null,null,null,null,"",""]
[null,null,null,null,null,"",""]
[null,null,null,null,null,{"$f":"IF(D4182<>\"\",D4182*E4182,\"\")","v":""},{"$f":"IF(F4182<>\"\",F4182/9,\"\")","v":""}]
[null,null,null,null,null,"",""]
[null,null,null,null,null,"",""]
[null,null,null,null,null,"",""]
[null,null,null,null,null,"",""]
[null,null,null,null,null,"",""]
[null,null,null,null,null,"",""]
[null,null,null,null,null,"",""]
[null,null,null,null,null,"",""]
[null,null,null,null,null,"",""]
[null,null,null,null,null,"",""]
[null,null,null,null,null,"",""]
[null,null,null,null,null,"",""]
[null,null,null,null,null,"",""]
[null,null,null,null,null,"",""]
[null,null,null,null,null,"",""]
[null,null,null,null,null,"",""]
[null,null,null,null,null,"",""]
[null,null,null,null,null,"",""]
[null,null,null,null,null,"",""]
[null,null,null,null,null,"",""]
[null,null,null,null,null,"",""]
[null,null,null,null,null,"",""]
[null,null,null,null,null,"",""]
[null,null,null,null,null,"",""]
[null,null,null,null,null,"",""]
[null,null,null,null,null,"",""]
[null,null,null,null,null,"",""]
[null,null,null,null,null,"",""]
[null,null,null,null,null,"",""]
[null,null,null,null,null,"",""]
[null,null,null,null,null,"",""]
[null,null,null,null,null,"",""]
[null,null,null,null,null,"",""]
[null,null,null,null,null,"",""]
[null,null,null,null,null,"",""]
[null,null,null,null,null,"",""]
[null,null,null,null,null,"",""]
[null,null,null,null,null,"",""]
[null,null,null,null,null,"",""]
[null,null,null,null,null,"",""]
[null,null,null,null,null,"",""]
[null,null,null,null,null,"",""]
[null,null,null,null,null,"",""]
[null,null,null,null,null,"",""]
[null,null,null,null,null,"",""]
[null,null,null,null,null,"",""]
[null,null,null,null,null,"",""]
[null,null,null,null,null,"",""]
[null,null,null,null,null,"",""]
[null,null,null,null,null,"",""]
[null,null,null,null,null,"",""]
[null,null,null,null,null,"",""]
[null,null,null,null,null,"",""]
[null,null,null,null,null,"",""]
[null,null,null,null,null,"",""]
[null,null,null,null,null,"",""]
[null,null,null,null,null,"",""]
[null,null,null,null,null,"",""]
[null,null,null,null,null,"",""]
[null,null,null,null,null,"",""]
[null,null,null,null,null,"",""]
[null,null,null,null,null,"",""]
[null,null,null,null,null,"",""]
[null,null,null,null,null,{"$f":"IF(D4246<>\"\",D4246*E4246,\"\")","v":""},{"$f":"IF(F4246<>\"\",F4246/9,\"\")","v":""}]
[null,null,null,null,null,"",""]
[null,null,null,null,null,"",""]
[null,null,null,null,null,"",""]
[null,null,null,null,null,"",""]
[null,null,null,null,null,"",""]
[null,null,null,null,null,"",""]
[null,null,null,null,null,"",""]
[null,null,null,null,null,"",""]
[null,null,null,null,null,"",""]
[null,null,null,null,null,"",""]
[null,null,null,null,null,"",""]
[null,null,null,null,null,"",""]
[null,null,null,null,null,"",""]
[null,null,null,null,null,"",""]
[null,null,null,null,null,"",""]
[null,null,null,null,null,"",""]
[null,null,null,null,null,"",""]
[null,null,null,null,null,"",""]
[null,null,null,null,null,"",""]
[null,null,null,null,null,"",""]
[null,null,null,null,null,"",""]
[null,null,null,null,null,"",""]
[null,null,null,null,null,"",""]
[null,null,null,null,null,"",""]
[null,null,null,null,null,"",""]
[null,null,null,null,null,"",""]
[null,null,null,null,null,"",""]
[null,null,null,null,null,"",""]
[null,null,null,null,null,"",""]
[null,null,null,null,null,"",""]
[null,null,null,null,null,"",""]
[null,null,null,null,null,"",""]
[null,null,null,null,null,"",""]
[null,null,null,null,null,"",""]
[null,null,null,null,null,"",""]
[null,null,null,null,null,"",""]
[null,null,null,null,null,"",""]
[null,null,null,null,null,"",""]
[null,null,null,null,null,"",""]
[null,null,null,null,null,"",""]
[null,null,null,null,null,"",""]
[null,null,null,null,null,"",""]
[null,null,null,null,null,"",""]
[null,null,null,null,null,"",""]
[null,null,null,null,null,"",""]
[null,null,null,null,null,"",""]
[null,null,null,null,null,"",""]
[null,null,null,null,null,"",""]
[null,null,null,null,null,"",""]
[null,null,null,null,null,"",""]
[null,null,null,null,null,"",""]
[null,null,null,null,null,"",""]
[null,null,null,null,null,"",""]
[null,null,null,null,null,"",""]
[null,null,null,null,null,"",""]
[null,null,null,null,null,"",""]
[null,null,null,null,null,"",""]
[null,null,null,null,null,"",""]
[null,null,null,null,null,"",""]
[null,null,null,null,null,"",""]
[null,null,null,null,null,"",""]
[null,null,null,null,null,"",""]
[null,null,null,null,null,"",""]
[null,null,null,null,null,{"$f":"IF(D4310<>\"\",D4310*E4310,\"\")","v":""},{"$f":"IF(F4310<>\"\",F4310/9,\"\")","v":""}]
[null,null,null,null,null,"",""]
[null,null,null,null,null,"",""]
[null,null,null,null,null,"",""]
[null,null,null,null,null,"",""]
[null,null,null,null,null,"",""]
[null,null,null,null,null,"",""]
[null,null,null,null,null,"",""]
[null,null,null,null,null,"",""]
[null,null,null,null,null,"",""]
[null,null,null,null,null,"",""]
[null,null,null,null,null,"",""]
[null,null,null,null,null,"",""]
[null,null,null,null,null,"",""]
[null,null,null,null,null,"",""]
[null,null,null,null,null,"",""]
[null,null,null,null,null,"",""]
[null,null,null,null,null,"",""]
[null,null,null,null,null,"",""]
[null,null,null,null,null,"",""]
[null,null,null,null,null,"",""]
[null,null,null,null,null,"",""]
[null,null,null,null,null,"",""]
[null,null,null,null,null,"",""]
[null,null,null,null,null,"",""]
[null,null,null,null,null,"",""]
[null,null,null,null,null,"",""]
[null,null,null,null,null,"",""]
[null,null,null,null,null,"",""]
[null,null,null,null,null,"",""]
[null,null,null,null,null,"",""]
[null,null,null,null,null,"",""]
[null,null,null,null,null,"",""]
[null,null,null,null,null,"",""]
[null,null,null,null,null,"",""]
[null,null,null,null,null,"",""]
[null,null,null,null,null,"",""]
[null,null,null,null,null,"",""]
[null,null,null,null,null,"",""]
[null,null,null,null,null,"",""]
[null,null,null,null,null,"",""]
[null,null,null,null,null,"",""]
[null,null,null,null,null,"",""]
[null,null,null,null,null,"",""]
[null,null,null,null,null,"",""]
[null,null,null,null,null,"",""]
[null,null,null,null,null,"",""]
[null,null,null,null,null,"",""]
[null,null,null,null,null,"",""]
[null,null,null,null,null,"",""]
[null,null,null,null,null,"",""]
[null,null,null,null,null,"",""]
[null,null,null,null,null,"",""]
[null,null,null,null,null,"",""]
[null,null,null,null,null,"",""]
[null,null,null,null,null,"",""]
[null,null,null,null,null,"",""]
[null,null,null,null,null,"",""]
[null,null,null,null,null,"",""]
[null,null,null,null,null,"",""]
[null,null,null,null,null,"",""]
[null,null,null,null,null,"",""]
[null,null,null,null,null,"",""]
[null,null,null,null,null,"",""]
[null,null,null,null,null,{"$f":"IF(D4374<>\"\",D4374*E4374,\"\")","v":""},{"$f":"IF(F4374<>\"\",F4374/9,\"\")","v":""}]
[null,null,null,null,null,"",""]
[null,null,null,null,null,"",""]
[null,null,null,null,null,"",""]
[null,null,null,null,null,"",""]
[null,null,null,null,null,"",""]
[null,null,null,null,null,"",""]
[null,null,null,null,null,"",""]
[null,null,null,null,null,"",""]
[null,null,null,null,null,"",""]
[null,null,null,null,null,"",""]
[null,null,null,null,null,"",""]
[null,null,null,null,null,"",""]
[null,null,null,null,null,"",""]
[null,null,null,null,null,"",""]
[null,null,null,null,null,"",""]
[null,null,null,null,null,"",""]
[null,null,null,null,null,"",""]
[null,null,null,null,null,"",""]
[null,null,null,null,null,"",""]
[null,null,null,null,null,"",""]
[null,null,null,null,null,"",""]
[null,null,null,null,null,"",""]
[null,null,null,null,null,"",""]
[null,null,null,null,null,"",""]
[null,null,null,null,null,"",""]
[null,null,null,null,null,"",""]
[null,null,null,null,null,"",""]
[null,null,null,null,null,"",""]
[null,null,null,null,null,"",""]
[null,null,null,null,null,"",""]
[null,null,null,null,null,"",""]
[null,null,null,null,null,"",""]
[null,null,null,null,null,"",""]
[null,null,null,null,null,"",""]
[null,null,null,null,null,"",""]
[null,null,null,null,null,"",""]
[null,null,null,null,null,"",""]
[null,null,null,null,null,"",""]
[null,null,null,null,null,"",""]
[null,null,null,null,null,"",""]
[null,null,null,null,null,"",""]
[null,null,null,null,null,"",""]
[null,null,null,null,null,"",""]
[null,null,null,null,null,"",""]
[null,null,null,null,null,"",""]
[null,null,null,null,null,"",""]
[null,null,null,null,null,"",""]
[null,null,null,null,null,"",""]
[null,null,null,null,null,"",""]
[null,null,null,null,null,"",""]
[null,null,null,null,null,"",""]
[null,null,null,null,null,"",""]
[null,null,null,null,null,"",""]
[null,null,null,null,null,"",""]
[null,null,null,null,null,"",""]
[null,null,null,null,null,"",""]
[null,null,null,null,null,"",""]
[null,null,null,null,null,"",""]
[null,null,null,null,null,"",""]
[null,null,null,null,null,"",""]
[null,null,null,null,null,"",""]
[null,null,null,null,null,"",""]
[null,null,null,null,null,"",""]
[null,null,null,null,null,{"$f":"IF(D4438<>\"\",D4438*E4438,\"\")","v":""},{"$f":"IF(F4438<>\"\",F4438/9,\"\")","v":""}]
[null,null,null,null,null,"",""]
[null,null,null,null,null,"",""]
[null,null,null,null,null,"",""]
[null,null,null,null,null,"",""]
[null,null,null,null,null,"",""]
[null,null,null,null,null,"",""]
[null,null,null,null,null,"",""]
[null,null,null,null,null,"",""]
[null,null,null,null,null,"",""]
[null,null,null,null,null,"",""]
[null,null,null,null,null,"",""]
[null,null,null,null,null,"",""]
[null,null,null,null,null,"",""]
[null,null,null,null,null,"",""]
[null,null,null,null,null,"",""]
[null,null,null,null,null,"",""]
[null,null,null,null,null,"",""]
[null,null,null,null,null,"",""]
[null,null,null,null,null,"",""]
[null,null,null,null,null,"",""]
[null,null,null,null,null,"",""]
[null,null,null,null,null,"",""]
[null,null,null,null,null,"",""]
[null,null,null,null,null,"",""]
[null,null,null,null,null,"",""]
[null,null,null,null,null,"",""]
[null,null,null,null,null,"",""]
[null,null,null,null,null,"",""]
[null,null,null,null,null,"",""]
[null,null,null,null,null,"",""]
[null,null,null,null,null,"",""]
[null,null,null,null,null,"",""]
[null,null,null,null,null,"",""]
[null,null,null,null,null,"",""]
[null,null,null,null,null,"",""]
[null,null,null,null,null,"",""]
[null,null,null,null,null,"",""]
[null,null,null,null,null,"",""]
[null,null,null,null,null,"",""]
[null,null,null,null,null,"",""]
[null,null,null,null,null,"",""]
[null,null,null,null,null,"",""]
[null,null,null,null,null,"",""]
[null,null,null,null,null,"",""]
[null,null,null,null,null,"",""]
[null,null,null,null,null,"",""]
[null,null,null,null,null,"",""]
[null,null,null,null,null,"",""]
[null,null,null,null,null,"",""]
[null,null,null,null,null,"",""]
[null,null,null,null,null,"",""]
[null,null,null,null,null,"",""]
[null,null,null,null,null,"",""]
[null,null,null,null,null,"",""]
[null,null,null,null,null,"",""]
[null,null,null,null,null,"",""]
[null,null,null,null,null,"",""]
[null,null,null,null,null,"",""]
[null,null,null,null,null,"",""]
[null,null,null,null,null,"",""]
[null,null,null,null,null,"",""]
[null,null,null,null,null,"",""]
[null,null,null,null,null,"",""]
[null,null,null,null,null,{"$f":"IF(D4502<>\"\",D4502*E4502,\"\")","v":""},{"$f":"IF(F4502<>\"\",F4502/9,\"\")","v":""}]
[null,null,null,null,null,"",""]
[null,null,null,null,null,"",""]
[null,null,null,null,null,"",""]
[null,null,null,null,null,"",""]
[null,null,null,null,null,"",""]
[null,null,null,null,null,"",""]
[null,null,null,null,null,"",""]
[null,null,null,null,null,"",""]
[null,null,null,null,null,"",""]
[null,null,null,null,null,"",""]
[null,null,null,null,null,"",""]
[null,null,null,null,null,"",""]
[null,null,null,null,null,"",""]
[null,null,null,null,null,"",""]
[null,null,null,null,null,"",""]
[null,null,null,null,null,"",""]
[null,null,null,null,null,"",""]
[null,null,null,null,null,"",""]
[null,null,null,null,null,"",""]
[null,null,null,null,null,"",""]
[null,null,null,null,null,"",""]
[null,null,null,null,null,"",""]
[null,null,null,null,null,"",""]
[null,null,null,null,null,"",""]
[null,null,null,null,null,"",""]
[null,null,null,null,null,"",""]
[null,null,null,null,null,"",""]
[null,null,null,null,null,"",""]
[null,null,null,null,null,"",""]
[null,null,null,null,null,"",""]
[null,null,null,null,null,"",""]
[null,null,null,null,null,"",""]
[null,null,null,null,null,"",""]
[null,null,null,null,null,"",""]
[null,null,null,null,null,"",""]
[null,null,null,null,null,"",""]
[null,null,null,null,null,"",""]
[null,null,null,null,null,"",""]
[null,null,null,null,null,"",""]
[null,null,null,null,null,"",""]
[null,null,null,null,null,"",""]
[null,null,null,null,null,"",""]
[null,null,null,null,null,"",""]
[null,null,null,null,null,"",""]
[null,null,null,null,null,"",""]
[null,null,null,null,null,"",""]
[null,null,null,null,null,"",""]
[null,null,null,null,null,"",""]
[null,null,null,null,null,"",""]
[null,null,null,null,null,"",""]
[null,null,null,null,null,"",""]
[null,null,null,null,null,"",""]
[null,null,null,null,null,"",""]
[null,null,null,null,null,"",""]
[null,null,null,null,null,"",""]
[null,null,null,null,null,"",""]
[null,null,null,null,null,"",""]
[null,null,null,null,null,"",""]
[null,null,null,null,null,"",""]
[null,null,null,null,null,"",""]
[null,null,null,null,null,"",""]
[null,null,null,null,null,"",""]
[null,null,null,null,null,"",""]
[null,null,null,null,null,{"$f":"IF(D4566<>\"\",D4566*E4566,\"\")","v":""},{"$f":"IF(F4566<>\"\",F4566/9,\"\")","v":""}]
[null,null,null,null,null,"",""]
[null,null,null,null,null,"",""]
[null,null,null,null,null,"",""]
[null,null,null,null,null,"",""]
[null,null,null,null,null,"",""]
[null,null,null,null,null,"",""]
[null,null,null,null,null,"",""]
[null,null,null,null,null,"",""]
[null,null,null,null,null,"",""]
[null,null,null,null,null,"",""]
[null,null,null,null,null,"",""]
[null,null,null,null,null,"",""]
[null,null,null,null,null,"",""]
[null,null,null,null,null,"",""]
[null,null,null,null,null,"",""]
[null,null,null,null,null,"",""]
[null,null,null,null,null,"",""]
[null,null,null,null,null,"",""]
[null,null,null,null,null,"",""]
[null,null,null,null,null,"",""]
[null,null,null,null,null,"",""]
[null,null,null,null,null,"",""]
[null,null,null,null,null,"",""]
[null,null,null,null,null,"",""]
[null,null,null,null,null,"",""]
[null,null,null,null,null,"",""]
[null,null,null,null,null,"",""]
[null,null,null,null,null,"",""]
[null,null,null,null,null,"",""]
[null,null,null,null,null,"",""]
[null,null,null,null,null,"",""]
[null,null,null,null,null,"",""]
[null,null,null,null,null,"",""]
[null,null,null,null,null,"",""]
[null,null,null,null,null,"",""]
[null,null,null,null,null,"",""]
[null,null,null,null,null,"",""]
[null,null,null,null,null,"",""]
[null,null,null,null,null,"",""]
[null,null,null,null,null,"",""]
[null,null,null,null,null,"",""]
[null,null,null,null,null,"",""]
[null,null,null,null,null,"",""]
[null,null,null,null,null,"",""]
[null,null,null,null,null,"",""]
[null,null,null,null,null,"",""]
[null,null,null,null,null,"",""]
[null,null,null,null,null,"",""]
[null,null,null,null,null,"",""]
[null,null,null,null,null,"",""]
[null,null,null,null,null,"",""]
[null,null,null,null,null,"",""]
[null,null,null,null,null,"",""]
[null,null,null,null,null,"",""]
[null,null,null,null,null,"",""]
[null,null,null,null,null,"",""]
[null,null,null,null,null,"",""]
[null,null,null,null,null,"",""]
[null,null,null,null,null,"",""]
[null,null,null,null,null,"",""]
[null,null,null,null,null,"",""]
[null,null,null,null,null,"",""]
[null,null,null,null,null,"",""]
[null,null,null,null,null,{"$f":"IF(D4630<>\"\",D4630*E4630,\"\")","v":""},{"$f":"IF(F4630<>\"\",F4630/9,\"\")","v":""}]
[null,null,null,null,null,"",""]
[null,null,null,null,null,"",""]
[null,null,null,null,null,"",""]
[null,null,null,null,null,"",""]
[null,null,null,null,null,"",""]
[null,null,null,null,null,"",""]
[null,null,null,null,null,"",""]
[null,null,null,null,null,"",""]
[null,null,null,null,null,"",""]
[null,null,null,null,null,"",""]
[null,null,null,null,null,"",""]
[null,null,null,null,null,"",""]
[null,null,null,null,null,"",""]
[null,null,null,null,null,"",""]
[null,null,null,null,null,"",""]
[null,null,null,null,null,"",""]
[null,null,null,null,null,"",""]
[null,null,null,null,null,"",""]
[null,null,null,null,null,"",""]
[null,null,null,null,null,"",""]
[null,null,null,null,null,"",""]
[null,null,null,null,null,"",""]
[null,null,null,null,null,"",""]
[null,null,null,null,null,"",""]
[null,null,null,null,null,"",""]
[null,null,null,null,null,"",""]
[null,null,null,null,null,"",""]
[null,null,null,null,null,"",""]
[null,null,null,null,null,"",""]
[null,null,null,null,null,"",""]
[null,null,null,null,null,"",""]
[null,null,null,null,null,"",""]
[null,null,null,null,null,"",""]
[null,null,null,null,null,"",""]
[null,null,null,null,null,"",""]
[null,null,null,null,null,"",""]
[null,null,null,null,null,"",""]
[null,null,null,null,null,"",""]
[null,null,null,null,null,"",""]
[null,null,null,null,null,"",""]
[null,null,null,null,null,"",""]
[null,null,null,null,null,"",""]
[null,null,null,null,null,"",""]
[null,null,null,null,null,"",""]
[null,null,null,null,null,"",""]
[null,null,null,null,null,"",""]
[null,null,null,null,null,"",""]
[null,null,null,null,null,"",""]
[null,null,null,null,null,"",""]
[null,null,null,null,null,"",""]
[null,null,null,null,null,"",""]
[null,null,null,null,null,"",""]
[null,null,null,null,null,"",""]
[null,null,null,null,null,"",""]
[null,null,null,null,null,"",""]
[null,null,null,null,null,"",""]
[null,null,null,null,null,"",""]
[null,null,null,null,null,"",""]
[null,null,null,null,null,"",""]
[null,null,null,null,null,"",""]
[null,null,null,null,null,"",""]
[null,null,null,null,null,"",""]
[null,null,null,null,null,"",""]
[null,null,null,null,null,{"$f":"IF(D4694<>\"\",D4694*E4694,\"\")","v":""},{"$f":"IF(F4694<>\"\",F4694/9,\"\")","v":""}]
[null,null,null,null,null,"",""]
[null,null,null,null,null,"",""]
[null,null,null,null,null,"",""]
[null,null,null,null,null,"",""]
[null,null,null,null,null,"",""]
[null,null,null,null,null,"",""]
[null,null,null,null,null,"",""]
[null,null,null,null,null,"",""]
[null,null,null,null,null,"",""]
[null,null,null,null,null,"",""]
[null,null,null,null,null,"",""]
[null,null,null,null,null,"",""]
[null,null,null,null,null,"",""]
[null,null,null,null,null,"",""]
[null,null,null,null,null,"",""]
[null,null,null,null,null,"",""]
[null,null,null,null,null,"",""]
[null,null,null,null,null,"",""]
[null,null,null,null,null,"",""]
[null,null,null,null,null,"",""]
[null,null,null,null,null,"",""]
[null,null,null,null,null,"",""]
[null,null,null,null,null,"",""]
[null,null,null,null,null,"",""]
[null,null,null,null,null,"",""]
[null,null,null,null,null,"",""]
[null,null,null,null,null,"",""]
[null,null,null,null,null,"",""]
[null,null,null,null,null,"",""]
[null,null,null,null,null,"",""]
[null,null,null,null,null,"",""]
[null,null,null,null,null,"",""]
[null,null,null,null,null,"",""]
[null,null,null,null,null,"",""]
[null,null,null,null,null,"",""]
[null,null,null,null,null,"",""]
[null,null,null,null,null,"",""]
[null,null,null,null,null,"",""]
[null,null,null,null,null,"",""]
[null,null,null,null,null,"",""]
[null,null,null,null,null,"",""]
[null,null,null,null,null,"",""]
[null,null,null,null,null,"",""]
[null,null,null,null,null,"",""]
[null,null,null,null,null,"",""]
[null,null,null,null,null,"",""]
[null,null,null,null,null,"",""]
[null,null,null,null,null,"",""]
[null,null,null,null,null,"",""]
[null,null,null,null,null,"",""]
[null,null,null,null,null,"",""]
[null,null,null,null,null,"",""]
[null,null,null,null,null,"",""]
[null,null,null,null,null,"",""]
[null,null,null,null,null,"",""]
[null,null,null,null,null,"",""]
[null,null,null,null,null,"",""]
[null,null,null,null,null,"",""]
[null,null,null,null,null,"",""]
[null,null,null,null,null,"",""]
[null,null,null,null,null,"",""]
[null,null,null,null,null,"",""]
[null,null,null,null,null,"",""]
[null,null,null,null,null,{"$f":"IF(D4758<>\"\",D4758*E4758,\"\")","v":""},{"$f":"IF(F4758<>\"\",F4758/9,\"\")","v":""}]
[null,null,null,null,null,"",""]
[null,null,null,null,null,"",""]
[null,null,null,null,null,"",""]
[null,null,null,null,null,"",""]
[null,null,null,null,null,"",""]
[null,null,null,null,null,"",""]
[null,null,null,null,null,"",""]
[null,null,null,null,null,"",""]
[null,null,null,null,null,"",""]
[null,null,null,null,null,"",""]
[null,null,null,null,null,"",""]
[null,null,null,null,null,"",""]
[null,null,null,null,null,"",""]
[null,null,null,null,null,"",""]
[null,null,null,null,null,"",""]
[null,null,null,null,null,"",""]
[null,null,null,null,null,"",""]
[null,null,null,null,null,"",""]
[null,null,null,null,null,"",""]
[null,null,null,null,null,"",""]
[null,null,null,null,null,"",""]
[null,null,null,null,null,"",""]
[null,null,null,null,null,"",""]
[null,null,null,null,null,"",""]
[null,null,null,null,null,"",""]
[null,null,null,null,null,"",""]
[null,null,null,null,null,"",""]
[null,null,null,null,null,"",""]
[null,null,null,null,null,"",""]
[null,null,null,null,null,"",""]
[null,null,null,null,null,"",""]
[null,null,null,null,null,"",""]
[null,null,null,null,null,"",""]
[null,null,null,null,null,"",""]
[null,null,null,null,null,"",""]
[null,null,null,null,null,"",""]
[null,null,null,null,null,"",""]
[null,null,null,null,null,"",""]
[null,null,null,null,null,"",""]
[null,null,null,null,null,"",""]
[null,null,null,null,null,"",""]
[null,null,null,null,null,"",""]
[null,null,null,null,null,"",""]
[null,null,null,null,null,"",""]
[null,null,null,null,null,"",""]
[null,null,null,null,null,"",""]
[null,null,null,null,null,"",""]
[null,null,null,null,null,"",""]
[null,null,null,null,null,"",""]
[null,null,null,null,null,"",""]
[null,null,null,null,null,"",""]
[null,null,null,null,null,"",""]
[null,null,null,null,null,"",""]
[null,null,null,null,null,"",""]
[null,null,null,null,null,"",""]
[null,null,null,null,null,"",""]
[null,null,null,null,null,"",""]
[null,null,null,null,null,"",""]
[null,null,null,null,null,"",""]
[null,null,null,null,null,"",""]
[null,null,null,null,null,"",""]
[null,null,null,null,null,"",""]
[null,null,null,null,null,"",""]
[null,null,null,null,null,{"$f":"IF(D4822<>\"\",D4822*E4822,\"\")","v":""},{"$f":"IF(F4822<>\"\",F4822/9,\"\")","v":""}]
[null,null,null,null,null,"",""]
[null,null,null,null,null,"",""]
[null,null,null,null,null,"",""]
[null,null,null,null,null,"",""]
[null,null,null,null,null,"",""]
[null,null,null,null,null,"",""]
[null,null,null,null,null,"",""]
[null,null,null,null,null,"",""]
[null,null,null,null,null,"",""]
[null,null,null,null,null,"",""]
[null,null,null,null,null,"",""]
[null,null,null,null,null,"",""]
[null,null,null,null,null,"",""]
[null,null,null,null,null,"",""]
[null,null,null,null,null,"",""]
[null,null,null,null,null,"",""]
[null,null,null,null,null,"",""]
[null,null,null,null,null,"",""]
[null,null,null,null,null,"",""]
[null,null,null,null,null,"",""]
[null,null,null,null,null,"",""]
[null,null,null,null,null,"",""]
[null,null,null,null,null,"",""]
[null,null,null,null,null,"",""]
[null,null,null,null,null,"",""]
[null,null,null,null,null,"",""]
[null,null,null,null,null,"",""]
[null,null,null,null,null,"",""]
[null,null,null,null,null,"",""]
[null,null,null,null,null,"",""]
[null,null,null,null,null,"",""]
[null,null,null,null,null,"",""]
[null,null,null,null,null,"",""]
[null,null,null,null,null,"",""]
[null,null,null,null,null,"",""]
[null,null,null,null,null,"",""]
[null,null,null,null,null,"",""]
[null,null,null,null,null,"",""]
[null,null,null,null,null,"",""]
[null,null,null,null,null,"",""]
[null,null,null,null,null,"",""]
[null,null,null,null,null,"",""]
[null,null,null,null,null,"",""]
[null,null,null,null,null,"",""]
[null,null,null,null,null,"",""]
[null,null,null,null,null,"",""]
[null,null,null,null,null,"",""]
[null,null,null,null,null,"",""]
[null,null,null,null,null,"",""]
[null,null,null,null,null,"",""]
[null,null,null,null,null,"",""]
[null,null,null,null,null,"",""]
[null,null,null,null,null,"",""]
[null,null,null,null,null,"",""]
[null,null,null,null,null,"",""]
[null,null,null,null,null,"",""]
[null,null,null,null,null,"",""]
[null,null,null,null,null,"",""]
[null,null,null,null,null,"",""]
[null,null,null,null,null,"",""]
[null,null,null,null,null,"",""]
[null,null,null,null,null,"",""]
[null,null,null,null,null,"",""]
[null,null,null,null,null,{"$f":"IF(D4886<>\"\",D4886*E4886,\"\")","v":""},{"$f":"IF(F4886<>\"\",F4886/9,\"\")","v":""}]
[null,null,null,null,null,"",""]
[null,null,null,null,null,"",""]
[null,null,null,null,null,"",""]
[null,null,null,null,null,"",""]
[null,null,null,null,null,"",""]
[null,null,null,null,null,"",""]
[null,null,null,null,null,"",""]
[null,null,null,null,null,"",""]
[null,null,null,null,null,"",""]
[null,null,null,null,null,"",""]
[null,null,null,null,null,"",""]
[null,null,null,null,null,"",""]
[null,null,null,null,null,"",""]
[null,null,null,null,null,"",""]
[null,null,null,null,null,"",""]
[null,null,null,null,null,"",""]
[null,null,null,null,null,"",""]
[null,null,null,null,null,"",""]
[null,null,null,null,null,"",""]
[null,null,null,null,null,"",""]
[null,null,null,null,null,"",""]
[null,null,null,null,null,"",""]
[null,null,null,null,null,"",""]
[null,null,null,null,null,"",""]
[null,null,null,null,null,"",""]
[null,null,null,null,null,"",""]
[null,null,null,null,null,"",""]
[null,null,null,null,null,"",""]
[null,null,null,null,null,"",""]
[null,null,null,null,null,"",""]
[null,null,null,null,null,"",""]
[null,null,null,null,null,"",""]
[null,null,null,null,null,"",""]
[null,null,null,null,null,"",""]
[null,null,null,null,null,"",""]
[null,null,null,null,null,"",""]
[null,null,null,null,null,"",""]
[null,null,null,null,null,"",""]
[null,null,null,null,null,"",""]
[null,null,null,null,null,"",""]
[null,null,null,null,null,"",""]
[null,null,null,null,null,"",""]
[null,null,null,null,null,"",""]
[null,null,null,null,null,"",""]
[null,null,null,null,null,"",""]
[null,null,null,null,null,"",""]
[null,null,null,null,null,"",""]
[null,null,null,null,null,"",""]
[null,null,null,null,null,"",""]
[null,null,null,null,null,"",""]
[null,null,null,null,null,"",""]
[null,null,null,null,null,"",""]
[null,null,null,null,null,"",""]
[null,null,null,null,null,"",""]
[null,null,null,null,null,"",""]
[null,null,null,null,null,"",""]
[null,null,null,null,null,"",""]
[null,null,null,null,null,"",""]
[null,null,null,null,null,"",""]
[null,null,null,null,null,"",""]
[null,null,null,null,null,"",""]
[null,null,null,null,null,"",""]
[null,null,null,null,null,"",""]
[null,null,null,null,null,{"$f":"IF(D4950<>\"\",D4950*E4950,\"\")","v":""},{"$f":"IF(F4950<>\"\",F4950/9,\"\")","v":""}]
[null,null,null,null,null,"",""]
[null,null,null,null,null,"",""]
[null,null,null,null,null,"",""]
[null,null,null,null,null,"",""]
[null,null,null,null,null,"",""]
[null,null,null,null,null,"",""]
[null,null,null,null,null,"",""]
[null,null,null,null,null,"",""]
[null,null,null,null,null,"",""]
[null,null,null,null,null,"",""]
[null,null,null,null,null,"",""]
[null,null,null,null,null,"",""]
[null,null,null,null,null,"",""]
[null,null,null,null,null,"",""]
[null,null,null,null,null,"",""]
[null,null,null,null,null,"",""]
[null,null,null,null,null,"",""]
[null,null,null,null,null,"",""]
[null,null,null,null,null,"",""]
[null,null,null,null,null,"",""]
[null,null,null,null,null,"",""]
[null,null,null,null,null,"",""]
[null,null,null,null,null,"",""]
[null,null,null,null,null,"",""]
[null,null,null,null,null,"",""]
[null,null,null,null,null,"",""]
[null,null,null,null,null,"",""]
[null,null,null,null,null,"",""]
[null,null,null,null,null,"",""]
[null,null,null,null,null,"",""]
[null,null,null,null,null,"",""]
[null,null,null,null,null,"",""]
[null,null,null,null,null,"",""]
[null,null,null,null,null,"",""]
[null,null,null,null,null,"",""]
[null,null,null,null,null,"",""]
[null,null,null,null,null,"",""]
[null,null,null,null,null,"",""]
[null,null,null,null,null,"",""]
[null,null,null,null,null,"",""]
[null,null,null,null,null,"",""]
[null,null,null,null,null,"",""]
[null,null,null,null,null,"",""]
[null,null,null,null,null,"",""]
[null,null,null,null,null,"",""]
[null,null,null,null,null,"",""]
[null,null,null,null,null,"",""]
[null,null,null,null,null,"",""]
[null,null,null,null,null,"",""]
[null,null,null,null,null,"",""]
[null,null,null,null,null,"",""]
[null,null,null,null,null,"",""]
[null,null,null,null,null,"",""]
[null,null,null,null,null,"",""]
[null,null,null,null,null,"",""]
[null,null,null,null,null,"",""]
[null,null,null,null,null,"",""]
[null,null,null,null,null,"",""]
[null,null,null,null,null,"",""]
[null,null,null,null,null,"",""]
[null,null,null,null,null,"",""]
[null,null,null,null,null,"",""]
[null,null,null,null,null,"",""]
[null,null,null,null,null,{"$f":"IF(D5014<>\"\",D5014*E5014,\"\")","v":""},{"$f":"IF(F5014<>\"\",F5014/9,\"\")","v":""}]
[null,null,null,null,null,"",""]
[null,null,null,null,null,"",""]
[null,null,null,null,null,"",""]
[null,null,null,null,null,"",""]
[null,null,null,null,null,"",""]
[null,null,null,null,null,"",""]
[null,null,null,null,null,"",""]
[null,null,null,null,null,"",""]
[null,null,null,null,null,"",""]
[null,null,null,null,null,"",""]
[null,null,null,null,null,"",""]
[null,null,null,null,null,"",""]
[null,null,null,null,null,"",""]
[null,null,null,null,null,"",""]
[null,null,null,null,null,"",""]
[null,null,null,null,null,"",""]
[null,null,null,null,null,"",""]
[null,null,null,null,null,"",""]
[null,null,null,null,null,"",""]
[null,null,null,null,null,"",""]
[null,null,null,null,null,"",""]
[null,null,null,null,null,"",""]
[null,null,null,null,null,"",""]
[null,null,null,null,null,"",""]
[null,null,null,null,null,"",""]
[null,null,null,null,null,"",""]
[null,null,null,null,null,"",""]
[null,null,null,null,null,"",""]
[null,null,null,null,null,"",""]
[null,null,null,null,null,"",""]
[null,null,null,null,null,"",""]
[null,null,null,null,null,"",""]
[null,null,null,null,null,"",""]
[null,null,null,null,null,"",""]
[null,null,null,null,null,"",""]
[null,null,null,null,null,"",""]
[null,null,null,null,null,"",""]
[null,null,null,null,null,"",""]
[null,null,null,null,null,"",""]
[null,null,null,null,null,"",""]
[null,null,null,null,null,"",""]
[null,null,null,null,null,"",""]
[null,null,null,null,null,"",""]
[null,null,null,null,null,"",""]
[null,null,null,null,null,"",""]
[null,null,null,null,null,"",""]
[null,null,null,null,null,"",""]
[null,null,null,null,null,"",""]
[null,null,null,null,null,"",""]
[null,null,null,null,null,"",""]
[null,null,null,null,null,"",""]
[null,null,null,null,null,"",""]
[null,null,null,null,null,"",""]
[null,null,null,null,null,"",""]
[null,null,null,null,null,"",""]
[null,null,null,null,null,"",""]
[null,null,null,null,null,"",""]
[null,null,null,null,null,"",""]
[null,null,null,null,null,"",""]
[null,null,null,null,null,"",""]
[null,null,null,null,null,"",""]
[null,null,null,null,null,"",""]
[null,null,null,null,null,"",""]
[null,null,null,null,null,{"$f":"IF(D5078<>\"\",D5078*E5078,\"\")","v":""},{"$f":"IF(F5078<>\"\",F5078/9,\"\")","v":""}]
[null,null,null,null,null,"",""]
[null,null,null,null,null,"",""]
[null,null,null,null,null,"",""]
[null,null,null,null,null,"",""]
[null,null,null,null,null,"",""]
[null,null,null,null,null,"",""]
[null,null,null,null,null,"",""]
[null,null,null,null,null,"",""]
[null,null,null,null,null,"",""]
[null,null,null,null,null,"",""]
[null,null,null,null,null,"",""]
[null,null,null,null,null,"",""]
[null,null,null,null,null,"",""]
[null,null,null,null,null,"",""]
[null,null,null,null,null,"",""]
[null,null,null,null,null,"",""]
[null,null,null,null,null,"",""]
[null,null,null,null,null,"",""]
[null,null,null,null,null,"",""]
[null,null,null,null,null,"",""]
[null,null,null,null,null,"",""]
[null,null,null,null,null,"",""]
[null,null,null,null,null,"",""]
[null,null,null,null,null,"",""]
[null,null,null,null,null,"",""]
[null,null,null,null,null,"",""]
[null,null,null,null,null,"",""]
[null,null,null,null,null,"",""]
[null,null,null,null,null,"",""]
[null,null,null,null,null,"",""]
[null,null,null,null,null,"",""]
[null,null,null,null,null,"",""]
[null,null,null,null,null,"",""]
[null,null,null,null,null,"",""]
[null,null,null,null,null,"",""]
[null,null,null,null,null,"",""]
[null,null,null,null,null,"",""]
[null,null,null,null,null,"",""]
[null,null,null,null,null,"",""]
[null,null,null,null,null,"",""]
[null,null,null,null,null,"",""]
[null,null,null,null,null,"",""]
[null,null,null,null,null,"",""]
[null,null,null,null,null,"",""]
[null,null,null,null,null,"",""]
[null,null,null,null,null,"",""]
[null,null,null,null,null,"",""]
[null,null,null,null,null,"",""]
[null,null,null,null,null,"",""]
[null,null,null,null,null,"",""]
[null,null,null,null,null,"",""]
[null,null,null,null,null,"",""]
[null,null,null,null,null,"",""]
[null,null,null,null,null,"",""]
[null,null,null,null,null,"",""]
[null,null,null,null,null,"",""]
[null,null,null,null,null,"",""]
[null,null,null,null,null,"",""]
[null,null,null,null,null,"",""]
[null,null,null,null,null,"",""]
[null,null,null,null,null,"",""]
[null,null,null,null,null,"",""]
[null,null,null,null,null,"",""]
[null,null,null,null,null,{"$f":"IF(D5142<>\"\",D5142*E5142,\"\")","v":""},{"$f":"IF(F5142<>\"\",F5142/9,\"\")","v":""}]
[null,null,null,null,null,"",""]
[null,null,null,null,null,"",""]
[null,null,null,null,null,"",""]
[null,null,null,null,null,"",""]
[null,null,null,null,null,"",""]
[null,null,null,null,null,"",""]
[null,null,null,null,null,"",""]
[null,null,null,null,null,"",""]
[null,null,null,null,null,"",""]
[null,null,null,null,null,"",""]
[null,null,null,null,null,"",""]
[null,null,null,null,null,"",""]
[null,null,null,null,null,"",""]
[null,null,null,null,null,"",""]
[null,null,null,null,null,"",""]
[null,null,null,null,null,"",""]
[null,null,null,null,null,"",""]
[null,null,null,null,null,"",""]
[null,null,null,null,null,"",""]
[null,null,null,null,null,"",""]
[null,null,null,null,null,"",""]
[null,null,null,null,null,"",""]
[null,null,null,null,null,"",""]
[null,null,null,null,null,"",""]
[null,null,null,null,null,"",""]
[null,null,null,null,null,"",""]
[null,null,null,null,null,"",""]
[null,null,null,null,null,"",""]
[null,null,null,null,null,"",""]
[null,null,null,null,null,"",""]
[null,null,null,null,null,"",""]
[null,null,null,null,null,"",""]
[null,null,null,null,null,"",""]
[null,null,null,null,null,"",""]
[null,null,null,null,null,"",""]
[null,null,null,null,null,"",""]
[null,null,null,null,null,"",""]
[null,null,null,null,null,"",""]
[null,null,null,null,null,"",""]
[null,null,null,null,null,"",""]
[null,null,null,null,null,"",""]
[null,null,null,null,null,"",""]
[null,null,null,null,null,"",""]
[null,null,null,null,null,"",""]
[null,null,null,null,null,"",""]
[null,null,null,null,null,"",""]
[null,null,null,null,null,"",""]
[null,null,null,null,null,"",""]
[null,null,null,null,null,"",""]
[null,null,null,null,null,"",""]
[null,null,null,null,null,"",""]
[null,null,null,null,null,"",""]
[null,null,null,null,null,"",""]
[null,null,null,null,null,"",""]
[null,null,null,null,null,"",""]
[null,null,null,null,null,"",""]
[null,null,null,null,null,"",""]
[null,null,null,null,null,"",""]
[null,null,null,null,null,"",""]
[null,null,null,null,null,"",""]
[null,null,null,null,null,"",""]
[null,null,null,null,null,"",""]
[null,null,null,null,null,"",""]
[null,null,null,null,null,{"$f":"IF(D5206<>\"\",D5206*E5206,\"\")","v":""},{"$f":"IF(F5206<>\"\",F5206/9,\"\")","v":""}]
[null,null,null,null,null,"",""]
[null,null,null,null,null,"",""]
[null,null,null,null,null,"",""]
[null,null,null,null,null,"",""]
[null,null,null,null,null,"",""]
[null,null,null,null,null,"",""]
[null,null,null,null,null,"",""]
[null,null,null,null,null,"",""]
[null,null,null,null,null,"",""]
[null,null,null,null,null,"",""]
[null,null,null,null,null,"",""]
[null,null,null,null,null,"",""]
[null,null,null,null,null,"",""]
[null,null,null,null,null,"",""]
[null,null,null,null,null,"",""]
[null,null,null,null,null,"",""]
[null,null,null,null,null,"",""]
[null,null,null,null,null,"",""]
[null,null,null,null,null,"",""]
[null,null,null,null,null,"",""]
[null,null,null,null,null,"",""]
[null,null,null,null,null,"",""]
[null,null,null,null,null,"",""]
[null,null,null,null,null,"",""]
[null,null,null,null,null,"",""]
[null,null,null,null,null,"",""]
[null,null,null,null,null,"",""]
[null,null,null,null,null,"",""]
[null,null,null,null,null,"",""]
[null,null,null,null,null,"",""]
[null,null,null,null,null,"",""]
[null,null,null,null,null,"",""]
[null,null,null,null,null,"",""]
[null,null,null,null,null,"",""]
[null,null,null,null,null,"",""]
[null,null,null,null,null,"",""]
[null,null,null,null,null,"",""]
[null,null,null,null,null,"",""]
[null,null,null,null,null,"",""]
[null,null,null,null,null,"",""]
[null,null,null,null,null,"",""]
[null,null,null,null,null,"",""]
[null,null,null,null,null,"",""]
[null,null,null,null,null,"",""]
[null,null,null,null,null,"",""]
[null,null,null,null,null,"",""]
[null,null,null,null,null,"",""]
[null,null,null,null,null,"",""]
[null,null,null,null,null,"",""]
[null,null,null,null,null,"",""]
[null,null,null,null,null,"",""]
[null,null,null,null,null,"",""]
[null,null,null,null,null,"",""]
[null,null,null,null,null,"",""]
[null,null,null,null,null,"",""]
[null,null,null,null,null,"",""]
[null,null,null,null,null,"",""]
[null,null,null,null,null,"",""]
[null,null,null,null,null,"",""]
[null,null,null,null,null,"",""]
[null,null,null,null,null,"",""]
[null,null,null,null,null,"",""]
[null,null,null,null,null,"",""]
[null,null,null,null,null,{"$f":"IF(D5270<>\"\",D5270*E5270,\"\")","v":""},{"$f":"IF(F5270<>\"\",F5270/9,\"\")","v":""}]
[null,null,null,null,null,"",""]
[null,null,null,null,null,"",""]
[null,null,null,null,null,"",""]
[null,null,null,null,null,"",""]
[null,null,null,null,null,"",""]
[null,null,null,null,null,"",""]
[null,null,null,null,null,"",""]
[null,null,null,null,null,"",""]
[null,null,null,null,null,"",""]
[null,null,null,null,null,"",""]
[null,null,null,null,null,"",""]
[null,null,null,null,null,"",""]
[null,null,null,null,null,"",""]
[null,null,null,null,null,"",""]
[null,null,null,null,null,"",""]
[null,null,null,null,null,"",""]
[null,null,null,null,null,"",""]
[null,null,null,null,null,"",""]
[null,null,null,null,null,"",""]
[null,null,null,null,null,"",""]
[null,null,null,null,null,"",""]
[null,null,null,null,null,"",""]
[null,null,null,null,null,"",""]
[null,null,null,null,null,"",""]
[null,null,null,null,null,"",""]
[null,null,null,null,null,"",""]
[null,null,null,null,null,"",""]
[null,null,null,null,null,"",""]
[null,null,null,null,null,"",""]
[null,null,null,null,null,"",""]
[null,null,null,null,null,"",""]
[null,null,null,null,null,"",""]
[null,null,null,null,null,"",""]
[null,null,null,null,null,"",""]
[null,null,null,null,null,"",""]
[null,null,null,null,null,"",""]
[null,null,null,null,null,"",""]
[null,null,null,null,null,"",""]
[null,null,null,null,null,"",""]
[null,null,null,null,null,"",""]
[null,null,null,null,null,"",""]
[null,null,null,null,null,"",""]
[null,null,null,null,null,"",""]
[null,null,null,null,null,"",""]
[null,null,null,null,null,"",""]
[null,null,null,null,null,"",""]
[null,null,null,null,null,"",""]
[null,null,null,null,null,"",""]
[null,null,null,null,null,"",""]
[null,null,null,null,null,"",""]
[null,null,null,null,null,"",""]
[null,null,null,null,null,"",""]
[null,null,null,null,null,"",""]
[null,null,null,null,null,"",""]
[null,null,null,null,null,"",""]
[null,null,null,null,null,"",""]
[null,null,null,null,null,"",""]
[null,null,null,null,null,"",""]
[null,null,null,null,null,"",""]
[null,null,null,null,null,"",""]
[null,null,null,null,null,"",""]
[null,null,null,null,null,"",""]
[null,null,null,null,null,"",""]
[null,null,null,null,null,{"$f":"IF(D5334<>\"\",D5334*E5334,\"\")","v":""},{"$f":"IF(F5334<>\"\",F5334/9,\"\")","v":""}]
[null,null,null,null,null,"",""]
[null,null,null,null,null,"",""]
[null,null,null,null,null,"",""]
[null,null,null,null,null,"",""]
[null,null,null,null,null,"",""]
[null,null,null,null,null,"",""]
[null,null,null,null,null,"",""]
[null,null,null,null,null,"",""]
[null,null,null,null,null,"",""]
[null,null,null,null,null,"",""]
[null,null,null,null,null,"",""]
[null,null,null,null,null,"",""]
[null,null,null,null,null,"",""]
[null,null,null,null,null,"",""]
[null,null,null,null,null,"",""]
[null,null,null,null,null,"",""]
[null,null,null,null,null,"",""]
[null,null,null,null,null,"",""]
[null,null,null,null,null,"",""]
[null,null,null,null,null,"",""]
[null,null,null,null,null,"",""]
[null,null,null,null,null,"",""]
[null,null,null,null,null,"",""]
[null,null,null,null,null,"",""]
[null,null,null,null,null,"",""]
[null,null,null,null,null,"",""]
[null,null,null,null,null,"",""]
[null,null,null,null,null,"",""]
[null,null,null,null,null,"",""]
[null,null,null,null,null,"",""]
[null,null,null,null,null,"",""]
[null,null,null,null,null,"",""]
[null,null,null,null,null,"",""]
[null,null,null,null,null,"",""]
[null,null,null,null,null,"",""]
[null,null,null,null,null,"",""]
[null,null,null,null,null,"",""]
[null,null,null,null,null,"",""]
[null,null,null,null,null,"",""]
[null,null,null,null,null,"",""]
[null,null,null,null,null,"",""]
[null,null,null,null,null,"",""]
[null,null,null,null,null,"",""]
[null,null,null,null,null,"",""]
[null,null,null,null,null,"",""]
[null,null,null,null,null,"",""]
[null,null,null,null,null,"",""]
[null,null,null,null,null,"",""]
[null,null,null,null,null,"",""]
[null,null,null,null,null,"",""]
[null,null,null,null,null,"",""]
[null,null,null,null,null,"",""]
[null,null,null,null,null,"",""]
[null,null,null,null,null,"",""]
[null,null,null,null,null,"",""]
[null,null,null,null,null,"",""]
[null,null,null,null,null,"",""]
[null,null,null,null,null,"",""]
[null,null,null,null,null,"",""]
[null,null,null,null,null,"",""]
[null,null,null,null,null,"",""]
[null,null,null,null,null,"",""]
[null,null,null,null,null,"",""]
[null,null,null,null,null,{"$f":"IF(D5398<>\"\",D5398*E5398,\"\")","v":""},{"$f":"IF(F5398<>\"\",F5398/9,\"\")","v":""}]
[null,null,null,null,null,"",""]
[null,null,null,null,null,"",""]
[null,null,null,null,null,"",""]
[null,null,null,null,null,"",""]
[null,null,null,null,null,"",""]
[null,null,null,null,null,"",""]
[null,null,null,null,null,"",""]
[null,null,null,null,null,"",""]
[null,null,null,null,null,"",""]
[null,null,null,null,null,"",""]
[null,null,null,null,null,"",""]
[null,null,null,null,null,"",""]
[null,null,null,null,null,"",""]
[null,null,null,null,null,"",""]
[null,null,null,null,null,"",""]
[null,null,null,null,null,"",""]
[null,null,null,null,null,"",""]
[null,null,null,null,null,"",""]
[null,null,null,null,null,"",""]
[null,null,null,null,null,"",""]
[null,null,null,null,null,"",""]
[null,null,null,null,null,"",""]
[null,null,null,null,null,"",""]
[null,null,null,null,null,"",""]
[null,null,null,null,null,"",""]
[null,null,null,null,null,"",""]
[null,null,null,null,null,"",""]
[null,null,null,null,null,"",""]
[null,null,null,null,null,"",""]
[null,null,null,null,null,"",""]
[null,null,null,null,null,"",""]
[null,null,null,null,null,"",""]
[null,null,null,null,null,"",""]
[null,null,null,null,null,"",""]
[null,null,null,null,null,"",""]
[null,null,null,null,null,"",""]
[null,null,null,null,null,"",""]
[null,null,null,null,null,"",""]
[null,null,null,null,null,"",""]
[null,null,null,null,null,"",""]
[null,null,null,null,null,"",""]
[null,null,null,null,null,"",""]
[null,null,null,null,null,"",""]
[null,null,null,null,null,"",""]
[null,null,null,null,null,"",""]
[null,null,null,null,null,"",""]
[null,null,null,null,null,"",""]
[null,null,null,null,null,"",""]
[null,null,null,null,null,"",""]
[null,null,null,null,null,"",""]
[null,null,null,null,null,"",""]
[null,null,null,null,null,"",""]
[null,null,null,null,null,"",""]
[null,null,null,null,null,"",""]
[null,null,null,null,null,"",""]
[null,null,null,null,null,"",""]
[null,null,null,null,null,"",""]
[null,null,null,null,null,"",""]
[null,null,null,null,null,"",""]
[null,null,null,null,null,"",""]
[null,null,null,null,null,"",""]
[null,null,null,null,null,"",""]
[null,null,null,null,null,"",""]
[null,null,null,null,null,{"$f":"IF(D5462<>\"\",D5462*E5462,\"\")","v":""},{"$f":"IF(F5462<>\"\",F5462/9,\"\")","v":""}]
[null,null,null,null,null,"",""]
[null,null,null,null,null,"",""]
[null,null,null,null,null,"",""]
[null,null,null,null,null,"",""]
[null,null,null,null,null,"",""]
[null,null,null,null,null,"",""]
[null,null,null,null,null,"",""]
[null,null,null,null,null,"",""]
[null,null,null,null,null,"",""]
[null,null,null,null,null,"",""]
[null,null,null,null,null,"",""]
[null,null,null,null,null,"",""]
[null,null,null,null,null,"",""]
[null,null,null,null,null,"",""]
[null,null,null,null,null,"",""]
[null,null,null,null,null,"",""]
[null,null,null,null,null,"",""]
[null,null,null,null,null,"",""]
[null,null,null,null,null,"",""]
[null,null,null,null,null,"",""]
[null,null,null,null,null,"",""]
[null,null,null,null,null,"",""]
[null,null,null,null,null,"",""]
[null,null,null,null,null,"",""]
[null,null,null,null,null,"",""]
[null,null,null,null,null,"",""]
[null,null,null,null,null,"",""]
[null,null,null,null,null,"",""]
[null,null,null,null,null,"",""]
[null,null,null,null,null,"",""]
[null,null,null,null,null,"",""]
[null,null,null,null,null,"",""]
[null,null,null,null,null,"",""]
[null,null,null,null,null,"",""]
[null,null,null,null,null,"",""]
[null,null,null,null,null,"",""]
[null,null,null,null,null,"",""]
[null,null,null,null,null,"",""]
[null,null,null,null,null,"",""]
[null,null,null,null,null,"",""]
[null,null,null,null,null,"",""]
[null,null,null,null,null,"",""]
[null,null,null,null,null,"",""]
[null,null,null,null,null,"",""]
[null,null,null,null,null,"",""]
[null,null,null,null,null,"",""]
[null,null,null,null,null,"",""]
[null,null,null,null,null,"",""]
[null,null,null,null,null,"",""]
[null,null,null,null,null,"",""]
[null,null,null,null,null,"",""]
[null,null,null,null,null,"",""]
[null,null,null,null,null,"",""]
[null,null,null,null,null,"",""]
[null,null,null,null,null,"",""]
[null,null,null,null,null,"",""]
[null,null,null,null,null,"",""]
[null,null,null,null,null,"",""]
[null,null,null,null,null,"",""]
[null,null,null,null,null,"",""]
[null,null,null,null,null,"",""]
[null,null,null,null,null,"",""]
[null,null,null,null,null,"",""]
[null,null,null,null,null,{"$f":"IF(D5526<>\"\",D5526*E5526,\"\")","v":""},{"$f":"IF(F5526<>\"\",F5526/9,\"\")","v":""}]
[null,null,null,null,null,"",""]
[null,null,null,null,null,"",""]
[null,null,null,null,null,"",""]
[null,null,null,null,null,"",""]
[null,null,null,null,null,"",""]
[null,null,null,null,null,"",""]
[null,null,null,null,null,"",""]
[null,null,null,null,null,"",""]
[null,null,null,null,null,"",""]
[null,null,null,null,null,"",""]
[null,null,null,null,null,"",""]
[null,null,null,null,null,"",""]
[null,null,null,null,null,"",""]
[null,null,null,null,null,"",""]
[null,null,null,null,null,"",""]
[null,null,null,null,null,"",""]
[null,null,null,null,null,"",""]
[null,null,null,null,null,"",""]
[null,null,null,null,null,"",""]
[null,null,null,null,null,"",""]
[null,null,null,null,null,"",""]
[null,null,null,null,null,"",""]
[null,null,null,null,null,"",""]
[null,null,null,null,null,"",""]
[null,null,null,null,null,"",""]
[null,null,null,null,null,"",""]
[null,null,null,null,null,"",""]
[null,null,null,null,null,"",""]
[null,null,null,null,null,"",""]
[null,null,null,null,null,"",""]
[null,null,null,null,null,"",""]
[null,null,null,null,null,"",""]
[null,null,null,null,null,"",""]
[null,null,null,null,null,"",""]
[null,null,null,null,null,"",""]
[null,null,null,null,null,"",""]
[null,null,null,null,null,"",""]
[null,null,null,null,null,"",""]
[null,null,null,null,null,"",""]
[null,null,null,null,null,"",""]
[null,null,null,null,null,"",""]
[null,null,null,null,null,"",""]
[null,null,null,null,null,"",""]
[null,null,null,null,null,"",""]
[null,null,null,null,null,"",""]
[null,null,null,null,null,"",""]
[null,null,null,null,null,"",""]
[null,null,null,null,null,"",""]
[null,null,null,null,null,"",""]
[null,null,null,null,null,"",""]
[null,null,null,null,null,"",""]
[null,null,null,null,null,"",""]
[null,null,null,null,null,"",""]
[null,null,null,null,null,"",""]
[null,null,null,null,null,"",""]
[null,null,null,null,null,"",""]
[null,null,null,null,null,"",""]
[null,null,null,null,null,"",""]
[null,null,null,null,null,"",""]
[null,null,null,null,null,"",""]
[null,null,null,null,null,"",""]
[null,null,null,null,null,"",""]
[null,null,null,null,null,"",""]
[null,null,null,null,null,{"$f":"IF(D5590<>\"\",D5590*E5590,\"\")","v":""},{"$f":"IF(F5590<>\"\",F5590/9,\"\")","v":""}]
[null,null,null,null,null,"",""]
[null,null,null,null,null,"",""]
[null,null,null,null,null,"",""]
[null,null,null,null,null,"",""]
[null,null,null,null,null,"",""]
[null,null,null,null,null,"",""]
[null,null,null,null,null,"",""]
[null,null,null,null,null,"",""]
[null,null,null,null,null,"",""]
[null,null,null,null,null,"",""]
[null,null,null,null,null,"",""]
[null,null,null,null,null,"",""]
[null,null,null,null,null,"",""]
[null,null,null,null,null,"",""]
[null,null,null,null,null,"",""]
[null,null,null,null,null,"",""]
[null,null,null,null,null,"",""]
[null,null,null,null,null,"",""]
[null,null,null,null,null,"",""]
[null,null,null,null,null,"",""]
[null,null,null,null,null,"",""]
[null,null,null,null,null,"",""]
[null,null,null,null,null,"",""]
[null,null,null,null,null,"",""]
[null,null,null,null,null,"",""]
[null,null,null,null,null,"",""]
[null,null,null,null,null,"",""]
[null,null,null,null,null,"",""]
[null,null,null,null,null,"",""]
[null,null,null,null,null,"",""]
[null,null,null,null,null,"",""]
[null,null,null,null,null,"",""]
[null,null,null,null,null,"",""]
[null,null,null,null,null,"",""]
[null,null,null,null,null,"",""]
[null,null,null,null,null,"",""]
[null,null,null,null,null,"",""]
[null,null,null,null,null,"",""]
[null,null,null,null,null,"",""]
[null,null,null,null,null,"",""]
[null,null,null,null,null,"",""]
[null,null,null,null,null,"",""]
[null,null,null,null,null,"",""]
[null,null,null,null,null,"",""]
[null,null,null,null,null,"",""]
[null,null,null,null,null,"",""]
[null,null,null,null,null,"",""]
[null,null,null,null,null,"",""]
[null,null,null,null,null,"",""]
[null,null,null,null,null,"",""]
[null,null,null,null,null,"",""]
[null,null,null,null,null,"",""]
[null,null,null,null,null,"",""]
[null,null,null,null,null,"",""]
[null,null,null,null,null,"",""]
[null,null,null,null,null,"",""]
[null,null,null,null,null,"",""]
[null,null,null,null,null,"",""]
[null,null,null,null,null,"",""]
[null,null,null,null,null,"",""]
[null,null,null,null,null,"",""]
[null,null,null,null,null,"",""]
[null,null,null,null,null,"",""]
[null,null,null,null,null,{"$f":"IF(D5654<>\"\",D5654*E5654,\"\")","v":""},{"$f":"IF(F5654<>\"\",F5654/9,\"\")","v":""}]
[null,null,null,null,null,"",""]
[null,null,null,null,null,"",""]
[null,null,null,null,null,"",""]
[null,null,null,null,null,"",""]
[null,null,null,null,null,"",""]
[null,null,null,null,null,"",""]
[null,null,null,null,null,"",""]
[null,null,null,null,null,"",""]
[null,null,null,null,null,"",""]
[null,null,null,null,null,"",""]
[null,null,null,null,null,"",""]
[null,null,null,null,null,"",""]
[null,null,null,null,null,"",""]
[null,null,null,null,null,"",""]
[null,null,null,null,null,"",""]
[null,null,null,null,null,"",""]
[null,null,null,null,null,"",""]
[null,null,null,null,null,"",""]
[null,null,null,null,null,"",""]
[null,null,null,null,null,"",""]
[null,null,null,null,null,"",""]
[null,null,null,null,null,"",""]
[null,null,null,null,null,"",""]
[null,null,null,null,null,"",""]
[null,null,null,null,null,"",""]
[null,null,null,null,null,"",""]
[null,null,null,null,null,"",""]
[null,null,null,null,null,"",""]
[null,null,null,null,null,"",""]
[null,null,null,null,null,"",""]
[null,null,null,null,null,"",""]
[null,null,null,null,null,"",""]
[null,null,null,null,null,"",""]
[null,null,null,null,null,"",""]
[null,null,null,null,null,"",""]
[null,null,null,null,null,"",""]
[null,null,null,null,null,"",""]
[null,null,null,null,null,"",""]
[null,null,null,null,null,"",""]
[null,null,null,null,null,"",""]
[null,null,null,null,null,"",""]
[null,null,null,null,null,"",""]
[null,null,null,null,null,"",""]
[null,null,null,null,null,"",""]
[null,null,null,null,null,"",""]
[null,null,null,null,null,"",""]
[null,null,null,null,null,"",""]
[null,null,null,null,null,"",""]
[null,null,null,null,null,"",""]
[null,null,null,null,null,"",""]
[null,null,null,null,null,"",""]
[null,null,null,null,null,"",""]
[null,null,null,null,null,"",""]
[null,null,null,null,null,"",""]
[null,null,null,null,null,"",""]
[null,null,null,null,null,"",""]
[null,null,null,null,null,"",""]
[null,null,null,null,null,"",""]
[null,null,null,null,null,"",""]
[null,null,null,null,null,"",""]
[null,null,null,null,null,"",""]
[null,null,null,null,null,"",""]
[null,null,null,null,null,"",""]
[null,null,null,null,null,{"$f":"IF(D5718<>\"\",D5718*E5718,\"\")","v":""},{"$f":"IF(F5718<>\"\",F5718/9,\"\")","v":""}]
[null,null,null,null,null,"",""]
[null,null,null,null,null,"",""]
[null,null,null,null,null,"",""]
[null,null,null,null,null,"",""]
[null,null,null,null,null,"",""]
[null,null,null,null,null,"",""]
[null,null,null,null,null,"",""]
[null,null,null,null,null,"",""]
[null,null,null,null,null,"",""]
[null,null,null,null,null,"",""]
[null,null,null,null,null,"",""]
[null,null,null,null,null,"",""]
[null,null,null,null,null,"",""]
[null,null,null,null,null,"",""]
[null,null,null,null,null,"",""]
[null,null,null,null,null,"",""]
[null,null,null,null,null,"",""]
[null,null,null,null,null,"",""]
[null,null,null,null,null,"",""]
[null,null,null,null,null,"",""]
[null,null,null,null,null,"",""]
[null,null,null,null,null,"",""]
[null,null,null,null,null,"",""]
[null,null,null,null,null,"",""]
[null,null,null,null,null,"",""]
[null,null,null,null,null,"",""]
[null,null,null,null,null,"",""]
[null,null,null,null,null,"",""]
[null,null,null,null,null,"",""]
[null,null,null,null,null,"",""]
[null,null,null,null,null,"",""]
[null,null,null,null,null,"",""]
[null,null,null,null,null,"",""]
[null,null,null,null,null,"",""]
[null,null,null,null,null,"",""]
[null,null,null,null,null,"",""]
[null,null,null,null,null,"",""]
[null,null,null,null,null,"",""]
[null,null,null,null,null,"",""]
[null,null,null,null,null,"",""]
[null,null,null,null,null,"",""]
[null,null,null,null,null,"",""]
[null,null,null,null,null,"",""]
[null,null,null,null,null,"",""]
[null,null,null,null,null,"",""]
[null,null,null,null,null,"",""]
[null,null,null,null,null,"",""]
[null,null,null,null,null,"",""]
[null,null,null,null,null,"",""]
[null,null,null,null,null,"",""]
[null,null,null,null,null,"",""]
[null,null,null,null,null,"",""]
[null,null,null,null,null,"",""]
[null,null,null,null,null,"",""]
[null,null,null,null,null,"",""]
[null,null,null,null,null,"",""]
[null,null,null,null,null,"",""]
[null,null,null,null,null,"",""]
[null,null,null,null,null,"",""]
[null,null,null,null,null,"",""]
[null,null,null,null,null,"",""]
[null,null,null,null,null,"",""]
[null,null,null,null,null,"",""]
[null,null,null,null,null,{"$f":"IF(D5782<>\"\",D5782*E5782,\"\")","v":""},{"$f":"IF(F5782<>\"\",F5782/9,\"\")","v":""}]
[null,null,null,null,null,"",""]
[null,null,null,null,null,"",""]
[null,null,null,null,null,"",""]
[null,null,null,null,null,"",""]
[null,null,null,null,null,"",""]
[null,null,null,null,null,"",""]
[null,null,null,null,null,"",""]
[null,null,null,null,null,"",""]
[null,null,null,null,null,"",""]
[null,null,null,null,null,"",""]
[null,null,null,null,null,"",""]
[null,null,null,null,null,"",""]
[null,null,null,null,null,"",""]
[null,null,null,null,null,"",""]
[null,null,null,null,null,"",""]
[null,null,null,null,null,"",""]
[null,null,null,null,null,"",""]
[null,null,null,null,null,"",""]
[null,null,null,null,null,"",""]
[null,null,null,null,null,"",""]
[null,null,null,null,null,"",""]
[null,null,null,null,null,"",""]
[null,null,null,null,null,"",""]
[null,null,null,null,null,"",""]
[null,null,null,null,null,"",""]
[null,null,null,null,null,"",""]
[null,null,null,null,null,"",""]
[null,null,null,null,null,"",""]
[null,null,null,null,null,"",""]
[null,null,null,null,null,"",""]
[null,null,null,null,null,"",""]
[null,null,null,null,null,"",""]
[null,null,null,null,null,"",""]
[null,null,null,null,null,"",""]
[null,null,null,null,null,"",""]
[null,null,null,null,null,"",""]
[null,null,null,null,null,"",""]
[null,null,null,null,null,"",""]
[null,null,null,null,null,"",""]
[null,null,null,null,null,"",""]
[null,null,null,null,null,"",""]
[null,null,null,null,null,"",""]
[null,null,null,null,null,"",""]
[null,null,null,null,null,"",""]
[null,null,null,null,null,"",""]
[null,null,null,null,null,"",""]
[null,null,null,null,null,"",""]
[null,null,null,null,null,"",""]
[null,null,null,null,null,"",""]
[null,null,null,null,null,"",""]
[null,null,null,null,null,"",""]
[null,null,null,null,null,"",""]
[null,null,null,null,null,"",""]
[null,null,null,null,null,"",""]
[null,null,null,null,null,"",""]
[null,null,null,null,null,"",""]
[null,null,null,null,null,"",""]
[null,null,null,null,null,"",""]
[null,null,null,null,null,"",""]
[null,null,null,null,null,"",""]
[null,null,null,null,null,"",""]
[null,null,null,null,null,"",""]
[null,null,null,null,null,"",""]
[null,null,null,null,null,{"$f":"IF(D5846<>\"\",D5846*E5846,\"\")","v":""},{"$f":"IF(F5846<>\"\",F5846/9,\"\")","v":""}]
[null,null,null,null,null,"",""]
[null,null,null,null,null,"",""]
[null,null,null,null,null,"",""]
[null,null,null,null,null,"",""]
[null,null,null,null,null,"",""]
[null,null,null,null,null,"",""]
[null,null,null,null,null,"",""]
[null,null,null,null,null,"",""]
[null,null,null,null,null,"",""]
[null,null,null,null,null,"",""]
[null,null,null,null,null,"",""]
[null,null,null,null,null,"",""]
[null,null,null,null,null,"",""]
[null,null,null,null,null,"",""]
[null,null,null,null,null,"",""]
[null,null,null,null,null,"",""]
[null,null,null,null,null,"",""]
[null,null,null,null,null,"",""]
[null,null,null,null,null,"",""]
[null,null,null,null,null,"",""]
[null,null,null,null,null,"",""]
[null,null,null,null,null,"",""]
[null,null,null,null,null,"",""]
[null,null,null,null,null,"",""]
[null,null,null,null,null,"",""]
[null,null,null,null,null,"",""]
[null,null,null,null,null,"",""]
[null,null,null,null,null,"",""]
[null,null,null,null,null,"",""]
[null,null,null,null,null,"",""]
[null,null,null,null,null,"",""]
[null,null,null,null,null,"",""]
[null,null,null,null,null,"",""]
[null,null,null,null,null,"",""]
[null,null,null,null,null,"",""]
[null,null,null,null,null,"",""]
[null,null,null,null,null,"",""]
[null,null,null,null,null,"",""]
[null,null,null,null,null,"",""]
[null,null,null,null,null,"",""]
[null,null,null,null,null,"",""]
[null,null,null,null,null,"",""]
[null,null,null,null,null,"",""]
[null,null,null,null,null,"",""]
[null,null,null,null,null,"",""]
[null,null,null,null,null,"",""]
[null,null,null,null,null,"",""]
[null,null,null,null,null,"",""]
[null,null,null,null,null,"",""]
[null,null,null,null,null,"",""]
[null,null,null,null,null,"",""]
[null,null,null,null,null,"",""]
[null,null,null,null,null,"",""]
[null,null,null,null,null,"",""]
[null,null,null,null,null,"",""]
[null,null,null,null,null,"",""]
[null,null,null,null,null,"",""]
[null,null,null,null,null,"",""]
[null,null,null,null,null,"",""]
[null,null,null,null,null,"",""]
[null,null,null,null,null,"",""]
[null,null,null,null,null,"",""]
[null,null,null,null,null,"",""]
[null,null,null,null,null,{"$f":"IF(D5910<>\"\",D5910*E5910,\"\")","v":""},{"$f":"IF(F5910<>\"\",F5910/9,\"\")","v":""}]
[null,null,null,null,null,"",""]
[null,null,null,null,null,"",""]
[null,null,null,null,null,"",""]
[null,null,null,null,null,"",""]
[null,null,null,null,null,"",""]
[null,null,null,null,null,"",""]
[null,null,null,null,null,"",""]
[null,null,null,null,null,"",""]
[null,null,null,null,null,"",""]
[null,null,null,null,null,"",""]
[null,null,null,null,null,"",""]
[null,null,null,null,null,"",""]
[null,null,null,null,null,"",""]
[null,null,null,null,null,"",""]
[null,null,null,null,null,"",""]
[null,null,null,null,null,"",""]
[null,null,null,null,null,"",""]
[null,null,null,null,null,"",""]
[null,null,null,null,null,"",""]
[null,null,null,null,null,"",""]
[null,null,null,null,null,"",""]
[null,null,null,null,null,"",""]
[null,null,null,null,null,"",""]
[null,null,null,null,null,"",""]
[null,null,null,null,null,"",""]
[null,null,null,null,null,"",""]
[null,null,null,null,null,"",""]
[null,null,null,null,null,"",""]
[null,null,null,null,null,"",""]
[null,null,null,null,null,"",""]
[null,null,null,null,null,"",""]
[null,null,null,null,null,"",""]
[null,null,null,null,null,"",""]
[null,null,null,null,null,"",""]
[null,null,null,null,null,"",""]
[null,null,null,null,null,"",""]
[null,null,null,null,null,"",""]
[null,null,null,null,null,"",""]
[null,null,null,null,null,"",""]
[null,null,null,null,null,"",""]
[null,null,null,null,null,"",""]
[null,null,null,null,null,"",""]
[null,null,null,null,null,"",""]
[null,null,null,null,null,"",""]
[null,null,null,null,null,"",""]
[null,null,null,null,null,"",""]
[null,null,null,null,null,"",""]
[null,null,null,null,null,"",""]
[null,null,null,null,null,"",""]
[null,null,null,null,null,"",""]
[null,null,null,null,null,"",""]
[null,null,null,null,null,"",""]
[null,null,null,null,null,"",""]
[null,null,null,null,null,"",""]
[null,null,null,null,null,"",""]
[null,null,null,null,null,"",""]
[null,null,null,null,null,"",""]
[null,null,null,null,null,"",""]
[null,null,null,null,null,"",""]
[null,null,null,null,null,"",""]
[null,null,null,null,null,"",""]
[null,null,null,null,null,"",""]
[null,null,null,null,null,"",""]
[null,null,null,null,null,{"$f":"IF(D5974<>\"\",D5974*E5974,\"\")","v":""},{"$f":"IF(F5974<>\"\",F5974/9,\"\")","v":""}]
[null,null,null,null,null,"",""]
[null,null,null,null,null,"",""]
[null,null,null,null,null,"",""]
[null,null,null,null,null,"",""]
[null,null,null,null,null,"",""]
[null,null,null,null,null,"",""]
[null,null,null,null,null,"",""]
[null,null,null,null,null,"",""]
[null,null,null,null,null,"",""]
[null,null,null,null,null,"",""]
[null,null,null,null,null,"",""]
[null,null,null,null,null,"",""]
[null,null,null,null,null,"",""]
[null,null,null,null,null,"",""]
[null,null,null,null,null,"",""]
[null,null,null,null,null,"",""]
[null,null,null,null,null,"",""]
[null,null,null,null,null,"",""]
[null,null,null,null,null,"",""]
[null,null,null,null,null,"",""]
[null,null,null,null,null,"",""]
[null,null,null,null,null,"",""]
[null,null,null,null,null,"",""]
[null,null,null,null,null,"",""]
[null,null,null,null,null,"",""]
[null,null,null,null,null,"",""]

{"sheet":"DE105_4","index":6,"n_rows":23,"n_cols":9,"rows_kept":23,"cut":false,"hidden":false,"merged":[[18,6,18,8],[14,2,15,4],[14,6,14,8],[15,6,15,8],[16,2,16,4],[16,6,17,8],[17,2,17,4]]}
["TabTitle",{"$f":"C15","v":"STANDARD ROAD PLANS"}]
["Number of Tab Columns",3]
["DE Starter Row Number",20]
["TabSheet Starter Row Number",7]
["TabSheet Header Row Count",6]
["Top Header Cell","G15"]
["Bottom Header Cell","I20"]
["DESheet Row Count",4]
["Fixed Empty Rows",10]
["Usable Empty Rows",0]
["Total Rows Placed",15,"xlLeft","xlCenter","xlLeft",null,{"$f":"C11","v":"xlLeft"},{"$f":"D11","v":"xlCenter"},{"$f":"E11","v":"xlLeft"}]
["Total Rows Needed",{"$f":"SUM(B8:B10)","v":14},"General","Text","General",null,{"$f":"C12","v":"General"},{"$f":"D12","v":"Text"},"General"]
["Last Tab DE Starter Row",20,{"$f":"CELL(\"width\",C13)","v":12},{"$f":"CELL(\"width\",D13)","v":12},134,null,{"$f":"CELL(\"width\",G13)","v":0},{"$f":"CELL(\"width\",H13)","v":0},0]
["Last Tab Tabsheet Starter Row",7,"A","B","C",null,{"$f":"LOWER(C14)","v":"a"},{"$f":"LOWER(D14)","v":"b"},"c"]
["Last Copy Starter Row",1,"STANDARD ROAD PLANS",null,null,null,"105-4"]
["Tab Loop Number",2,null,null,null,null,{"$f":"B17","v":"2011-10-18"}]
["Revision Date","2011-10-18","The following Standard Road Plans apply to construction work on this project.",null,null,null,{"$f":"C15","v":"STANDARD ROAD PLANS"}]
["Tabulation Width",2,{"$f":"\"This Data Entry Sheet fills Tab \"&G15&\" effective \"&TEXT(B17,\"mm-dd-yy\")","v":"This Data Entry Sheet fills Tab 105-4 effective 10-18-11"}]
["Horizontal Grid Lines","Yes","Number","Date","Title",null,{"$f":"C17","v":"The following Standard Road Plans apply to construction work on this project."}]
[null,2,"BR-203","10-17-17","Double Reinforced 12\" Approach",null,{"$f":"C19","v":"Number"},{"$f":"D19","v":"Date"},{"$f":"E19","v":"Title"}]
[null,null,"BR-213","04-21-15","Bridge Approach (Abutting Pavement)"]
[null,null,"DR-306","10-17-17","Precast Concrete Headwall for Subdrain Outlets"]
[null,null,"PV-101","10-17-17","Joints"]

{"sheet":"DE112_6","index":7,"n_rows":35,"n_cols":49,"rows_kept":35,"cut":false,"hidden":false,"merged":[[25,4,25,5],[25,26,25,27],[34,5,34,6],[22,42,25,42],[22,43,25,43],[23,6,25,6],[23,11,26,11],[23,12,26,12],[23,13,26,13],[23,28,25,28],[23,33,26,33],[23,34,26,34],[23,35,26,35],[22,21,25,21],[22,36,25,36],[22,37,25,38],[22,40,25,40],[22,41,25,41],[21,30,25,30],[21,31,25,31],[21,32,25,32],[21,37,21,38],[22,15,25,16],[22,17,25,17],[22,18,25,18],[22,19,25,19],[22,39,25,39],[20,43,21,43],[20,44,26,44],[21,2,26,2],[21,3,26,3],[21,4,24,5],[21,7,25,7],[21,8,25,8],[21,9,25,9],[21,10,25,10],[21,15,21,16],[20,24,20,27],[20,28,20,32],[20,33,22,35],[20,36,20,40],[20,41,21,41],[22,14,25,14],[19,2,19,22],[19,24,19,44],[20,2,20,5],[20,6,20,10],[20,11,22,13],[20,14,20,18],[20,19,21,19],[20,20,21,20],[20,21,21,21],[20,22,26,22],[20,42,21,42],[21,24,26,24],[21,25,26,25],[21,26,24,27],[21,29,25,29],[22,20,25,20],[18,2,18,22],[18,24,18,44],[14,24,14,44],[15,2,16,22],[15,24,15,44],[16,24,17,44],[17,2,17,22]]}
["TabTitle",{"$f":"C16","v":"BRIDGE APPROACH SECTION"}]
["Number of Tab Columns",21]
["DE Starter Row Number",28]
["TabSheet Starter Row Number",14]
["TabSheet Header Row Count",13]
["Top Header Cell","Y15"]
["Bottom Header Cell","AS27"]
["DESheet Row Count",8]
["Fixed Empty Rows",0]
["Usable Empty Rows",10]
["Total Rows Placed",18,"xlRight(1)","xlRight(1)","xlRight(1)","xlRight(1)","xlRight(1)","xlRight(1)","xlRight(1)","xlRight(1)","xlRight(1)","xlCenter","xlCenter","xlCenter","xlRight(1)","xlRight(1)","xlCenter","xlRight(1)","xlRight(1)","xlRight(1)","xlRight(1)","xlRight(1)","xlLeft(1)",null,{"$f":"C11","v":"xlRight(1)"},"xlRight(1)","xlRight(1)","xlRight(1)","xlRight(1)","xlRight(1)","xlRight(1)","xlRight(1)","xlRight(1)","xlCenter","xlCenter","xlCenter","xlRight(1)","xlRight(1)","xlCenter","xlRight(1)",{"$f":"S11","v":"xlRight(1)"},"xlRight(1)","xlRight(1)","xlRight(1)","xlLeft(1)"]
["Total Rows Needed",{"$f":"SUM(B8:B10)","v":18},"#+00.00","General","General","General","0.0","0.0","0.0","0.0","0.0","General","General","General","0.0","#+00.00","General","0.0","0.0","0.000","0.0","0.000","General",null,"#+00.00","General","General","General","0.0","0.0","0.0","0.0","0.0","General","General","General","0.0","#+00.00","General","0.0","0.0","0.000","0.0","0.000","General"]
["Last Tab DE Starter Row",28,{"$f":"CELL(\"width\",C13)","v":16},8,12,12,12,8,12,12,12,12,12,12,14,16,8,12,15,12,12,12,69,null,{"$f":"CELL(\"width\",Y13)","v":0},0,0,0,0,0,0,0,0,0,0,0,0,0,0,0,0,0,0,0,0]
["Last Tab Tabsheet Starter Row",14,"A","B","C","D","E","F","G","H","I","J","K","L","M","N","O","P","Q","R","S","T","U",null,{"$f":"LOWER(C14)","v":"a"},"b","c","d","e","f","g","h","i","j","k","l","m","n","o","p","q","r","s","t","u"]
["Last Copy Starter Row",1,null,null,null,null,null,"Totals:",{"$f":"SUBTOTAL(9,I28:I6000)","v":892.79},{"$f":"SUBTOTAL(9,J28:J6000)","v":248.88},{"$f":"SUBTOTAL(9,K28:K6000)","v":416.74},null,null,null,null,null,null,null,null,null,null,null,null,null,"112-6",null,null,null,null,null,null,null,null,null,null,null,null,null,null,null,null,null,null,null,null,null,{"$f":"L24","v":"Approach"},{"$f":"M24","v":"Fixed or Movable Abutment"},{"$f":"N24","v":"Abutting Pavement"}]
["Tab Loop Number",2,"BRIDGE APPROACH SECTION",null,null,null,null,null,null,null,null,null,null,null,null,null,null,null,null,null,null,null,null,null,{"$f":"B17","v":"2017-04-18"},null,null,null,null,null,null,null,null,null,null,null,null,null,null,null,null,null,null,null,null,null,"BR-201","Fixed","BR-211"]
["Revision Date","2017-04-18",null,null,null,null,null,null,null,null,null,null,null,null,null,null,null,null,null,null,null,null,null,null,{"$f":"C16","v":"BRIDGE APPROACH SECTION"},null,null,null,null,null,null,null,null,null,null,null,null,null,null,null,null,null,null,null,null,null,"BR-202","Movable","BR-212"]
["Tabulation Width",4,"Refer to the BR Series.",null,null,null,null,null,null,null,null,null,null,null,null,null,null,null,null,null,null,null,null,null,null,null,null,null,null,null,null,null,null,null,null,null,null,null,null,null,null,null,null,null,null,null,"BR-203",null,"BR-213"]
["Horizontal Grid Lines","Yes","* Not a bid item",null,null,null,null,null,null,null,null,null,null,null,null,null,null,null,null,null,null,null,null,null,{"$f":"C18","v":"Refer to the BR Series."},null,null,null,null,null,null,null,null,null,null,null,null,null,null,null,null,null,null,null,null,null,"BR-204",null,"BR-231"]
[null,null,{"$f":"\"This Data Entry Sheet fills Tab \"&Y15&\" effective \"&TEXT(B17,\"mm-dd-yy\")","v":"This Data Entry Sheet fills Tab 112-6 effective 04-18-17"},null,null,null,null,null,null,null,null,null,null,null,null,null,null,null,null,null,null,null,null,null,{"$f":"C19","v":"* Not a bid item"},null,null,null,null,null,null,null,null,null,null,null,null,null,null,null,null,null,null,null,null,null,"BR-205",null,"Gravel"]
[null,null,"Location",null,null,null,"Approach Pavement",null,null,null,null,"Standard Road Plans\nBR Series",null,null,"Subdrain",null,null,null,null,"*","*","*","Remarks",null,{"$f":"C21","v":"Location"},null,null,null,{"$f":"G21","v":"Approach Pavement"},null,null,null,null,{"$f":"L21","v":"Standard Road Plans\nBR Series"},null,null,{"$f":"O21","v":"Subdrain"},null,null,null,null,{"$f":"T21","v":"*"},{"$f":"U21","v":"*"},{"$f":"V21","v":"*"},{"$f":"W21","v":"Remarks"},null,"BR-241"]
[null,null,"Bridge Station","End","Skew Ahead",null," ","Pay\nLength","Non-Reinf.\nPavement\nArea","Single-\nReinf.\nPavement\nArea","Double-\nReinf.\nPavement\nArea",null,null,null,"*","*",null,"*","*",null,null,null,null,null,{"$f":"C22","v":"Bridge Station"},{"$f":"D22","v":"End"},{"$f":"E22","v":"Skew Ahead"},null,null,{"$f":"H22","v":"Pay\nLength"},{"$f":"I22","v":"Non-Reinf.\nPavement\nArea"},{"$f":"J22","v":"Single-\nReinf.\nPavement\nArea"},{"$f":"K22","v":"Double-\nReinf.\nPavement\nArea"},null,null,null,{"$f":"O22","v":"*"},{"$f":"P22","v":"*"},null,{"$f":"R22","v":"*"},{"$f":"S22","v":"*"}]
[null,null,null,null,null,null,null,null,null,null,null,null,null,null,"Perforated Subdrain 4\"","Subdrain Outlet",null,"Porous Backfill","Class 'A' Crushed Stone Backfill","Modified Subbase","Polymer Grid","Special Backfill",null,null,null,null,null,null,null,null,null,null,null,null,null,null,{"$f":"O23","v":"Perforated Subdrain 4\""},{"$f":"P23","v":"Subdrain Outlet"},null,{"$f":"R23","v":"Porous Backfill"},{"$f":"S23","v":"Class 'A' Crushed Stone Backfill"},{"$f":"T23","v":"Modified Subbase"},{"$f":"U23","v":"Polymer Grid"},{"$f":"V23","v":"Special Backfill"}]
[null,null,null,null,null,null,"Thickness",null,null,null,null,"Approach","Fixed or Movable Abutment","Abutting Pavement",null,null,null,null,null,null,null,null,null,null,null,null,null,null,{"$f":"G24","v":"Thickness"},null,null,null,null,{"$f":"L24","v":"Approach"},{"$f":"M24","v":"Fixed or Movable Abutment"},{"$f":"N24","v":"Abutting Pavement"}]
[]
[null,null,null,null,"Degrees",null,null,null,null,null,null,null,null,null,null,null,null,null,null,null,null,null,null,null,null,null,{"$f":"E26","v":"Degrees"}]
[null,null,null,null,"LEFT","RIGHT","Inches","FT","SY","SY","SY",null,null,null,"LF","STA","Side","CY","CY","TON","SY","TON",null,null,null,null,{"$f":"E27","v":"LEFT"},{"$f":"F27","v":"RIGHT"},"Inches","FT","SY","SY","SY",null,null,null,{"$f":"O27","v":"LF"},"STA","Side","CY","CY","TON","SY","TON"]
[null,null,"US 218"]
[null,null,24147575.719999999,"South",null,null,12,70,93.33,62.22,107.7,"BR-203","Movable","BR-211",82,24147370,"RT",14,{"$f":"ROUNDUP((15*(10/12)*0.5)/27,)","v":1},262.77999999999997,284.14999999999998]
[null,null,24147575.719999999,"North",null,null,12,70,93.33,62.22,100.67,"BR-203","Movable","BR-211",72,24147765.719999999,"LT",12,{"$f":"S29","v":1},267.7,288.22000000000003]
[]
[]
[null,null,null,null,null,null,"TOTALS:",{"$f":"SUM(H29:H32)","v":140},{"$f":"SUM(I29:I32)","v":186.66},124.44,208.37,null,null,null,154,48295135.719999999,null,26,2,530.48,572.37]
[]
[null,null,null,null,null,"BRIDGE APPROACH TOTAL:",null,null,{"$f":"SUM(I33:K33)","v":519.47}]

{"sheet":"100_0A","index":8,"n_rows":20,"n_cols":6,"rows_kept":20,"cut":false,"hidden":false,"merged":[[0,0,0,5],[1,0,1,5],[2,0,5,5],[6,0,7,0],[6,1,7,1],[6,2,7,2],[6,3,7,3],[6,4,7,4],[6,5,7,5]]}
["100-0A"]
["1997-10-28"]
["ESTIMATED ROADWAY QUANTITIES\n(1 DIVISION PROJECT)"]
[]
[]
[]
["Item No.","Item Code","Item","Unit","Total","As Built Qty."]
[]
[{"$f":"IF(OFFSET(DE100_0A!$C$22,ROWS($C$22:C22)-1,COLUMNS($C$22:C22)-1)<>\"\",OFFSET(DE100_0A!$C$22,ROWS($C$22:C22)-1,COLUMNS($C$22:C22)-1),\"\")","v":"1"},{"$f":"IF(OFFSET(DE100_0A!$D$22,ROWS($D$22:D22)-1,COLUMNS($D$22:D22)-1)<>\"\",OFFSET(DE100_0A!$D$22,ROWS($D$22:D22)-1,COLUMNS($D$22:D22)-1),\"\")","v":"2301-0690203"},{"$f":"IF(OFFSET(DE100_0A!$E$22,ROWS($E$22:E22)-1,COLUMNS($E$22:E22)-1)<>\"\",OFFSET(DE100_0A!$E$22,ROWS($E$22:E22)-1,COLUMNS($E$22:E22)-1),\"\")","v":"BRIDGE APPROACH, BR-203   "},{"$f":"IF(OFFSET(DE100_0A!$F$22,ROWS($F$22:F22)-1,COLUMNS($F$22:F22)-1)<>\"\",OFFSET(DE100_0A!$F$22,ROWS($F$22:F22)-1,COLUMNS($F$22:F22)-1),\"\")","v":"SY"},{"$f":"IF(OFFSET(DE100_0A!$G$22,ROWS($G$22:G22)-1,COLUMNS($G$22:G22)-1)<>\"\",OFFSET(DE100_0A!$G$22,ROWS($G$22:G22)-1,COLUMNS($G$22:G22)-1),\"\")","v":"519.5  "},{"$f":"IF(OFFSET(DE100_0A!$H$22,ROWS($H$22:H22)-1,COLUMNS($H$22:H22)-1)<>\"\",OFFSET(DE100_0A!$H$22,ROWS($H$22:H22)-1,COLUMNS($H$22:H22)-1),\"\")","v":""}]
[{"$f":"IF(OFFSET(DE100_0A!$C$22,ROWS($C$22:C23)-1,COLUMNS($C$22:C23)-1)<>\"\",OFFSET(DE100_0A!$C$22,ROWS($C$22:C23)-1,COLUMNS($C$22:C23)-1),\"\")","v":"2"},{"$f":"IF(OFFSET(DE100_0A!$D$22,ROWS($D$22:D23)-1,COLUMNS($D$22:D23)-1)<>\"\",OFFSET(DE100_0A!$D$22,ROWS($D$22:D23)-1,COLUMNS($D$22:D23)-1),\"\")","v":"2412-0000100"},{"$f":"IF(OFFSET(DE100_0A!$E$22,ROWS($E$22:E23)-1,COLUMNS($E$22:E23)-1)<>\"\",OFFSET(DE100_0A!$E$22,ROWS($E$22:E23)-1,COLUMNS($E$22:E23)-1),\"\")","v":"LONGITUDINAL GROOVING IN CONCRETE   "},{"$f":"IF(OFFSET(DE100_0A!$F$22,ROWS($F$22:F23)-1,COLUMNS($F$22:F23)-1)<>\"\",OFFSET(DE100_0A!$F$22,ROWS($F$22:F23)-1,COLUMNS($F$22:F23)-1),\"\")","v":"SY"},{"$f":"IF(OFFSET(DE100_0A!$G$22,ROWS($G$22:G23)-1,COLUMNS($G$22:G23)-1)<>\"\",OFFSET(DE100_0A!$G$22,ROWS($G$22:G23)-1,COLUMNS($G$22:G23)-1),\"\")","v":"1,790.6  "},{"$f":"IF(OFFSET(DE100_0A!$H$22,ROWS($H$22:H23)-1,COLUMNS($H$22:H23)-1)<>\"\",OFFSET(DE100_0A!$H$22,ROWS($H$22:H23)-1,COLUMNS($H$22:H23)-1),\"\")","v":""}]
[{"$f":"IF(OFFSET(DE100_0A!$C$22,ROWS($C$22:C24)-1,COLUMNS($C$22:C24)-1)<>\"\",OFFSET(DE100_0A!$C$22,ROWS($C$22:C24)-1,COLUMNS($C$22:C24)-1),\"\")","v":""},{"$f":"IF(OFFSET(DE100_0A!$D$22,ROWS($D$22:D24)-1,COLUMNS($D$22:D24)-1)<>\"\",OFFSET(DE100_0A!$D$22,ROWS($D$22:D24)-1,COLUMNS($D$22:D24)-1),\"\")","v":""},{"$f":"IF(OFFSET(DE100_0A!$E$22,ROWS($E$22:E24)-1,COLUMNS($E$22:E24)-1)<>\"\",OFFSET(DE100_0A!$E$22,ROWS($E$22:E24)-1,COLUMNS($E$22:E24)-1),\"\")","v":""},{"$f":"IF(OFFSET(DE100_0A!$F$22,ROWS($F$22:F24)-1,COLUMNS($F$22:F24)-1)<>\"\",OFFSET(DE100_0A!$F$22,ROWS($F$22:F24)-1,COLUMNS($F$22:F24)-1),\"\")","v":""},{"$f":"IF(OFFSET(DE100_0A!$G$22,ROWS($G$22:G24)-1,COLUMNS($G$22:G24)-1)<>\"\",OFFSET(DE100_0A!$G$22,ROWS($G$22:G24)-1,COLUMNS($G$22:G24)-1),\"\")","v":""},{"$f":"IF(OFFSET(DE100_0A!$H$22,ROWS($H$22:H24)-1,COLUMNS($H$22:H24)-1)<>\"\",OFFSET(DE100_0A!$H$22,ROWS($H$22:H24)-1,COLUMNS($H$22:H24)-1),\"\")","v":""}]
[{"$f":"IF(OFFSET(DE100_0A!$C$22,ROWS($C$22:C25)-1,COLUMNS($C$22:C25)-1)<>\"\",OFFSET(DE100_0A!$C$22,ROWS($C$22:C25)-1,COLUMNS($C$22:C25)-1),\"\")","v":""},{"$f":"IF(OFFSET(DE100_0A!$D$22,ROWS($D$22:D25)-1,COLUMNS($D$22:D25)-1)<>\"\",OFFSET(DE100_0A!$D$22,ROWS($D$22:D25)-1,COLUMNS($D$22:D25)-1),\"\")","v":""},{"$f":"IF(OFFSET(DE100_0A!$E$22,ROWS($E$22:E25)-1,COLUMNS($E$22:E25)-1)<>\"\",OFFSET(DE100_0A!$E$22,ROWS($E$22:E25)-1,COLUMNS($E$22:E25)-1),\"\")","v":""},{"$f":"IF(OFFSET(DE100_0A!$F$22,ROWS($F$22:F25)-1,COLUMNS($F$22:F25)-1)<>\"\",OFFSET(DE100_0A!$F$22,ROWS($F$22:F25)-1,COLUMNS($F$22:F25)-1),\"\")","v":""},{"$f":"IF(OFFSET(DE100_0A!$G$22,ROWS($G$22:G25)-1,COLUMNS($G$22:G25)-1)<>\"\",OFFSET(DE100_0A!$G$22,ROWS($G$22:G25)-1,COLUMNS($G$22:G25)-1),\"\")","v":""},{"$f":"IF(OFFSET(DE100_0A!$H$22,ROWS($H$22:H25)-1,COLUMNS($H$22:H25)-1)<>\"\",OFFSET(DE100_0A!$H$22,ROWS($H$22:H25)-1,COLUMNS($H$22:H25)-1),\"\")","v":""}]
[{"$f":"IF(OFFSET(DE100_0A!$C$22,ROWS($C$22:C26)-1,COLUMNS($C$22:C26)-1)<>\"\",OFFSET(DE100_0A!$C$22,ROWS($C$22:C26)-1,COLUMNS($C$22:C26)-1),\"\")","v":""},{"$f":"IF(OFFSET(DE100_0A!$D$22,ROWS($D$22:D26)-1,COLUMNS($D$22:D26)-1)<>\"\",OFFSET(DE100_0A!$D$22,ROWS($D$22:D26)-1,COLUMNS($D$22:D26)-1),\"\")","v":""},{"$f":"IF(OFFSET(DE100_0A!$E$22,ROWS($E$22:E26)-1,COLUMNS($E$22:E26)-1)<>\"\",OFFSET(DE100_0A!$E$22,ROWS($E$22:E26)-1,COLUMNS($E$22:E26)-1),\"\")","v":""},{"$f":"IF(OFFSET(DE100_0A!$F$22,ROWS($F$22:F26)-1,COLUMNS($F$22:F26)-1)<>\"\",OFFSET(DE100_0A!$F$22,ROWS($F$22:F26)-1,COLUMNS($F$22:F26)-1),\"\")","v":""},{"$f":"IF(OFFSET(DE100_0A!$G$22,ROWS($G$22:G26)-1,COLUMNS($G$22:G26)-1)<>\"\",OFFSET(DE100_0A!$G$22,ROWS($G$22:G26)-1,COLUMNS($G$22:G26)-1),\"\")","v":""},{"$f":"IF(OFFSET(DE100_0A!$H$22,ROWS($H$22:H26)-1,COLUMNS($H$22:H26)-1)<>\"\",OFFSET(DE100_0A!$H$22,ROWS($H$22:H26)-1,COLUMNS($H$22:H26)-1),\"\")","v":""}]
[{"$f":"IF(OFFSET(DE100_0A!$C$22,ROWS($C$22:C27)-1,COLUMNS($C$22:C27)-1)<>\"\",OFFSET(DE100_0A!$C$22,ROWS($C$22:C27)-1,COLUMNS($C$22:C27)-1),\"\")","v":""},{"$f":"IF(OFFSET(DE100_0A!$D$22,ROWS($D$22:D27)-1,COLUMNS($D$22:D27)-1)<>\"\",OFFSET(DE100_0A!$D$22,ROWS($D$22:D27)-1,COLUMNS($D$22:D27)-1),\"\")","v":""},{"$f":"IF(OFFSET(DE100_0A!$E$22,ROWS($E$22:E27)-1,COLUMNS($E$22:E27)-1)<>\"\",OFFSET(DE100_0A!$E$22,ROWS($E$22:E27)-1,COLUMNS($E$22:E27)-1),\"\")","v":""},{"$f":"IF(OFFSET(DE100_0A!$F$22,ROWS($F$22:F27)-1,COLUMNS($F$22:F27)-1)<>\"\",OFFSET(DE100_0A!$F$22,ROWS($F$22:F27)-1,COLUMNS($F$22:F27)-1),\"\")","v":""},{"$f":"IF(OFFSET(DE100_0A!$G$22,ROWS($G$22:G27)-1,COLUMNS($G$22:G27)-1)<>\"\",OFFSET(DE100_0A!$G$22,ROWS($G$22:G27)-1,COLUMNS($G$22:G27)-1),\"\")","v":""},{"$f":"IF(OFFSET(DE100_0A!$H$22,ROWS($H$22:H27)-1,COLUMNS($H$22:H27)-1)<>\"\",OFFSET(DE100_0A!$H$22,ROWS($H$22:H27)-1,COLUMNS($H$22:H27)-1),\"\")","v":""}]
[{"$f":"IF(OFFSET(DE100_0A!$C$22,ROWS($C$22:C28)-1,COLUMNS($C$22:C28)-1)<>\"\",OFFSET(DE100_0A!$C$22,ROWS($C$22:C28)-1,COLUMNS($C$22:C28)-1),\"\")","v":""},{"$f":"IF(OFFSET(DE100_0A!$D$22,ROWS($D$22:D28)-1,COLUMNS($D$22:D28)-1)<>\"\",OFFSET(DE100_0A!$D$22,ROWS($D$22:D28)-1,COLUMNS($D$22:D28)-1),\"\")","v":""},{"$f":"IF(OFFSET(DE100_0A!$E$22,ROWS($E$22:E28)-1,COLUMNS($E$22:E28)-1)<>\"\",OFFSET(DE100_0A!$E$22,ROWS($E$22:E28)-1,COLUMNS($E$22:E28)-1),\"\")","v":""},{"$f":"IF(OFFSET(DE100_0A!$F$22,ROWS($F$22:F28)-1,COLUMNS($F$22:F28)-1)<>\"\",OFFSET(DE100_0A!$F$22,ROWS($F$22:F28)-1,COLUMNS($F$22:F28)-1),\"\")","v":""},{"$f":"IF(OFFSET(DE100_0A!$G$22,ROWS($G$22:G28)-1,COLUMNS($G$22:G28)-1)<>\"\",OFFSET(DE100_0A!$G$22,ROWS($G$22:G28)-1,COLUMNS($G$22:G28)-1),\"\")","v":""},{"$f":"IF(OFFSET(DE100_0A!$H$22,ROWS($H$22:H28)-1,COLUMNS($H$22:H28)-1)<>\"\",OFFSET(DE100_0A!$H$22,ROWS($H$22:H28)-1,COLUMNS($H$22:H28)-1),\"\")","v":""}]
[{"$f":"IF(OFFSET(DE100_0A!$C$22,ROWS($C$22:C29)-1,COLUMNS($C$22:C29)-1)<>\"\",OFFSET(DE100_0A!$C$22,ROWS($C$22:C29)-1,COLUMNS($C$22:C29)-1),\"\")","v":""},{"$f":"IF(OFFSET(DE100_0A!$D$22,ROWS($D$22:D29)-1,COLUMNS($D$22:D29)-1)<>\"\",OFFSET(DE100_0A!$D$22,ROWS($D$22:D29)-1,COLUMNS($D$22:D29)-1),\"\")","v":""},{"$f":"IF(OFFSET(DE100_0A!$E$22,ROWS($E$22:E29)-1,COLUMNS($E$22:E29)-1)<>\"\",OFFSET(DE100_0A!$E$22,ROWS($E$22:E29)-1,COLUMNS($E$22:E29)-1),\"\")","v":""},{"$f":"IF(OFFSET(DE100_0A!$F$22,ROWS($F$22:F29)-1,COLUMNS($F$22:F29)-1)<>\"\",OFFSET(DE100_0A!$F$22,ROWS($F$22:F29)-1,COLUMNS($F$22:F29)-1),\"\")","v":""},{"$f":"IF(OFFSET(DE100_0A!$G$22,ROWS($G$22:G29)-1,COLUMNS($G$22:G29)-1)<>\"\",OFFSET(DE100_0A!$G$22,ROWS($G$22:G29)-1,COLUMNS($G$22:G29)-1),\"\")","v":""},{"$f":"IF(OFFSET(DE100_0A!$H$22,ROWS($H$22:H29)-1,COLUMNS($H$22:H29)-1)<>\"\",OFFSET(DE100_0A!$H$22,ROWS($H$22:H29)-1,COLUMNS($H$22:H29)-1),\"\")","v":""}]
[{"$f":"IF(OFFSET(DE100_0A!$C$22,ROWS($C$22:C30)-1,COLUMNS($C$22:C30)-1)<>\"\",OFFSET(DE100_0A!$C$22,ROWS($C$22:C30)-1,COLUMNS($C$22:C30)-1),\"\")","v":""},{"$f":"IF(OFFSET(DE100_0A!$D$22,ROWS($D$22:D30)-1,COLUMNS($D$22:D30)-1)<>\"\",OFFSET(DE100_0A!$D$22,ROWS($D$22:D30)-1,COLUMNS($D$22:D30)-1),\"\")","v":""},{"$f":"IF(OFFSET(DE100_0A!$E$22,ROWS($E$22:E30)-1,COLUMNS($E$22:E30)-1)<>\"\",OFFSET(DE100_0A!$E$22,ROWS($E$22:E30)-1,COLUMNS($E$22:E30)-1),\"\")","v":""},{"$f":"IF(OFFSET(DE100_0A!$F$22,ROWS($F$22:F30)-1,COLUMNS($F$22:F30)-1)<>\"\",OFFSET(DE100_0A!$F$22,ROWS($F$22:F30)-1,COLUMNS($F$22:F30)-1),\"\")","v":""},{"$f":"IF(OFFSET(DE100_0A!$G$22,ROWS($G$22:G30)-1,COLUMNS($G$22:G30)-1)<>\"\",OFFSET(DE100_0A!$G$22,ROWS($G$22:G30)-1,COLUMNS($G$22:G30)-1),\"\")","v":""},{"$f":"IF(OFFSET(DE100_0A!$H$22,ROWS($H$22:H30)-1,COLUMNS($H$22:H30)-1)<>\"\",OFFSET(DE100_0A!$H$22,ROWS($H$22:H30)-1,COLUMNS($H$22:H30)-1),\"\")","v":""}]
[{"$f":"IF(OFFSET(DE100_0A!$C$22,ROWS($C$22:C31)-1,COLUMNS($C$22:C31)-1)<>\"\",OFFSET(DE100_0A!$C$22,ROWS($C$22:C31)-1,COLUMNS($C$22:C31)-1),\"\")","v":""},{"$f":"IF(OFFSET(DE100_0A!$D$22,ROWS($D$22:D31)-1,COLUMNS($D$22:D31)-1)<>\"\",OFFSET(DE100_0A!$D$22,ROWS($D$22:D31)-1,COLUMNS($D$22:D31)-1),\"\")","v":""},{"$f":"IF(OFFSET(DE100_0A!$E$22,ROWS($E$22:E31)-1,COLUMNS($E$22:E31)-1)<>\"\",OFFSET(DE100_0A!$E$22,ROWS($E$22:E31)-1,COLUMNS($E$22:E31)-1),\"\")","v":""},{"$f":"IF(OFFSET(DE100_0A!$F$22,ROWS($F$22:F31)-1,COLUMNS($F$22:F31)-1)<>\"\",OFFSET(DE100_0A!$F$22,ROWS($F$22:F31)-1,COLUMNS($F$22:F31)-1),\"\")","v":""},{"$f":"IF(OFFSET(DE100_0A!$G$22,ROWS($G$22:G31)-1,COLUMNS($G$22:G31)-1)<>\"\",OFFSET(DE100_0A!$G$22,ROWS($G$22:G31)-1,COLUMNS($G$22:G31)-1),\"\")","v":""},{"$f":"IF(OFFSET(DE100_0A!$H$22,ROWS($H$22:H31)-1,COLUMNS($H$22:H31)-1)<>\"\",OFFSET(DE100_0A!$H$22,ROWS($H$22:H31)-1,COLUMNS($H$22:H31)-1),\"\")","v":""}]
[{"$f":"IF(OFFSET(DE100_0A!$C$22,ROWS($C$22:C32)-1,COLUMNS($C$22:C32)-1)<>\"\",OFFSET(DE100_0A!$C$22,ROWS($C$22:C32)-1,COLUMNS($C$22:C32)-1),\"\")","v":""},{"$f":"IF(OFFSET(DE100_0A!$D$22,ROWS($D$22:D32)-1,COLUMNS($D$22:D32)-1)<>\"\",OFFSET(DE100_0A!$D$22,ROWS($D$22:D32)-1,COLUMNS($D$22:D32)-1),\"\")","v":""},{"$f":"IF(OFFSET(DE100_0A!$E$22,ROWS($E$22:E32)-1,COLUMNS($E$22:E32)-1)<>\"\",OFFSET(DE100_0A!$E$22,ROWS($E$22:E32)-1,COLUMNS($E$22:E32)-1),\"\")","v":""},{"$f":"IF(OFFSET(DE100_0A!$F$22,ROWS($F$22:F32)-1,COLUMNS($F$22:F32)-1)<>\"\",OFFSET(DE100_0A!$F$22,ROWS($F$22:F32)-1,COLUMNS($F$22:F32)-1),\"\")","v":""},{"$f":"IF(OFFSET(DE100_0A!$G$22,ROWS($G$22:G32)-1,COLUMNS($G$22:G32)-1)<>\"\",OFFSET(DE100_0A!$G$22,ROWS($G$22:G32)-1,COLUMNS($G$22:G32)-1),\"\")","v":""},{"$f":"IF(OFFSET(DE100_0A!$H$22,ROWS($H$22:H32)-1,COLUMNS($H$22:H32)-1)<>\"\",OFFSET(DE100_0A!$H$22,ROWS($H$22:H32)-1,COLUMNS($H$22:H32)-1),\"\")","v":""}]
[{"$f":"IF(OFFSET(DE100_0A!$C$22,ROWS($C$22:C33)-1,COLUMNS($C$22:C33)-1)<>\"\",OFFSET(DE100_0A!$C$22,ROWS($C$22:C33)-1,COLUMNS($C$22:C33)-1),\"\")","v":""},{"$f":"IF(OFFSET(DE100_0A!$D$22,ROWS($D$22:D33)-1,COLUMNS($D$22:D33)-1)<>\"\",OFFSET(DE100_0A!$D$22,ROWS($D$22:D33)-1,COLUMNS($D$22:D33)-1),\"\")","v":""},{"$f":"IF(OFFSET(DE100_0A!$E$22,ROWS($E$22:E33)-1,COLUMNS($E$22:E33)-1)<>\"\",OFFSET(DE100_0A!$E$22,ROWS($E$22:E33)-1,COLUMNS($E$22:E33)-1),\"\")","v":""},{"$f":"IF(OFFSET(DE100_0A!$F$22,ROWS($F$22:F33)-1,COLUMNS($F$22:F33)-1)<>\"\",OFFSET(DE100_0A!$F$22,ROWS($F$22:F33)-1,COLUMNS($F$22:F33)-1),\"\")","v":""},{"$f":"IF(OFFSET(DE100_0A!$G$22,ROWS($G$22:G33)-1,COLUMNS($G$22:G33)-1)<>\"\",OFFSET(DE100_0A!$G$22,ROWS($G$22:G33)-1,COLUMNS($G$22:G33)-1),\"\")","v":""},{"$f":"IF(OFFSET(DE100_0A!$H$22,ROWS($H$22:H33)-1,COLUMNS($H$22:H33)-1)<>\"\",OFFSET(DE100_0A!$H$22,ROWS($H$22:H33)-1,COLUMNS($H$22:H33)-1),\"\")","v":""}]

{"sheet":"100_1D","index":9,"n_rows":10,"n_cols":1,"rows_kept":10,"cut":false,"hidden":false,"merged":[[2,0,3,0]]}
["100-1D"]
["2005-10-18"]
["PROJECT DESCRIPTION"]
[]
[{"$f":"IF(OFFSET(DE100_1D!$C$18,ROWS($C$18:C18)-1,COLUMNS($C$18:C18)-1)<>\"\",OFFSET(DE100_1D!$C$18,ROWS($C$18:C18)-1,COLUMNS($C$18:C18)-1),\"\")","v":""}]
[{"$f":"IF(OFFSET(DE100_1D!$C$18,ROWS($C$18:C19)-1,COLUMNS($C$18:C19)-1)<>\"\",OFFSET(DE100_1D!$C$18,ROWS($C$18:C19)-1,COLUMNS($C$18:C19)-1),\"\")","v":"This project involves the bridge approach pavement for the new interchange U.S. Highway 218 bridge over U.S. Highway 30."}]
[{"$f":"IF(OFFSET(DE100_1D!$C$18,ROWS($C$18:C20)-1,COLUMNS($C$18:C20)-1)<>\"\",OFFSET(DE100_1D!$C$18,ROWS($C$18:C20)-1,COLUMNS($C$18:C20)-1),\"\")","v":""}]
[{"$f":"IF(OFFSET(DE100_1D!$C$18,ROWS($C$18:C21)-1,COLUMNS($C$18:C21)-1)<>\"\",OFFSET(DE100_1D!$C$18,ROWS($C$18:C21)-1,COLUMNS($C$18:C21)-1),\"\")","v":""}]
[{"$f":"IF(OFFSET(DE100_1D!$C$18,ROWS($C$18:C22)-1,COLUMNS($C$18:C22)-1)<>\"\",OFFSET(DE100_1D!$C$18,ROWS($C$18:C22)-1,COLUMNS($C$18:C22)-1),\"\")","v":""}]
[{"$f":"IF(OFFSET(DE100_1D!$C$18,ROWS($C$18:C23)-1,COLUMNS($C$18:C23)-1)<>\"\",OFFSET(DE100_1D!$C$18,ROWS($C$18:C23)-1,COLUMNS($C$18:C23)-1),\"\")","v":""}]

{"sheet":"100_4A","index":10,"n_rows":22,"n_cols":3,"rows_kept":22,"cut":false,"hidden":false,"merged":[[0,0,0,2],[1,0,1,2],[2,0,3,2],[4,0,5,0],[4,1,5,1],[4,2,5,2]]}
["100-4A"]
["2002-10-29"]
["ESTIMATE REFERENCE INFORMATION"]
[]
["Item No.","Item Code","Description"]
[]
[{"$f":"IF(OFFSET(DE100_4A!$C$20,ROWS($C$20:C20)-1,COLUMNS($C$20:C20)-1)<>\"\",OFFSET(DE100_4A!$C$20,ROWS($C$20:C20)-1,COLUMNS($C$20:C20)-1),\"\")","v":1},{"$f":"IF(OFFSET(DE100_4A!$D$20,ROWS($D$20:D20)-1,COLUMNS($D$20:D20)-1)<>\"\",OFFSET(DE100_4A!$D$20,ROWS($D$20:D20)-1,COLUMNS($D$20:D20)-1),\"\")","v":"2301-0690203"},{"$f":"IF(OFFSET(DE100_4A!$E$20,ROWS($E$20:E20)-1,COLUMNS($E$20:E20)-1)<>\"\",OFFSET(DE100_4A!$E$20,ROWS($E$20:E20)-1,COLUMNS($E$20:E20)-1),\"\")","v":"BRIDGE APPROACH, BR-203    "}]
[{"$f":"IF(OFFSET(DE100_4A!$C$20,ROWS($C$20:C21)-1,COLUMNS($C$20:C21)-1)<>\"\",OFFSET(DE100_4A!$C$20,ROWS($C$20:C21)-1,COLUMNS($C$20:C21)-1),\"\")","v":""},{"$f":"IF(OFFSET(DE100_4A!$D$20,ROWS($D$20:D21)-1,COLUMNS($D$20:D21)-1)<>\"\",OFFSET(DE100_4A!$D$20,ROWS($D$20:D21)-1,COLUMNS($D$20:D21)-1),\"\")","v":""},{"$f":"IF(OFFSET(DE100_4A!$E$20,ROWS($E$20:E21)-1,COLUMNS($E$20:E21)-1)<>\"\",OFFSET(DE100_4A!$E$20,ROWS($E$20:E21)-1,COLUMNS($E$20:E21)-1),\"\")","v":"See Tab. 112-6"}]
[{"$f":"IF(OFFSET(DE100_4A!$C$20,ROWS($C$20:C22)-1,COLUMNS($C$20:C22)-1)<>\"\",OFFSET(DE100_4A!$C$20,ROWS($C$20:C22)-1,COLUMNS($C$20:C22)-1),\"\")","v":"-"},{"$f":"IF(OFFSET(DE100_4A!$D$20,ROWS($D$20:D22)-1,COLUMNS($D$20:D22)-1)<>\"\",OFFSET(DE100_4A!$D$20,ROWS($D$20:D22)-1,COLUMNS($D$20:D22)-1),\"\")","v":"-"},{"$f":"IF(OFFSET(DE100_4A!$E$20,ROWS($E$20:E22)-1,COLUMNS($E$20:E22)-1)<>\"\",OFFSET(DE100_4A!$E$20,ROWS($E$20:E22)-1,COLUMNS($E$20:E22)-1),\"\")","v":"-"}]
[{"$f":"IF(OFFSET(DE100_4A!$C$20,ROWS($C$20:C23)-1,COLUMNS($C$20:C23)-1)<>\"\",OFFSET(DE100_4A!$C$20,ROWS($C$20:C23)-1,COLUMNS($C$20:C23)-1),\"\")","v":2},{"$f":"IF(OFFSET(DE100_4A!$D$20,ROWS($D$20:D23)-1,COLUMNS($D$20:D23)-1)<>\"\",OFFSET(DE100_4A!$D$20,ROWS($D$20:D23)-1,COLUMNS($D$20:D23)-1),\"\")","v":"2412-0000100"},{"$f":"IF(OFFSET(DE100_4A!$E$20,ROWS($E$20:E23)-1,COLUMNS($E$20:E23)-1)<>\"\",OFFSET(DE100_4A!$E$20,ROWS($E$20:E23)-1,COLUMNS($E$20:E23)-1),\"\")","v":"LONGITUDINAL GROOVING IN CONCRETE    "}]
[{"$f":"IF(OFFSET(DE100_4A!$C$20,ROWS($C$20:C24)-1,COLUMNS($C$20:C24)-1)<>\"\",OFFSET(DE100_4A!$C$20,ROWS($C$20:C24)-1,COLUMNS($C$20:C24)-1),\"\")","v":""},{"$f":"IF(OFFSET(DE100_4A!$D$20,ROWS($D$20:D24)-1,COLUMNS($D$20:D24)-1)<>\"\",OFFSET(DE100_4A!$D$20,ROWS($D$20:D24)-1,COLUMNS($D$20:D24)-1),\"\")","v":""},{"$f":"IF(OFFSET(DE100_4A!$E$20,ROWS($E$20:E24)-1,COLUMNS($E$20:E24)-1)<>\"\",OFFSET(DE100_4A!$E$20,ROWS($E$20:E24)-1,COLUMNS($E$20:E24)-1),\"\")","v":"See Tab. 100-28"}]
[{"$f":"IF(OFFSET(DE100_4A!$C$20,ROWS($C$20:C25)-1,COLUMNS($C$20:C25)-1)<>\"\",OFFSET(DE100_4A!$C$20,ROWS($C$20:C25)-1,COLUMNS($C$20:C25)-1),\"\")","v":"-"},{"$f":"IF(OFFSET(DE100_4A!$D$20,ROWS($D$20:D25)-1,COLUMNS($D$20:D25)-1)<>\"\",OFFSET(DE100_4A!$D$20,ROWS($D$20:D25)-1,COLUMNS($D$20:D25)-1),\"\")","v":"-"},{"$f":"IF(OFFSET(DE100_4A!$E$20,ROWS($E$20:E25)-1,COLUMNS($E$20:E25)-1)<>\"\",OFFSET(DE100_4A!$E$20,ROWS($E$20:E25)-1,COLUMNS($E$20:E25)-1),\"\")","v":"-"}]
[{"$f":"IF(OFFSET(DE100_4A!$C$20,ROWS($C$20:C26)-1,COLUMNS($C$20:C26)-1)<>\"\",OFFSET(DE100_4A!$C$20,ROWS($C$20:C26)-1,COLUMNS($C$20:C26)-1),\"\")","v":""},{"$f":"IF(OFFSET(DE100_4A!$D$20,ROWS($D$20:D26)-1,COLUMNS($D$20:D26)-1)<>\"\",OFFSET(DE100_4A!$D$20,ROWS($D$20:D26)-1,COLUMNS($D$20:D26)-1),\"\")","v":""},{"$f":"IF(OFFSET(DE100_4A!$E$20,ROWS($E$20:E26)-1,COLUMNS($E$20:E26)-1)<>\"\",OFFSET(DE100_4A!$E$20,ROWS($E$20:E26)-1,COLUMNS($E$20:E26)-1),\"\")","v":""}]
[{"$f":"IF(OFFSET(DE100_4A!$C$20,ROWS($C$20:C27)-1,COLUMNS($C$20:C27)-1)<>\"\",OFFSET(DE100_4A!$C$20,ROWS($C$20:C27)-1,COLUMNS($C$20:C27)-1),\"\")","v":""},{"$f":"IF(OFFSET(DE100_4A!$D$20,ROWS($D$20:D27)-1,COLUMNS($D$20:D27)-1)<>\"\",OFFSET(DE100_4A!$D$20,ROWS($D$20:D27)-1,COLUMNS($D$20:D27)-1),\"\")","v":""},{"$f":"IF(OFFSET(DE100_4A!$E$20,ROWS($E$20:E27)-1,COLUMNS($E$20:E27)-1)<>\"\",OFFSET(DE100_4A!$E$20,ROWS($E$20:E27)-1,COLUMNS($E$20:E27)-1),\"\")","v":""}]
[{"$f":"IF(OFFSET(DE100_4A!$C$20,ROWS($C$20:C28)-1,COLUMNS($C$20:C28)-1)<>\"\",OFFSET(DE100_4A!$C$20,ROWS($C$20:C28)-1,COLUMNS($C$20:C28)-1),\"\")","v":""},{"$f":"IF(OFFSET(DE100_4A!$D$20,ROWS($D$20:D28)-1,COLUMNS($D$20:D28)-1)<>\"\",OFFSET(DE100_4A!$D$20,ROWS($D$20:D28)-1,COLUMNS($D$20:D28)-1),\"\")","v":""},{"$f":"IF(OFFSET(DE100_4A!$E$20,ROWS($E$20:E28)-1,COLUMNS($E$20:E28)-1)<>\"\",OFFSET(DE100_4A!$E$20,ROWS($E$20:E28)-1,COLUMNS($E$20:E28)-1),\"\")","v":""}]
[{"$f":"IF(OFFSET(DE100_4A!$C$20,ROWS($C$20:C29)-1,COLUMNS($C$20:C29)-1)<>\"\",OFFSET(DE100_4A!$C$20,ROWS($C$20:C29)-1,COLUMNS($C$20:C29)-1),\"\")","v":""},{"$f":"IF(OFFSET(DE100_4A!$D$20,ROWS($D$20:D29)-1,COLUMNS($D$20:D29)-1)<>\"\",OFFSET(DE100_4A!$D$20,ROWS($D$20:D29)-1,COLUMNS($D$20:D29)-1),\"\")","v":""},{"$f":"IF(OFFSET(DE100_4A!$E$20,ROWS($E$20:E29)-1,COLUMNS($E$20:E29)-1)<>\"\",OFFSET(DE100_4A!$E$20,ROWS($E$20:E29)-1,COLUMNS($E$20:E29)-1),\"\")","v":""}]
[{"$f":"IF(OFFSET(DE100_4A!$C$20,ROWS($C$20:C30)-1,COLUMNS($C$20:C30)-1)<>\"\",OFFSET(DE100_4A!$C$20,ROWS($C$20:C30)-1,COLUMNS($C$20:C30)-1),\"\")","v":""},{"$f":"IF(OFFSET(DE100_4A!$D$20,ROWS($D$20:D30)-1,COLUMNS($D$20:D30)-1)<>\"\",OFFSET(DE100_4A!$D$20,ROWS($D$20:D30)-1,COLUMNS($D$20:D30)-1),\"\")","v":""},{"$f":"IF(OFFSET(DE100_4A!$E$20,ROWS($E$20:E30)-1,COLUMNS($E$20:E30)-1)<>\"\",OFFSET(DE100_4A!$E$20,ROWS($E$20:E30)-1,COLUMNS($E$20:E30)-1),\"\")","v":""}]
[{"$f":"IF(OFFSET(DE100_4A!$C$20,ROWS($C$20:C31)-1,COLUMNS($C$20:C31)-1)<>\"\",OFFSET(DE100_4A!$C$20,ROWS($C$20:C31)-1,COLUMNS($C$20:C31)-1),\"\")","v":""},{"$f":"IF(OFFSET(DE100_4A!$D$20,ROWS($D$20:D31)-1,COLUMNS($D$20:D31)-1)<>\"\",OFFSET(DE100_4A!$D$20,ROWS($D$20:D31)-1,COLUMNS($D$20:D31)-1),\"\")","v":""},{"$f":"IF(OFFSET(DE100_4A!$E$20,ROWS($E$20:E31)-1,COLUMNS($E$20:E31)-1)<>\"\",OFFSET(DE100_4A!$E$20,ROWS($E$20:E31)-1,COLUMNS($E$20:E31)-1),\"\")","v":""}]
[{"$f":"IF(OFFSET(DE100_4A!$C$20,ROWS($C$20:C32)-1,COLUMNS($C$20:C32)-1)<>\"\",OFFSET(DE100_4A!$C$20,ROWS($C$20:C32)-1,COLUMNS($C$20:C32)-1),\"\")","v":""},{"$f":"IF(OFFSET(DE100_4A!$D$20,ROWS($D$20:D32)-1,COLUMNS($D$20:D32)-1)<>\"\",OFFSET(DE100_4A!$D$20,ROWS($D$20:D32)-1,COLUMNS($D$20:D32)-1),\"\")","v":""},{"$f":"IF(OFFSET(DE100_4A!$E$20,ROWS($E$20:E32)-1,COLUMNS($E$20:E32)-1)<>\"\",OFFSET(DE100_4A!$E$20,ROWS($E$20:E32)-1,COLUMNS($E$20:E32)-1),\"\")","v":""}]
[{"$f":"IF(OFFSET(DE100_4A!$C$20,ROWS($C$20:C33)-1,COLUMNS($C$20:C33)-1)<>\"\",OFFSET(DE100_4A!$C$20,ROWS($C$20:C33)-1,COLUMNS($C$20:C33)-1),\"\")","v":""},{"$f":"IF(OFFSET(DE100_4A!$D$20,ROWS($D$20:D33)-1,COLUMNS($D$20:D33)-1)<>\"\",OFFSET(DE100_4A!$D$20,ROWS($D$20:D33)-1,COLUMNS($D$20:D33)-1),\"\")","v":""},{"$f":"IF(OFFSET(DE100_4A!$E$20,ROWS($E$20:E33)-1,COLUMNS($E$20:E33)-1)<>\"\",OFFSET(DE100_4A!$E$20,ROWS($E$20:E33)-1,COLUMNS($E$20:E33)-1),\"\")","v":""}]
[{"$f":"IF(OFFSET(DE100_4A!$C$20,ROWS($C$20:C34)-1,COLUMNS($C$20:C34)-1)<>\"\",OFFSET(DE100_4A!$C$20,ROWS($C$20:C34)-1,COLUMNS($C$20:C34)-1),\"\")","v":""},{"$f":"IF(OFFSET(DE100_4A!$D$20,ROWS($D$20:D34)-1,COLUMNS($D$20:D34)-1)<>\"\",OFFSET(DE100_4A!$D$20,ROWS($D$20:D34)-1,COLUMNS($D$20:D34)-1),\"\")","v":""},{"$f":"IF(OFFSET(DE100_4A!$E$20,ROWS($E$20:E34)-1,COLUMNS($E$20:E34)-1)<>\"\",OFFSET(DE100_4A!$E$20,ROWS($E$20:E34)-1,COLUMNS($E$20:E34)-1),\"\")","v":""}]
[{"$f":"IF(OFFSET(DE100_4A!$C$20,ROWS($C$20:C35)-1,COLUMNS($C$20:C35)-1)<>\"\",OFFSET(DE100_4A!$C$20,ROWS($C$20:C35)-1,COLUMNS($C$20:C35)-1),\"\")","v":""},{"$f":"IF(OFFSET(DE100_4A!$D$20,ROWS($D$20:D35)-1,COLUMNS($D$20:D35)-1)<>\"\",OFFSET(DE100_4A!$D$20,ROWS($D$20:D35)-1,COLUMNS($D$20:D35)-1),\"\")","v":""},{"$f":"IF(OFFSET(DE100_4A!$E$20,ROWS($E$20:E35)-1,COLUMNS($E$20:E35)-1)<>\"\",OFFSET(DE100_4A!$E$20,ROWS($E$20:E35)-1,COLUMNS($E$20:E35)-1),\"\")","v":""}]

{"sheet":"100_28","index":11,"n_rows":22,"n_cols":3,"rows_kept":22,"cut":false,"hidden":false,"merged":[[0,0,0,2],[1,0,1,2],[2,0,3,2],[4,0,6,0],[4,1,5,1],[4,2,6,2]]}
["100-28"]
["2010-10-19"]
["LONGITUDINAL GROOVING"]
[]
["Location","Total","Remarks"]
[]
[null,"SY"]
[{"$f":"IF(OFFSET(DE100_28!$C$22,ROWS($C$22:C22)-1,COLUMNS($C$22:C22)-1)<>\"\",OFFSET(DE100_28!$C$22,ROWS($C$22:C22)-1,COLUMNS($C$22:C22)-1),\"\")","v":"US 218"},{"$f":"IF(OFFSET(DE100_28!$G$22,ROWS($G$22:G22)-1,COLUMNS($G$22:G22)-1)<>\"\",OFFSET(DE100_28!$G$22,ROWS($G$22:G22)-1,COLUMNS($G$22:G22)-1),\"\")","v":263.26},{"$f":"IF(OFFSET(DE100_28!$H$22,ROWS($H$22:H22)-1,COLUMNS($H$22:H22)-1)<>\"\",OFFSET(DE100_28!$H$22,ROWS($H$22:H22)-1,COLUMNS($H$22:H22)-1),\"\")","v":"South Approach"}]
[{"$f":"IF(OFFSET(DE100_28!$C$22,ROWS($C$22:C23)-1,COLUMNS($C$22:C23)-1)<>\"\",OFFSET(DE100_28!$C$22,ROWS($C$22:C23)-1,COLUMNS($C$22:C23)-1),\"\")","v":""},{"$f":"IF(OFFSET(DE100_28!$G$22,ROWS($G$22:G23)-1,COLUMNS($G$22:G23)-1)<>\"\",OFFSET(DE100_28!$G$22,ROWS($G$22:G23)-1,COLUMNS($G$22:G23)-1),\"\")","v":1271.1099999999999},{"$f":"IF(OFFSET(DE100_28!$H$22,ROWS($H$22:H23)-1,COLUMNS($H$22:H23)-1)<>\"\",OFFSET(DE100_28!$H$22,ROWS($H$22:H23)-1,COLUMNS($H$22:H23)-1),\"\")","v":"Bridge (need to confirm with OBS)"}]
[{"$f":"IF(OFFSET(DE100_28!$C$22,ROWS($C$22:C24)-1,COLUMNS($C$22:C24)-1)<>\"\",OFFSET(DE100_28!$C$22,ROWS($C$22:C24)-1,COLUMNS($C$22:C24)-1),\"\")","v":""},{"$f":"IF(OFFSET(DE100_28!$G$22,ROWS($G$22:G24)-1,COLUMNS($G$22:G24)-1)<>\"\",OFFSET(DE100_28!$G$22,ROWS($G$22:G24)-1,COLUMNS($G$22:G24)-1),\"\")","v":256.22000000000003},{"$f":"IF(OFFSET(DE100_28!$H$22,ROWS($H$22:H24)-1,COLUMNS($H$22:H24)-1)<>\"\",OFFSET(DE100_28!$H$22,ROWS($H$22:H24)-1,COLUMNS($H$22:H24)-1),\"\")","v":"North Approach"}]
[{"$f":"IF(OFFSET(DE100_28!$C$22,ROWS($C$22:C25)-1,COLUMNS($C$22:C25)-1)<>\"\",OFFSET(DE100_28!$C$22,ROWS($C$22:C25)-1,COLUMNS($C$22:C25)-1),\"\")","v":""},{"$f":"IF(OFFSET(DE100_28!$G$22,ROWS($G$22:G25)-1,COLUMNS($G$22:G25)-1)<>\"\",OFFSET(DE100_28!$G$22,ROWS($G$22:G25)-1,COLUMNS($G$22:G25)-1),\"\")","v":""},{"$f":"IF(OFFSET(DE100_28!$H$22,ROWS($H$22:H25)-1,COLUMNS($H$22:H25)-1)<>\"\",OFFSET(DE100_28!$H$22,ROWS($H$22:H25)-1,COLUMNS($H$22:H25)-1),\"\")","v":""}]
[{"$f":"IF(OFFSET(DE100_28!$C$22,ROWS($C$22:C26)-1,COLUMNS($C$22:C26)-1)<>\"\",OFFSET(DE100_28!$C$22,ROWS($C$22:C26)-1,COLUMNS($C$22:C26)-1),\"\")","v":"TOTAL"},{"$f":"IF(OFFSET(DE100_28!$G$22,ROWS($G$22:G26)-1,COLUMNS($G$22:G26)-1)<>\"\",OFFSET(DE100_28!$G$22,ROWS($G$22:G26)-1,COLUMNS($G$22:G26)-1),\"\")","v":1790.59},{"$f":"IF(OFFSET(DE100_28!$H$22,ROWS($H$22:H26)-1,COLUMNS($H$22:H26)-1)<>\"\",OFFSET(DE100_28!$H$22,ROWS($H$22:H26)-1,COLUMNS($H$22:H26)-1),\"\")","v":""}]
[{"$f":"IF(OFFSET(DE100_28!$C$22,ROWS($C$22:C27)-1,COLUMNS($C$22:C27)-1)<>\"\",OFFSET(DE100_28!$C$22,ROWS($C$22:C27)-1,COLUMNS($C$22:C27)-1),\"\")","v":""},{"$f":"IF(OFFSET(DE100_28!$G$22,ROWS($G$22:G27)-1,COLUMNS($G$22:G27)-1)<>\"\",OFFSET(DE100_28!$G$22,ROWS($G$22:G27)-1,COLUMNS($G$22:G27)-1),\"\")","v":""},{"$f":"IF(OFFSET(DE100_28!$H$22,ROWS($H$22:H27)-1,COLUMNS($H$22:H27)-1)<>\"\",OFFSET(DE100_28!$H$22,ROWS($H$22:H27)-1,COLUMNS($H$22:H27)-1),\"\")","v":""}]
[{"$f":"IF(OFFSET(DE100_28!$C$22,ROWS($C$22:C28)-1,COLUMNS($C$22:C28)-1)<>\"\",OFFSET(DE100_28!$C$22,ROWS($C$22:C28)-1,COLUMNS($C$22:C28)-1),\"\")","v":""},{"$f":"IF(OFFSET(DE100_28!$G$22,ROWS($G$22:G28)-1,COLUMNS($G$22:G28)-1)<>\"\",OFFSET(DE100_28!$G$22,ROWS($G$22:G28)-1,COLUMNS($G$22:G28)-1),\"\")","v":""},{"$f":"IF(OFFSET(DE100_28!$H$22,ROWS($H$22:H28)-1,COLUMNS($H$22:H28)-1)<>\"\",OFFSET(DE100_28!$H$22,ROWS($H$22:H28)-1,COLUMNS($H$22:H28)-1),\"\")","v":""}]
[{"$f":"IF(OFFSET(DE100_28!$C$22,ROWS($C$22:C29)-1,COLUMNS($C$22:C29)-1)<>\"\",OFFSET(DE100_28!$C$22,ROWS($C$22:C29)-1,COLUMNS($C$22:C29)-1),\"\")","v":""},{"$f":"IF(OFFSET(DE100_28!$G$22,ROWS($G$22:G29)-1,COLUMNS($G$22:G29)-1)<>\"\",OFFSET(DE100_28!$G$22,ROWS($G$22:G29)-1,COLUMNS($G$22:G29)-1),\"\")","v":""},{"$f":"IF(OFFSET(DE100_28!$H$22,ROWS($H$22:H29)-1,COLUMNS($H$22:H29)-1)<>\"\",OFFSET(DE100_28!$H$22,ROWS($H$22:H29)-1,COLUMNS($H$22:H29)-1),\"\")","v":""}]
[{"$f":"IF(OFFSET(DE100_28!$C$22,ROWS($C$22:C30)-1,COLUMNS($C$22:C30)-1)<>\"\",OFFSET(DE100_28!$C$22,ROWS($C$22:C30)-1,COLUMNS($C$22:C30)-1),\"\")","v":""},{"$f":"IF(OFFSET(DE100_28!$G$22,ROWS($G$22:G30)-1,COLUMNS($G$22:G30)-1)<>\"\",OFFSET(DE100_28!$G$22,ROWS($G$22:G30)-1,COLUMNS($G$22:G30)-1),\"\")","v":""},{"$f":"IF(OFFSET(DE100_28!$H$22,ROWS($H$22:H30)-1,COLUMNS($H$22:H30)-1)<>\"\",OFFSET(DE100_28!$H$22,ROWS($H$22:H30)-1,COLUMNS($H$22:H30)-1),\"\")","v":""}]
[{"$f":"IF(OFFSET(DE100_28!$C$22,ROWS($C$22:C31)-1,COLUMNS($C$22:C31)-1)<>\"\",OFFSET(DE100_28!$C$22,ROWS($C$22:C31)-1,COLUMNS($C$22:C31)-1),\"\")","v":""},{"$f":"IF(OFFSET(DE100_28!$G$22,ROWS($G$22:G31)-1,COLUMNS($G$22:G31)-1)<>\"\",OFFSET(DE100_28!$G$22,ROWS($G$22:G31)-1,COLUMNS($G$22:G31)-1),\"\")","v":""},{"$f":"IF(OFFSET(DE100_28!$H$22,ROWS($H$22:H31)-1,COLUMNS($H$22:H31)-1)<>\"\",OFFSET(DE100_28!$H$22,ROWS($H$22:H31)-1,COLUMNS($H$22:H31)-1),\"\")","v":""}]
[{"$f":"IF(OFFSET(DE100_28!$C$22,ROWS($C$22:C32)-1,COLUMNS($C$22:C32)-1)<>\"\",OFFSET(DE100_28!$C$22,ROWS($C$22:C32)-1,COLUMNS($C$22:C32)-1),\"\")","v":""},{"$f":"IF(OFFSET(DE100_28!$G$22,ROWS($G$22:G32)-1,COLUMNS($G$22:G32)-1)<>\"\",OFFSET(DE100_28!$G$22,ROWS($G$22:G32)-1,COLUMNS($G$22:G32)-1),\"\")","v":""},{"$f":"IF(OFFSET(DE100_28!$H$22,ROWS($H$22:H32)-1,COLUMNS($H$22:H32)-1)<>\"\",OFFSET(DE100_28!$H$22,ROWS($H$22:H32)-1,COLUMNS($H$22:H32)-1),\"\")","v":""}]
[{"$f":"IF(OFFSET(DE100_28!$C$22,ROWS($C$22:C33)-1,COLUMNS($C$22:C33)-1)<>\"\",OFFSET(DE100_28!$C$22,ROWS($C$22:C33)-1,COLUMNS($C$22:C33)-1),\"\")","v":""},{"$f":"IF(OFFSET(DE100_28!$G$22,ROWS($G$22:G33)-1,COLUMNS($G$22:G33)-1)<>\"\",OFFSET(DE100_28!$G$22,ROWS($G$22:G33)-1,COLUMNS($G$22:G33)-1),\"\")","v":""},{"$f":"IF(OFFSET(DE100_28!$H$22,ROWS($H$22:H33)-1,COLUMNS($H$22:H33)-1)<>\"\",OFFSET(DE100_28!$H$22,ROWS($H$22:H33)-1,COLUMNS($H$22:H33)-1),\"\")","v":""}]
[{"$f":"IF(OFFSET(DE100_28!$C$22,ROWS($C$22:C34)-1,COLUMNS($C$22:C34)-1)<>\"\",OFFSET(DE100_28!$C$22,ROWS($C$22:C34)-1,COLUMNS($C$22:C34)-1),\"\")","v":""},{"$f":"IF(OFFSET(DE100_28!$G$22,ROWS($G$22:G34)-1,COLUMNS($G$22:G34)-1)<>\"\",OFFSET(DE100_28!$G$22,ROWS($G$22:G34)-1,COLUMNS($G$22:G34)-1),\"\")","v":""},{"$f":"IF(OFFSET(DE100_28!$H$22,ROWS($H$22:H34)-1,COLUMNS($H$22:H34)-1)<>\"\",OFFSET(DE100_28!$H$22,ROWS($H$22:H34)-1,COLUMNS($H$22:H34)-1),\"\")","v":""}]
[{"$f":"IF(OFFSET(DE100_28!$C$22,ROWS($C$22:C35)-1,COLUMNS($C$22:C35)-1)<>\"\",OFFSET(DE100_28!$C$22,ROWS($C$22:C35)-1,COLUMNS($C$22:C35)-1),\"\")","v":""},{"$f":"IF(OFFSET(DE100_28!$G$22,ROWS($G$22:G35)-1,COLUMNS($G$22:G35)-1)<>\"\",OFFSET(DE100_28!$G$22,ROWS($G$22:G35)-1,COLUMNS($G$22:G35)-1),\"\")","v":""},{"$f":"IF(OFFSET(DE100_28!$H$22,ROWS($H$22:H35)-1,COLUMNS($H$22:H35)-1)<>\"\",OFFSET(DE100_28!$H$22,ROWS($H$22:H35)-1,COLUMNS($H$22:H35)-1),\"\")","v":""}]
[{"$f":"IF(OFFSET(DE100_28!$C$22,ROWS($C$22:C36)-1,COLUMNS($C$22:C36)-1)<>\"\",OFFSET(DE100_28!$C$22,ROWS($C$22:C36)-1,COLUMNS($C$22:C36)-1),\"\")","v":""},{"$f":"IF(OFFSET(DE100_28!$G$22,ROWS($G$22:G36)-1,COLUMNS($G$22:G36)-1)<>\"\",OFFSET(DE100_28!$G$22,ROWS($G$22:G36)-1,COLUMNS($G$22:G36)-1),\"\")","v":""},{"$f":"IF(OFFSET(DE100_28!$H$22,ROWS($H$22:H36)-1,COLUMNS($H$22:H36)-1)<>\"\",OFFSET(DE100_28!$H$22,ROWS($H$22:H36)-1,COLUMNS($H$22:H36)-1),\"\")","v":""}]

{"sheet":"105_4","index":12,"n_rows":21,"n_cols":3,"rows_kept":21,"cut":false,"hidden":false,"merged":[[0,0,0,2],[1,0,1,2],[2,0,3,2],[4,0,4,2]]}
["105-4"]
["2011-10-18"]
["STANDARD ROAD PLANS"]
[]
["The following Standard Road Plans apply to construction work on this project."]
["Number","Date","Title"]
[{"$f":"IF(OFFSET(DE105_4!$C$20,ROWS($C$20:C20)-1,COLUMNS($C$20:C20)-1)<>\"\",OFFSET(DE105_4!$C$20,ROWS($C$20:C20)-1,COLUMNS($C$20:C20)-1),\"\")","v":"BR-203"},{"$f":"IF(OFFSET(DE105_4!$D$20,ROWS($D$20:D20)-1,COLUMNS($D$20:D20)-1)<>\"\",OFFSET(DE105_4!$D$20,ROWS($D$20:D20)-1,COLUMNS($D$20:D20)-1),\"\")","v":"10-17-17"},{"$f":"IF(OFFSET(DE105_4!$E$20,ROWS($E$20:E20)-1,COLUMNS($E$20:E20)-1)<>\"\",OFFSET(DE105_4!$E$20,ROWS($E$20:E20)-1,COLUMNS($E$20:E20)-1),\"\")","v":"Double Reinforced 12\" Approach"}]
[{"$f":"IF(OFFSET(DE105_4!$C$20,ROWS($C$20:C21)-1,COLUMNS($C$20:C21)-1)<>\"\",OFFSET(DE105_4!$C$20,ROWS($C$20:C21)-1,COLUMNS($C$20:C21)-1),\"\")","v":"BR-213"},{"$f":"IF(OFFSET(DE105_4!$D$20,ROWS($D$20:D21)-1,COLUMNS($D$20:D21)-1)<>\"\",OFFSET(DE105_4!$D$20,ROWS($D$20:D21)-1,COLUMNS($D$20:D21)-1),\"\")","v":"04-21-15"},{"$f":"IF(OFFSET(DE105_4!$E$20,ROWS($E$20:E21)-1,COLUMNS($E$20:E21)-1)<>\"\",OFFSET(DE105_4!$E$20,ROWS($E$20:E21)-1,COLUMNS($E$20:E21)-1),\"\")","v":"Bridge Approach (Abutting Pavement)"}]
[{"$f":"IF(OFFSET(DE105_4!$C$20,ROWS($C$20:C22)-1,COLUMNS($C$20:C22)-1)<>\"\",OFFSET(DE105_4!$C$20,ROWS($C$20:C22)-1,COLUMNS($C$20:C22)-1),\"\")","v":"DR-306"},{"$f":"IF(OFFSET(DE105_4!$D$20,ROWS($D$20:D22)-1,COLUMNS($D$20:D22)-1)<>\"\",OFFSET(DE105_4!$D$20,ROWS($D$20:D22)-1,COLUMNS($D$20:D22)-1),\"\")","v":"10-17-17"},{"$f":"IF(OFFSET(DE105_4!$E$20,ROWS($E$20:E22)-1,COLUMNS($E$20:E22)-1)<>\"\",OFFSET(DE105_4!$E$20,ROWS($E$20:E22)-1,COLUMNS($E$20:E22)-1),\"\")","v":"Precast Concrete Headwall for Subdrain Outlets"}]
[{"$f":"IF(OFFSET(DE105_4!$C$20,ROWS($C$20:C23)-1,COLUMNS($C$20:C23)-1)<>\"\",OFFSET(DE105_4!$C$20,ROWS($C$20:C23)-1,COLUMNS($C$20:C23)-1),\"\")","v":"PV-101"},{"$f":"IF(OFFSET(DE105_4!$D$20,ROWS($D$20:D23)-1,COLUMNS($D$20:D23)-1)<>\"\",OFFSET(DE105_4!$D$20,ROWS($D$20:D23)-1,COLUMNS($D$20:D23)-1),\"\")","v":"10-17-17"},{"$f":"IF(OFFSET(DE105_4!$E$20,ROWS($E$20:E23)-1,COLUMNS($E$20:E23)-1)<>\"\",OFFSET(DE105_4!$E$20,ROWS($E$20:E23)-1,COLUMNS($E$20:E23)-1),\"\")","v":"Joints"}]
[{"$f":"IF(OFFSET(DE105_4!$C$20,ROWS($C$20:C24)-1,COLUMNS($C$20:C24)-1)<>\"\",OFFSET(DE105_4!$C$20,ROWS($C$20:C24)-1,COLUMNS($C$20:C24)-1),\"\")","v":""},{"$f":"IF(OFFSET(DE105_4!$D$20,ROWS($D$20:D24)-1,COLUMNS($D$20:D24)-1)<>\"\",OFFSET(DE105_4!$D$20,ROWS($D$20:D24)-1,COLUMNS($D$20:D24)-1),\"\")","v":""},{"$f":"IF(OFFSET(DE105_4!$E$20,ROWS($E$20:E24)-1,COLUMNS($E$20:E24)-1)<>\"\",OFFSET(DE105_4!$E$20,ROWS($E$20:E24)-1,COLUMNS($E$20:E24)-1),\"\")","v":""}]
[{"$f":"IF(OFFSET(DE105_4!$C$20,ROWS($C$20:C25)-1,COLUMNS($C$20:C25)-1)<>\"\",OFFSET(DE105_4!$C$20,ROWS($C$20:C25)-1,COLUMNS($C$20:C25)-1),\"\")","v":""},{"$f":"IF(OFFSET(DE105_4!$D$20,ROWS($D$20:D25)-1,COLUMNS($D$20:D25)-1)<>\"\",OFFSET(DE105_4!$D$20,ROWS($D$20:D25)-1,COLUMNS($D$20:D25)-1),\"\")","v":""},{"$f":"IF(OFFSET(DE105_4!$E$20,ROWS($E$20:E25)-1,COLUMNS($E$20:E25)-1)<>\"\",OFFSET(DE105_4!$E$20,ROWS($E$20:E25)-1,COLUMNS($E$20:E25)-1),\"\")","v":""}]
[{"$f":"IF(OFFSET(DE105_4!$C$20,ROWS($C$20:C26)-1,COLUMNS($C$20:C26)-1)<>\"\",OFFSET(DE105_4!$C$20,ROWS($C$20:C26)-1,COLUMNS($C$20:C26)-1),\"\")","v":""},{"$f":"IF(OFFSET(DE105_4!$D$20,ROWS($D$20:D26)-1,COLUMNS($D$20:D26)-1)<>\"\",OFFSET(DE105_4!$D$20,ROWS($D$20:D26)-1,COLUMNS($D$20:D26)-1),\"\")","v":""},{"$f":"IF(OFFSET(DE105_4!$E$20,ROWS($E$20:E26)-1,COLUMNS($E$20:E26)-1)<>\"\",OFFSET(DE105_4!$E$20,ROWS($E$20:E26)-1,COLUMNS($E$20:E26)-1),\"\")","v":""}]
[{"$f":"IF(OFFSET(DE105_4!$C$20,ROWS($C$20:C27)-1,COLUMNS($C$20:C27)-1)<>\"\",OFFSET(DE105_4!$C$20,ROWS($C$20:C27)-1,COLUMNS($C$20:C27)-1),\"\")","v":""},{"$f":"IF(OFFSET(DE105_4!$D$20,ROWS($D$20:D27)-1,COLUMNS($D$20:D27)-1)<>\"\",OFFSET(DE105_4!$D$20,ROWS($D$20:D27)-1,COLUMNS($D$20:D27)-1),\"\")","v":""},{"$f":"IF(OFFSET(DE105_4!$E$20,ROWS($E$20:E27)-1,COLUMNS($E$20:E27)-1)<>\"\",OFFSET(DE105_4!$E$20,ROWS($E$20:E27)-1,COLUMNS($E$20:E27)-1),\"\")","v":""}]
[{"$f":"IF(OFFSET(DE105_4!$C$20,ROWS($C$20:C28)-1,COLUMNS($C$20:C28)-1)<>\"\",OFFSET(DE105_4!$C$20,ROWS($C$20:C28)-1,COLUMNS($C$20:C28)-1),\"\")","v":""},{"$f":"IF(OFFSET(DE105_4!$D$20,ROWS($D$20:D28)-1,COLUMNS($D$20:D28)-1)<>\"\",OFFSET(DE105_4!$D$20,ROWS($D$20:D28)-1,COLUMNS($D$20:D28)-1),\"\")","v":""},{"$f":"IF(OFFSET(DE105_4!$E$20,ROWS($E$20:E28)-1,COLUMNS($E$20:E28)-1)<>\"\",OFFSET(DE105_4!$E$20,ROWS($E$20:E28)-1,COLUMNS($E$20:E28)-1),\"\")","v":""}]
[{"$f":"IF(OFFSET(DE105_4!$C$20,ROWS($C$20:C29)-1,COLUMNS($C$20:C29)-1)<>\"\",OFFSET(DE105_4!$C$20,ROWS($C$20:C29)-1,COLUMNS($C$20:C29)-1),\"\")","v":""},{"$f":"IF(OFFSET(DE105_4!$D$20,ROWS($D$20:D29)-1,COLUMNS($D$20:D29)-1)<>\"\",OFFSET(DE105_4!$D$20,ROWS($D$20:D29)-1,COLUMNS($D$20:D29)-1),\"\")","v":""},{"$f":"IF(OFFSET(DE105_4!$E$20,ROWS($E$20:E29)-1,COLUMNS($E$20:E29)-1)<>\"\",OFFSET(DE105_4!$E$20,ROWS($E$20:E29)-1,COLUMNS($E$20:E29)-1),\"\")","v":""}]
[{"$f":"IF(OFFSET(DE105_4!$C$20,ROWS($C$20:C30)-1,COLUMNS($C$20:C30)-1)<>\"\",OFFSET(DE105_4!$C$20,ROWS($C$20:C30)-1,COLUMNS($C$20:C30)-1),\"\")","v":""},{"$f":"IF(OFFSET(DE105_4!$D$20,ROWS($D$20:D30)-1,COLUMNS($D$20:D30)-1)<>\"\",OFFSET(DE105_4!$D$20,ROWS($D$20:D30)-1,COLUMNS($D$20:D30)-1),\"\")","v":""},{"$f":"IF(OFFSET(DE105_4!$E$20,ROWS($E$20:E30)-1,COLUMNS($E$20:E30)-1)<>\"\",OFFSET(DE105_4!$E$20,ROWS($E$20:E30)-1,COLUMNS($E$20:E30)-1),\"\")","v":""}]
[{"$f":"IF(OFFSET(DE105_4!$C$20,ROWS($C$20:C31)-1,COLUMNS($C$20:C31)-1)<>\"\",OFFSET(DE105_4!$C$20,ROWS($C$20:C31)-1,COLUMNS($C$20:C31)-1),\"\")","v":""},{"$f":"IF(OFFSET(DE105_4!$D$20,ROWS($D$20:D31)-1,COLUMNS($D$20:D31)-1)<>\"\",OFFSET(DE105_4!$D$20,ROWS($D$20:D31)-1,COLUMNS($D$20:D31)-1),\"\")","v":""},{"$f":"IF(OFFSET(DE105_4!$E$20,ROWS($E$20:E31)-1,COLUMNS($E$20:E31)-1)<>\"\",OFFSET(DE105_4!$E$20,ROWS($E$20:E31)-1,COLUMNS($E$20:E31)-1),\"\")","v":""}]
[{"$f":"IF(OFFSET(DE105_4!$C$20,ROWS($C$20:C32)-1,COLUMNS($C$20:C32)-1)<>\"\",OFFSET(DE105_4!$C$20,ROWS($C$20:C32)-1,COLUMNS($C$20:C32)-1),\"\")","v":""},{"$f":"IF(OFFSET(DE105_4!$D$20,ROWS($D$20:D32)-1,COLUMNS($D$20:D32)-1)<>\"\",OFFSET(DE105_4!$D$20,ROWS($D$20:D32)-1,COLUMNS($D$20:D32)-1),\"\")","v":""},{"$f":"IF(OFFSET(DE105_4!$E$20,ROWS($E$20:E32)-1,COLUMNS($E$20:E32)-1)<>\"\",OFFSET(DE105_4!$E$20,ROWS($E$20:E32)-1,COLUMNS($E$20:E32)-1),\"\")","v":""}]
[{"$f":"IF(OFFSET(DE105_4!$C$20,ROWS($C$20:C33)-1,COLUMNS($C$20:C33)-1)<>\"\",OFFSET(DE105_4!$C$20,ROWS($C$20:C33)-1,COLUMNS($C$20:C33)-1),\"\")","v":""},{"$f":"IF(OFFSET(DE105_4!$D$20,ROWS($D$20:D33)-1,COLUMNS($D$20:D33)-1)<>\"\",OFFSET(DE105_4!$D$20,ROWS($D$20:D33)-1,COLUMNS($D$20:D33)-1),\"\")","v":""},{"$f":"IF(OFFSET(DE105_4!$E$20,ROWS($E$20:E33)-1,COLUMNS($E$20:E33)-1)<>\"\",OFFSET(DE105_4!$E$20,ROWS($E$20:E33)-1,COLUMNS($E$20:E33)-1),\"\")","v":""}]
[{"$f":"IF(OFFSET(DE105_4!$C$20,ROWS($C$20:C34)-1,COLUMNS($C$20:C34)-1)<>\"\",OFFSET(DE105_4!$C$20,ROWS($C$20:C34)-1,COLUMNS($C$20:C34)-1),\"\")","v":""},{"$f":"IF(OFFSET(DE105_4!$D$20,ROWS($D$20:D34)-1,COLUMNS($D$20:D34)-1)<>\"\",OFFSET(DE105_4!$D$20,ROWS($D$20:D34)-1,COLUMNS($D$20:D34)-1),\"\")","v":""},{"$f":"IF(OFFSET(DE105_4!$E$20,ROWS($E$20:E34)-1,COLUMNS($E$20:E34)-1)<>\"\",OFFSET(DE105_4!$E$20,ROWS($E$20:E34)-1,COLUMNS($E$20:E34)-1),\"\")","v":""}]

{"sheet":"112_6","index":13,"n_rows":31,"n_cols":21,"rows_kept":31,"cut":false,"hidden":false,"merged":[[0,0,0,20],[1,0,1,20],[2,0,3,20],[4,0,4,20],[5,0,5,20],[6,18,7,18],[6,19,7,19],[6,20,12,20],[7,0,12,0],[7,1,12,1],[7,2,10,3],[7,5,11,5],[7,6,11,6],[7,7,11,7],[7,8,11,8],[6,0,6,3],[6,4,6,8],[6,9,8,11],[6,12,6,16],[6,17,7,17],[7,13,7,14],[20,3,20,4],[8,18,11,18],[8,19,11,19],[9,4,11,4],[9,9,12,9],[9,10,12,10],[9,11,12,11],[8,17,11,17],[8,12,11,12],[8,13,11,14],[8,15,11,15],[8,16,11,16],[11,2,11,3]]}
["112-6"]
["2017-04-18"]
["BRIDGE APPROACH SECTION"]
[]
["Refer to the BR Series."]
["* Not a bid item"]
["Location",null,null,null,"Approach Pavement",null,null,null,null,"Standard Road Plans\nBR Series",null,null,"Subdrain",null,null,null,null,"*","*","*","Remarks"]
["Bridge Station","End","Skew Ahead",null,null,"Pay\nLength","Non-Reinf.\nPavement\nArea","Single-\nReinf.\nPavement\nArea","Double-\nReinf.\nPavement\nArea",null,null,null,"*","*",null,"*","*"]
[null,null,null,null,null,null,null,null,null,null,null,null,"Perforated Subdrain 4\"","Subdrain Outlet",null,"Porous Backfill","Class 'A' Crushed Stone Backfill","Modified Subbase","Polymer Grid","Special Backfill"]
[null,null,null,null,"Thickness",null,null,null,null,"Approach","Fixed or Movable Abutment","Abutting Pavement"]
[]
[null,null,"Degrees"]
[null,null,"LEFT","RIGHT","Inches","FT","SY","SY","SY",null,null,null,"LF","STA","Side","CY","CY","TON","SY","TON"]
[{"$f":"IF(OFFSET(DE112_6!$C$28,ROWS($C$28:C28)-1,COLUMNS($C$28:C28)-1)<>\"\",OFFSET(DE112_6!$C$28,ROWS($C$28:C28)-1,COLUMNS($C$28:C28)-1),\"\")","v":"US 218"},{"$f":"IF(OFFSET(DE112_6!$D$28,ROWS($D$28:D28)-1,COLUMNS($D$28:D28)-1)<>\"\",OFFSET(DE112_6!$D$28,ROWS($D$28:D28)-1,COLUMNS($D$28:D28)-1),\"\")","v":""},{"$f":"IF(OFFSET(DE112_6!$E$28,ROWS($E$28:E28)-1,COLUMNS($E$28:E28)-1)<>\"\",OFFSET(DE112_6!$E$28,ROWS($E$28:E28)-1,COLUMNS($E$28:E28)-1),\"\")","v":""},{"$f":"IF(OFFSET(DE112_6!$F$28,ROWS($F$28:F28)-1,COLUMNS($F$28:F28)-1)<>\"\",OFFSET(DE112_6!$F$28,ROWS($F$28:F28)-1,COLUMNS($F$28:F28)-1),\"\")","v":""},{"$f":"IF(OFFSET(DE112_6!$G$28,ROWS($G$28:G28)-1,COLUMNS($G$28:G28)-1)<>\"\",OFFSET(DE112_6!$G$28,ROWS($G$28:G28)-1,COLUMNS($G$28:G28)-1),\"\")","v":""},{"$f":"IF(OFFSET(DE112_6!$H$28,ROWS($H$28:H28)-1,COLUMNS($H$28:H28)-1)<>\"\",OFFSET(DE112_6!$H$28,ROWS($H$28:H28)-1,COLUMNS($H$28:H28)-1),\"\")","v":""},{"$f":"IF(OFFSET(DE112_6!$I$28,ROWS($I$28:I28)-1,COLUMNS($I$28:I28)-1)<>\"\",OFFSET(DE112_6!$I$28,ROWS($I$28:I28)-1,COLUMNS($I$28:I28)-1),\"\")","v":""},{"$f":"IF(OFFSET(DE112_6!$J$28,ROWS($J$28:J28)-1,COLUMNS($J$28:J28)-1)<>\"\",OFFSET(DE112_6!$J$28,ROWS($J$28:J28)-1,COLUMNS($J$28:J28)-1),\"\")","v":""},{"$f":"IF(OFFSET(DE112_6!$K$28,ROWS($K$28:K28)-1,COLUMNS($K$28:K28)-1)<>\"\",OFFSET(DE112_6!$K$28,ROWS($K$28:K28)-1,COLUMNS($K$28:K28)-1),\"\")","v":""},{"$f":"IF(OFFSET(DE112_6!$L$28,ROWS($L$28:L28)-1,COLUMNS($L$28:L28)-1)<>\"\",OFFSET(DE112_6!$L$28,ROWS($L$28:L28)-1,COLUMNS($L$28:L28)-1),\"\")","v":""},{"$f":"IF(OFFSET(DE112_6!$M$28,ROWS($M$28:M28)-1,COLUMNS($M$28:M28)-1)<>\"\",OFFSET(DE112_6!$M$28,ROWS($M$28:M28)-1,COLUMNS($M$28:M28)-1),\"\")","v":""},{"$f":"IF(OFFSET(DE112_6!$N$28,ROWS($N$28:N28)-1,COLUMNS($N$28:N28)-1)<>\"\",OFFSET(DE112_6!$N$28,ROWS($N$28:N28)-1,COLUMNS($N$28:N28)-1),\"\")","v":""},{"$f":"IF(OFFSET(DE112_6!$O$28,ROWS($O$28:O28)-1,COLUMNS($O$28:O28)-1)<>\"\",OFFSET(DE112_6!$O$28,ROWS($O$28:O28)-1,COLUMNS($O$28:O28)-1),\"\")","v":""},{"$f":"IF(OFFSET(DE112_6!$P$28,ROWS($P$28:P28)-1,COLUMNS($P$28:P28)-1)<>\"\",OFFSET(DE112_6!$P$28,ROWS($P$28:P28)-1,COLUMNS($P$28:P28)-1),\"\")","v":""},{"$f":"IF(OFFSET(DE112_6!$Q$28,ROWS($Q$28:Q28)-1,COLUMNS($Q$28:Q28)-1)<>\"\",OFFSET(DE112_6!$Q$28,ROWS($Q$28:Q28)-1,COLUMNS($Q$28:Q28)-1),\"\")","v":""},{"$f":"IF(OFFSET(DE112_6!$R$28,ROWS($R$28:R28)-1,COLUMNS($R$28:R28)-1)<>\"\",OFFSET(DE112_6!$R$28,ROWS($R$28:R28)-1,COLUMNS($R$28:R28)-1),\"\")","v":""},{"$f":"IF(OFFSET(DE112_6!$S$28,ROWS($S$28:S28)-1,COLUMNS($S$28:S28)-1)<>\"\",OFFSET(DE112_6!$S$28,ROWS($S$28:S28)-1,COLUMNS($S$28:S28)-1),\"\")","v":""},{"$f":"IF(OFFSET(DE112_6!$T$28,ROWS($T$28:T28)-1,COLUMNS($T$28:T28)-1)<>\"\",OFFSET(DE112_6!$T$28,ROWS($T$28:T28)-1,COLUMNS($T$28:T28)-1),\"\")","v":""},{"$f":"IF(OFFSET(DE112_6!$U$28,ROWS($U$28:U28)-1,COLUMNS($U$28:U28)-1)<>\"\",OFFSET(DE112_6!$U$28,ROWS($U$28:U28)-1,COLUMNS($U$28:U28)-1),\"\")","v":""},{"$f":"IF(OFFSET(DE112_6!$V$28,ROWS($V$28:V28)-1,COLUMNS($V$28:V28)-1)<>\"\",OFFSET(DE112_6!$V$28,ROWS($V$28:V28)-1,COLUMNS($V$28:V28)-1),\"\")","v":""},{"$f":"IF(OFFSET(DE112_6!$W$28,ROWS($W$28:W28)-1,COLUMNS($W$28:W28)-1)<>\"\",OFFSET(DE112_6!$W$28,ROWS($W$28:W28)-1,COLUMNS($W$28:W28)-1),\"\")","v":""}]
[{"$f":"IF(OFFSET(DE112_6!$C$28,ROWS($C$28:C29)-1,COLUMNS($C$28:C29)-1)<>\"\",OFFSET(DE112_6!$C$28,ROWS($C$28:C29)-1,COLUMNS($C$28:C29)-1),\"\")","v":24147575.719999999},{"$f":"IF(OFFSET(DE112_6!$D$28,ROWS($D$28:D29)-1,COLUMNS($D$28:D29)-1)<>\"\",OFFSET(DE112_6!$D$28,ROWS($D$28:D29)-1,COLUMNS($D$28:D29)-1),\"\")","v":"South"},{"$f":"IF(OFFSET(DE112_6!$E$28,ROWS($E$28:E29)-1,COLUMNS($E$28:E29)-1)<>\"\",OFFSET(DE112_6!$E$28,ROWS($E$28:E29)-1,COLUMNS($E$28:E29)-1),\"\")","v":""},{"$f":"IF(OFFSET(DE112_6!$F$28,ROWS($F$28:F29)-1,COLUMNS($F$28:F29)-1)<>\"\",OFFSET(DE112_6!$F$28,ROWS($F$28:F29)-1,COLUMNS($F$28:F29)-1),\"\")","v":""},{"$f":"IF(OFFSET(DE112_6!$G$28,ROWS($G$28:G29)-1,COLUMNS($G$28:G29)-1)<>\"\",OFFSET(DE112_6!$G$28,ROWS($G$28:G29)-1,COLUMNS($G$28:G29)-1),\"\")","v":12},{"$f":"IF(OFFSET(DE112_6!$H$28,ROWS($H$28:H29)-1,COLUMNS($H$28:H29)-1)<>\"\",OFFSET(DE112_6!$H$28,ROWS($H$28:H29)-1,COLUMNS($H$28:H29)-1),\"\")","v":70},{"$f":"IF(OFFSET(DE112_6!$I$28,ROWS($I$28:I29)-1,COLUMNS($I$28:I29)-1)<>\"\",OFFSET(DE112_6!$I$28,ROWS($I$28:I29)-1,COLUMNS($I$28:I29)-1),\"\")","v":93.33},{"$f":"IF(OFFSET(DE112_6!$J$28,ROWS($J$28:J29)-1,COLUMNS($J$28:J29)-1)<>\"\",OFFSET(DE112_6!$J$28,ROWS($J$28:J29)-1,COLUMNS($J$28:J29)-1),\"\")","v":62.22},{"$f":"IF(OFFSET(DE112_6!$K$28,ROWS($K$28:K29)-1,COLUMNS($K$28:K29)-1)<>\"\",OFFSET(DE112_6!$K$28,ROWS($K$28:K29)-1,COLUMNS($K$28:K29)-1),\"\")","v":107.7},{"$f":"IF(OFFSET(DE112_6!$L$28,ROWS($L$28:L29)-1,COLUMNS($L$28:L29)-1)<>\"\",OFFSET(DE112_6!$L$28,ROWS($L$28:L29)-1,COLUMNS($L$28:L29)-1),\"\")","v":"BR-203"},{"$f":"IF(OFFSET(DE112_6!$M$28,ROWS($M$28:M29)-1,COLUMNS($M$28:M29)-1)<>\"\",OFFSET(DE112_6!$M$28,ROWS($M$28:M29)-1,COLUMNS($M$28:M29)-1),\"\")","v":"Movable"},{"$f":"IF(OFFSET(DE112_6!$N$28,ROWS($N$28:N29)-1,COLUMNS($N$28:N29)-1)<>\"\",OFFSET(DE112_6!$N$28,ROWS($N$28:N29)-1,COLUMNS($N$28:N29)-1),\"\")","v":"BR-211"},{"$f":"IF(OFFSET(DE112_6!$O$28,ROWS($O$28:O29)-1,COLUMNS($O$28:O29)-1)<>\"\",OFFSET(DE112_6!$O$28,ROWS($O$28:O29)-1,COLUMNS($O$28:O29)-1),\"\")","v":82},{"$f":"IF(OFFSET(DE112_6!$P$28,ROWS($P$28:P29)-1,COLUMNS($P$28:P29)-1)<>\"\",OFFSET(DE112_6!$P$28,ROWS($P$28:P29)-1,COLUMNS($P$28:P29)-1),\"\")","v":24147370},{"$f":"IF(OFFSET(DE112_6!$Q$28,ROWS($Q$28:Q29)-1,COLUMNS($Q$28:Q29)-1)<>\"\",OFFSET(DE112_6!$Q$28,ROWS($Q$28:Q29)-1,COLUMNS($Q$28:Q29)-1),\"\")","v":"RT"},{"$f":"IF(OFFSET(DE112_6!$R$28,ROWS($R$28:R29)-1,COLUMNS($R$28:R29)-1)<>\"\",OFFSET(DE112_6!$R$28,ROWS($R$28:R29)-1,COLUMNS($R$28:R29)-1),\"\")","v":14},{"$f":"IF(OFFSET(DE112_6!$S$28,ROWS($S$28:S29)-1,COLUMNS($S$28:S29)-1)<>\"\",OFFSET(DE112_6!$S$28,ROWS($S$28:S29)-1,COLUMNS($S$28:S29)-1),\"\")","v":1},{"$f":"IF(OFFSET(DE112_6!$T$28,ROWS($T$28:T29)-1,COLUMNS($T$28:T29)-1)<>\"\",OFFSET(DE112_6!$T$28,ROWS($T$28:T29)-1,COLUMNS($T$28:T29)-1),\"\")","v":262.77999999999997},{"$f":"IF(OFFSET(DE112_6!$U$28,ROWS($U$28:U29)-1,COLUMNS($U$28:U29)-1)<>\"\",OFFSET(DE112_6!$U$28,ROWS($U$28:U29)-1,COLUMNS($U$28:U29)-1),\"\")","v":284.14999999999998},{"$f":"IF(OFFSET(DE112_6!$V$28,ROWS($V$28:V29)-1,COLUMNS($V$28:V29)-1)<>\"\",OFFSET(DE112_6!$V$28,ROWS($V$28:V29)-1,COLUMNS($V$28:V29)-1),\"\")","v":""},{"$f":"IF(OFFSET(DE112_6!$W$28,ROWS($W$28:W29)-1,COLUMNS($W$28:W29)-1)<>\"\",OFFSET(DE112_6!$W$28,ROWS($W$28:W29)-1,COLUMNS($W$28:W29)-1),\"\")","v":""}]
[{"$f":"IF(OFFSET(DE112_6!$C$28,ROWS($C$28:C30)-1,COLUMNS($C$28:C30)-1)<>\"\",OFFSET(DE112_6!$C$28,ROWS($C$28:C30)-1,COLUMNS($C$28:C30)-1),\"\")","v":24147575.719999999},{"$f":"IF(OFFSET(DE112_6!$D$28,ROWS($D$28:D30)-1,COLUMNS($D$28:D30)-1)<>\"\",OFFSET(DE112_6!$D$28,ROWS($D$28:D30)-1,COLUMNS($D$28:D30)-1),\"\")","v":"North"},{"$f":"IF(OFFSET(DE112_6!$E$28,ROWS($E$28:E30)-1,COLUMNS($E$28:E30)-1)<>\"\",OFFSET(DE112_6!$E$28,ROWS($E$28:E30)-1,COLUMNS($E$28:E30)-1),\"\")","v":""},{"$f":"IF(OFFSET(DE112_6!$F$28,ROWS($F$28:F30)-1,COLUMNS($F$28:F30)-1)<>\"\",OFFSET(DE112_6!$F$28,ROWS($F$28:F30)-1,COLUMNS($F$28:F30)-1),\"\")","v":""},{"$f":"IF(OFFSET(DE112_6!$G$28,ROWS($G$28:G30)-1,COLUMNS($G$28:G30)-1)<>\"\",OFFSET(DE112_6!$G$28,ROWS($G$28:G30)-1,COLUMNS($G$28:G30)-1),\"\")","v":12},{"$f":"IF(OFFSET(DE112_6!$H$28,ROWS($H$28:H30)-1,COLUMNS($H$28:H30)-1)<>\"\",OFFSET(DE112_6!$H$28,ROWS($H$28:H30)-1,COLUMNS($H$28:H30)-1),\"\")","v":70},{"$f":"IF(OFFSET(DE112_6!$I$28,ROWS($I$28:I30)-1,COLUMNS($I$28:I30)-1)<>\"\",OFFSET(DE112_6!$I$28,ROWS($I$28:I30)-1,COLUMNS($I$28:I30)-1),\"\")","v":93.33},{"$f":"IF(OFFSET(DE112_6!$J$28,ROWS($J$28:J30)-1,COLUMNS($J$28:J30)-1)<>\"\",OFFSET(DE112_6!$J$28,ROWS($J$28:J30)-1,COLUMNS($J$28:J30)-1),\"\")","v":62.22},{"$f":"IF(OFFSET(DE112_6!$K$28,ROWS($K$28:K30)-1,COLUMNS($K$28:K30)-1)<>\"\",OFFSET(DE112_6!$K$28,ROWS($K$28:K30)-1,COLUMNS($K$28:K30)-1),\"\")","v":100.67},{"$f":"IF(OFFSET(DE112_6!$L$28,ROWS($L$28:L30)-1,COLUMNS($L$28:L30)-1)<>\"\",OFFSET(DE112_6!$L$28,ROWS($L$28:L30)-1,COLUMNS($L$28:L30)-1),\"\")","v":"BR-203"},{"$f":"IF(OFFSET(DE112_6!$M$28,ROWS($M$28:M30)-1,COLUMNS($M$28:M30)-1)<>\"\",OFFSET(DE112_6!$M$28,ROWS($M$28:M30)-1,COLUMNS($M$28:M30)-1),\"\")","v":"Movable"},{"$f":"IF(OFFSET(DE112_6!$N$28,ROWS($N$28:N30)-1,COLUMNS($N$28:N30)-1)<>\"\",OFFSET(DE112_6!$N$28,ROWS($N$28:N30)-1,COLUMNS($N$28:N30)-1),\"\")","v":"BR-211"},{"$f":"IF(OFFSET(DE112_6!$O$28,ROWS($O$28:O30)-1,COLUMNS($O$28:O30)-1)<>\"\",OFFSET(DE112_6!$O$28,ROWS($O$28:O30)-1,COLUMNS($O$28:O30)-1),\"\")","v":72},{"$f":"IF(OFFSET(DE112_6!$P$28,ROWS($P$28:P30)-1,COLUMNS($P$28:P30)-1)<>\"\",OFFSET(DE112_6!$P$28,ROWS($P$28:P30)-1,COLUMNS($P$28:P30)-1),\"\")","v":24147765.719999999},{"$f":"IF(OFFSET(DE112_6!$Q$28,ROWS($Q$28:Q30)-1,COLUMNS($Q$28:Q30)-1)<>\"\",OFFSET(DE112_6!$Q$28,ROWS($Q$28:Q30)-1,COLUMNS($Q$28:Q30)-1),\"\")","v":"LT"},{"$f":"IF(OFFSET(DE112_6!$R$28,ROWS($R$28:R30)-1,COLUMNS($R$28:R30)-1)<>\"\",OFFSET(DE112_6!$R$28,ROWS($R$28:R30)-1,COLUMNS($R$28:R30)-1),\"\")","v":12},{"$f":"IF(OFFSET(DE112_6!$S$28,ROWS($S$28:S30)-1,COLUMNS($S$28:S30)-1)<>\"\",OFFSET(DE112_6!$S$28,ROWS($S$28:S30)-1,COLUMNS($S$28:S30)-1),\"\")","v":1},{"$f":"IF(OFFSET(DE112_6!$T$28,ROWS($T$28:T30)-1,COLUMNS($T$28:T30)-1)<>\"\",OFFSET(DE112_6!$T$28,ROWS($T$28:T30)-1,COLUMNS($T$28:T30)-1),\"\")","v":267.7},{"$f":"IF(OFFSET(DE112_6!$U$28,ROWS($U$28:U30)-1,COLUMNS($U$28:U30)-1)<>\"\",OFFSET(DE112_6!$U$28,ROWS($U$28:U30)-1,COLUMNS($U$28:U30)-1),\"\")","v":288.22000000000003},{"$f":"IF(OFFSET(DE112_6!$V$28,ROWS($V$28:V30)-1,COLUMNS($V$28:V30)-1)<>\"\",OFFSET(DE112_6!$V$28,ROWS($V$28:V30)-1,COLUMNS($V$28:V30)-1),\"\")","v":""},{"$f":"IF(OFFSET(DE112_6!$W$28,ROWS($W$28:W30)-1,COLUMNS($W$28:W30)-1)<>\"\",OFFSET(DE112_6!$W$28,ROWS($W$28:W30)-1,COLUMNS($W$28:W30)-1),\"\")","v":""}]
[{"$f":"IF(OFFSET(DE112_6!$C$28,ROWS($C$28:C31)-1,COLUMNS($C$28:C31)-1)<>\"\",OFFSET(DE112_6!$C$28,ROWS($C$28:C31)-1,COLUMNS($C$28:C31)-1),\"\")","v":""},{"$f":"IF(OFFSET(DE112_6!$D$28,ROWS($D$28:D31)-1,COLUMNS($D$28:D31)-1)<>\"\",OFFSET(DE112_6!$D$28,ROWS($D$28:D31)-1,COLUMNS($D$28:D31)-1),\"\")","v":""},{"$f":"IF(OFFSET(DE112_6!$E$28,ROWS($E$28:E31)-1,COLUMNS($E$28:E31)-1)<>\"\",OFFSET(DE112_6!$E$28,ROWS($E$28:E31)-1,COLUMNS($E$28:E31)-1),\"\")","v":""},{"$f":"IF(OFFSET(DE112_6!$F$28,ROWS($F$28:F31)-1,COLUMNS($F$28:F31)-1)<>\"\",OFFSET(DE112_6!$F$28,ROWS($F$28:F31)-1,COLUMNS($F$28:F31)-1),\"\")","v":""},{"$f":"IF(OFFSET(DE112_6!$G$28,ROWS($G$28:G31)-1,COLUMNS($G$28:G31)-1)<>\"\",OFFSET(DE112_6!$G$28,ROWS($G$28:G31)-1,COLUMNS($G$28:G31)-1),\"\")","v":""},{"$f":"IF(OFFSET(DE112_6!$H$28,ROWS($H$28:H31)-1,COLUMNS($H$28:H31)-1)<>\"\",OFFSET(DE112_6!$H$28,ROWS($H$28:H31)-1,COLUMNS($H$28:H31)-1),\"\")","v":""},{"$f":"IF(OFFSET(DE112_6!$I$28,ROWS($I$28:I31)-1,COLUMNS($I$28:I31)-1)<>\"\",OFFSET(DE112_6!$I$28,ROWS($I$28:I31)-1,COLUMNS($I$28:I31)-1),\"\")","v":""},{"$f":"IF(OFFSET(DE112_6!$J$28,ROWS($J$28:J31)-1,COLUMNS($J$28:J31)-1)<>\"\",OFFSET(DE112_6!$J$28,ROWS($J$28:J31)-1,COLUMNS($J$28:J31)-1),\"\")","v":""},{"$f":"IF(OFFSET(DE112_6!$K$28,ROWS($K$28:K31)-1,COLUMNS($K$28:K31)-1)<>\"\",OFFSET(DE112_6!$K$28,ROWS($K$28:K31)-1,COLUMNS($K$28:K31)-1),\"\")","v":""},{"$f":"IF(OFFSET(DE112_6!$L$28,ROWS($L$28:L31)-1,COLUMNS($L$28:L31)-1)<>\"\",OFFSET(DE112_6!$L$28,ROWS($L$28:L31)-1,COLUMNS($L$28:L31)-1),\"\")","v":""},{"$f":"IF(OFFSET(DE112_6!$M$28,ROWS($M$28:M31)-1,COLUMNS($M$28:M31)-1)<>\"\",OFFSET(DE112_6!$M$28,ROWS($M$28:M31)-1,COLUMNS($M$28:M31)-1),\"\")","v":""},{"$f":"IF(OFFSET(DE112_6!$N$28,ROWS($N$28:N31)-1,COLUMNS($N$28:N31)-1)<>\"\",OFFSET(DE112_6!$N$28,ROWS($N$28:N31)-1,COLUMNS($N$28:N31)-1),\"\")","v":""},{"$f":"IF(OFFSET(DE112_6!$O$28,ROWS($O$28:O31)-1,COLUMNS($O$28:O31)-1)<>\"\",OFFSET(DE112_6!$O$28,ROWS($O$28:O31)-1,COLUMNS($O$28:O31)-1),\"\")","v":""},{"$f":"IF(OFFSET(DE112_6!$P$28,ROWS($P$28:P31)-1,COLUMNS($P$28:P31)-1)<>\"\",OFFSET(DE112_6!$P$28,ROWS($P$28:P31)-1,COLUMNS($P$28:P31)-1),\"\")","v":""},{"$f":"IF(OFFSET(DE112_6!$Q$28,ROWS($Q$28:Q31)-1,COLUMNS($Q$28:Q31)-1)<>\"\",OFFSET(DE112_6!$Q$28,ROWS($Q$28:Q31)-1,COLUMNS($Q$28:Q31)-1),\"\")","v":""},{"$f":"IF(OFFSET(DE112_6!$R$28,ROWS($R$28:R31)-1,COLUMNS($R$28:R31)-1)<>\"\",OFFSET(DE112_6!$R$28,ROWS($R$28:R31)-1,COLUMNS($R$28:R31)-1),\"\")","v":""},{"$f":"IF(OFFSET(DE112_6!$S$28,ROWS($S$28:S31)-1,COLUMNS($S$28:S31)-1)<>\"\",OFFSET(DE112_6!$S$28,ROWS($S$28:S31)-1,COLUMNS($S$28:S31)-1),\"\")","v":""},{"$f":"IF(OFFSET(DE112_6!$T$28,ROWS($T$28:T31)-1,COLUMNS($T$28:T31)-1)<>\"\",OFFSET(DE112_6!$T$28,ROWS($T$28:T31)-1,COLUMNS($T$28:T31)-1),\"\")","v":""},{"$f":"IF(OFFSET(DE112_6!$U$28,ROWS($U$28:U31)-1,COLUMNS($U$28:U31)-1)<>\"\",OFFSET(DE112_6!$U$28,ROWS($U$28:U31)-1,COLUMNS($U$28:U31)-1),\"\")","v":""},{"$f":"IF(OFFSET(DE112_6!$V$28,ROWS($V$28:V31)-1,COLUMNS($V$28:V31)-1)<>\"\",OFFSET(DE112_6!$V$28,ROWS($V$28:V31)-1,COLUMNS($V$28:V31)-1),\"\")","v":""},{"$f":"IF(OFFSET(DE112_6!$W$28,ROWS($W$28:W31)-1,COLUMNS($W$28:W31)-1)<>\"\",OFFSET(DE112_6!$W$28,ROWS($W$28:W31)-1,COLUMNS($W$28:W31)-1),\"\")","v":""}]
[{"$f":"IF(OFFSET(DE112_6!$C$28,ROWS($C$28:C32)-1,COLUMNS($C$28:C32)-1)<>\"\",OFFSET(DE112_6!$C$28,ROWS($C$28:C32)-1,COLUMNS($C$28:C32)-1),\"\")","v":""},{"$f":"IF(OFFSET(DE112_6!$D$28,ROWS($D$28:D32)-1,COLUMNS($D$28:D32)-1)<>\"\",OFFSET(DE112_6!$D$28,ROWS($D$28:D32)-1,COLUMNS($D$28:D32)-1),\"\")","v":""},{"$f":"IF(OFFSET(DE112_6!$E$28,ROWS($E$28:E32)-1,COLUMNS($E$28:E32)-1)<>\"\",OFFSET(DE112_6!$E$28,ROWS($E$28:E32)-1,COLUMNS($E$28:E32)-1),\"\")","v":""},{"$f":"IF(OFFSET(DE112_6!$F$28,ROWS($F$28:F32)-1,COLUMNS($F$28:F32)-1)<>\"\",OFFSET(DE112_6!$F$28,ROWS($F$28:F32)-1,COLUMNS($F$28:F32)-1),\"\")","v":""},{"$f":"IF(OFFSET(DE112_6!$G$28,ROWS($G$28:G32)-1,COLUMNS($G$28:G32)-1)<>\"\",OFFSET(DE112_6!$G$28,ROWS($G$28:G32)-1,COLUMNS($G$28:G32)-1),\"\")","v":""},{"$f":"IF(OFFSET(DE112_6!$H$28,ROWS($H$28:H32)-1,COLUMNS($H$28:H32)-1)<>\"\",OFFSET(DE112_6!$H$28,ROWS($H$28:H32)-1,COLUMNS($H$28:H32)-1),\"\")","v":""},{"$f":"IF(OFFSET(DE112_6!$I$28,ROWS($I$28:I32)-1,COLUMNS($I$28:I32)-1)<>\"\",OFFSET(DE112_6!$I$28,ROWS($I$28:I32)-1,COLUMNS($I$28:I32)-1),\"\")","v":""},{"$f":"IF(OFFSET(DE112_6!$J$28,ROWS($J$28:J32)-1,COLUMNS($J$28:J32)-1)<>\"\",OFFSET(DE112_6!$J$28,ROWS($J$28:J32)-1,COLUMNS($J$28:J32)-1),\"\")","v":""},{"$f":"IF(OFFSET(DE112_6!$K$28,ROWS($K$28:K32)-1,COLUMNS($K$28:K32)-1)<>\"\",OFFSET(DE112_6!$K$28,ROWS($K$28:K32)-1,COLUMNS($K$28:K32)-1),\"\")","v":""},{"$f":"IF(OFFSET(DE112_6!$L$28,ROWS($L$28:L32)-1,COLUMNS($L$28:L32)-1)<>\"\",OFFSET(DE112_6!$L$28,ROWS($L$28:L32)-1,COLUMNS($L$28:L32)-1),\"\")","v":""},{"$f":"IF(OFFSET(DE112_6!$M$28,ROWS($M$28:M32)-1,COLUMNS($M$28:M32)-1)<>\"\",OFFSET(DE112_6!$M$28,ROWS($M$28:M32)-1,COLUMNS($M$28:M32)-1),\"\")","v":""},{"$f":"IF(OFFSET(DE112_6!$N$28,ROWS($N$28:N32)-1,COLUMNS($N$28:N32)-1)<>\"\",OFFSET(DE112_6!$N$28,ROWS($N$28:N32)-1,COLUMNS($N$28:N32)-1),\"\")","v":""},{"$f":"IF(OFFSET(DE112_6!$O$28,ROWS($O$28:O32)-1,COLUMNS($O$28:O32)-1)<>\"\",OFFSET(DE112_6!$O$28,ROWS($O$28:O32)-1,COLUMNS($O$28:O32)-1),\"\")","v":""},{"$f":"IF(OFFSET(DE112_6!$P$28,ROWS($P$28:P32)-1,COLUMNS($P$28:P32)-1)<>\"\",OFFSET(DE112_6!$P$28,ROWS($P$28:P32)-1,COLUMNS($P$28:P32)-1),\"\")","v":""},{"$f":"IF(OFFSET(DE112_6!$Q$28,ROWS($Q$28:Q32)-1,COLUMNS($Q$28:Q32)-1)<>\"\",OFFSET(DE112_6!$Q$28,ROWS($Q$28:Q32)-1,COLUMNS($Q$28:Q32)-1),\"\")","v":""},{"$f":"IF(OFFSET(DE112_6!$R$28,ROWS($R$28:R32)-1,COLUMNS($R$28:R32)-1)<>\"\",OFFSET(DE112_6!$R$28,ROWS($R$28:R32)-1,COLUMNS($R$28:R32)-1),\"\")","v":""},{"$f":"IF(OFFSET(DE112_6!$S$28,ROWS($S$28:S32)-1,COLUMNS($S$28:S32)-1)<>\"\",OFFSET(DE112_6!$S$28,ROWS($S$28:S32)-1,COLUMNS($S$28:S32)-1),\"\")","v":""},{"$f":"IF(OFFSET(DE112_6!$T$28,ROWS($T$28:T32)-1,COLUMNS($T$28:T32)-1)<>\"\",OFFSET(DE112_6!$T$28,ROWS($T$28:T32)-1,COLUMNS($T$28:T32)-1),\"\")","v":""},{"$f":"IF(OFFSET(DE112_6!$U$28,ROWS($U$28:U32)-1,COLUMNS($U$28:U32)-1)<>\"\",OFFSET(DE112_6!$U$28,ROWS($U$28:U32)-1,COLUMNS($U$28:U32)-1),\"\")","v":""},{"$f":"IF(OFFSET(DE112_6!$V$28,ROWS($V$28:V32)-1,COLUMNS($V$28:V32)-1)<>\"\",OFFSET(DE112_6!$V$28,ROWS($V$28:V32)-1,COLUMNS($V$28:V32)-1),\"\")","v":""},{"$f":"IF(OFFSET(DE112_6!$W$28,ROWS($W$28:W32)-1,COLUMNS($W$28:W32)-1)<>\"\",OFFSET(DE112_6!$W$28,ROWS($W$28:W32)-1,COLUMNS($W$28:W32)-1),\"\")","v":""}]
[{"$f":"IF(OFFSET(DE112_6!$C$28,ROWS($C$28:C33)-1,COLUMNS($C$28:C33)-1)<>\"\",OFFSET(DE112_6!$C$28,ROWS($C$28:C33)-1,COLUMNS($C$28:C33)-1),\"\")","v":""},{"$f":"IF(OFFSET(DE112_6!$D$28,ROWS($D$28:D33)-1,COLUMNS($D$28:D33)-1)<>\"\",OFFSET(DE112_6!$D$28,ROWS($D$28:D33)-1,COLUMNS($D$28:D33)-1),\"\")","v":""},{"$f":"IF(OFFSET(DE112_6!$E$28,ROWS($E$28:E33)-1,COLUMNS($E$28:E33)-1)<>\"\",OFFSET(DE112_6!$E$28,ROWS($E$28:E33)-1,COLUMNS($E$28:E33)-1),\"\")","v":""},{"$f":"IF(OFFSET(DE112_6!$F$28,ROWS($F$28:F33)-1,COLUMNS($F$28:F33)-1)<>\"\",OFFSET(DE112_6!$F$28,ROWS($F$28:F33)-1,COLUMNS($F$28:F33)-1),\"\")","v":""},{"$f":"IF(OFFSET(DE112_6!$G$28,ROWS($G$28:G33)-1,COLUMNS($G$28:G33)-1)<>\"\",OFFSET(DE112_6!$G$28,ROWS($G$28:G33)-1,COLUMNS($G$28:G33)-1),\"\")","v":"TOTALS:"},{"$f":"IF(OFFSET(DE112_6!$H$28,ROWS($H$28:H33)-1,COLUMNS($H$28:H33)-1)<>\"\",OFFSET(DE112_6!$H$28,ROWS($H$28:H33)-1,COLUMNS($H$28:H33)-1),\"\")","v":140},{"$f":"IF(OFFSET(DE112_6!$I$28,ROWS($I$28:I33)-1,COLUMNS($I$28:I33)-1)<>\"\",OFFSET(DE112_6!$I$28,ROWS($I$28:I33)-1,COLUMNS($I$28:I33)-1),\"\")","v":186.66},{"$f":"IF(OFFSET(DE112_6!$J$28,ROWS($J$28:J33)-1,COLUMNS($J$28:J33)-1)<>\"\",OFFSET(DE112_6!$J$28,ROWS($J$28:J33)-1,COLUMNS($J$28:J33)-1),\"\")","v":124.44},{"$f":"IF(OFFSET(DE112_6!$K$28,ROWS($K$28:K33)-1,COLUMNS($K$28:K33)-1)<>\"\",OFFSET(DE112_6!$K$28,ROWS($K$28:K33)-1,COLUMNS($K$28:K33)-1),\"\")","v":208.37},{"$f":"IF(OFFSET(DE112_6!$L$28,ROWS($L$28:L33)-1,COLUMNS($L$28:L33)-1)<>\"\",OFFSET(DE112_6!$L$28,ROWS($L$28:L33)-1,COLUMNS($L$28:L33)-1),\"\")","v":""},{"$f":"IF(OFFSET(DE112_6!$M$28,ROWS($M$28:M33)-1,COLUMNS($M$28:M33)-1)<>\"\",OFFSET(DE112_6!$M$28,ROWS($M$28:M33)-1,COLUMNS($M$28:M33)-1),\"\")","v":""},{"$f":"IF(OFFSET(DE112_6!$N$28,ROWS($N$28:N33)-1,COLUMNS($N$28:N33)-1)<>\"\",OFFSET(DE112_6!$N$28,ROWS($N$28:N33)-1,COLUMNS($N$28:N33)-1),\"\")","v":""},{"$f":"IF(OFFSET(DE112_6!$O$28,ROWS($O$28:O33)-1,COLUMNS($O$28:O33)-1)<>\"\",OFFSET(DE112_6!$O$28,ROWS($O$28:O33)-1,COLUMNS($O$28:O33)-1),\"\")","v":154},{"$f":"IF(OFFSET(DE112_6!$P$28,ROWS($P$28:P33)-1,COLUMNS($P$28:P33)-1)<>\"\",OFFSET(DE112_6!$P$28,ROWS($P$28:P33)-1,COLUMNS($P$28:P33)-1),\"\")","v":48295135.719999999},{"$f":"IF(OFFSET(DE112_6!$Q$28,ROWS($Q$28:Q33)-1,COLUMNS($Q$28:Q33)-1)<>\"\",OFFSET(DE112_6!$Q$28,ROWS($Q$28:Q33)-1,COLUMNS($Q$28:Q33)-1),\"\")","v":""},{"$f":"IF(OFFSET(DE112_6!$R$28,ROWS($R$28:R33)-1,COLUMNS($R$28:R33)-1)<>\"\",OFFSET(DE112_6!$R$28,ROWS($R$28:R33)-1,COLUMNS($R$28:R33)-1),\"\")","v":26},{"$f":"IF(OFFSET(DE112_6!$S$28,ROWS($S$28:S33)-1,COLUMNS($S$28:S33)-1)<>\"\",OFFSET(DE112_6!$S$28,ROWS($S$28:S33)-1,COLUMNS($S$28:S33)-1),\"\")","v":2},{"$f":"IF(OFFSET(DE112_6!$T$28,ROWS($T$28:T33)-1,COLUMNS($T$28:T33)-1)<>\"\",OFFSET(DE112_6!$T$28,ROWS($T$28:T33)-1,COLUMNS($T$28:T33)-1),\"\")","v":530.48},{"$f":"IF(OFFSET(DE112_6!$U$28,ROWS($U$28:U33)-1,COLUMNS($U$28:U33)-1)<>\"\",OFFSET(DE112_6!$U$28,ROWS($U$28:U33)-1,COLUMNS($U$28:U33)-1),\"\")","v":572.37},{"$f":"IF(OFFSET(DE112_6!$V$28,ROWS($V$28:V33)-1,COLUMNS($V$28:V33)-1)<>\"\",OFFSET(DE112_6!$V$28,ROWS($V$28:V33)-1,COLUMNS($V$28:V33)-1),\"\")","v":""},{"$f":"IF(OFFSET(DE112_6!$W$28,ROWS($W$28:W33)-1,COLUMNS($W$28:W33)-1)<>\"\",OFFSET(DE112_6!$W$28,ROWS($W$28:W33)-1,COLUMNS($W$28:W33)-1),\"\")","v":""}]
[{"$f":"IF(OFFSET(DE112_6!$C$28,ROWS($C$28:C34)-1,COLUMNS($C$28:C34)-1)<>\"\",OFFSET(DE112_6!$C$28,ROWS($C$28:C34)-1,COLUMNS($C$28:C34)-1),\"\")","v":""},{"$f":"IF(OFFSET(DE112_6!$D$28,ROWS($D$28:D34)-1,COLUMNS($D$28:D34)-1)<>\"\",OFFSET(DE112_6!$D$28,ROWS($D$28:D34)-1,COLUMNS($D$28:D34)-1),\"\")","v":""},{"$f":"IF(OFFSET(DE112_6!$E$28,ROWS($E$28:E34)-1,COLUMNS($E$28:E34)-1)<>\"\",OFFSET(DE112_6!$E$28,ROWS($E$28:E34)-1,COLUMNS($E$28:E34)-1),\"\")","v":""},{"$f":"IF(OFFSET(DE112_6!$F$28,ROWS($F$28:F34)-1,COLUMNS($F$28:F34)-1)<>\"\",OFFSET(DE112_6!$F$28,ROWS($F$28:F34)-1,COLUMNS($F$28:F34)-1),\"\")","v":""},{"$f":"IF(OFFSET(DE112_6!$G$28,ROWS($G$28:G34)-1,COLUMNS($G$28:G34)-1)<>\"\",OFFSET(DE112_6!$G$28,ROWS($G$28:G34)-1,COLUMNS($G$28:G34)-1),\"\")","v":""},{"$f":"IF(OFFSET(DE112_6!$H$28,ROWS($H$28:H34)-1,COLUMNS($H$28:H34)-1)<>\"\",OFFSET(DE112_6!$H$28,ROWS($H$28:H34)-1,COLUMNS($H$28:H34)-1),\"\")","v":""},{"$f":"IF(OFFSET(DE112_6!$I$28,ROWS($I$28:I34)-1,COLUMNS($I$28:I34)-1)<>\"\",OFFSET(DE112_6!$I$28,ROWS($I$28:I34)-1,COLUMNS($I$28:I34)-1),\"\")","v":""},{"$f":"IF(OFFSET(DE112_6!$J$28,ROWS($J$28:J34)-1,COLUMNS($J$28:J34)-1)<>\"\",OFFSET(DE112_6!$J$28,ROWS($J$28:J34)-1,COLUMNS($J$28:J34)-1),\"\")","v":""},{"$f":"IF(OFFSET(DE112_6!$K$28,ROWS($K$28:K34)-1,COLUMNS($K$28:K34)-1)<>\"\",OFFSET(DE112_6!$K$28,ROWS($K$28:K34)-1,COLUMNS($K$28:K34)-1),\"\")","v":""},{"$f":"IF(OFFSET(DE112_6!$L$28,ROWS($L$28:L34)-1,COLUMNS($L$28:L34)-1)<>\"\",OFFSET(DE112_6!$L$28,ROWS($L$28:L34)-1,COLUMNS($L$28:L34)-1),\"\")","v":""},{"$f":"IF(OFFSET(DE112_6!$M$28,ROWS($M$28:M34)-1,COLUMNS($M$28:M34)-1)<>\"\",OFFSET(DE112_6!$M$28,ROWS($M$28:M34)-1,COLUMNS($M$28:M34)-1),\"\")","v":""},{"$f":"IF(OFFSET(DE112_6!$N$28,ROWS($N$28:N34)-1,COLUMNS($N$28:N34)-1)<>\"\",OFFSET(DE112_6!$N$28,ROWS($N$28:N34)-1,COLUMNS($N$28:N34)-1),\"\")","v":""},{"$f":"IF(OFFSET(DE112_6!$O$28,ROWS($O$28:O34)-1,COLUMNS($O$28:O34)-1)<>\"\",OFFSET(DE112_6!$O$28,ROWS($O$28:O34)-1,COLUMNS($O$28:O34)-1),\"\")","v":""},{"$f":"IF(OFFSET(DE112_6!$P$28,ROWS($P$28:P34)-1,COLUMNS($P$28:P34)-1)<>\"\",OFFSET(DE112_6!$P$28,ROWS($P$28:P34)-1,COLUMNS($P$28:P34)-1),\"\")","v":""},{"$f":"IF(OFFSET(DE112_6!$Q$28,ROWS($Q$28:Q34)-1,COLUMNS($Q$28:Q34)-1)<>\"\",OFFSET(DE112_6!$Q$28,ROWS($Q$28:Q34)-1,COLUMNS($Q$28:Q34)-1),\"\")","v":""},{"$f":"IF(OFFSET(DE112_6!$R$28,ROWS($R$28:R34)-1,COLUMNS($R$28:R34)-1)<>\"\",OFFSET(DE112_6!$R$28,ROWS($R$28:R34)-1,COLUMNS($R$28:R34)-1),\"\")","v":""},{"$f":"IF(OFFSET(DE112_6!$S$28,ROWS($S$28:S34)-1,COLUMNS($S$28:S34)-1)<>\"\",OFFSET(DE112_6!$S$28,ROWS($S$28:S34)-1,COLUMNS($S$28:S34)-1),\"\")","v":""},{"$f":"IF(OFFSET(DE112_6!$T$28,ROWS($T$28:T34)-1,COLUMNS($T$28:T34)-1)<>\"\",OFFSET(DE112_6!$T$28,ROWS($T$28:T34)-1,COLUMNS($T$28:T34)-1),\"\")","v":""},{"$f":"IF(OFFSET(DE112_6!$U$28,ROWS($U$28:U34)-1,COLUMNS($U$28:U34)-1)<>\"\",OFFSET(DE112_6!$U$28,ROWS($U$28:U34)-1,COLUMNS($U$28:U34)-1),\"\")","v":""},{"$f":"IF(OFFSET(DE112_6!$V$28,ROWS($V$28:V34)-1,COLUMNS($V$28:V34)-1)<>\"\",OFFSET(DE112_6!$V$28,ROWS($V$28:V34)-1,COLUMNS($V$28:V34)-1),\"\")","v":""},{"$f":"IF(OFFSET(DE112_6!$W$28,ROWS($W$28:W34)-1,COLUMNS($W$28:W34)-1)<>\"\",OFFSET(DE112_6!$W$28,ROWS($W$28:W34)-1,COLUMNS($W$28:W34)-1),\"\")","v":""}]
[{"$f":"IF(OFFSET(DE112_6!$C$28,ROWS($C$28:C35)-1,COLUMNS($C$28:C35)-1)<>\"\",OFFSET(DE112_6!$C$28,ROWS($C$28:C35)-1,COLUMNS($C$28:C35)-1),\"\")","v":""},{"$f":"IF(OFFSET(DE112_6!$D$28,ROWS($D$28:D35)-1,COLUMNS($D$28:D35)-1)<>\"\",OFFSET(DE112_6!$D$28,ROWS($D$28:D35)-1,COLUMNS($D$28:D35)-1),\"\")","v":""},{"$f":"IF(OFFSET(DE112_6!$E$28,ROWS($E$28:E35)-1,COLUMNS($E$28:E35)-1)<>\"\",OFFSET(DE112_6!$E$28,ROWS($E$28:E35)-1,COLUMNS($E$28:E35)-1),\"\")","v":""},{"$f":"IF(OFFSET(DE112_6!$F$28,ROWS($F$28:F35)-1,COLUMNS($F$28:F35)-1)<>\"\",OFFSET(DE112_6!$F$28,ROWS($F$28:F35)-1,COLUMNS($F$28:F35)-1),\"\")","v":"BRIDGE APPROACH TOTAL:"},null,{"$f":"IF(OFFSET(DE112_6!$H$28,ROWS($H$28:H35)-1,COLUMNS($H$28:H35)-1)<>\"\",OFFSET(DE112_6!$H$28,ROWS($H$28:H35)-1,COLUMNS($H$28:H35)-1),\"\")","v":""},{"$f":"IF(OFFSET(DE112_6!$I$28,ROWS($I$28:I35)-1,COLUMNS($I$28:I35)-1)<>\"\",OFFSET(DE112_6!$I$28,ROWS($I$28:I35)-1,COLUMNS($I$28:I35)-1),\"\")","v":519.47},{"$f":"IF(OFFSET(DE112_6!$J$28,ROWS($J$28:J35)-1,COLUMNS($J$28:J35)-1)<>\"\",OFFSET(DE112_6!$J$28,ROWS($J$28:J35)-1,COLUMNS($J$28:J35)-1),\"\")","v":""},{"$f":"IF(OFFSET(DE112_6!$K$28,ROWS($K$28:K35)-1,COLUMNS($K$28:K35)-1)<>\"\",OFFSET(DE112_6!$K$28,ROWS($K$28:K35)-1,COLUMNS($K$28:K35)-1),\"\")","v":""},{"$f":"IF(OFFSET(DE112_6!$L$28,ROWS($L$28:L35)-1,COLUMNS($L$28:L35)-1)<>\"\",OFFSET(DE112_6!$L$28,ROWS($L$28:L35)-1,COLUMNS($L$28:L35)-1),\"\")","v":""},{"$f":"IF(OFFSET(DE112_6!$M$28,ROWS($M$28:M35)-1,COLUMNS($M$28:M35)-1)<>\"\",OFFSET(DE112_6!$M$28,ROWS($M$28:M35)-1,COLUMNS($M$28:M35)-1),\"\")","v":""},{"$f":"IF(OFFSET(DE112_6!$N$28,ROWS($N$28:N35)-1,COLUMNS($N$28:N35)-1)<>\"\",OFFSET(DE112_6!$N$28,ROWS($N$28:N35)-1,COLUMNS($N$28:N35)-1),\"\")","v":""},{"$f":"IF(OFFSET(DE112_6!$O$28,ROWS($O$28:O35)-1,COLUMNS($O$28:O35)-1)<>\"\",OFFSET(DE112_6!$O$28,ROWS($O$28:O35)-1,COLUMNS($O$28:O35)-1),\"\")","v":""},{"$f":"IF(OFFSET(DE112_6!$P$28,ROWS($P$28:P35)-1,COLUMNS($P$28:P35)-1)<>\"\",OFFSET(DE112_6!$P$28,ROWS($P$28:P35)-1,COLUMNS($P$28:P35)-1),\"\")","v":""},{"$f":"IF(OFFSET(DE112_6!$Q$28,ROWS($Q$28:Q35)-1,COLUMNS($Q$28:Q35)-1)<>\"\",OFFSET(DE112_6!$Q$28,ROWS($Q$28:Q35)-1,COLUMNS($Q$28:Q35)-1),\"\")","v":""},{"$f":"IF(OFFSET(DE112_6!$R$28,ROWS($R$28:R35)-1,COLUMNS($R$28:R35)-1)<>\"\",OFFSET(DE112_6!$R$28,ROWS($R$28:R35)-1,COLUMNS($R$28:R35)-1),\"\")","v":""},{"$f":"IF(OFFSET(DE112_6!$S$28,ROWS($S$28:S35)-1,COLUMNS($S$28:S35)-1)<>\"\",OFFSET(DE112_6!$S$28,ROWS($S$28:S35)-1,COLUMNS($S$28:S35)-1),\"\")","v":""},{"$f":"IF(OFFSET(DE112_6!$T$28,ROWS($T$28:T35)-1,COLUMNS($T$28:T35)-1)<>\"\",OFFSET(DE112_6!$T$28,ROWS($T$28:T35)-1,COLUMNS($T$28:T35)-1),\"\")","v":""},{"$f":"IF(OFFSET(DE112_6!$U$28,ROWS($U$28:U35)-1,COLUMNS($U$28:U35)-1)<>\"\",OFFSET(DE112_6!$U$28,ROWS($U$28:U35)-1,COLUMNS($U$28:U35)-1),\"\")","v":""},{"$f":"IF(OFFSET(DE112_6!$V$28,ROWS($V$28:V35)-1,COLUMNS($V$28:V35)-1)<>\"\",OFFSET(DE112_6!$V$28,ROWS($V$28:V35)-1,COLUMNS($V$28:V35)-1),\"\")","v":""},{"$f":"IF(OFFSET(DE112_6!$W$28,ROWS($W$28:W35)-1,COLUMNS($W$28:W35)-1)<>\"\",OFFSET(DE112_6!$W$28,ROWS($W$28:W35)-1,COLUMNS($W$28:W35)-1),\"\")","v":""}]
[{"$f":"IF(OFFSET(DE112_6!$C$28,ROWS($C$28:C36)-1,COLUMNS($C$28:C36)-1)<>\"\",OFFSET(DE112_6!$C$28,ROWS($C$28:C36)-1,COLUMNS($C$28:C36)-1),\"\")","v":""},{"$f":"IF(OFFSET(DE112_6!$D$28,ROWS($D$28:D36)-1,COLUMNS($D$28:D36)-1)<>\"\",OFFSET(DE112_6!$D$28,ROWS($D$28:D36)-1,COLUMNS($D$28:D36)-1),\"\")","v":""},{"$f":"IF(OFFSET(DE112_6!$E$28,ROWS($E$28:E36)-1,COLUMNS($E$28:E36)-1)<>\"\",OFFSET(DE112_6!$E$28,ROWS($E$28:E36)-1,COLUMNS($E$28:E36)-1),\"\")","v":""},{"$f":"IF(OFFSET(DE112_6!$F$28,ROWS($F$28:F36)-1,COLUMNS($F$28:F36)-1)<>\"\",OFFSET(DE112_6!$F$28,ROWS($F$28:F36)-1,COLUMNS($F$28:F36)-1),\"\")","v":""},{"$f":"IF(OFFSET(DE112_6!$G$28,ROWS($G$28:G36)-1,COLUMNS($G$28:G36)-1)<>\"\",OFFSET(DE112_6!$G$28,ROWS($G$28:G36)-1,COLUMNS($G$28:G36)-1),\"\")","v":""},{"$f":"IF(OFFSET(DE112_6!$H$28,ROWS($H$28:H36)-1,COLUMNS($H$28:H36)-1)<>\"\",OFFSET(DE112_6!$H$28,ROWS($H$28:H36)-1,COLUMNS($H$28:H36)-1),\"\")","v":""},{"$f":"IF(OFFSET(DE112_6!$I$28,ROWS($I$28:I36)-1,COLUMNS($I$28:I36)-1)<>\"\",OFFSET(DE112_6!$I$28,ROWS($I$28:I36)-1,COLUMNS($I$28:I36)-1),\"\")","v":""},{"$f":"IF(OFFSET(DE112_6!$J$28,ROWS($J$28:J36)-1,COLUMNS($J$28:J36)-1)<>\"\",OFFSET(DE112_6!$J$28,ROWS($J$28:J36)-1,COLUMNS($J$28:J36)-1),\"\")","v":""},{"$f":"IF(OFFSET(DE112_6!$K$28,ROWS($K$28:K36)-1,COLUMNS($K$28:K36)-1)<>\"\",OFFSET(DE112_6!$K$28,ROWS($K$28:K36)-1,COLUMNS($K$28:K36)-1),\"\")","v":""},{"$f":"IF(OFFSET(DE112_6!$L$28,ROWS($L$28:L36)-1,COLUMNS($L$28:L36)-1)<>\"\",OFFSET(DE112_6!$L$28,ROWS($L$28:L36)-1,COLUMNS($L$28:L36)-1),\"\")","v":""},{"$f":"IF(OFFSET(DE112_6!$M$28,ROWS($M$28:M36)-1,COLUMNS($M$28:M36)-1)<>\"\",OFFSET(DE112_6!$M$28,ROWS($M$28:M36)-1,COLUMNS($M$28:M36)-1),\"\")","v":""},{"$f":"IF(OFFSET(DE112_6!$N$28,ROWS($N$28:N36)-1,COLUMNS($N$28:N36)-1)<>\"\",OFFSET(DE112_6!$N$28,ROWS($N$28:N36)-1,COLUMNS($N$28:N36)-1),\"\")","v":""},{"$f":"IF(OFFSET(DE112_6!$O$28,ROWS($O$28:O36)-1,COLUMNS($O$28:O36)-1)<>\"\",OFFSET(DE112_6!$O$28,ROWS($O$28:O36)-1,COLUMNS($O$28:O36)-1),\"\")","v":""},{"$f":"IF(OFFSET(DE112_6!$P$28,ROWS($P$28:P36)-1,COLUMNS($P$28:P36)-1)<>\"\",OFFSET(DE112_6!$P$28,ROWS($P$28:P36)-1,COLUMNS($P$28:P36)-1),\"\")","v":""},{"$f":"IF(OFFSET(DE112_6!$Q$28,ROWS($Q$28:Q36)-1,COLUMNS($Q$28:Q36)-1)<>\"\",OFFSET(DE112_6!$Q$28,ROWS($Q$28:Q36)-1,COLUMNS($Q$28:Q36)-1),\"\")","v":""},{"$f":"IF(OFFSET(DE112_6!$R$28,ROWS($R$28:R36)-1,COLUMNS($R$28:R36)-1)<>\"\",OFFSET(DE112_6!$R$28,ROWS($R$28:R36)-1,COLUMNS($R$28:R36)-1),\"\")","v":""},{"$f":"IF(OFFSET(DE112_6!$S$28,ROWS($S$28:S36)-1,COLUMNS($S$28:S36)-1)<>\"\",OFFSET(DE112_6!$S$28,ROWS($S$28:S36)-1,COLUMNS($S$28:S36)-1),\"\")","v":""},{"$f":"IF(OFFSET(DE112_6!$T$28,ROWS($T$28:T36)-1,COLUMNS($T$28:T36)-1)<>\"\",OFFSET(DE112_6!$T$28,ROWS($T$28:T36)-1,COLUMNS($T$28:T36)-1),\"\")","v":""},{"$f":"IF(OFFSET(DE112_6!$U$28,ROWS($U$28:U36)-1,COLUMNS($U$28:U36)-1)<>\"\",OFFSET(DE112_6!$U$28,ROWS($U$28:U36)-1,COLUMNS($U$28:U36)-1),\"\")","v":""},{"$f":"IF(OFFSET(DE112_6!$V$28,ROWS($V$28:V36)-1,COLUMNS($V$28:V36)-1)<>\"\",OFFSET(DE112_6!$V$28,ROWS($V$28:V36)-1,COLUMNS($V$28:V36)-1),\"\")","v":""},{"$f":"IF(OFFSET(DE112_6!$W$28,ROWS($W$28:W36)-1,COLUMNS($W$28:W36)-1)<>\"\",OFFSET(DE112_6!$W$28,ROWS($W$28:W36)-1,COLUMNS($W$28:W36)-1),\"\")","v":""}]
[{"$f":"IF(OFFSET(DE112_6!$C$28,ROWS($C$28:C37)-1,COLUMNS($C$28:C37)-1)<>\"\",OFFSET(DE112_6!$C$28,ROWS($C$28:C37)-1,COLUMNS($C$28:C37)-1),\"\")","v":""},{"$f":"IF(OFFSET(DE112_6!$D$28,ROWS($D$28:D37)-1,COLUMNS($D$28:D37)-1)<>\"\",OFFSET(DE112_6!$D$28,ROWS($D$28:D37)-1,COLUMNS($D$28:D37)-1),\"\")","v":""},{"$f":"IF(OFFSET(DE112_6!$E$28,ROWS($E$28:E37)-1,COLUMNS($E$28:E37)-1)<>\"\",OFFSET(DE112_6!$E$28,ROWS($E$28:E37)-1,COLUMNS($E$28:E37)-1),\"\")","v":""},{"$f":"IF(OFFSET(DE112_6!$F$28,ROWS($F$28:F37)-1,COLUMNS($F$28:F37)-1)<>\"\",OFFSET(DE112_6!$F$28,ROWS($F$28:F37)-1,COLUMNS($F$28:F37)-1),\"\")","v":""},{"$f":"IF(OFFSET(DE112_6!$G$28,ROWS($G$28:G37)-1,COLUMNS($G$28:G37)-1)<>\"\",OFFSET(DE112_6!$G$28,ROWS($G$28:G37)-1,COLUMNS($G$28:G37)-1),\"\")","v":""},{"$f":"IF(OFFSET(DE112_6!$H$28,ROWS($H$28:H37)-1,COLUMNS($H$28:H37)-1)<>\"\",OFFSET(DE112_6!$H$28,ROWS($H$28:H37)-1,COLUMNS($H$28:H37)-1),\"\")","v":""},{"$f":"IF(OFFSET(DE112_6!$I$28,ROWS($I$28:I37)-1,COLUMNS($I$28:I37)-1)<>\"\",OFFSET(DE112_6!$I$28,ROWS($I$28:I37)-1,COLUMNS($I$28:I37)-1),\"\")","v":""},{"$f":"IF(OFFSET(DE112_6!$J$28,ROWS($J$28:J37)-1,COLUMNS($J$28:J37)-1)<>\"\",OFFSET(DE112_6!$J$28,ROWS($J$28:J37)-1,COLUMNS($J$28:J37)-1),\"\")","v":""},{"$f":"IF(OFFSET(DE112_6!$K$28,ROWS($K$28:K37)-1,COLUMNS($K$28:K37)-1)<>\"\",OFFSET(DE112_6!$K$28,ROWS($K$28:K37)-1,COLUMNS($K$28:K37)-1),\"\")","v":""},{"$f":"IF(OFFSET(DE112_6!$L$28,ROWS($L$28:L37)-1,COLUMNS($L$28:L37)-1)<>\"\",OFFSET(DE112_6!$L$28,ROWS($L$28:L37)-1,COLUMNS($L$28:L37)-1),\"\")","v":""},{"$f":"IF(OFFSET(DE112_6!$M$28,ROWS($M$28:M37)-1,COLUMNS($M$28:M37)-1)<>\"\",OFFSET(DE112_6!$M$28,ROWS($M$28:M37)-1,COLUMNS($M$28:M37)-1),\"\")","v":""},{"$f":"IF(OFFSET(DE112_6!$N$28,ROWS($N$28:N37)-1,COLUMNS($N$28:N37)-1)<>\"\",OFFSET(DE112_6!$N$28,ROWS($N$28:N37)-1,COLUMNS($N$28:N37)-1),\"\")","v":""},{"$f":"IF(OFFSET(DE112_6!$O$28,ROWS($O$28:O37)-1,COLUMNS($O$28:O37)-1)<>\"\",OFFSET(DE112_6!$O$28,ROWS($O$28:O37)-1,COLUMNS($O$28:O37)-1),\"\")","v":""},{"$f":"IF(OFFSET(DE112_6!$P$28,ROWS($P$28:P37)-1,COLUMNS($P$28:P37)-1)<>\"\",OFFSET(DE112_6!$P$28,ROWS($P$28:P37)-1,COLUMNS($P$28:P37)-1),\"\")","v":""},{"$f":"IF(OFFSET(DE112_6!$Q$28,ROWS($Q$28:Q37)-1,COLUMNS($Q$28:Q37)-1)<>\"\",OFFSET(DE112_6!$Q$28,ROWS($Q$28:Q37)-1,COLUMNS($Q$28:Q37)-1),\"\")","v":""},{"$f":"IF(OFFSET(DE112_6!$R$28,ROWS($R$28:R37)-1,COLUMNS($R$28:R37)-1)<>\"\",OFFSET(DE112_6!$R$28,ROWS($R$28:R37)-1,COLUMNS($R$28:R37)-1),\"\")","v":""},{"$f":"IF(OFFSET(DE112_6!$S$28,ROWS($S$28:S37)-1,COLUMNS($S$28:S37)-1)<>\"\",OFFSET(DE112_6!$S$28,ROWS($S$28:S37)-1,COLUMNS($S$28:S37)-1),\"\")","v":""},{"$f":"IF(OFFSET(DE112_6!$T$28,ROWS($T$28:T37)-1,COLUMNS($T$28:T37)-1)<>\"\",OFFSET(DE112_6!$T$28,ROWS($T$28:T37)-1,COLUMNS($T$28:T37)-1),\"\")","v":""},{"$f":"IF(OFFSET(DE112_6!$U$28,ROWS($U$28:U37)-1,COLUMNS($U$28:U37)-1)<>\"\",OFFSET(DE112_6!$U$28,ROWS($U$28:U37)-1,COLUMNS($U$28:U37)-1),\"\")","v":""},{"$f":"IF(OFFSET(DE112_6!$V$28,ROWS($V$28:V37)-1,COLUMNS($V$28:V37)-1)<>\"\",OFFSET(DE112_6!$V$28,ROWS($V$28:V37)-1,COLUMNS($V$28:V37)-1),\"\")","v":""},{"$f":"IF(OFFSET(DE112_6!$W$28,ROWS($W$28:W37)-1,COLUMNS($W$28:W37)-1)<>\"\",OFFSET(DE112_6!$W$28,ROWS($W$28:W37)-1,COLUMNS($W$28:W37)-1),\"\")","v":""}]
[{"$f":"IF(OFFSET(DE112_6!$C$28,ROWS($C$28:C38)-1,COLUMNS($C$28:C38)-1)<>\"\",OFFSET(DE112_6!$C$28,ROWS($C$28:C38)-1,COLUMNS($C$28:C38)-1),\"\")","v":""},{"$f":"IF(OFFSET(DE112_6!$D$28,ROWS($D$28:D38)-1,COLUMNS($D$28:D38)-1)<>\"\",OFFSET(DE112_6!$D$28,ROWS($D$28:D38)-1,COLUMNS($D$28:D38)-1),\"\")","v":""},{"$f":"IF(OFFSET(DE112_6!$E$28,ROWS($E$28:E38)-1,COLUMNS($E$28:E38)-1)<>\"\",OFFSET(DE112_6!$E$28,ROWS($E$28:E38)-1,COLUMNS($E$28:E38)-1),\"\")","v":""},{"$f":"IF(OFFSET(DE112_6!$F$28,ROWS($F$28:F38)-1,COLUMNS($F$28:F38)-1)<>\"\",OFFSET(DE112_6!$F$28,ROWS($F$28:F38)-1,COLUMNS($F$28:F38)-1),\"\")","v":""},{"$f":"IF(OFFSET(DE112_6!$G$28,ROWS($G$28:G38)-1,COLUMNS($G$28:G38)-1)<>\"\",OFFSET(DE112_6!$G$28,ROWS($G$28:G38)-1,COLUMNS($G$28:G38)-1),\"\")","v":""},{"$f":"IF(OFFSET(DE112_6!$H$28,ROWS($H$28:H38)-1,COLUMNS($H$28:H38)-1)<>\"\",OFFSET(DE112_6!$H$28,ROWS($H$28:H38)-1,COLUMNS($H$28:H38)-1),\"\")","v":""},{"$f":"IF(OFFSET(DE112_6!$I$28,ROWS($I$28:I38)-1,COLUMNS($I$28:I38)-1)<>\"\",OFFSET(DE112_6!$I$28,ROWS($I$28:I38)-1,COLUMNS($I$28:I38)-1),\"\")","v":""},{"$f":"IF(OFFSET(DE112_6!$J$28,ROWS($J$28:J38)-1,COLUMNS($J$28:J38)-1)<>\"\",OFFSET(DE112_6!$J$28,ROWS($J$28:J38)-1,COLUMNS($J$28:J38)-1),\"\")","v":""},{"$f":"IF(OFFSET(DE112_6!$K$28,ROWS($K$28:K38)-1,COLUMNS($K$28:K38)-1)<>\"\",OFFSET(DE112_6!$K$28,ROWS($K$28:K38)-1,COLUMNS($K$28:K38)-1),\"\")","v":""},{"$f":"IF(OFFSET(DE112_6!$L$28,ROWS($L$28:L38)-1,COLUMNS($L$28:L38)-1)<>\"\",OFFSET(DE112_6!$L$28,ROWS($L$28:L38)-1,COLUMNS($L$28:L38)-1),\"\")","v":""},{"$f":"IF(OFFSET(DE112_6!$M$28,ROWS($M$28:M38)-1,COLUMNS($M$28:M38)-1)<>\"\",OFFSET(DE112_6!$M$28,ROWS($M$28:M38)-1,COLUMNS($M$28:M38)-1),\"\")","v":""},{"$f":"IF(OFFSET(DE112_6!$N$28,ROWS($N$28:N38)-1,COLUMNS($N$28:N38)-1)<>\"\",OFFSET(DE112_6!$N$28,ROWS($N$28:N38)-1,COLUMNS($N$28:N38)-1),\"\")","v":""},{"$f":"IF(OFFSET(DE112_6!$O$28,ROWS($O$28:O38)-1,COLUMNS($O$28:O38)-1)<>\"\",OFFSET(DE112_6!$O$28,ROWS($O$28:O38)-1,COLUMNS($O$28:O38)-1),\"\")","v":""},{"$f":"IF(OFFSET(DE112_6!$P$28,ROWS($P$28:P38)-1,COLUMNS($P$28:P38)-1)<>\"\",OFFSET(DE112_6!$P$28,ROWS($P$28:P38)-1,COLUMNS($P$28:P38)-1),\"\")","v":""},{"$f":"IF(OFFSET(DE112_6!$Q$28,ROWS($Q$28:Q38)-1,COLUMNS($Q$28:Q38)-1)<>\"\",OFFSET(DE112_6!$Q$28,ROWS($Q$28:Q38)-1,COLUMNS($Q$28:Q38)-1),\"\")","v":""},{"$f":"IF(OFFSET(DE112_6!$R$28,ROWS($R$28:R38)-1,COLUMNS($R$28:R38)-1)<>\"\",OFFSET(DE112_6!$R$28,ROWS($R$28:R38)-1,COLUMNS($R$28:R38)-1),\"\")","v":""},{"$f":"IF(OFFSET(DE112_6!$S$28,ROWS($S$28:S38)-1,COLUMNS($S$28:S38)-1)<>\"\",OFFSET(DE112_6!$S$28,ROWS($S$28:S38)-1,COLUMNS($S$28:S38)-1),\"\")","v":""},{"$f":"IF(OFFSET(DE112_6!$T$28,ROWS($T$28:T38)-1,COLUMNS($T$28:T38)-1)<>\"\",OFFSET(DE112_6!$T$28,ROWS($T$28:T38)-1,COLUMNS($T$28:T38)-1),\"\")","v":""},{"$f":"IF(OFFSET(DE112_6!$U$28,ROWS($U$28:U38)-1,COLUMNS($U$28:U38)-1)<>\"\",OFFSET(DE112_6!$U$28,ROWS($U$28:U38)-1,COLUMNS($U$28:U38)-1),\"\")","v":""},{"$f":"IF(OFFSET(DE112_6!$V$28,ROWS($V$28:V38)-1,COLUMNS($V$28:V38)-1)<>\"\",OFFSET(DE112_6!$V$28,ROWS($V$28:V38)-1,COLUMNS($V$28:V38)-1),\"\")","v":""},{"$f":"IF(OFFSET(DE112_6!$W$28,ROWS($W$28:W38)-1,COLUMNS($W$28:W38)-1)<>\"\",OFFSET(DE112_6!$W$28,ROWS($W$28:W38)-1,COLUMNS($W$28:W38)-1),\"\")","v":""}]
[{"$f":"IF(OFFSET(DE112_6!$C$28,ROWS($C$28:C39)-1,COLUMNS($C$28:C39)-1)<>\"\",OFFSET(DE112_6!$C$28,ROWS($C$28:C39)-1,COLUMNS($C$28:C39)-1),\"\")","v":""},{"$f":"IF(OFFSET(DE112_6!$D$28,ROWS($D$28:D39)-1,COLUMNS($D$28:D39)-1)<>\"\",OFFSET(DE112_6!$D$28,ROWS($D$28:D39)-1,COLUMNS($D$28:D39)-1),\"\")","v":""},{"$f":"IF(OFFSET(DE112_6!$E$28,ROWS($E$28:E39)-1,COLUMNS($E$28:E39)-1)<>\"\",OFFSET(DE112_6!$E$28,ROWS($E$28:E39)-1,COLUMNS($E$28:E39)-1),\"\")","v":""},{"$f":"IF(OFFSET(DE112_6!$F$28,ROWS($F$28:F39)-1,COLUMNS($F$28:F39)-1)<>\"\",OFFSET(DE112_6!$F$28,ROWS($F$28:F39)-1,COLUMNS($F$28:F39)-1),\"\")","v":""},{"$f":"IF(OFFSET(DE112_6!$G$28,ROWS($G$28:G39)-1,COLUMNS($G$28:G39)-1)<>\"\",OFFSET(DE112_6!$G$28,ROWS($G$28:G39)-1,COLUMNS($G$28:G39)-1),\"\")","v":""},{"$f":"IF(OFFSET(DE112_6!$H$28,ROWS($H$28:H39)-1,COLUMNS($H$28:H39)-1)<>\"\",OFFSET(DE112_6!$H$28,ROWS($H$28:H39)-1,COLUMNS($H$28:H39)-1),\"\")","v":""},{"$f":"IF(OFFSET(DE112_6!$I$28,ROWS($I$28:I39)-1,COLUMNS($I$28:I39)-1)<>\"\",OFFSET(DE112_6!$I$28,ROWS($I$28:I39)-1,COLUMNS($I$28:I39)-1),\"\")","v":""},{"$f":"IF(OFFSET(DE112_6!$J$28,ROWS($J$28:J39)-1,COLUMNS($J$28:J39)-1)<>\"\",OFFSET(DE112_6!$J$28,ROWS($J$28:J39)-1,COLUMNS($J$28:J39)-1),\"\")","v":""},{"$f":"IF(OFFSET(DE112_6!$K$28,ROWS($K$28:K39)-1,COLUMNS($K$28:K39)-1)<>\"\",OFFSET(DE112_6!$K$28,ROWS($K$28:K39)-1,COLUMNS($K$28:K39)-1),\"\")","v":""},{"$f":"IF(OFFSET(DE112_6!$L$28,ROWS($L$28:L39)-1,COLUMNS($L$28:L39)-1)<>\"\",OFFSET(DE112_6!$L$28,ROWS($L$28:L39)-1,COLUMNS($L$28:L39)-1),\"\")","v":""},{"$f":"IF(OFFSET(DE112_6!$M$28,ROWS($M$28:M39)-1,COLUMNS($M$28:M39)-1)<>\"\",OFFSET(DE112_6!$M$28,ROWS($M$28:M39)-1,COLUMNS($M$28:M39)-1),\"\")","v":""},{"$f":"IF(OFFSET(DE112_6!$N$28,ROWS($N$28:N39)-1,COLUMNS($N$28:N39)-1)<>\"\",OFFSET(DE112_6!$N$28,ROWS($N$28:N39)-1,COLUMNS($N$28:N39)-1),\"\")","v":""},{"$f":"IF(OFFSET(DE112_6!$O$28,ROWS($O$28:O39)-1,COLUMNS($O$28:O39)-1)<>\"\",OFFSET(DE112_6!$O$28,ROWS($O$28:O39)-1,COLUMNS($O$28:O39)-1),\"\")","v":""},{"$f":"IF(OFFSET(DE112_6!$P$28,ROWS($P$28:P39)-1,COLUMNS($P$28:P39)-1)<>\"\",OFFSET(DE112_6!$P$28,ROWS($P$28:P39)-1,COLUMNS($P$28:P39)-1),\"\")","v":""},{"$f":"IF(OFFSET(DE112_6!$Q$28,ROWS($Q$28:Q39)-1,COLUMNS($Q$28:Q39)-1)<>\"\",OFFSET(DE112_6!$Q$28,ROWS($Q$28:Q39)-1,COLUMNS($Q$28:Q39)-1),\"\")","v":""},{"$f":"IF(OFFSET(DE112_6!$R$28,ROWS($R$28:R39)-1,COLUMNS($R$28:R39)-1)<>\"\",OFFSET(DE112_6!$R$28,ROWS($R$28:R39)-1,COLUMNS($R$28:R39)-1),\"\")","v":""},{"$f":"IF(OFFSET(DE112_6!$S$28,ROWS($S$28:S39)-1,COLUMNS($S$28:S39)-1)<>\"\",OFFSET(DE112_6!$S$28,ROWS($S$28:S39)-1,COLUMNS($S$28:S39)-1),\"\")","v":""},{"$f":"IF(OFFSET(DE112_6!$T$28,ROWS($T$28:T39)-1,COLUMNS($T$28:T39)-1)<>\"\",OFFSET(DE112_6!$T$28,ROWS($T$28:T39)-1,COLUMNS($T$28:T39)-1),\"\")","v":""},{"$f":"IF(OFFSET(DE112_6!$U$28,ROWS($U$28:U39)-1,COLUMNS($U$28:U39)-1)<>\"\",OFFSET(DE112_6!$U$28,ROWS($U$28:U39)-1,COLUMNS($U$28:U39)-1),\"\")","v":""},{"$f":"IF(OFFSET(DE112_6!$V$28,ROWS($V$28:V39)-1,COLUMNS($V$28:V39)-1)<>\"\",OFFSET(DE112_6!$V$28,ROWS($V$28:V39)-1,COLUMNS($V$28:V39)-1),\"\")","v":""},{"$f":"IF(OFFSET(DE112_6!$W$28,ROWS($W$28:W39)-1,COLUMNS($W$28:W39)-1)<>\"\",OFFSET(DE112_6!$W$28,ROWS($W$28:W39)-1,COLUMNS($W$28:W39)-1),\"\")","v":""}]
[{"$f":"IF(OFFSET(DE112_6!$C$28,ROWS($C$28:C40)-1,COLUMNS($C$28:C40)-1)<>\"\",OFFSET(DE112_6!$C$28,ROWS($C$28:C40)-1,COLUMNS($C$28:C40)-1),\"\")","v":""},{"$f":"IF(OFFSET(DE112_6!$D$28,ROWS($D$28:D40)-1,COLUMNS($D$28:D40)-1)<>\"\",OFFSET(DE112_6!$D$28,ROWS($D$28:D40)-1,COLUMNS($D$28:D40)-1),\"\")","v":""},{"$f":"IF(OFFSET(DE112_6!$E$28,ROWS($E$28:E40)-1,COLUMNS($E$28:E40)-1)<>\"\",OFFSET(DE112_6!$E$28,ROWS($E$28:E40)-1,COLUMNS($E$28:E40)-1),\"\")","v":""},{"$f":"IF(OFFSET(DE112_6!$F$28,ROWS($F$28:F40)-1,COLUMNS($F$28:F40)-1)<>\"\",OFFSET(DE112_6!$F$28,ROWS($F$28:F40)-1,COLUMNS($F$28:F40)-1),\"\")","v":""},{"$f":"IF(OFFSET(DE112_6!$G$28,ROWS($G$28:G40)-1,COLUMNS($G$28:G40)-1)<>\"\",OFFSET(DE112_6!$G$28,ROWS($G$28:G40)-1,COLUMNS($G$28:G40)-1),\"\")","v":""},{"$f":"IF(OFFSET(DE112_6!$H$28,ROWS($H$28:H40)-1,COLUMNS($H$28:H40)-1)<>\"\",OFFSET(DE112_6!$H$28,ROWS($H$28:H40)-1,COLUMNS($H$28:H40)-1),\"\")","v":""},{"$f":"IF(OFFSET(DE112_6!$I$28,ROWS($I$28:I40)-1,COLUMNS($I$28:I40)-1)<>\"\",OFFSET(DE112_6!$I$28,ROWS($I$28:I40)-1,COLUMNS($I$28:I40)-1),\"\")","v":""},{"$f":"IF(OFFSET(DE112_6!$J$28,ROWS($J$28:J40)-1,COLUMNS($J$28:J40)-1)<>\"\",OFFSET(DE112_6!$J$28,ROWS($J$28:J40)-1,COLUMNS($J$28:J40)-1),\"\")","v":""},{"$f":"IF(OFFSET(DE112_6!$K$28,ROWS($K$28:K40)-1,COLUMNS($K$28:K40)-1)<>\"\",OFFSET(DE112_6!$K$28,ROWS($K$28:K40)-1,COLUMNS($K$28:K40)-1),\"\")","v":""},{"$f":"IF(OFFSET(DE112_6!$L$28,ROWS($L$28:L40)-1,COLUMNS($L$28:L40)-1)<>\"\",OFFSET(DE112_6!$L$28,ROWS($L$28:L40)-1,COLUMNS($L$28:L40)-1),\"\")","v":""},{"$f":"IF(OFFSET(DE112_6!$M$28,ROWS($M$28:M40)-1,COLUMNS($M$28:M40)-1)<>\"\",OFFSET(DE112_6!$M$28,ROWS($M$28:M40)-1,COLUMNS($M$28:M40)-1),\"\")","v":""},{"$f":"IF(OFFSET(DE112_6!$N$28,ROWS($N$28:N40)-1,COLUMNS($N$28:N40)-1)<>\"\",OFFSET(DE112_6!$N$28,ROWS($N$28:N40)-1,COLUMNS($N$28:N40)-1),\"\")","v":""},{"$f":"IF(OFFSET(DE112_6!$O$28,ROWS($O$28:O40)-1,COLUMNS($O$28:O40)-1)<>\"\",OFFSET(DE112_6!$O$28,ROWS($O$28:O40)-1,COLUMNS($O$28:O40)-1),\"\")","v":""},{"$f":"IF(OFFSET(DE112_6!$P$28,ROWS($P$28:P40)-1,COLUMNS($P$28:P40)-1)<>\"\",OFFSET(DE112_6!$P$28,ROWS($P$28:P40)-1,COLUMNS($P$28:P40)-1),\"\")","v":""},{"$f":"IF(OFFSET(DE112_6!$Q$28,ROWS($Q$28:Q40)-1,COLUMNS($Q$28:Q40)-1)<>\"\",OFFSET(DE112_6!$Q$28,ROWS($Q$28:Q40)-1,COLUMNS($Q$28:Q40)-1),\"\")","v":""},{"$f":"IF(OFFSET(DE112_6!$R$28,ROWS($R$28:R40)-1,COLUMNS($R$28:R40)-1)<>\"\",OFFSET(DE112_6!$R$28,ROWS($R$28:R40)-1,COLUMNS($R$28:R40)-1),\"\")","v":""},{"$f":"IF(OFFSET(DE112_6!$S$28,ROWS($S$28:S40)-1,COLUMNS($S$28:S40)-1)<>\"\",OFFSET(DE112_6!$S$28,ROWS($S$28:S40)-1,COLUMNS($S$28:S40)-1),\"\")","v":""},{"$f":"IF(OFFSET(DE112_6!$T$28,ROWS($T$28:T40)-1,COLUMNS($T$28:T40)-1)<>\"\",OFFSET(DE112_6!$T$28,ROWS($T$28:T40)-1,COLUMNS($T$28:T40)-1),\"\")","v":""},{"$f":"IF(OFFSET(DE112_6!$U$28,ROWS($U$28:U40)-1,COLUMNS($U$28:U40)-1)<>\"\",OFFSET(DE112_6!$U$28,ROWS($U$28:U40)-1,COLUMNS($U$28:U40)-1),\"\")","v":""},{"$f":"IF(OFFSET(DE112_6!$V$28,ROWS($V$28:V40)-1,COLUMNS($V$28:V40)-1)<>\"\",OFFSET(DE112_6!$V$28,ROWS($V$28:V40)-1,COLUMNS($V$28:V40)-1),\"\")","v":""},{"$f":"IF(OFFSET(DE112_6!$W$28,ROWS($W$28:W40)-1,COLUMNS($W$28:W40)-1)<>\"\",OFFSET(DE112_6!$W$28,ROWS($W$28:W40)-1,COLUMNS($W$28:W40)-1),\"\")","v":""}]
[{"$f":"IF(OFFSET(DE112_6!$C$28,ROWS($C$28:C41)-1,COLUMNS($C$28:C41)-1)<>\"\",OFFSET(DE112_6!$C$28,ROWS($C$28:C41)-1,COLUMNS($C$28:C41)-1),\"\")","v":""},{"$f":"IF(OFFSET(DE112_6!$D$28,ROWS($D$28:D41)-1,COLUMNS($D$28:D41)-1)<>\"\",OFFSET(DE112_6!$D$28,ROWS($D$28:D41)-1,COLUMNS($D$28:D41)-1),\"\")","v":""},{"$f":"IF(OFFSET(DE112_6!$E$28,ROWS($E$28:E41)-1,COLUMNS($E$28:E41)-1)<>\"\",OFFSET(DE112_6!$E$28,ROWS($E$28:E41)-1,COLUMNS($E$28:E41)-1),\"\")","v":""},{"$f":"IF(OFFSET(DE112_6!$F$28,ROWS($F$28:F41)-1,COLUMNS($F$28:F41)-1)<>\"\",OFFSET(DE112_6!$F$28,ROWS($F$28:F41)-1,COLUMNS($F$28:F41)-1),\"\")","v":""},{"$f":"IF(OFFSET(DE112_6!$G$28,ROWS($G$28:G41)-1,COLUMNS($G$28:G41)-1)<>\"\",OFFSET(DE112_6!$G$28,ROWS($G$28:G41)-1,COLUMNS($G$28:G41)-1),\"\")","v":""},{"$f":"IF(OFFSET(DE112_6!$H$28,ROWS($H$28:H41)-1,COLUMNS($H$28:H41)-1)<>\"\",OFFSET(DE112_6!$H$28,ROWS($H$28:H41)-1,COLUMNS($H$28:H41)-1),\"\")","v":""},{"$f":"IF(OFFSET(DE112_6!$I$28,ROWS($I$28:I41)-1,COLUMNS($I$28:I41)-1)<>\"\",OFFSET(DE112_6!$I$28,ROWS($I$28:I41)-1,COLUMNS($I$28:I41)-1),\"\")","v":""},{"$f":"IF(OFFSET(DE112_6!$J$28,ROWS($J$28:J41)-1,COLUMNS($J$28:J41)-1)<>\"\",OFFSET(DE112_6!$J$28,ROWS($J$28:J41)-1,COLUMNS($J$28:J41)-1),\"\")","v":""},{"$f":"IF(OFFSET(DE112_6!$K$28,ROWS($K$28:K41)-1,COLUMNS($K$28:K41)-1)<>\"\",OFFSET(DE112_6!$K$28,ROWS($K$28:K41)-1,COLUMNS($K$28:K41)-1),\"\")","v":""},{"$f":"IF(OFFSET(DE112_6!$L$28,ROWS($L$28:L41)-1,COLUMNS($L$28:L41)-1)<>\"\",OFFSET(DE112_6!$L$28,ROWS($L$28:L41)-1,COLUMNS($L$28:L41)-1),\"\")","v":""},{"$f":"IF(OFFSET(DE112_6!$M$28,ROWS($M$28:M41)-1,COLUMNS($M$28:M41)-1)<>\"\",OFFSET(DE112_6!$M$28,ROWS($M$28:M41)-1,COLUMNS($M$28:M41)-1),\"\")","v":""},{"$f":"IF(OFFSET(DE112_6!$N$28,ROWS($N$28:N41)-1,COLUMNS($N$28:N41)-1)<>\"\",OFFSET(DE112_6!$N$28,ROWS($N$28:N41)-1,COLUMNS($N$28:N41)-1),\"\")","v":""},{"$f":"IF(OFFSET(DE112_6!$O$28,ROWS($O$28:O41)-1,COLUMNS($O$28:O41)-1)<>\"\",OFFSET(DE112_6!$O$28,ROWS($O$28:O41)-1,COLUMNS($O$28:O41)-1),\"\")","v":""},{"$f":"IF(OFFSET(DE112_6!$P$28,ROWS($P$28:P41)-1,COLUMNS($P$28:P41)-1)<>\"\",OFFSET(DE112_6!$P$28,ROWS($P$28:P41)-1,COLUMNS($P$28:P41)-1),\"\")","v":""},{"$f":"IF(OFFSET(DE112_6!$Q$28,ROWS($Q$28:Q41)-1,COLUMNS($Q$28:Q41)-1)<>\"\",OFFSET(DE112_6!$Q$28,ROWS($Q$28:Q41)-1,COLUMNS($Q$28:Q41)-1),\"\")","v":""},{"$f":"IF(OFFSET(DE112_6!$R$28,ROWS($R$28:R41)-1,COLUMNS($R$28:R41)-1)<>\"\",OFFSET(DE112_6!$R$28,ROWS($R$28:R41)-1,COLUMNS($R$28:R41)-1),\"\")","v":""},{"$f":"IF(OFFSET(DE112_6!$S$28,ROWS($S$28:S41)-1,COLUMNS($S$28:S41)-1)<>\"\",OFFSET(DE112_6!$S$28,ROWS($S$28:S41)-1,COLUMNS($S$28:S41)-1),\"\")","v":""},{"$f":"IF(OFFSET(DE112_6!$T$28,ROWS($T$28:T41)-1,COLUMNS($T$28:T41)-1)<>\"\",OFFSET(DE112_6!$T$28,ROWS($T$28:T41)-1,COLUMNS($T$28:T41)-1),\"\")","v":""},{"$f":"IF(OFFSET(DE112_6!$U$28,ROWS($U$28:U41)-1,COLUMNS($U$28:U41)-1)<>\"\",OFFSET(DE112_6!$U$28,ROWS($U$28:U41)-1,COLUMNS($U$28:U41)-1),\"\")","v":""},{"$f":"IF(OFFSET(DE112_6!$V$28,ROWS($V$28:V41)-1,COLUMNS($V$28:V41)-1)<>\"\",OFFSET(DE112_6!$V$28,ROWS($V$28:V41)-1,COLUMNS($V$28:V41)-1),\"\")","v":""},{"$f":"IF(OFFSET(DE112_6!$W$28,ROWS($W$28:W41)-1,COLUMNS($W$28:W41)-1)<>\"\",OFFSET(DE112_6!$W$28,ROWS($W$28:W41)-1,COLUMNS($W$28:W41)-1),\"\")","v":""}]
[{"$f":"IF(OFFSET(DE112_6!$C$28,ROWS($C$28:C42)-1,COLUMNS($C$28:C42)-1)<>\"\",OFFSET(DE112_6!$C$28,ROWS($C$28:C42)-1,COLUMNS($C$28:C42)-1),\"\")","v":""},{"$f":"IF(OFFSET(DE112_6!$D$28,ROWS($D$28:D42)-1,COLUMNS($D$28:D42)-1)<>\"\",OFFSET(DE112_6!$D$28,ROWS($D$28:D42)-1,COLUMNS($D$28:D42)-1),\"\")","v":""},{"$f":"IF(OFFSET(DE112_6!$E$28,ROWS($E$28:E42)-1,COLUMNS($E$28:E42)-1)<>\"\",OFFSET(DE112_6!$E$28,ROWS($E$28:E42)-1,COLUMNS($E$28:E42)-1),\"\")","v":""},{"$f":"IF(OFFSET(DE112_6!$F$28,ROWS($F$28:F42)-1,COLUMNS($F$28:F42)-1)<>\"\",OFFSET(DE112_6!$F$28,ROWS($F$28:F42)-1,COLUMNS($F$28:F42)-1),\"\")","v":""},{"$f":"IF(OFFSET(DE112_6!$G$28,ROWS($G$28:G42)-1,COLUMNS($G$28:G42)-1)<>\"\",OFFSET(DE112_6!$G$28,ROWS($G$28:G42)-1,COLUMNS($G$28:G42)-1),\"\")","v":""},{"$f":"IF(OFFSET(DE112_6!$H$28,ROWS($H$28:H42)-1,COLUMNS($H$28:H42)-1)<>\"\",OFFSET(DE112_6!$H$28,ROWS($H$28:H42)-1,COLUMNS($H$28:H42)-1),\"\")","v":""},{"$f":"IF(OFFSET(DE112_6!$I$28,ROWS($I$28:I42)-1,COLUMNS($I$28:I42)-1)<>\"\",OFFSET(DE112_6!$I$28,ROWS($I$28:I42)-1,COLUMNS($I$28:I42)-1),\"\")","v":""},{"$f":"IF(OFFSET(DE112_6!$J$28,ROWS($J$28:J42)-1,COLUMNS($J$28:J42)-1)<>\"\",OFFSET(DE112_6!$J$28,ROWS($J$28:J42)-1,COLUMNS($J$28:J42)-1),\"\")","v":""},{"$f":"IF(OFFSET(DE112_6!$K$28,ROWS($K$28:K42)-1,COLUMNS($K$28:K42)-1)<>\"\",OFFSET(DE112_6!$K$28,ROWS($K$28:K42)-1,COLUMNS($K$28:K42)-1),\"\")","v":""},{"$f":"IF(OFFSET(DE112_6!$L$28,ROWS($L$28:L42)-1,COLUMNS($L$28:L42)-1)<>\"\",OFFSET(DE112_6!$L$28,ROWS($L$28:L42)-1,COLUMNS($L$28:L42)-1),\"\")","v":""},{"$f":"IF(OFFSET(DE112_6!$M$28,ROWS($M$28:M42)-1,COLUMNS($M$28:M42)-1)<>\"\",OFFSET(DE112_6!$M$28,ROWS($M$28:M42)-1,COLUMNS($M$28:M42)-1),\"\")","v":""},{"$f":"IF(OFFSET(DE112_6!$N$28,ROWS($N$28:N42)-1,COLUMNS($N$28:N42)-1)<>\"\",OFFSET(DE112_6!$N$28,ROWS($N$28:N42)-1,COLUMNS($N$28:N42)-1),\"\")","v":""},{"$f":"IF(OFFSET(DE112_6!$O$28,ROWS($O$28:O42)-1,COLUMNS($O$28:O42)-1)<>\"\",OFFSET(DE112_6!$O$28,ROWS($O$28:O42)-1,COLUMNS($O$28:O42)-1),\"\")","v":""},{"$f":"IF(OFFSET(DE112_6!$P$28,ROWS($P$28:P42)-1,COLUMNS($P$28:P42)-1)<>\"\",OFFSET(DE112_6!$P$28,ROWS($P$28:P42)-1,COLUMNS($P$28:P42)-1),\"\")","v":""},{"$f":"IF(OFFSET(DE112_6!$Q$28,ROWS($Q$28:Q42)-1,COLUMNS($Q$28:Q42)-1)<>\"\",OFFSET(DE112_6!$Q$28,ROWS($Q$28:Q42)-1,COLUMNS($Q$28:Q42)-1),\"\")","v":""},{"$f":"IF(OFFSET(DE112_6!$R$28,ROWS($R$28:R42)-1,COLUMNS($R$28:R42)-1)<>\"\",OFFSET(DE112_6!$R$28,ROWS($R$28:R42)-1,COLUMNS($R$28:R42)-1),\"\")","v":""},{"$f":"IF(OFFSET(DE112_6!$S$28,ROWS($S$28:S42)-1,COLUMNS($S$28:S42)-1)<>\"\",OFFSET(DE112_6!$S$28,ROWS($S$28:S42)-1,COLUMNS($S$28:S42)-1),\"\")","v":""},{"$f":"IF(OFFSET(DE112_6!$T$28,ROWS($T$28:T42)-1,COLUMNS($T$28:T42)-1)<>\"\",OFFSET(DE112_6!$T$28,ROWS($T$28:T42)-1,COLUMNS($T$28:T42)-1),\"\")","v":""},{"$f":"IF(OFFSET(DE112_6!$U$28,ROWS($U$28:U42)-1,COLUMNS($U$28:U42)-1)<>\"\",OFFSET(DE112_6!$U$28,ROWS($U$28:U42)-1,COLUMNS($U$28:U42)-1),\"\")","v":""},{"$f":"IF(OFFSET(DE112_6!$V$28,ROWS($V$28:V42)-1,COLUMNS($V$28:V42)-1)<>\"\",OFFSET(DE112_6!$V$28,ROWS($V$28:V42)-1,COLUMNS($V$28:V42)-1),\"\")","v":""},{"$f":"IF(OFFSET(DE112_6!$W$28,ROWS($W$28:W42)-1,COLUMNS($W$28:W42)-1)<>\"\",OFFSET(DE112_6!$W$28,ROWS($W$28:W42)-1,COLUMNS($W$28:W42)-1),\"\")","v":""}]
[{"$f":"IF(OFFSET(DE112_6!$C$28,ROWS($C$28:C43)-1,COLUMNS($C$28:C43)-1)<>\"\",OFFSET(DE112_6!$C$28,ROWS($C$28:C43)-1,COLUMNS($C$28:C43)-1),\"\")","v":""},{"$f":"IF(OFFSET(DE112_6!$D$28,ROWS($D$28:D43)-1,COLUMNS($D$28:D43)-1)<>\"\",OFFSET(DE112_6!$D$28,ROWS($D$28:D43)-1,COLUMNS($D$28:D43)-1),\"\")","v":""},{"$f":"IF(OFFSET(DE112_6!$E$28,ROWS($E$28:E43)-1,COLUMNS($E$28:E43)-1)<>\"\",OFFSET(DE112_6!$E$28,ROWS($E$28:E43)-1,COLUMNS($E$28:E43)-1),\"\")","v":""},{"$f":"IF(OFFSET(DE112_6!$F$28,ROWS($F$28:F43)-1,COLUMNS($F$28:F43)-1)<>\"\",OFFSET(DE112_6!$F$28,ROWS($F$28:F43)-1,COLUMNS($F$28:F43)-1),\"\")","v":""},{"$f":"IF(OFFSET(DE112_6!$G$28,ROWS($G$28:G43)-1,COLUMNS($G$28:G43)-1)<>\"\",OFFSET(DE112_6!$G$28,ROWS($G$28:G43)-1,COLUMNS($G$28:G43)-1),\"\")","v":""},{"$f":"IF(OFFSET(DE112_6!$H$28,ROWS($H$28:H43)-1,COLUMNS($H$28:H43)-1)<>\"\",OFFSET(DE112_6!$H$28,ROWS($H$28:H43)-1,COLUMNS($H$28:H43)-1),\"\")","v":""},{"$f":"IF(OFFSET(DE112_6!$I$28,ROWS($I$28:I43)-1,COLUMNS($I$28:I43)-1)<>\"\",OFFSET(DE112_6!$I$28,ROWS($I$28:I43)-1,COLUMNS($I$28:I43)-1),\"\")","v":""},{"$f":"IF(OFFSET(DE112_6!$J$28,ROWS($J$28:J43)-1,COLUMNS($J$28:J43)-1)<>\"\",OFFSET(DE112_6!$J$28,ROWS($J$28:J43)-1,COLUMNS($J$28:J43)-1),\"\")","v":""},{"$f":"IF(OFFSET(DE112_6!$K$28,ROWS($K$28:K43)-1,COLUMNS($K$28:K43)-1)<>\"\",OFFSET(DE112_6!$K$28,ROWS($K$28:K43)-1,COLUMNS($K$28:K43)-1),\"\")","v":""},{"$f":"IF(OFFSET(DE112_6!$L$28,ROWS($L$28:L43)-1,COLUMNS($L$28:L43)-1)<>\"\",OFFSET(DE112_6!$L$28,ROWS($L$28:L43)-1,COLUMNS($L$28:L43)-1),\"\")","v":""},{"$f":"IF(OFFSET(DE112_6!$M$28,ROWS($M$28:M43)-1,COLUMNS($M$28:M43)-1)<>\"\",OFFSET(DE112_6!$M$28,ROWS($M$28:M43)-1,COLUMNS($M$28:M43)-1),\"\")","v":""},{"$f":"IF(OFFSET(DE112_6!$N$28,ROWS($N$28:N43)-1,COLUMNS($N$28:N43)-1)<>\"\",OFFSET(DE112_6!$N$28,ROWS($N$28:N43)-1,COLUMNS($N$28:N43)-1),\"\")","v":""},{"$f":"IF(OFFSET(DE112_6!$O$28,ROWS($O$28:O43)-1,COLUMNS($O$28:O43)-1)<>\"\",OFFSET(DE112_6!$O$28,ROWS($O$28:O43)-1,COLUMNS($O$28:O43)-1),\"\")","v":""},{"$f":"IF(OFFSET(DE112_6!$P$28,ROWS($P$28:P43)-1,COLUMNS($P$28:P43)-1)<>\"\",OFFSET(DE112_6!$P$28,ROWS($P$28:P43)-1,COLUMNS($P$28:P43)-1),\"\")","v":""},{"$f":"IF(OFFSET(DE112_6!$Q$28,ROWS($Q$28:Q43)-1,COLUMNS($Q$28:Q43)-1)<>\"\",OFFSET(DE112_6!$Q$28,ROWS($Q$28:Q43)-1,COLUMNS($Q$28:Q43)-1),\"\")","v":""},{"$f":"IF(OFFSET(DE112_6!$R$28,ROWS($R$28:R43)-1,COLUMNS($R$28:R43)-1)<>\"\",OFFSET(DE112_6!$R$28,ROWS($R$28:R43)-1,COLUMNS($R$28:R43)-1),\"\")","v":""},{"$f":"IF(OFFSET(DE112_6!$S$28,ROWS($S$28:S43)-1,COLUMNS($S$28:S43)-1)<>\"\",OFFSET(DE112_6!$S$28,ROWS($S$28:S43)-1,COLUMNS($S$28:S43)-1),\"\")","v":""},{"$f":"IF(OFFSET(DE112_6!$T$28,ROWS($T$28:T43)-1,COLUMNS($T$28:T43)-1)<>\"\",OFFSET(DE112_6!$T$28,ROWS($T$28:T43)-1,COLUMNS($T$28:T43)-1),\"\")","v":""},{"$f":"IF(OFFSET(DE112_6!$U$28,ROWS($U$28:U43)-1,COLUMNS($U$28:U43)-1)<>\"\",OFFSET(DE112_6!$U$28,ROWS($U$28:U43)-1,COLUMNS($U$28:U43)-1),\"\")","v":""},{"$f":"IF(OFFSET(DE112_6!$V$28,ROWS($V$28:V43)-1,COLUMNS($V$28:V43)-1)<>\"\",OFFSET(DE112_6!$V$28,ROWS($V$28:V43)-1,COLUMNS($V$28:V43)-1),\"\")","v":""},{"$f":"IF(OFFSET(DE112_6!$W$28,ROWS($W$28:W43)-1,COLUMNS($W$28:W43)-1)<>\"\",OFFSET(DE112_6!$W$28,ROWS($W$28:W43)-1,COLUMNS($W$28:W43)-1),\"\")","v":""}]
[{"$f":"IF(OFFSET(DE112_6!$C$28,ROWS($C$28:C44)-1,COLUMNS($C$28:C44)-1)<>\"\",OFFSET(DE112_6!$C$28,ROWS($C$28:C44)-1,COLUMNS($C$28:C44)-1),\"\")","v":""},{"$f":"IF(OFFSET(DE112_6!$D$28,ROWS($D$28:D44)-1,COLUMNS($D$28:D44)-1)<>\"\",OFFSET(DE112_6!$D$28,ROWS($D$28:D44)-1,COLUMNS($D$28:D44)-1),\"\")","v":""},{"$f":"IF(OFFSET(DE112_6!$E$28,ROWS($E$28:E44)-1,COLUMNS($E$28:E44)-1)<>\"\",OFFSET(DE112_6!$E$28,ROWS($E$28:E44)-1,COLUMNS($E$28:E44)-1),\"\")","v":""},{"$f":"IF(OFFSET(DE112_6!$F$28,ROWS($F$28:F44)-1,COLUMNS($F$28:F44)-1)<>\"\",OFFSET(DE112_6!$F$28,ROWS($F$28:F44)-1,COLUMNS($F$28:F44)-1),\"\")","v":""},{"$f":"IF(OFFSET(DE112_6!$G$28,ROWS($G$28:G44)-1,COLUMNS($G$28:G44)-1)<>\"\",OFFSET(DE112_6!$G$28,ROWS($G$28:G44)-1,COLUMNS($G$28:G44)-1),\"\")","v":""},{"$f":"IF(OFFSET(DE112_6!$H$28,ROWS($H$28:H44)-1,COLUMNS($H$28:H44)-1)<>\"\",OFFSET(DE112_6!$H$28,ROWS($H$28:H44)-1,COLUMNS($H$28:H44)-1),\"\")","v":""},{"$f":"IF(OFFSET(DE112_6!$I$28,ROWS($I$28:I44)-1,COLUMNS($I$28:I44)-1)<>\"\",OFFSET(DE112_6!$I$28,ROWS($I$28:I44)-1,COLUMNS($I$28:I44)-1),\"\")","v":""},{"$f":"IF(OFFSET(DE112_6!$J$28,ROWS($J$28:J44)-1,COLUMNS($J$28:J44)-1)<>\"\",OFFSET(DE112_6!$J$28,ROWS($J$28:J44)-1,COLUMNS($J$28:J44)-1),\"\")","v":""},{"$f":"IF(OFFSET(DE112_6!$K$28,ROWS($K$28:K44)-1,COLUMNS($K$28:K44)-1)<>\"\",OFFSET(DE112_6!$K$28,ROWS($K$28:K44)-1,COLUMNS($K$28:K44)-1),\"\")","v":""},{"$f":"IF(OFFSET(DE112_6!$L$28,ROWS($L$28:L44)-1,COLUMNS($L$28:L44)-1)<>\"\",OFFSET(DE112_6!$L$28,ROWS($L$28:L44)-1,COLUMNS($L$28:L44)-1),\"\")","v":""},{"$f":"IF(OFFSET(DE112_6!$M$28,ROWS($M$28:M44)-1,COLUMNS($M$28:M44)-1)<>\"\",OFFSET(DE112_6!$M$28,ROWS($M$28:M44)-1,COLUMNS($M$28:M44)-1),\"\")","v":""},{"$f":"IF(OFFSET(DE112_6!$N$28,ROWS($N$28:N44)-1,COLUMNS($N$28:N44)-1)<>\"\",OFFSET(DE112_6!$N$28,ROWS($N$28:N44)-1,COLUMNS($N$28:N44)-1),\"\")","v":""},{"$f":"IF(OFFSET(DE112_6!$O$28,ROWS($O$28:O44)-1,COLUMNS($O$28:O44)-1)<>\"\",OFFSET(DE112_6!$O$28,ROWS($O$28:O44)-1,COLUMNS($O$28:O44)-1),\"\")","v":""},{"$f":"IF(OFFSET(DE112_6!$P$28,ROWS($P$28:P44)-1,COLUMNS($P$28:P44)-1)<>\"\",OFFSET(DE112_6!$P$28,ROWS($P$28:P44)-1,COLUMNS($P$28:P44)-1),\"\")","v":""},{"$f":"IF(OFFSET(DE112_6!$Q$28,ROWS($Q$28:Q44)-1,COLUMNS($Q$28:Q44)-1)<>\"\",OFFSET(DE112_6!$Q$28,ROWS($Q$28:Q44)-1,COLUMNS($Q$28:Q44)-1),\"\")","v":""},{"$f":"IF(OFFSET(DE112_6!$R$28,ROWS($R$28:R44)-1,COLUMNS($R$28:R44)-1)<>\"\",OFFSET(DE112_6!$R$28,ROWS($R$28:R44)-1,COLUMNS($R$28:R44)-1),\"\")","v":""},{"$f":"IF(OFFSET(DE112_6!$S$28,ROWS($S$28:S44)-1,COLUMNS($S$28:S44)-1)<>\"\",OFFSET(DE112_6!$S$28,ROWS($S$28:S44)-1,COLUMNS($S$28:S44)-1),\"\")","v":""},{"$f":"IF(OFFSET(DE112_6!$T$28,ROWS($T$28:T44)-1,COLUMNS($T$28:T44)-1)<>\"\",OFFSET(DE112_6!$T$28,ROWS($T$28:T44)-1,COLUMNS($T$28:T44)-1),\"\")","v":""},{"$f":"IF(OFFSET(DE112_6!$U$28,ROWS($U$28:U44)-1,COLUMNS($U$28:U44)-1)<>\"\",OFFSET(DE112_6!$U$28,ROWS($U$28:U44)-1,COLUMNS($U$28:U44)-1),\"\")","v":""},{"$f":"IF(OFFSET(DE112_6!$V$28,ROWS($V$28:V44)-1,COLUMNS($V$28:V44)-1)<>\"\",OFFSET(DE112_6!$V$28,ROWS($V$28:V44)-1,COLUMNS($V$28:V44)-1),\"\")","v":""},{"$f":"IF(OFFSET(DE112_6!$W$28,ROWS($W$28:W44)-1,COLUMNS($W$28:W44)-1)<>\"\",OFFSET(DE112_6!$W$28,ROWS($W$28:W44)-1,COLUMNS($W$28:W44)-1),\"\")","v":""}]
[{"$f":"IF(OFFSET(DE112_6!$C$28,ROWS($C$28:C45)-1,COLUMNS($C$28:C45)-1)<>\"\",OFFSET(DE112_6!$C$28,ROWS($C$28:C45)-1,COLUMNS($C$28:C45)-1),\"\")","v":""},{"$f":"IF(OFFSET(DE112_6!$D$28,ROWS($D$28:D45)-1,COLUMNS($D$28:D45)-1)<>\"\",OFFSET(DE112_6!$D$28,ROWS($D$28:D45)-1,COLUMNS($D$28:D45)-1),\"\")","v":""},{"$f":"IF(OFFSET(DE112_6!$E$28,ROWS($E$28:E45)-1,COLUMNS($E$28:E45)-1)<>\"\",OFFSET(DE112_6!$E$28,ROWS($E$28:E45)-1,COLUMNS($E$28:E45)-1),\"\")","v":""},{"$f":"IF(OFFSET(DE112_6!$F$28,ROWS($F$28:F45)-1,COLUMNS($F$28:F45)-1)<>\"\",OFFSET(DE112_6!$F$28,ROWS($F$28:F45)-1,COLUMNS($F$28:F45)-1),\"\")","v":""},{"$f":"IF(OFFSET(DE112_6!$G$28,ROWS($G$28:G45)-1,COLUMNS($G$28:G45)-1)<>\"\",OFFSET(DE112_6!$G$28,ROWS($G$28:G45)-1,COLUMNS($G$28:G45)-1),\"\")","v":""},{"$f":"IF(OFFSET(DE112_6!$H$28,ROWS($H$28:H45)-1,COLUMNS($H$28:H45)-1)<>\"\",OFFSET(DE112_6!$H$28,ROWS($H$28:H45)-1,COLUMNS($H$28:H45)-1),\"\")","v":""},{"$f":"IF(OFFSET(DE112_6!$I$28,ROWS($I$28:I45)-1,COLUMNS($I$28:I45)-1)<>\"\",OFFSET(DE112_6!$I$28,ROWS($I$28:I45)-1,COLUMNS($I$28:I45)-1),\"\")","v":""},{"$f":"IF(OFFSET(DE112_6!$J$28,ROWS($J$28:J45)-1,COLUMNS($J$28:J45)-1)<>\"\",OFFSET(DE112_6!$J$28,ROWS($J$28:J45)-1,COLUMNS($J$28:J45)-1),\"\")","v":""},{"$f":"IF(OFFSET(DE112_6!$K$28,ROWS($K$28:K45)-1,COLUMNS($K$28:K45)-1)<>\"\",OFFSET(DE112_6!$K$28,ROWS($K$28:K45)-1,COLUMNS($K$28:K45)-1),\"\")","v":""},{"$f":"IF(OFFSET(DE112_6!$L$28,ROWS($L$28:L45)-1,COLUMNS($L$28:L45)-1)<>\"\",OFFSET(DE112_6!$L$28,ROWS($L$28:L45)-1,COLUMNS($L$28:L45)-1),\"\")","v":""},{"$f":"IF(OFFSET(DE112_6!$M$28,ROWS($M$28:M45)-1,COLUMNS($M$28:M45)-1)<>\"\",OFFSET(DE112_6!$M$28,ROWS($M$28:M45)-1,COLUMNS($M$28:M45)-1),\"\")","v":""},{"$f":"IF(OFFSET(DE112_6!$N$28,ROWS($N$28:N45)-1,COLUMNS($N$28:N45)-1)<>\"\",OFFSET(DE112_6!$N$28,ROWS($N$28:N45)-1,COLUMNS($N$28:N45)-1),\"\")","v":""},{"$f":"IF(OFFSET(DE112_6!$O$28,ROWS($O$28:O45)-1,COLUMNS($O$28:O45)-1)<>\"\",OFFSET(DE112_6!$O$28,ROWS($O$28:O45)-1,COLUMNS($O$28:O45)-1),\"\")","v":""},{"$f":"IF(OFFSET(DE112_6!$P$28,ROWS($P$28:P45)-1,COLUMNS($P$28:P45)-1)<>\"\",OFFSET(DE112_6!$P$28,ROWS($P$28:P45)-1,COLUMNS($P$28:P45)-1),\"\")","v":""},{"$f":"IF(OFFSET(DE112_6!$Q$28,ROWS($Q$28:Q45)-1,COLUMNS($Q$28:Q45)-1)<>\"\",OFFSET(DE112_6!$Q$28,ROWS($Q$28:Q45)-1,COLUMNS($Q$28:Q45)-1),\"\")","v":""},{"$f":"IF(OFFSET(DE112_6!$R$28,ROWS($R$28:R45)-1,COLUMNS($R$28:R45)-1)<>\"\",OFFSET(DE112_6!$R$28,ROWS($R$28:R45)-1,COLUMNS($R$28:R45)-1),\"\")","v":""},{"$f":"IF(OFFSET(DE112_6!$S$28,ROWS($S$28:S45)-1,COLUMNS($S$28:S45)-1)<>\"\",OFFSET(DE112_6!$S$28,ROWS($S$28:S45)-1,COLUMNS($S$28:S45)-1),\"\")","v":""},{"$f":"IF(OFFSET(DE112_6!$T$28,ROWS($T$28:T45)-1,COLUMNS($T$28:T45)-1)<>\"\",OFFSET(DE112_6!$T$28,ROWS($T$28:T45)-1,COLUMNS($T$28:T45)-1),\"\")","v":""},{"$f":"IF(OFFSET(DE112_6!$U$28,ROWS($U$28:U45)-1,COLUMNS($U$28:U45)-1)<>\"\",OFFSET(DE112_6!$U$28,ROWS($U$28:U45)-1,COLUMNS($U$28:U45)-1),\"\")","v":""},{"$f":"IF(OFFSET(DE112_6!$V$28,ROWS($V$28:V45)-1,COLUMNS($V$28:V45)-1)<>\"\",OFFSET(DE112_6!$V$28,ROWS($V$28:V45)-1,COLUMNS($V$28:V45)-1),\"\")","v":""},{"$f":"IF(OFFSET(DE112_6!$W$28,ROWS($W$28:W45)-1,COLUMNS($W$28:W45)-1)<>\"\",OFFSET(DE112_6!$W$28,ROWS($W$28:W45)-1,COLUMNS($W$28:W45)-1),\"\")","v":""}]

{"sheet":"PrintSheetTemplate","index":14,"n_rows":95,"n_cols":179,"rows_kept":95,"cut":false,"hidden":true,"merged":[[93,171,93,178],[94,1,94,178],[93,101,93,106],[93,107,93,118],[93,119,93,148],[93,149,93,158],[93,159,93,164],[93,165,93,170],[93,1,93,7],[93,8,93,14],[93,15,93,21],[93,22,93,30],[93,31,93,64],[93,65,93,100]]}
[" "]
[]
[]
[]
[]
[]
[]
[]
[]
[]
[]
[]
[]
[]
[]
[]
[]
[]
[]
[]
[]
[]
[]
[]
[]
[]
[]
[]
[]
[]
[]
[]
[]
[]
[]
[]
[]
[]
[]
[]
[]
[]
[]
[]
[]
[]
[]
[]
[]
[]
[]
[]
[]
[]
[]
[]
[]
[]
[]
[]
[]
[]
[]
[]
[]
[]
[]
[]
[]
[]
[]
[]
[]
[]
[]
[]
[]
[]
[]
[]
[]
[]
[]
[]
[]
[]
[]
[]
[]
[]
[]
[]
[null,"","","","","","","","","","","","","","","","","","","","","","","","","","","","","","","","","","","","","","","","","","","","","","","","","","","","","","","","","","","","","","","","","","","","","","","","","","","","","","","","","","","","","","","","","","","","","","","","","","","","","","","","","","","","","","","","","","","","","","","","","","","","","","","","","","","","","","","","","","","","","","","","","","","","","","","",null,"","","","","","","","","","","","","","","","","","","","","","","","","",""]
[null,"FILE NO.",null,null,null,null,null,null,{"$f":"IF(ProjectInformation!$B$11<>\"\",ProjectInformation!$B$11,\"\")","v":31043},null,null,null,null,null,null,{"$f":"UPPER(ProjectInformation!$B$8)","v":"ENGLISH"},null,null,null,null,null,null,"DESIGN TEAM",null,null,null,null,null,null,null,null,{"$f":"IF(AND(ProjectInformation!$B$3<>\"\",ProjectInformation!$B$4<>\"\",ProjectInformation!$B$5<>\"\"),ProjectInformation!$B$3&\"\\\"&ProjectInformation!$B$4&\"\\\"&ProjectInformation!$B$5,IF(AND(ProjectInformation!$B$3<>\"\",ProjectInformation!$B$4<>\"\"),ProjectInformation!$B$3&\"\\\"&ProjectInformation!$B$4,IF(ProjectInformation!$B$3<>\"\",ProjectInformation!$B$3,\"\")))","v":"Flattery\\Bell"},null,null,null,null,null,null,null,null,null,null,null,null,null,null,null,null,null,null,null,null,null,null,null,null,null,null,null,null,null,null,null,null,null,{"$f":"IF(ProjectInformation!$B$6<>\"\",ProjectInformation!$B$6,\"\")","v":"BENTON"},null,null,null,null,null,null,null,null,null,null,null,null,null,null,null,null,null,null,null,null,null,null,null,null,null,null,null,null,null,null,null,null,null,null,null,"COUNTY",null,null,null,null,null,"PROJECT NUMBER",null,null,null,null,null,null,null,null,null,null,null,{"$f":"IF(ProjectInformation!$B$7<>\"\",ProjectInformation!$B$7,\"\")","v":"NHSX-030-6(230)--3H-06"},null,null,null,null,null,null,null,null,null,null,null,null,null,null,null,null,null,null,null,null,null,null,null,null,null,null,null,null,null,"SHEET NUMBER",null,null,null,null,null,null,null,null,null,null,null,null,null,null,null,{"$f":"IF(FP94<>\"\",\"REVISED\",\"\")","v":""},null,null,null,null,null,{"$f":"IF(ProjectInformation!$B$9<>\"\",ProjectInformation!$B$9,\"\")","v":""}]
[""]

{"sheet":"Note1","index":15,"n_rows":1,"n_cols":1,"rows_kept":1,"cut":false,"hidden":true,"merged":[[0,0,2,0]]}
["SEE V SHEETS FOR ADDITIONAL BID ITEMS AND QUANTITIES"]

{"sheet":"BridgeBlock","index":16,"n_rows":4,"n_cols":14,"rows_kept":4,"cut":false,"hidden":true,"merged":[[2,2,2,8],[3,2,3,7],[2,9,2,12],[3,8,3,12]]}
[2]
[null,"","","","","","","","","","","","",""]
[null,null,"Design No.",null,null,null,null,null,null,{"$f":"IF(#REF!<>\"\",#REF!,\"\")","v":{"$error":"#REF!"}}]
[null,null,"File No.",null,null,null,null,null,{"$f":"IF(#REF!<>\"\",#REF!,\"\")","v":{"$error":"#REF!"}}]

{"sheet":"Index","index":17,"n_rows":164,"n_cols":17,"rows_kept":164,"cut":false,"hidden":true,"merged":[]}
["100-0A","1997-10-28","4.5.6","ADAIR",null,"Live English File Path","W:\\Highway\\Design\\RoadDesignDetails\\ExcelTabs\\",null,"Brian R. Smith","bsmith2","Methods","ROADWAY DESIGN",null,"100_1D(1)","='100_1D'!$A$1:$A$10",null,"A_DE111Series.xlsm"]
["100-1A","1997-07-15","10/01/15","ADAMS",null,"Live Metric File Path","W:\\Highway\\Design\\RoadDesignDetails\\ExcelTabs\\MetricTabs\\",null,"Khyle B. Clute","kclute","Methods","ROADWAY DESIGN",null,"100_0A(1)","='100_0A'!$A$1:$F$20",null,"C_DE100Series.xlsm"]
["100-1C","2012-04-17","C","ALLAMAKEE",null,"Index File Path","W:\\Highway\\Design\\RoadDesignDetails\\PDFsandWebFiles\\Indexes\\",null,"Thomas M. Hamski","thamski","Methods","ROADWAY DESIGN",null,"100_4A(1)","='100_4A'!$A$1:$C$22",null,"C_DE102Series.xlsm"]
["100-1D","2005-10-18",null,"APPANOOSE",null,"Index File Name","TNT_EnglishIndexes.xlsx",null,"Wesley L. Mayberry","wmayber","Methods","ROADWAY DESIGN",null,"100_28(1)","='100_28'!$A$1:$C$22",null,"C_DE103Series.xlsm"]
["100-4A","2002-10-29",null,"AUDUBON",null,"Last Revision English File Path","W:\\Highway\\Design\\RoadDesignDetails\\Old_Details\\ExcelTabs\\",null,"John M. Narigon","jnarigo","Methods","ROADWAY DESIGN",null,"105_4(1)","='105_4'!$A$1:$C$21",null,"C_DE104Series.xlsm"]
["100-7","2012-10-16",null,"BENTON",null,"Last Revision Metric File Path","W:\\Highway\\Design\\RoadDesignDetails\\Old_Details\\ExcelTabs\\MetricTabs\\",null,"Christopher Poole","cpoole","Methods","ROADWAY DESIGN",null,"112_6(1)","='112_6'!$A$1:$U$31",null,"C_DE105Series.xlsm"]
["100-10","2011-10-18",null,"BLACK HAWK",null,"Seed Path","W:\\Highway\\Design\\CADD\\SpreadSheets\\ExcelTabulations.xltm",null,"Daniel J. Harness","dharnes","Methods","ROADWAY DESIGN",null,null,null,null,"C_DE106Series.xlsm"]
["100-11","2008-08-01",null,"BOONE",null,"VersionCheck Path","W:\\Highway\\Design\\CADD\\SpreadSheets\\ExcelTabulations.xlsm",null,"Jason M. Holst","jholst","Road1","ROADWAY DESIGN",null,null,null,null,"C_DE107Series.xlsm"]
["100-12","2008-08-01",null,"BREMER",null,"Standard Road Plan Path","W:\\Highway\\Design\\StandardRoadPlans\\PDFsAndWebFiles\\Indexes\\SRP_EnglishIndex.xls",null,"Jason R. Strum","jstrum","Road1","ROADWAY DESIGN",null,null,null,null,"C_DE108Series.xlsm"]
["100-12A","2008-08-01",null,"BUCHANAN",null,"Last Revision Standard Road Plan Path","W:\\Highway\\Design\\StandardRoadPlans\\PDFsAndWebFiles\\Old_Indexes\\SRP_EnglishIndex.xls",null,"Robert A. Schoenrock","rschoen","Road1","ROADWAY DESIGN",null,null,null,null,"C_DE110Series.xlsm"]
["100-13","2010-04-20",null,"BUENA VISTA",null,"AddIn Path","W:\\Highway\\Design\\CADD\\SpreadSheets\\ExcelTabulations.xlam",null,"Stacy M. Ryan","sryan","Road1","ROADWAY DESIGN",null,null,null,null,"C_DE111Series.xlsm"]
["100-14","2010-04-20",null,"BUTLER",null,"Old Files Path","W:\\Highway\\Design\\RoadDesignDetails\\Old_Details\\ExcelTabs\\",null,"Nathan A. Thede","nthede","Road1","ROADWAY DESIGN",null,null,null,null,"C_DE112Series.xlsm"]
["100-15","2010-04-20",null,"CALHOUN",null,null,null,null,"Yanxiao Jia","yjia","Road2","ROADWAY DESIGN",null,null,null,null,"C_DE113Series.xlsm"]
["100-16","2010-10-19",null,"CARROLL",null,null,null,null,"Ryan R. Miller","rmille3","Road2","ROADWAY DESIGN",null,null,null,null,"C_DE190Series.xlsm"]
["100-17","2010-04-20",null,"CASS",null,null,null,null,"Dustin T. Skogerboe","dskoge2","Road2","ROADWAY DESIGN",null,null,null,null,"C_DE192Series.xlsm"]
["100-18","2010-04-20",null,"CEDAR",null,null,null,null,"Dung T. Ta","dta","Road2","ROADWAY DESIGN",null,null,null,null,"C_DE231Series.xlsm"]
["100-19","2012-10-16",null,"CERRO GORDO",null,null,null,null,"Allison L. P. Smyth","asmyth","Road2","ROADWAY DESIGN",null,null,null,null,"C_DE232Series.xlsm"]
["100-20","2008-08-01",null,"CHEROKEE",null,null,null,null,"Paul W. Flattery","pflatte","Road3","ROADWAY DESIGN",null,null,null,null,"C_DE252Series.xlsm"]
["100-21","2008-08-01",null,"CHICKASAW",null,null,null,null,"Kelly C. Bell","kbell","Road3","ROADWAY DESIGN",null,null,null,null,"C_DE253Series.xlsm"]
["100-22","2008-08-01",null,"CLARKE",null,null,null,null,"Angela K. Johnson","ajohns1","Road3","ROADWAY DESIGN",null,null,null,null,"C_DE254Series.xlsm"]
["100-23","2010-10-19",null,"CLAY",null,null,null,null,"Elijah D. Gansen","egansen","Road3","ROADWAY DESIGN",null,null,null,null,"C_DE259Series.xlsm"]
["100-24","2013-04-16",null,"CLAYTON",null,null,null,null,"James R. Schoenrock","jschoen","Consultant","ROADWAY DESIGN",null,null,null,null,"C_DE262Series.xlsm"]
["100-26","2008-08-01",null,"CLINTON",null,null,null,null,"Randall E. Schlei","rschlie","Consultant","ROADWAY DESIGN",null,null,null,null,"C_DE271Series.xlsm"]
["100-27","2009-10-20",null,"CRAWFORD",null,null,null,null,"Mark D. Mastellar","mmastel","Roadside","ROADWAY DESIGN",null,null,null,null,"C_DE281Series.xlsm"]
["100-28","2010-10-19",null,"DALLAS",null,null,null,null,"Robert L. Stanley","rstanle","Soils","GEOTECHNICAL DESIGN",null,null,null,null,"C_DE282Series.xlsm"]
["101-4","2002-04-30",null,"DAVIS",null,null,null,null,"Stephen J. Megivern","smegive","Soils","GEOTECHNICAL DESIGN",null,null,null,null,"C_DE290Series.xlsm"]
["101-5","2002-04-30",null,"DECATUR",null,null,null,null,"Mark A. Dell","mdell","Soils","GEOTECHNICAL DESIGN",null,null,null,null,"G_DE101Series.xlsm"]
["101-6","2002-04-30",null,"DELAWARE",null,null,null,null,"David R. Claman","dclaman","Bridge","HYDRAULIC DESIGN",null,null,null,null,"J_DE108Series.xlsm"]
["101-7","2002-04-30",null,"DES MOINES",null,null,null,null,"Zachary K. Abrams","zabrams","TrafficAndSafety","ROADWAY DESIGN",null,null,null,null,"J_DE111Series.xlsm"]
["101-8","2013-04-16",null,"DICKINSON",null,null,null,null,null,null,null,null,null,null,null,null,"J_DE113Series.xlsm"]
["101-13","2004-04-20",null,"DUBUQUE",null,null,null,null,null,null,null,null,null,null,null,null,"S_DE113Series.xlsm"]
["101-16","2009-10-20",null,"EMMET"]
["101-17","2011-04-19",null,"FAYETTE"]
["101-18","2011-04-19",null,"FLOYD"]
["102-3","2013-04-16",null,"FRANKLIN"]
["102-4","2011-10-18",null,"FREMONT"]
["102-5","2012-10-16",null,"GREENE"]
["102-5A","2008-08-01",null,"GRUNDY"]
["102-6C","2011-10-18",null,"GUTHRIE"]
["102-10","2008-08-01",null,"HAMILTON"]
["102-11","2008-08-01",null,"HANCOCK"]
["102-12","2008-08-01",null,"HARDIN"]
["102-14","2012-04-17",null,"HARRISON"]
["102-15","2008-08-01",null,"HENRY"]
["103-1","2010-10-19",null,"HOWARD"]
["103-3","2012-10-16",null,"HUMBOLDT"]
["103-4","2011-04-19",null,"IDA"]
["103-5","2008-08-01",null,"IOWA"]
["103-6","2011-04-19",null,"JACKSON"]
["103-7","2008-08-01",null,"JASPER"]
["104-3","2012-10-16",null,"JEFFERSON"]
["104-4","2009-10-20",null,"JOHNSON"]
["104-5A","2011-10-18",null,"JONES"]
["104-5B","2011-10-18",null,"KEOKUK"]
["104-5C","2012-04-17",null,"KOSSUTH"]
["104-8","2008-08-01",null,"LEE"]
["104-8A","2010-04-20",null,"LINN"]
["104-9","2012-04-17",null,"LOUISA"]
["104-10","2008-08-01",null,"LUCAS"]
["104-11","2008-08-01",null,"LYON"]
["104-12","2012-10-16",null,"MADISON"]
["104-13","2013-04-16",null,"MAHASKA"]
["105-1","1994-09-27",null,"MARION"]
["105-3","2005-10-18",null,"MARSHALL"]
["105-4","2011-10-18",null,"MILLS"]
["106-1","2008-08-01",null,"MITCHELL"]
["106-2","2008-08-01",null,"MONONA"]
["106-3","2008-08-01",null,"MONROE"]
["106-4","2013-04-16",null,"MONTGOMERY"]
["106-5","2008-08-01",null,"MUSCATINE"]
["106-7","2008-08-01",null,"O'BRIEN"]
["106-8","2011-04-19",null,"OSCEOLA"]
["107-7","2008-08-01",null,"PAGE"]
["107-22","2013-04-16",null,"PALO ALTO"]
["107-23","2011-10-18",null,"PLYMOUTH"]
["107-24","2008-08-01",null,"POCAHONTAS"]
["107-25","2008-08-01",null,"POLK"]
["107-29","2012-04-17",null,"POTTAWATTAMIE"]
["107-30","2012-04-17",null,"POWESHIEK"]
["107-31","2011-04-19",null,"RINGGOLD"]
["108-1","2008-08-01",null,"SAC"]
["108-2","2008-08-01",null,"SCOTT"]
["108-2A","2008-08-01",null,"SHELBY"]
["108-8A","2010-10-19",null,"SIOUX"]
["108-8B","2011-10-18",null,"STORY"]
["108-8C","2011-10-18",null,"TAMA"]
["108-8D","2010-10-19",null,"TAYLOR"]
["108-9A","2010-04-20",null,"UNION"]
["108-11A","2008-08-01",null,"VAN BUREN"]
["108-12","2008-08-01",null,"WAPELLO"]
["108-13A","2008-08-01",null,"WARREN"]
["108-15","2008-08-01",null,"WASHINGTON"]
["108-16","2010-10-19",null,"WAYNE"]
["108-18","2011-10-18",null,"WEBSTER"]
["108-18B","2012-10-16",null,"WINNEBAGO"]
["108-22","2013-04-16",null,"WINNESHIEK"]
["108-23A","2008-08-01",null,"WOODBURY"]
["108-24","2011-04-19",null,"WORTH"]
["108-26A","2008-08-01",null,"WRIGHT"]
["108-27","2012-10-16"]
["108-28","2008-08-01"]
["108-29","2012-10-16"]
["108-30","2013-04-16"]
["108-33","2013-04-16"]
["108-34","2010-10-19"]
["108-35","2012-04-17"]
["110-1","2013-04-16"]
["110-2","2013-04-16"]
["110-3","2008-08-01"]
["110-4","2008-08-01"]
["110-5","2008-08-01"]
["110-6","2008-08-01"]
["110-7A","2012-04-17"]
["110-7B","2010-10-19"]
["110-8","2008-08-01"]
["110-9","2011-10-18"]
["110-10","2008-08-01"]
["110-11","2008-08-01"]
["110-12A","2013-04-16"]
["110-13","2010-04-20"]
["110-14","2013-04-16"]
["110-15","2013-04-16"]
["110-16","2013-04-16"]
["111-1","2012-04-17"]
["111-2","1989-02-28"]
["111-23","2002-10-29"]
["111-25","2011-10-18"]
["112-3","2013-04-16"]
["112-5","2008-08-01"]
["112-6","2013-04-16"]
["112-7","2010-10-19"]
["112-8","2012-10-16"]
["112-9","2012-04-17"]
["112-10","2011-04-19"]
["113-1","2013-04-16"]
["113-2","2013-04-16"]
["113-3","2011-10-18"]
["113-10","2012-10-16"]
["213-2","2011-10-18"]
["213-3","2011-10-18"]
["231-1","2011-10-18"]
["231-2","2012-10-16"]
["232-3A","2012-10-16"]
["232-3B","2012-10-16"]
["232-3C","2012-10-16"]
["232-3D","2012-10-16"]
["232-4","2011-10-18"]
["232-6","2011-10-18"]
["232-7","2012-10-16"]
["232-9","2011-10-18"]
["232-11","2012-10-16"]
["241-5","2011-10-18"]
["252-1","2012-10-16"]
["253-1","2011-10-18"]
["254-1","2001-10-02"]
["262-3","2012-10-16"]
["262-4","2013-04-16"]
["262-5","2005-10-18"]
["262-6","2005-10-18"]
["263-1","2011-10-18"]
["271-1","2011-10-18"]
["271-2","1985-08-20"]
["271-4","2011-10-18"]
["271-9","1994-09-27"]